Workbook

Sheet Le Sueur Co (hidden)
A1: Le Sueur County Monthly Detail for Minnesota Local Sales & Use Tax
A2: ='Local SUT'!A2 -> CY 2004-2024
A3: Le Sueur County Transit Sales Tax (0.5%)
A4: Month | B4: 2004 | C4: 2005 | D4: 2006 | E4: 2007 | F4: 2008 | G4: 2009 | H4: 2010 | I4: 2011 | J4: 2012 | K4: 2013 | L4: 2014 | M4: 2015 | N4: 2016 | O4: 2017 | P4: 2018 | Q4: 2019 | R4: 2020 | S4: 2021 | T4: 2022 | U4: 2023 | V4: 2024
A5: January | B5: - | C5: - | D5: - | E5: - | F5: - | G5: - | H5: - | I5: - | J5: - | K5: - | L5: - | M5: - | N5: - | O5: - | P5: - | Q5: - | R5: - | S5: - | T5: 124535 | U5: 134084 | V5: 140061
A6: February | B6: - | C6: - | D6: - | E6: - | F6: - | G6: - | H6: - | I6: - | J6: - | K6: - | L6: - | M6: - | N6: - | O6: - | P6: - | Q6: - | R6: - | S6: - | T6: 119836 | U6: 110777 | V6: 114706
A7: March | B7: - | C7: - | D7: - | E7: - | F7: - | G7: - | H7: - | I7: - | J7: - | K7: - | L7: - | M7: - | N7: - | O7: - | P7: - | Q7: - | R7: - | S7: - | T7: 103013 | U7: 103478 | V7: 110446
A8: April | B8: - | C8: - | D8: - | E8: - | F8: - | G8: - | H8: - | I8: - | J8: - | K8: - | L8: - | M8: - | N8: - | O8: - | P8: - | Q8: - | R8: - | S8: 3 | T8: 121993 | U8: 125458 | V8: 124250
A9: May | B9: - | C9: - | D9: - | E9: - | F9: - | G9: - | H9: - | I9: - | J9: - | K9: - | L9: - | M9: - | N9: - | O9: - | P9: - | Q9: - | R9: - | S9: 97370 | T9: 111312 | U9: 116730 | V9: 135630
A10: June | B10: - | C10: - | D10: - | E10: - | F10: - | G10: - | H10: - | I10: - | J10: - | K10: - | L10: - | M10: - | N10: - | O10: - | P10: - | Q10: - | R10: - | S10: 104568 | T10: 136705 | U10: 148074 | V10: 148202
A11: July | B11: - | C11: - | D11: - | E11: - | F11: - | G11: - | H11: - | I11: - | J11: - | K11: - | L11: - | M11: - | N11: - | O11: - | P11: - | Q11: - | R11: - | S11: 122670 | T11: 146028 | U11: 164288 | V11: 144936
A12: August | B12: - | C12: - | D12: - | E12: - | F12: - | G12: - | H12: - | I12: - | J12: - | K12: - | L12: - | M12: - | N12: - | O12: - | P12: - | Q12: - | R12: - | S12: 126780 | T12: 148922 | U12: 147336 | V12: 148381.65
A13: September | B13: - | C13: - | D13: - | E13: - | F13: - | G13: - | H13: - | I13: - | J13: - | K13: - | L13: - | M13: - | N13: - | O13: - | P13: - | Q13: - | R13: - | S13: 125010 | T13: 152711 | U13: 152323 | V13: 149344.01
A14: October | B14: - | C14: - | D14: - | E14: - | F14: - | G14: - | H14: - | I14: - | J14: - | K14: - | L14: - | M14: - | N14: - | O14: - | P14: - | Q14: - | R14: - | S14: 132190 | T14: 148778 | U14: 148329 | V14: 155434.95
A15: November | B15: - | C15: - | D15: - | E15: - | F15: - | G15: - | H15: - | I15: - | J15: - | K15: - | L15: - | M15: - | N15: - | O15: - | P15: - | Q15: - | R15: - | S15: 120880 | T15: 136975 | U15: 134840 | V15: 143101.51
A16: December | B16: - | C16: - | D16: - | E16: - | F16: - | G16: - | H16: - | I16: - | J16: - | K16: - | L16: - | M16: - | N16: - | O16: - | P16: - | Q16: - | R16: - | S16: 117675 | T16: 126496 | U16: 139157 | V16: 128213.03
A17: Total | B17: - | C17: - | D17: - | E17: - | F17: - | G17: - | H17: - | I17: - | J17: - | K17: - | L17: - | M17: - | N17: - | O17: - | P17: - | Q17: - | R17: - | S17: =SUM(S5:S16) -> 947146 | T17: 1577304 | U17: =SUM(U5:U16) -> 1624874 | V17: 1642706.15
A18: Le Sueur County Transit Use Tax (0.5%)
A19: Month | B19: 2004 | C19: 2005 | D19: 2006 | E19: 2007 | F19: 2008 | G19: 2009 | H19: 2010 | I19: 2011 | J19: 2012 | K19: 2013 | L19: 2014 | M19: 2015 | N19: 2016 | O19: 2017 | P19: 2018 | Q19: 2019 | R19: 2020 | S19: 2021 | T19: 2021 | U19: 2023 | V19: 2024
A20: January | B20: - | C20: - | D20: - | E20: - | F20: - | G20: - | H20: - | I20: - | J20: - | K20: - | L20: - | M20: - | N20: - | O20: - | P20: - | Q20: - | R20: - | S20: - | T20: 7570 | U20: 5675 | V20: 8499
A21: February | B21: - | C21: - | D21: - | E21: - | F21: - | G21: - | H21: - | I21: - | J21: - | K21: - | L21: - | M21: - | N21: - | O21: - | P21: - | Q21: - | R21: - | S21: - | T21: 3930 | U21: 5224 | V21: 4854
A22: March | B22: - | C22: - | D22: - | E22: - | F22: - | G22: - | H22: - | I22: - | J22: - | K22: - | L22: - | M22: - | N22: - | O22: - | P22: - | Q22: - | R22: - | S22: - | T22: 9726 | U22: 3834 | V22: 4735
A23: April | B23: - | C23: - | D23: - | E23: - | F23: - | G23: - | H23: - | I23: - | J23: - | K23: - | L23: - | M23: - | N23: - | O23: - | P23: - | Q23: - | R23: - | S23: 0 | T23: 3704 | U23: 5863 | V23: 5995
A24: May | B24: - | C24: - | D24: - | E24: - | F24: - | G24: - | H24: - | I24: - | J24: - | K24: - | L24: - | M24: - | N24: - | O24: - | P24: - | Q24: - | R24: - | S24: 3903 | T24: 7058 | U24: 4340 | V24: 7911
A25: June | B25: - | C25: - | D25: - | E25: - | F25: - | G25: - | H25: - | I25: - | J25: - | K25: - | L25: - | M25: - | N25: - | O25: - | P25: - | Q25: - | R25: - | S25: 9642 | T25: 8805 | U25: 6267 | V25: 6247
A26: July | B26: - | C26: - | D26: - | E26: - | F26: - | G26: - | H26: - | I26: - | J26: - | K26: - | L26: - | M26: - | N26: - | O26: - | P26: - | Q26: - | R26: - | S26: 7483 | T26: 9290 | U26: 8112 | V26: 6307
A27: August | B27: - | C27: - | D27: - | E27: - | F27: - | G27: - | H27: - | I27: - | J27: - | K27: - | L27: - | M27: - | N27: - | O27: - | P27: - | Q27: - | R27: - | S27: 10288 | T27: 7991 | U27: 7397 | V27: 8046.04
A28: September | B28: - | C28: - | D28: - | E28: - | F28: - | G28: - | H28: - | I28: - | J28: - | K28: - | L28: - | M28: - | N28: - | O28: - | P28: - | Q28: - | R28: - | S28: 7253 | T28: 11803 | U28: 12503 | V28: 9319.04
A29: October | B29: - | C29: - | D29: - | E29: - | F29: - | G29: - | H29: - | I29: - | J29: - | K29: - | L29: - | M29: - | N29: - | O29: - | P29: - | Q29: - | R29: - | S29: 8640 | T29: 12206 | U29: 12736 | V29: 11931.65
A30: November | B30: - | C30: - | D30: - | E30: - | F30: - | G30: - | H30: - | I30: - | J30: - | K30: - | L30: - | M30: - | N30: - | O30: - | P30: - | Q30: - | R30: - | S30: 6920 | T30: 9854 | U30: 8443 | V30: 10597.57
A31: December | B31: - | C31: - | D31: - | E31: - | F31: - | G31: - | H31: - | I31: - | J31: - | K31: - | L31: - | M31: - | N31: - | O31: - | P31: - | Q31: - | R31: - | S31: 5799 | T31: 9244 | U31: 7376 | V31: 6206.39
A32: Total | B32: - | C32: - | D32: - | E32: - | F32: - | G32: - | H32: - | I32: - | J32: - | K32: - | L32: - | M32: - | N32: - | O32: - | P32: - | Q32: - | R32: - | S32: =SUM(S20:S31) -> 59928 | T32: 101181 | U32: =SUM(U20:U31) -> 87770 | V32: 90648.69
A33: Le Sueur County Transit Refunds
A34: Month | B34: 2004 | C34: 2005 | D34: 2006 | E34: 2007 | F34: 2008 | G34: 2009 | H34: 2010 | I34: 2011 | J34: 2012 | K34: 2013 | L34: 2014 | M34: 2015 | N34: 2016 | O34: 2017 | P34: 2018 | Q34: 2019 | R34: 2020 | S34: 2021 | T34: 2021 | U34: 2023 | V34: 2024
A35: January | B35: - | C35: - | D35: - | E35: - | F35: - | G35: - | H35: - | I35: - | J35: - | K35: - | L35: - | M35: - | N35: - | O35: - | P35: - | Q35: - | R35: - | S35: - | T35: 0 | U35: 0 | V35: 0
A36: February | B36: - | C36: - | D36: - | E36: - | F36: - | G36: - | H36: - | I36: - | J36: - | K36: - | L36: - | M36: - | N36: - | O36: - | P36: - | Q36: - | R36: - | S36: - | T36: 0 | U36: 0 | V36: 0
A37: March | B37: - | C37: - | D37: - | E37: - | F37: - | G37: - | H37: - | I37: - | J37: - | K37: - | L37: - | M37: - | N37: - | O37: - | P37: - | Q37: - | R37: - | S37: - | T37: 0 | U37: 0 | V37: -979
A38: April | B38: - | C38: - | D38: - | E38: - | F38: - | G38: - | H38: - | I38: - | J38: - | K38: - | L38: - | M38: - | N38: - | O38: - | P38: - | Q38: - | R38: - | S38: 0 | T38: 0 | U38: 0 | V38: -43
A39: May | B39: - | C39: - | D39: - | E39: - | F39: - | G39: - | H39: - | I39: - | J39: - | K39: - | L39: - | M39: - | N39: - | O39: - | P39: - | Q39: - | R39: - | S39: 0 | T39: 0 | U39: -45 | V39: 0
A40: June | B40: - | C40: - | D40: - | E40: - | F40: - | G40: - | H40: - | I40: - | J40: - | K40: - | L40: - | M40: - | N40: - | O40: - | P40: - | Q40: - | R40: - | S40: 0 | T40: 0 | U40: 0 | V40: 0
A41: July | B41: - | C41: - | D41: - | E41: - | F41: - | G41: - | H41: - | I41: - | J41: - | K41: - | L41: - | M41: - | N41: - | O41: - | P41: - | Q41: - | R41: - | S41: 0 | T41: 0 | U41: 0 | V41: -2
A42: August | B42: - | C42: - | D42: - | E42: - | F42: - | G42: - | H42: - | I42: - | J42: - | K42: - | L42: - | M42: - | N42: - | O42: - | P42: - | Q42: - | R42: - | S42: 0 | T42: -1957 | U42: -208 | V42: 0
A43: September | B43: - | C43: - | D43: - | E43: - | F43: - | G43: - | H43: - | I43: - | J43: - | K43: - | L43: - | M43: - | N43: - | O43: - | P43: - | Q43: - | R43: - | S43: 0 | T43: -7942 | U43: -2553 | V43: 0
A44: October | B44: - | C44: - | D44: - | E44: - | F44: - | G44: - | H44: - | I44: - | J44: - | K44: - | L44: - | M44: - | N44: - | O44: - | P44: - | Q44: - | R44: - | S44: 0 | T44: 0 | U44: -6292 | V44: -0.31
A45: November | B45: - | C45: - | D45: - | E45: - | F45: - | G45: - | H45: - | I45: - | J45: - | K45: - | L45: - | M45: - | N45: - | O45: - | P45: - | Q45: - | R45: - | S45: 0 | T45: 0 | U45: 0 | V45: 0
A46: December | B46: - | C46: - | D46: - | E46: - | F46: - | G46: - | H46: - | I46: - | J46: - | K46: - | L46: - | M46: - | N46: - | O46: - | P46: - | Q46: - | R46: - | S46: 0 | T46: 0 | U46: -2 | V46: -68
A47: Total | B47: - | C47: - | D47: - | E47: - | F47: - | G47: - | H47: - | I47: - | J47: - | K47: - | L47: - | M47: - | N47: - | O47: - | P47: - | Q47: - | R47: - | S47: =SUM(S35:S46) -> 0 | T47: -9899 | U47: =SUM(U35:U46) -> -9100 | V47: -1092.31
A48: Hidden columns B-R do not contain any data for CY 2004-2020
A49: ='Local SUT'!A78 -> Source: Minnesota Department of Revenue, Tax Research Division, November 2025
A50: end of worksheet

Sheet Carlton Cty (hidden)
A1: Carlton County Monthly Detail for Minnesota Local Sales & Use Tax
A2: ='Local SUT'!A2 -> CY 2004-2024
A3: Carlton County Sales Tax (0.5%)
A4: Month | B4: 2004 | C4: 2005 | D4: 2006 | E4: 2007 | F4: 2008 | G4: 2009 | H4: 2010 | I4: 2011 | J4: 2012 | K4: 2013 | L4: 2014 | M4: 2015 | N4: 2016 | O4: 2017 | P4: 2018 | Q4: 2019 | R4: 2020 | S4: 2021 | T4: 2022 | U4: 2023 | V4: 2024
A5: January | B5: - | C5: - | D5: - | E5: - | F5: - | G5: - | H5: - | I5: - | J5: - | K5: - | L5: - | M5: - | N5: - | O5: - | P5: - | Q5: - | R5: - | S5: - | T5: - | U5: - | V5: 205572
A6: February | B6: - | C6: - | D6: - | E6: - | F6: - | G6: - | H6: - | I6: - | J6: - | K6: - | L6: - | M6: - | N6: - | O6: - | P6: - | Q6: - | R6: - | S6: - | T6: - | U6: - | V6: 173749
A7: March | B7: - | C7: - | D7: - | E7: - | F7: - | G7: - | H7: - | I7: - | J7: - | K7: - | L7: - | M7: - | N7: - | O7: - | P7: - | Q7: - | R7: - | S7: - | T7: - | U7: - | V7: 194304
A8: April | B8: - | C8: - | D8: - | E8: - | F8: - | G8: - | H8: - | I8: - | J8: - | K8: - | L8: - | M8: - | N8: - | O8: - | P8: - | Q8: - | R8: - | S8: - | T8: - | U8: - | V8: 193484
A9: May | B9: - | C9: - | D9: - | E9: - | F9: - | G9: - | H9: - | I9: - | J9: - | K9: - | L9: - | M9: - | N9: - | O9: - | P9: - | Q9: - | R9: - | S9: - | T9: - | U9: 143526 | V9: 178090
A10: June | B10: - | C10: - | D10: - | E10: - | F10: - | G10: - | H10: - | I10: - | J10: - | K10: - | L10: - | M10: - | N10: - | O10: - | P10: - | Q10: - | R10: - | S10: - | T10: - | U10: 192529 | V10: 204215
A11: July | B11: - | C11: - | D11: - | E11: - | F11: - | G11: - | H11: - | I11: - | J11: - | K11: - | L11: - | M11: - | N11: - | O11: - | P11: - | Q11: - | R11: - | S11: - | T11: - | U11: 211677 | V11: 222567
A12: August | B12: - | C12: - | D12: - | E12: - | F12: - | G12: - | H12: - | I12: - | J12: - | K12: - | L12: - | M12: - | N12: - | O12: - | P12: - | Q12: - | R12: - | S12: - | T12: - | U12: 195704 | V12: 223802.94
A13: September | B13: - | C13: - | D13: - | E13: - | F13: - | G13: - | H13: - | I13: - | J13: - | K13: - | L13: - | M13: - | N13: - | O13: - | P13: - | Q13: - | R13: - | S13: - | T13: - | U13: 200745 | V13: 218451.45
A14: October | B14: - | C14: - | D14: - | E14: - | F14: - | G14: - | H14: - | I14: - | J14: - | K14: - | L14: - | M14: - | N14: - | O14: - | P14: - | Q14: - | R14: - | S14: - | T14: - | U14: 212302 | V14: 213002.03
A15: November | B15: - | C15: - | D15: - | E15: - | F15: - | G15: - | H15: - | I15: - | J15: - | K15: - | L15: - | M15: - | N15: - | O15: - | P15: - | Q15: - | R15: - | S15: - | T15: - | U15: 198347 | V15: 191397.87
A16: December | B16: - | C16: - | D16: - | E16: - | F16: - | G16: - | H16: - | I16: - | J16: - | K16: - | L16: - | M16: - | N16: - | O16: - | P16: - | Q16: - | R16: - | S16: - | T16: - | U16: 206209 | V16: 182366.12
A17: Total | B17: - | C17: - | D17: - | E17: - | F17: - | G17: - | H17: - | I17: - | J17: - | K17: - | L17: - | M17: =SUM(M5:M16) -> 0 | N17: =SUM(N5:N16) -> 0 | O17: =SUM(O5:O16) -> 0 | P17: =SUM(P5:P16) -> 0 | Q17: =SUM(Q5:Q16) -> 0 | R17: =SUM(R5:R16) -> 0 | S17: 0 | T17: 0 | U17: 1561039 | V17: =SUM(V5:V16) -> 2401001.41
A18: Carlton County Use Tax (0.5%)
A19: Month | B19: 2004 | C19: 2005 | D19: 2006 | E19: 2007 | F19: 2008 | G19: 2009 | H19: 2010 | I19: 2011 | J19: 2012 | K19: 2013 | L19: 2014 | M19: 2015 | N19: 2016 | O19: 2017 | P19: 2018 | Q19: 2019 | R19: 2020 | S19: 2021 | T19: 2022 | U19: 2023 | V19: 2024
A20: January | B20: - | C20: - | D20: - | E20: - | F20: - | G20: - | H20: - | I20: - | J20: - | K20: - | L20: - | M20: - | N20: - | O20: - | P20: - | Q20: - | R20: - | S20: - | T20: - | U20: - | V20: 16458
A21: February | B21: - | C21: - | D21: - | E21: - | F21: - | G21: - | H21: - | I21: - | J21: - | K21: - | L21: - | M21: - | N21: - | O21: - | P21: - | Q21: - | R21: - | S21: - | T21: - | U21: - | V21: 17035
A22: March | B22: - | C22: - | D22: - | E22: - | F22: - | G22: - | H22: - | I22: - | J22: - | K22: - | L22: - | M22: - | N22: - | O22: - | P22: - | Q22: - | R22: - | S22: - | T22: - | U22: - | V22: 14277
A23: April | B23: - | C23: - | D23: - | E23: - | F23: - | G23: - | H23: - | I23: - | J23: - | K23: - | L23: - | M23: - | N23: - | O23: - | P23: - | Q23: - | R23: - | S23: - | T23: - | U23: - | V23: 9927
A24: May | B24: - | C24: - | D24: - | E24: - | F24: - | G24: - | H24: - | I24: - | J24: - | K24: - | L24: - | M24: - | N24: - | O24: - | P24: - | Q24: - | R24: - | S24: - | T24: - | U24: 7594 | V24: 8073
A25: June | B25: - | C25: - | D25: - | E25: - | F25: - | G25: - | H25: - | I25: - | J25: - | K25: - | L25: - | M25: - | N25: - | O25: - | P25: - | Q25: - | R25: - | S25: - | T25: - | U25: 10021 | V25: 15024
A26: July | B26: - | C26: - | D26: - | E26: - | F26: - | G26: - | H26: - | I26: - | J26: - | K26: - | L26: - | M26: - | N26: - | O26: - | P26: - | Q26: - | R26: - | S26: - | T26: - | U26: 20418 | V26: 19709
A27: August | B27: - | C27: - | D27: - | E27: - | F27: - | G27: - | H27: - | I27: - | J27: - | K27: - | L27: - | M27: - | N27: - | O27: - | P27: - | Q27: - | R27: - | S27: - | T27: - | U27: 20299 | V27: 21047.74
A28: September | B28: - | C28: - | D28: - | E28: - | F28: - | G28: - | H28: - | I28: - | J28: - | K28: - | L28: - | M28: - | N28: - | O28: - | P28: - | Q28: - | R28: - | S28: - | T28: - | U28: 16336 | V28: 26402.33
A29: October | B29: - | C29: - | D29: - | E29: - | F29: - | G29: - | H29: - | I29: - | J29: - | K29: - | L29: - | M29: - | N29: - | O29: - | P29: - | Q29: - | R29: - | S29: - | T29: - | U29: 14025 | V29: 17135.09
A30: November | B30: - | C30: - | D30: - | E30: - | F30: - | G30: - | H30: - | I30: - | J30: - | K30: - | L30: - | M30: - | N30: - | O30: - | P30: - | Q30: - | R30: - | S30: - | T30: - | U30: 12878 | V30: 17984.64
A31: December | B31: - | C31: - | D31: - | E31: - | F31: - | G31: - | H31: - | I31: - | J31: - | K31: - | L31: - | M31: - | N31: - | O31: - | P31: - | Q31: - | R31: - | S31: - | T31: - | U31: 11500 | V31: 14426.04
A32: Total | B32: - | C32: - | D32: - | E32: - | F32: - | G32: - | H32: - | I32: - | J32: - | K32: - | L32: - | M32: =SUM(M20:M31) -> 0 | N32: =SUM(N20:N31) -> 0 | O32: =SUM(O20:O31) -> 0 | P32: =SUM(P20:P31) -> 0 | Q32: =SUM(Q20:Q31) -> 0 | R32: =SUM(R20:R31) -> 0 | S32: 0 | T32: 0 | U32: 113071 | V32: 197498.84
A33: Carlton County Refunds
A34: Month | B34: 2004 | C34: 2005 | D34: 2006 | E34: 2007 | F34: 2008 | G34: 2009 | H34: 2010 | I34: 2011 | J34: 2012 | K34: 2013 | L34: 2014 | M34: 2015 | N34: 2016 | O34: 2017 | P34: 2018 | Q34: 2019 | R34: 2020 | S34: 2021 | T34: 2022 | U34: 2023 | V34: 2024
A35: January | B35: - | C35: - | D35: - | E35: - | F35: - | G35: - | H35: - | I35: - | J35: - | K35: - | L35: - | M35: - | N35: - | O35: - | P35: - | Q35: - | R35: - | S35: - | T35: - | U35: - | V35: 0
A36: February | B36: - | C36: - | D36: - | E36: - | F36: - | G36: - | H36: - | I36: - | J36: - | K36: - | L36: - | M36: - | N36: - | O36: - | P36: - | Q36: - | R36: - | S36: - | T36: - | U36: - | V36: 0
A37: March | B37: - | C37: - | D37: - | E37: - | F37: - | G37: - | H37: - | I37: - | J37: - | K37: - | L37: - | M37: - | N37: - | O37: - | P37: - | Q37: - | R37: - | S37: - | T37: - | U37: - | V37: 0
A38: April | B38: - | C38: - | D38: - | E38: - | F38: - | G38: - | H38: - | I38: - | J38: - | K38: - | L38: - | M38: - | N38: - | O38: - | P38: - | Q38: - | R38: - | S38: - | T38: - | U38: - | V38: 0
A39: May | B39: - | C39: - | D39: - | E39: - | F39: - | G39: - | H39: - | I39: - | J39: - | K39: - | L39: - | M39: - | N39: - | O39: - | P39: - | Q39: - | R39: - | S39: - | T39: - | U39: - | V39: 0
A40: June | B40: - | C40: - | D40: - | E40: - | F40: - | G40: - | H40: - | I40: - | J40: - | K40: - | L40: - | M40: - | N40: - | O40: - | P40: - | Q40: - | R40: - | S40: - | T40: - | U40: - | V40: 0
A41: July | B41: - | C41: - | D41: - | E41: - | F41: - | G41: - | H41: - | I41: - | J41: - | K41: - | L41: - | M41: - | N41: - | O41: - | P41: - | Q41: - | R41: - | S41: - | T41: - | U41: - | V41: -836
A42: August | B42: - | C42: - | D42: - | E42: - | F42: - | G42: - | H42: - | I42: - | J42: - | K42: - | L42: - | M42: - | N42: - | O42: - | P42: - | Q42: - | R42: - | S42: - | T42: - | U42: - | V42: -9.63
A43: September | B43: - | C43: - | D43: - | E43: - | F43: - | G43: - | H43: - | I43: - | J43: - | K43: - | L43: - | M43: - | N43: - | O43: - | P43: - | Q43: - | R43: - | S43: - | T43: - | U43: - | V43: 0
A44: October | B44: - | C44: - | D44: - | E44: - | F44: - | G44: - | H44: - | I44: - | J44: - | K44: - | L44: - | M44: - | N44: - | O44: - | P44: - | Q44: - | R44: - | S44: - | T44: - | U44: - | V44: 0
A45: November | B45: - | C45: - | D45: - | E45: - | F45: - | G45: - | H45: - | I45: - | J45: - | K45: - | L45: - | M45: - | N45: - | O45: - | P45: - | Q45: - | R45: - | S45: - | T45: - | U45: - | V45: 0
A46: December | B46: - | C46: - | D46: - | E46: - | F46: - | G46: - | H46: - | I46: - | J46: - | K46: - | L46: - | M46: - | N46: - | O46: - | P46: - | Q46: - | R46: - | S46: - | T46: - | U46: - | V46: 0
A47: Total | B47: - | C47: - | D47: - | E47: - | F47: - | G47: - | H47: - | I47: - | J47: - | K47: - | L47: - | M47: =SUM(M35:M46) -> 0 | N47: =SUM(N35:N46) -> 0 | O47: =SUM(O35:O46) -> 0 | P47: =SUM(P35:P46) -> 0 | Q47: =SUM(Q35:Q46) -> 0 | R47: =SUM(R35:R46) -> 0 | S47: 0 | T47: 0 | U47: 0 | V47: -845.63
A48: Hidden columns B-L do not contain any data for CY 2004-2014
A49: ='Local SUT'!A78 -> Source: Minnesota Department of Revenue, Tax Research Division, November 2025
A50: end of worksheet

Sheet Local SUT
A1: Table 3. County General Sales & Use Taxes Total Collections
A2: CY 2004-2024
A3: For detail by month through June 2024, double click on links.
A4: County | B4: Tax Rate | C4: Year Imposed | D4: 2004 | E4: 2005 | F4: 2006 | G4: 2007 | H4: 2008 | I4: 2009 | J4: 2010 | K4: 2011 | L4: 2012 | M4: 2013 | N4: 2014 | O4: 2015 | P4: 2016 | Q4: 2017 | R4: 2018 | S4: 2019 | T4: 2020 | U4: 2021 | V4: 2022 | W4: 2023 | X4: 2024
A5: Non-Transit Taxes:
A6: Beltrami Cty | B6: 0.005 | C6: 2024 | X6: ='Beltrami Cty'!V17+'Beltrami Cty'!V32 -> 2252371
A7: Carlton Cty | B7: 0.005 | C7: 2023 | W7: ='Carlton Cty'!U17+'Carlton Cty'!U32 -> 1674110 | X7: ='Carlton Cty'!V17+'Carlton Cty'!V32 -> 2598500.25
A8: Cook Cty | B8: 0.01 | C8: 2010* | D8: ='Cook Cty'!B17+'Cook Cty'!B32 -> 1002391.34 | E8: ='Cook Cty'!C17+'Cook Cty'!C32 -> 1074549.65 | F8: ='Cook Cty'!D17+'Cook Cty'!D32 -> 1079651.18 | G8: ='Cook Cty'!E17+'Cook Cty'!E32 -> 1181754.55 | H8: ='Cook Cty'!F17+'Cook Cty'!F32 -> 443333.39 | I8: ='Cook Cty'!G17+'Cook Cty'!G32 -> 996.41 | J8: ='Cook Cty'!H17+'Cook Cty'!H32 -> 767941.64 | K8: ='Cook Cty'!I17+'Cook Cty'!I32 -> 1145291 | L8: ='Cook Cty'!J17+'Cook Cty'!J32 -> 1258563 | M8: ='Cook Cty'!K17+'Cook Cty'!K32 -> 1444164 | N8: ='Cook Cty'!L17+'Cook Cty'!L32 -> 1444056 | O8: ='Cook Cty'!M17+'Cook Cty'!M32 -> 1575952 | P8: ='Cook Cty'!N17+'Cook Cty'!N32 -> 1565320 | Q8: ='Cook Cty'!O17+'Cook Cty'!O32 -> 1527365 | R8: ='Cook Cty'!P17+'Cook Cty'!P32 -> 1713673 | S8: ='Cook Cty'!Q17+'Cook Cty'!Q32 -> 1818226 | T8: ='Cook Cty'!R17+'Cook Cty'!R32 -> 1790279 | U8: ='Cook Cty'!S17+'Cook Cty'!S32 -> 2269769 | V8: ='Cook Cty'!T17+'Cook Cty'!T32 -> 2415136 | W8: ='Cook Cty'!U17+'Cook Cty'!U32 -> 2477901 | X8: ='Cook Cty'!V17+'Cook Cty'!V32 -> 2320130.76
A9: Clay Cty | B9: 0.005 | C9: 2017 | D9: - | E9: - | F9: - | G9: - | H9: - | I9: - | J9: - | K9: - | L9: - | M9: - | N9: - | O9: - | P9: - | Q9: ='Clay Cty'!O17+'Clay Cty'!O32 -> 361017 | R9: ='Clay Cty'!P17+'Clay Cty'!P32 -> 2566027 | S9: ='Clay Cty'!Q17+'Clay Cty'!Q32 -> 3027941 | T9: ='Clay Cty'!R17+'Clay Cty'!R32 -> 3611748 | U9: ='Clay Cty'!S17+'Clay Cty'!S32 -> 3952672 | V9: ='Clay Cty'!T17+'Clay Cty'!T32 -> 4446884 | W9: ='Clay Cty'!U17+'Clay Cty'!U32 -> 4692510 | X9: ='Clay Cty'!V17+'Clay Cty'!V32 -> 4605176.59
A10: GKWMLL Sanitary District | B10: 0.01 | C10: 2018 | R10: ='GKWMLL Sanitary'!P17+'GKWMLL Sanitary'!P32 -> 170491 | S10: ='GKWMLL Sanitary'!Q17+'GKWMLL Sanitary'!Q32 -> 186102 | T10: ='GKWMLL Sanitary'!R17+'GKWMLL Sanitary'!R32 -> 223645 | U10: ='GKWMLL Sanitary'!S17+'GKWMLL Sanitary'!S32 -> 275922 | V10: ='GKWMLL Sanitary'!T17+'GKWMLL Sanitary'!T32 -> 263229 | W10: ='GKWMLL Sanitary'!U17+'GKWMLL Sanitary'!U32 -> 323387 | X10: ='GKWMLL Sanitary'!V17+'GKWMLL Sanitary'!V32 -> 418345.39
A11: Hennepin Cty | B11: 0.0015 | C11: 2007 | D11: - | E11: - | F11: - | G11: ='Hennepin Cty'!E17+'Hennepin Cty'!E32 -> 24573565.57 | H11: ='Hennepin Cty'!F17+'Hennepin Cty'!F32 -> 29082573.91 | I11: ='Hennepin Cty'!G17+'Hennepin Cty'!G32 -> 28030758 | J11: ='Hennepin Cty'!H17+'Hennepin Cty'!H32 -> 28864673 | K11: ='Hennepin Cty'!I17+'Hennepin Cty'!I32 -> 31063329 | L11: ='Hennepin Cty'!J17+'Hennepin Cty'!J32 -> 32344624 | M11: ='Hennepin Cty'!K17+'Hennepin Cty'!K32 -> 34249703 | N11: ='Hennepin Cty'!L17+'Hennepin Cty'!L32 -> 35052547 | O11: ='Hennepin Cty'!M17+'Hennepin Cty'!M32 -> 36953879 | P11: ='Hennepin Cty'!N17+'Hennepin Cty'!N32 -> 37476228 | Q11: ='Hennepin Cty'!O17+'Hennepin Cty'!O32 -> 37858775 | R11: ='Hennepin Cty'!P17+'Hennepin Cty'!P32 -> 39348167 | S11: ='Hennepin Cty'!Q17+'Hennepin Cty'!Q32 -> 43674866 | T11: ='Hennepin Cty'!R17+'Hennepin Cty'!R32 -> 36839329 | U11: ='Hennepin Cty'!S17+'Hennepin Cty'!S32 -> 40943577 | V11: ='Hennepin Cty'!T17+'Hennepin Cty'!T32 -> 45279210 | W11: ='Hennepin Cty'!U17+'Hennepin Cty'!U32 -> 49721888 | X11: ='Hennepin Cty'!V17+'Hennepin Cty'!V32 -> 50175938.29
A12: Itasca Cty | B12: 0.01 | C12: 2023 | W12: ='Itasca Cty'!U17+'Itasca Cty'!U32 -> 5432230 | X12: ='Itasca Cty'!V17+'Itasca Cty'!V32 -> 8515778.95
A13: Transit Taxes:
A14: Anoka Co | B14: 0.0025 | C14: 2017 | D14: - | E14: - | F14: - | G14: - | H14: - | I14: - | J14: - | K14: - | L14: - | M14: - | N14: - | O14: - | P14: - | Q14: ='Anoka Co'!O17+'Anoka Co'!O32 -> 1691361 | R14: ='Anoka Co'!P17+'Anoka Co'!P32 -> 11059485 | S14: ='Anoka Co'!Q17+'Anoka Co'!Q32 -> 11811566 | T14: ='Anoka Co'!R17+'Anoka Co'!R32 -> 12410129 | U14: ='Anoka Co'!S17+'Anoka Co'!S32 -> 14111972 | V14: ='Anoka Co'!T17+'Anoka Co'!T32 -> 15474228 | W14: ='Anoka Co'!U17+'Anoka Co'!U32 -> 15622162 | X14: ='Anoka Co'!V17+'Anoka Co'!V32 -> 15456009.18
A15: Benton Co | B15: 0.005 | C15: 2019 | J15: - | K15: - | L15: - | M15: - | N15: - | O15: - | P15: - | Q15: - | R15: - | S15: ='Benton Co'!Q17+'Benton Co'!Q32 -> 351890 | T15: ='Benton Co'!R17+'Benton Co'!R32 -> 2612258 | U15: ='Benton Co'!S17+'Benton Co'!S32 -> 3293500 | V15: ='Benton Co'!T17+'Benton Co'!T32 -> 3994480 | W15: ='Benton Co'!U17+'Benton Co'!U32 -> 3946587 | X15: ='Benton Co'!V17+'Benton Co'!V32 -> 3870972.56
A16: Becker Co | B16: 0.005 | C16: 2014 | D16: - | E16: - | F16: - | G16: - | H16: - | I16: - | J16: - | K16: - | L16: - | M16: - | N16: ='Becker Co'!L17+'Becker Co'!L32 -> 891621 | O16: ='Becker Co'!M17+'Becker Co'!M32 -> 2132901 | P16: ='Becker Co'!N17+'Becker Co'!N32 -> 2186818 | Q16: ='Becker Co'!O17+'Becker Co'!O32 -> 2399674 | R16: ='Becker Co'!P17+'Becker Co'!P32 -> 2668087 | S16: ='Becker Co'!Q17+'Becker Co'!Q32 -> 2697736 | T16: ='Becker Co'!R17+'Becker Co'!R32 -> 2874450 | U16: ='Becker Co'!S17+'Becker Co'!S32 -> 3362649 | V16: ='Becker Co'!T17+'Becker Co'!T32 -> 3758617 | W16: ='Becker Co'!U17+'Becker Co'!U32 -> 3814635 | X16: ='Becker Co'!V17+'Becker Co'!V32 -> 3806839.22
A17: Beltrami Co | B17: 0.005 | C17: 2014 | D17: - | E17: - | F17: - | G17: - | H17: - | I17: - | J17: - | K17: - | L17: - | M17: - | N17: ='Beltrami Co (Transit)'!L17+'Beltrami Co (Transit)'!L32 -> 2019694 | O17: ='Beltrami Co (Transit)'!M17+'Beltrami Co (Transit)'!M32 -> 3422677 | P17: ='Beltrami Co (Transit)'!N17+'Beltrami Co (Transit)'!N32 -> 3658646 | Q17: ='Beltrami Co (Transit)'!O17+'Beltrami Co (Transit)'!O32 -> 3465150 | R17: ='Beltrami Co (Transit)'!P17+'Beltrami Co (Transit)'!P32 -> 3408638 | S17: ='Beltrami Co (Transit)'!Q17+'Beltrami Co (Transit)'!Q32 -> 3673226 | T17: ='Beltrami Co (Transit)'!R17+'Beltrami Co (Transit)'!R32 -> 3762681 | U17: ='Beltrami Co (Transit)'!S17+'Beltrami Co (Transit)'!S32 -> 4964667 | V17: ='Beltrami Co (Transit)'!T17+'Beltrami Co (Transit)'!T32 -> 4630409 | W17: ='Beltrami Co (Transit)'!U17+'Beltrami Co (Transit)'!U32 -> 4641045 | X17: ='Beltrami Co (Transit)'!V17+'Beltrami Co (Transit)'!V32 -> 4535106.75
A18: Blue Earth Co | B18: 0.005 | C18: 2016 | D18: - | E18: - | F18: - | G18: - | H18: - | I18: - | J18: - | K18: - | L18: - | M18: - | N18: - | O18: - | P18: ='Blue Earth Co'!N17+'Blue Earth Co'!N32 -> 3961540 | Q18: ='Blue Earth Co'!O17+'Blue Earth Co'!O32 -> 6021417 | R18: ='Blue Earth Co'!P17+'Blue Earth Co'!P32 -> 6304952 | S18: ='Blue Earth Co'!Q17+'Blue Earth Co'!Q32 -> 6465266 | T18: ='Blue Earth Co'!R17+'Blue Earth Co'!R32 -> 6511487 | U18: ='Blue Earth Co'!S17+'Blue Earth Co'!S32 -> 7483024 | V18: ='Blue Earth Co'!T17+'Blue Earth Co'!T32 -> 8307204 | W18: ='Blue Earth Co'!U17+'Blue Earth Co'!U32 -> 8752823 | X18: ='Blue Earth Co'!V17+'Blue Earth Co'!V32 -> 8278181.2
A19: Brown Co | B19: 0.005 | C19: 2016 | D19: - | E19: - | F19: - | G19: - | H19: - | I19: - | J19: - | K19: - | L19: - | M19: - | N19: - | O19: - | P19: ='Brown Co'!N17+'Brown Co'!N32 -> 1127216 | Q19: ='Brown Co'!O17+'Brown Co'!O32 -> 1663602 | R19: ='Brown Co'!P17+'Brown Co'!P32 -> 1732971 | S19: ='Brown Co'!Q17+'Brown Co'!Q32 -> 1835721 | T19: ='Brown Co'!R17+'Brown Co'!R32 -> 2022609 | U19: ='Brown Co'!S17+'Brown Co'!S32 -> 2272206 | V19: ='Brown Co'!T17+'Brown Co'!T32 -> 2429134 | W19: ='Brown Co'!U17+'Brown Co'!U32 -> 2494447 | X19: ='Brown Co'!V17+'Brown Co'!V32 -> 2452172.5
A20: Carlton Co | B20: 0.005 | C20: 2015 | D20: - | E20: - | F20: - | G20: - | H20: - | I20: - | J20: - | K20: - | L20: - | M20: - | N20: - | O20: ='Carlton Co'!M17+'Carlton Co'!M32 -> 1102758 | P20: ='Carlton Co'!N17+'Carlton Co'!N32 -> 1727802 | Q20: ='Carlton Co'!O17+'Carlton Co'!O32 -> 1964660 | R20: ='Carlton Co'!P17+'Carlton Co'!P32 -> 1823878 | S20: ='Carlton Co'!Q17+'Carlton Co'!Q32 -> 1925491 | T20: ='Carlton Co'!R17+'Carlton Co'!R32 -> 2100732 | U20: ='Carlton Co'!S17+'Carlton Co'!S32 -> 3283192 | V20: ='Carlton Co'!T17+'Carlton Co'!T32 -> 2550776 | W20: ='Carlton Co'!U17+'Carlton Co'!U32 -> 2606532 | X20: ='Carlton Co'!V17+'Carlton Co'!V32 -> 2732644.91
A21: Carver Co | B21: 0.005 | C21: 2017 | D21: - | E21: - | F21: - | G21: - | H21: - | I21: - | J21: - | K21: - | L21: - | M21: - | N21: - | O21: - | P21: - | Q21: ='Carver Co'!O17+'Carver Co'!O32 -> 892342 | R21: ='Carver Co'!P17+'Carver Co'!P32 -> 7216800 | S21: ='Carver Co'!Q17+'Carver Co'!Q32 -> 8834428 | T21: ='Carver Co'!R17+'Carver Co'!R32 -> 8715038 | U21: ='Carver Co'!S17+'Carver Co'!S32 -> 10080144 | V21: ='Carver Co'!T17+'Carver Co'!T32 -> 12411380 | W21: ='Carver Co'!U17+'Carver Co'!U32 -> 10639996 | X21: ='Carver Co'!V17+'Carver Co'!V32 -> 10859213.88
A22: Cass Co | B22: 0.005 | C22: 2016 | D22: - | E22: - | F22: - | G22: - | H22: - | I22: - | J22: - | K22: - | L22: - | M22: - | N22: - | O22: - | P22: ='Cass Co'!N17+'Cass Co'!N32 -> 1296754 | Q22: ='Cass Co'!O17+'Cass Co'!O32 -> 1795180 | R22: ='Cass Co'!P17+'Cass Co'!P32 -> 2008434 | S22: ='Cass Co'!Q17+'Cass Co'!Q32 -> 2075251 | T22: ='Cass Co'!R17+'Cass Co'!R32 -> 2380276 | U22: ='Cass Co'!S17+'Cass Co'!S32 -> 3750079 | V22: ='Cass Co'!T17+'Cass Co'!T32 -> 3050824 | W22: ='Cass Co'!U17+'Cass Co'!U32 -> 3102539 | X22: ='Cass Co'!V17+'Cass Co'!V32 -> 3157468.04
A23: Chisago Co | B23: 0.005 | C23: 2016 | D23: - | E23: - | F23: - | G23: - | H23: - | I23: - | J23: - | K23: - | L23: - | M23: - | N23: - | O23: - | P23: ='Chisago Co'!N17+'Chisago Co'!N32 -> 1377569 | Q23: ='Chisago Co'!O17+'Chisago Co'!O32 -> 2178378 | R23: ='Chisago Co'!P17+'Chisago Co'!P32 -> 2393599 | S23: ='Chisago Co'!Q17+'Chisago Co'!Q32 -> 2699640 | T23: ='Chisago Co'!R17+'Chisago Co'!R32 -> 2885433 | U23: ='Chisago Co'!S17+'Chisago Co'!S32 -> 3337683 | V23: ='Chisago Co'!T17+'Chisago Co'!T32 -> 3680284 | W23: ='Chisago Co'!U17+'Chisago Co'!U32 -> 3661018 | X23: ='Chisago Co'!V17+'Chisago Co'!V32 -> 3717844.72
A24: Cook Co | B24: 0.005 | C24: 2017 | D24: - | E24: - | F24: - | G24: - | H24: - | I24: - | J24: - | K24: - | L24: - | M24: - | N24: - | O24: - | P24: - | Q24: ='Cook Co'!O17+'Cook Co'!O32 -> 677578 | R24: ='Cook Co'!P17+'Cook Co'!P32 -> 829460 | S24: ='Cook Co'!Q17+'Cook Co'!Q32 -> 901315 | T24: ='Cook Co'!R17+'Cook Co'!R32 -> 894655 | U24: ='Cook Co'!S17+'Cook Co'!S32 -> 1136825 | V24: ='Cook Co'!T17+'Cook Co'!T32 -> 1226910 | W24: ='Cook Co'!U17+'Cook Co'!U32 -> 1240096 | X24: ='Cook Co'!V17+'Cook Co'!V32 -> 1163248.77
A25: Crow Wing Co | B25: 0.005 | C25: 2016 | D25: - | E25: - | F25: - | G25: - | H25: - | I25: - | J25: - | K25: - | L25: - | M25: - | N25: - | O25: - | P25: ='Crow Wing Co'!N17+'Crow Wing Co'!N32 -> 4142131 | Q25: ='Crow Wing Co'!O17+'Crow Wing Co'!O32 -> 6087433 | R25: ='Crow Wing Co'!P17+'Crow Wing Co'!P32 -> 6489291 | S25: ='Crow Wing Co'!Q17+'Crow Wing Co'!Q32 -> 7032394 | T25: ='Crow Wing Co'!R17+'Crow Wing Co'!R32 -> 7542322 | U25: ='Crow Wing Co'!S17+'Crow Wing Co'!S32 -> 8772839 | V25: ='Crow Wing Co'!T17+'Crow Wing Co'!T32 -> 9602378 | W25: ='Crow Wing Co'!U17+'Crow Wing Co'!U32 -> 9808707 | X25: ='Crow Wing Co'!V17+'Crow Wing Co'!V32 -> 9859208.8
A26: Dakota Co | B26: 0.0025 | C26: 2017 | D26: - | E26: - | F26: - | G26: - | H26: - | I26: - | J26: - | K26: - | L26: - | M26: - | N26: - | O26: - | P26: - | Q26: ='Dakota Co'!O17+'Dakota Co'!O32 -> 2536993 | R26: ='Dakota Co'!P17+'Dakota Co'!P32 -> 16585084 | S26: ='Dakota Co'!Q17+'Dakota Co'!Q32 -> 17717456 | T26: ='Dakota Co'!R17+'Dakota Co'!R32 -> 17939800 | U26: ='Dakota Co'!S17+'Dakota Co'!S32 -> 19959885 | V26: ='Dakota Co'!T17+'Dakota Co'!T32 -> 22298959 | W26: ='Dakota Co'!U17+'Dakota Co'!U32 -> 23245318 | X26: ='Dakota Co'!V17+'Dakota Co'!V32 -> 23198562.74
A27: Dodge Co | B27: 0.005 | C27: 2019 | J27: - | K27: - | L27: - | M27: - | N27: - | O27: - | P27: - | Q27: - | R27: - | S27: ='Dodge Co'!Q17+'Dodge Co'!Q32 -> 780842 | T27: ='Dodge Co'!R17+'Dodge Co'!R32 -> 1034229 | U27: ='Dodge Co'!S17+'Dodge Co'!S32 -> 1096501 | V27: ='Dodge Co'!T17+'Dodge Co'!T32 -> 1198270 | W27: ='Dodge Co'!U17+'Dodge Co'!U32 -> 1202948 | X27: ='Dodge Co'!V17+'Dodge Co'!V32 -> 1216696.26
A28: Douglas Co | B28: 0.005 | C28: 2014 | D28: - | E28: - | F28: - | G28: - | H28: - | I28: - | J28: - | K28: - | L28: - | M28: - | N28: ='Douglas Co'!L17+'Douglas Co'!L32 -> 438645 | O28: ='Douglas Co'!M17+'Douglas Co'!M32 -> 3147085 | P28: ='Douglas Co'!N17+'Douglas Co'!N32 -> 3227977 | Q28: ='Douglas Co'!O17+'Douglas Co'!O32 -> 3390519 | R28: ='Douglas Co'!P17+'Douglas Co'!P32 -> 3499028 | S28: ='Douglas Co'!Q17+'Douglas Co'!Q32 -> 3690799 | T28: ='Douglas Co'!R17+'Douglas Co'!R32 -> 3787451 | U28: ='Douglas Co'!S17+'Douglas Co'!S32 -> 4330212 | V28: ='Douglas Co'!T17+'Douglas Co'!T32 -> 5020823 | W28: ='Douglas Co'!U17+'Douglas Co'!U32 -> 5126470 | X28: ='Douglas Co'!V17+'Douglas Co'!V32 -> 5039723.16
A29: Fillmore Co | B29: 0.005 | C29: 2015 | D29: - | E29: - | F29: - | G29: - | H29: - | I29: - | J29: - | K29: - | L29: - | M29: - | N29: - | O29: ='Fillmore Co'!M17+'Fillmore Co'!M32 -> 726549 | P29: ='Fillmore Co'!N17+'Fillmore Co'!N32 -> 850283 | Q29: ='Fillmore Co'!O17+'Fillmore Co'!O32 -> 875698 | R29: ='Fillmore Co'!P17+'Fillmore Co'!P32 -> 914559 | S29: ='Fillmore Co'!Q17+'Fillmore Co'!Q32 -> 962965 | T29: ='Fillmore Co'!R17+'Fillmore Co'!R32 -> 1053760 | U29: ='Fillmore Co'!S17+'Fillmore Co'!S32 -> 1199762 | V29: ='Fillmore Co'!T17+'Fillmore Co'!T32 -> 1397633 | W29: ='Fillmore Co'!U17+'Fillmore Co'!U32 -> 1458679 | X29: ='Fillmore Co'!V17+'Fillmore Co'!V32 -> 1398981.05
A30: Freeborn Co | B30: 0.005 | C30: 2016 | D30: - | E30: - | F30: - | G30: - | H30: - | I30: - | J30: - | K30: - | L30: - | M30: - | N30: - | O30: - | P30: ='Freeborn Co'!N17+'Freeborn Co'!N32 -> 1694931 | Q30: ='Freeborn Co'!O17+'Freeborn Co'!O32 -> 1899193 | R30: ='Freeborn Co'!P17+'Freeborn Co'!P32 -> 2012409 | S30: ='Freeborn Co'!Q17+'Freeborn Co'!Q32 -> 2136124 | T30: ='Freeborn Co'!R17+'Freeborn Co'!R32 -> 2209379 | U30: ='Freeborn Co'!S17+'Freeborn Co'!S32 -> 2424068 | V30: ='Freeborn Co'!T17+'Freeborn Co'!T32 -> 2654600 | W30: ='Freeborn Co'!U17+'Freeborn Co'!U32 -> 2763760 | X30: ='Freeborn Co'!V17+'Freeborn Co'!V32 -> 2677874.65
A31: Goodhue Co | B31: 0.005 | C31: 2019 | J31: - | K31: - | L31: - | M31: - | N31: - | O31: - | P31: - | Q31: - | S31: ='Goodhue Co'!Q17+'Goodhue Co'!Q32 -> 3030411 | T31: ='Goodhue Co'!R17+'Goodhue Co'!R32 -> 3416433 | U31: ='Goodhue Co'!S17+'Goodhue Co'!S32 -> 3970602 | V31: ='Goodhue Co'!T17+'Goodhue Co'!T32 -> 4338789 | W31: ='Goodhue Co'!U17+'Goodhue Co'!U32 -> 4485127 | X31: ='Goodhue Co'!V17+'Goodhue Co'!V32 -> 4451377.12
A32: Hennepin Co | B32: 0.005 | C32: 2017 | D32: - | E32: - | F32: - | G32: - | H32: - | I32: - | J32: - | K32: - | L32: - | M32: - | N32: - | O32: - | P32: - | Q32: ='Hennepin Co'!O17+'Hennepin Co'!O32 -> 19982941 | R32: ='Hennepin Co'!P17+'Hennepin Co'!P32 -> 130059592 | S32: ='Hennepin Co'!Q17+'Hennepin Co'!Q32 -> 136129636 | T32: ='Hennepin Co'!R17+'Hennepin Co'!R32 -> 121825796 | U32: ='Hennepin Co'!S17+'Hennepin Co'!S32 -> 138202176 | V32: ='Hennepin Co'!T17+'Hennepin Co'!T32 -> 160677011 | W32: ='Hennepin Co'!U17+'Hennepin Co'!U32 -> 164564379 | X32: ='Hennepin Co'!V17+'Hennepin Co'!V32 -> 163191027.5
A33: Hubbard Co | B33: 0.005 | C33: 2015 | D33: - | E33: - | F33: - | G33: - | H33: - | I33: - | J33: - | K33: - | L33: - | M33: - | N33: - | O33: ='Hubbard Co'!M17+'Hubbard Co'!M32 -> 428043 | P33: ='Hubbard Co'!N17+'Hubbard Co'!N32 -> 929720 | Q33: ='Hubbard Co'!O17+'Hubbard Co'!O32 -> 1040001 | R33: ='Hubbard Co'!P17+'Hubbard Co'!P32 -> 1289407 | S33: ='Hubbard Co'!Q17+'Hubbard Co'!Q32 -> 1340277 | T33: ='Hubbard Co'!R17+'Hubbard Co'!R32 -> 1530025 | U33: ='Hubbard Co'!S17+'Hubbard Co'!S32 -> 1953440 | V33: ='Hubbard Co'!T17+'Hubbard Co'!T32 -> 1927335 | W33: ='Hubbard Co'!U17+'Hubbard Co'!U32 -> 1967092 | X33: ='Hubbard Co'!V17+'Hubbard Co'!V32 -> 1970195.78
A34: Isanti Co | B34: 0.005 | C34: 2019 | J34: - | K34: - | L34: - | M34: - | N34: - | O34: - | P34: - | Q34: - | R34: - | S34: ='Isanti Co'!Q17+'Isanti Co'!Q32 -> 934458 | T34: ='Isanti Co'!R17+'Isanti Co'!R32 -> 2597705 | U34: ='Isanti Co'!S17+'Isanti Co'!S32 -> 3017128 | V34: ='Isanti Co'!T17+'Isanti Co'!T32 -> 3370250 | W34: ='Isanti Co'!U17+'Isanti Co'!U32 -> 3441871 | X34: ='Isanti Co'!V17+'Isanti Co'!V32 -> 3595883.55
A35: Kanabec Co | B35: 0.005 | C35: 2020 | J35: - | K35: - | L35: - | M35: - | N35: - | O35: - | P35: - | Q35: - | R35: - | S35: - | T35: ='Kanabec Co'!R17+'Kanabec Co'!R32 -> 634657 | U35: ='Kanabec Co'!S17+'Kanabec Co'!S32 -> 848929 | V35: ='Kanabec Co'!T17+'Kanabec Co'!T32 -> 1063989 | W35: ='Kanabec Co'!U17+'Kanabec Co'!U32 -> 1014147 | X35: ='Kanabec Co'!V17+'Kanabec Co'!V32 -> 1000774.78
A36: Kandiyohi Co | B36: 0.005 | C36: 2018 | D36: - | E36: - | F36: - | G36: - | H36: - | I36: - | J36: - | K36: - | L36: - | M36: - | N36: - | O36: - | P36: - | Q36: - | R36: ='Kandiyohi Co'!P17+'Kandiyohi Co'!P32 -> 2028807 | S36: ='Kandiyohi Co'!Q17+'Kandiyohi Co'!Q32 -> 3168895 | T36: ='Kandiyohi Co'!R17+'Kandiyohi Co'!R32 -> 3419695 | U36: ='Kandiyohi Co'!S17+'Kandiyohi Co'!S32 -> 3899631 | V36: ='Kandiyohi Co'!T17+'Kandiyohi Co'!T32 -> 4532927 | W36: ='Kandiyohi Co'!U17+'Kandiyohi Co'!U32 -> 4706513 | X36: ='Kandiyohi Co'!V17+'Kandiyohi Co'!V32 -> 4658392.11
A37: Koochiching Co | B37: 0.005 | C37: 2022 | V37: ='Koochiching Co'!T17+'Koochiching Co'!T32 -> 643539 | W37: ='Koochiching Co'!U17+'Koochiching Co'!U32 -> 953946 | X37: ='Koochiching Co'!V17+'Koochiching Co'!V32 -> 990186.81
A38: Lake Co | B38: 0.005 | C38: 2017 | D38: - | E38: - | F38: - | G38: - | H38: - | I38: - | J38: - | K38: - | L38: - | M38: - | N38: - | O38: - | P38: - | Q38: ='Lake Co'!O17+'Lake Co'!O32 -> 534316 | R38: ='Lake Co'!P17+'Lake Co'!P32 -> 918788 | S38: ='Lake Co'!Q17+'Lake Co'!Q32 -> 972984 | T38: ='Lake Co'!R17+'Lake Co'!R32 -> 1018953 | U38: ='Lake Co'!S17+'Lake Co'!S32 -> 1228294 | V38: ='Lake Co'!T17+'Lake Co'!T32 -> 1203250 | W38: ='Lake Co'!U17+'Lake Co'!U32 -> 1265844 | X38: ='Lake Co'!V17+'Lake Co'!V32 -> 1332371.62
A39: Le Sueur Co | B39: 0.005 | C39: 2021 | J39: - | K39: - | L39: - | M39: - | N39: - | O39: - | P39: - | Q39: - | R39: - | S39: - | T39: - | U39: ='Le Sueur Co'!S17+'Le Sueur Co'!S32 -> 1007074 | V39: ='Le Sueur Co'!T17+'Le Sueur Co'!T32 -> 1678485 | W39: ='Le Sueur Co'!U17+'Le Sueur Co'!U32 -> 1712644 | X39: ='Le Sueur Co'!V17+'Le Sueur Co'!V32 -> 1733354.84
A40: Lyon Co | B40: 0.005 | C40: 2015 | D40: - | E40: - | F40: - | G40: - | H40: - | I40: - | J40: - | K40: - | L40: - | M40: - | N40: - | O40: ='Lyon Co'!M17+'Lyon Co'!M32 -> 291539 | P40: ='Lyon Co'!N17+'Lyon Co'!N32 -> 1868381 | Q40: ='Lyon Co'!O17+'Lyon Co'!O32 -> 1880882 | R40: ='Lyon Co'!P17+'Lyon Co'!P32 -> 1909545 | S40: ='Lyon Co'!Q17+'Lyon Co'!Q32 -> 2080318 | T40: ='Lyon Co'!R17+'Lyon Co'!R32 -> 1083587 | U40: ='Lyon Co'!S17+'Lyon Co'!S32 -> 11328 | V40: ='Lyon Co'!T17+'Lyon Co'!T32 -> 2321 | W40: ='Lyon Co'!U17+'Lyon Co'!U32 -> -17285 | X40: ='Lyon Co'!V17+'Lyon Co'!V32 -> 1975.1
A41: McLeod Co | B41: 0.005 | C41: 2020 | J41: - | K41: - | L41: - | M41: - | N41: - | O41: - | P41: - | Q41: - | R41: - | S41: - | T41: ='McLeod Co'!R17+'McLeod Co'!R32 -> 2300640 | U41: ='McLeod Co'!S17+'McLeod Co'!S32 -> 2885996 | V41: ='McLeod Co'!T17+'McLeod Co'!T32 -> 3260421 | W41: ='McLeod Co'!U17+'McLeod Co'!U32 -> 3265919 | X41: ='McLeod Co'!V17+'McLeod Co'!V32 -> 3313084.96
A42: Mille Lacs Co | B42: 0.005 | C42: 2017 | D42: - | E42: - | F42: - | G42: - | H42: - | I42: - | J42: - | K42: - | L42: - | M42: - | N42: - | O42: - | P42: - | Q42: ='Mille Lacs Co'!O17+'Mille Lacs Co'!O32 -> 969168 | R42: ='Mille Lacs Co'!P17+'Mille Lacs Co'!P32 -> 1169438 | S42: ='Mille Lacs Co'!Q17+'Mille Lacs Co'!Q32 -> 1426689 | T42: ='Mille Lacs Co'!R17+'Mille Lacs Co'!R32 -> 1620782 | U42: ='Mille Lacs Co'!S17+'Mille Lacs Co'!S32 -> 1848660 | V42: ='Mille Lacs Co'!T17+'Mille Lacs Co'!T32 -> 1951067 | W42: ='Mille Lacs Co'!U17+'Mille Lacs Co'!U32 -> 1976180 | X42: ='Mille Lacs Co'!V17+'Mille Lacs Co'!V32 -> 2048006.58
A43: Morrison Co | B43: 0.005 | C43: 2018 | D43: - | E43: - | F43: - | G43: - | H43: - | I43: - | J43: - | K43: - | L43: - | M43: - | N43: - | O43: - | P43: - | Q43: - | R43: ='Morrison Co'!P17+'Morrison Co'!P32 -> 1290987 | S43: ='Morrison Co'!Q17+'Morrison Co'!Q32 -> 1817735 | T43: ='Morrison Co'!R17+'Morrison Co'!R32 -> 2049453 | U43: ='Morrison Co'!S17+'Morrison Co'!S32 -> 2364437 | V43: ='Morrison Co'!T17+'Morrison Co'!T32 -> 2579863 | W43: ='Morrison Co'!U17+'Morrison Co'!U32 -> 2628396 | X43: ='Morrison Co'!V17+'Morrison Co'!V32 -> 2662904.13
A44: Mower Co | B44: 0.005 | C44: 2018 | D44: - | E44: - | F44: - | G44: - | H44: - | I44: - | J44: - | K44: - | L44: - | M44: - | N44: - | O44: - | P44: - | Q44: - | R44: ='Mower Co'!P17+'Mower Co'!P32 -> 1570917 | S44: ='Mower Co'!Q17+'Mower Co'!Q32 -> 1964651 | T44: ='Mower Co'!R17+'Mower Co'!R32 -> 2079572 | U44: ='Mower Co'!S17+'Mower Co'!S32 -> 2288770 | V44: ='Mower Co'!T17+'Mower Co'!T32 -> 2472828 | W44: ='Mower Co'!U17+'Mower Co'!U32 -> 2603159 | X44: ='Mower Co'!V17+'Mower Co'!V32 -> 2711983.74
A45: Nicollet Co | B45: 0.005 | C45: 2018 | D45: - | E45: - | F45: - | G45: - | H45: - | I45: - | J45: - | K45: - | L45: - | M45: - | N45: - | O45: - | P45: - | Q45: - | R45: ='Nicollet Co'!P17+'Nicollet Co'!P32 -> 1291514 | S45: ='Nicollet Co'!Q17+'Nicollet Co'!Q32 -> 1531962 | T45: ='Nicollet Co'!R17+'Nicollet Co'!R32 -> 1589294 | U45: ='Nicollet Co'!S17+'Nicollet Co'!S32 -> 1821618 | V45: ='Nicollet Co'!T17+'Nicollet Co'!T32 -> 2124710 | W45: ='Nicollet Co'!U17+'Nicollet Co'!U32 -> 2195920 | X45: ='Nicollet Co'!V17+'Nicollet Co'!V32 -> 2103995.47
A46: Nobles Co | B46: 0.005 | C46: 2021 | J46: - | K46: - | L46: - | M46: - | N46: - | O46: - | P46: - | Q46: - | R46: - | S46: - | T46: - | U46: ='Nobles Co'!S17+'Nobles Co'!S32 -> 1362045 | V46: ='Nobles Co'!T17+'Nobles Co'!T32 -> 1686298 | W46: ='Nobles Co'!U17+'Nobles Co'!U32 -> 1743847 | X46: ='Nobles Co'!V17+'Nobles Co'!V32 -> 1603036.8
A47: Norman Co | B47: 0.005 | C47: 2022 | V47: ='Norman Co'!T17+'Norman Co'!T32 -> 165791 | W47: ='Norman Co'!U17+'Norman Co'!U32 -> 405973 | X47: ='Norman Co'!V17+'Norman Co'!V32 -> 414010.67
A48: Olmsted Co | B48: 0.25%/0.50% | C48: 2014/2017 | D48: - | E48: - | F48: - | G48: - | H48: - | I48: - | J48: - | K48: - | L48: - | M48: - | N48: ='Olmsted Co'!L17+'Olmsted Co'!L32 -> 5157046 | O48: ='Olmsted Co'!M17+'Olmsted Co'!M32 -> 6413790 | P48: ='Olmsted Co'!N17+'Olmsted Co'!N32 -> 6678702 | Q48: ='Olmsted Co'!O17+'Olmsted Co'!O32 -> 9561943 | R48: ='Olmsted Co'!P17+'Olmsted Co'!P32 -> 14000025 | S48: ='Olmsted Co'!Q17+'Olmsted Co'!Q32 -> 14554044 | T48: ='Olmsted Co'!R17+'Olmsted Co'!R32 -> 14598011 | U48: ='Olmsted Co'!S17+'Olmsted Co'!S32 -> 16326627 | V48: ='Olmsted Co'!T17+'Olmsted Co'!T32 -> 18135194 | W48: ='Olmsted Co'!U17+'Olmsted Co'!U32 -> 18666825 | X48: ='Olmsted Co'!V17+'Olmsted Co'!V32 -> 18381361.91
A49: Otter Tail Co | B49: 0.005 | C49: 2016 | D49: - | E49: - | F49: - | G49: - | H49: - | I49: - | J49: - | K49: - | L49: - | M49: - | N49: - | O49: - | P49: ='Otter Tail Co'!N17+'Otter Tail Co'!N32 -> 2927490 | Q49: ='Otter Tail Co'!O17+'Otter Tail Co'!O32 -> 3451792 | R49: ='Otter Tail Co'!P17+'Otter Tail Co'!P32 -> 3661933 | S49: ='Otter Tail Co'!Q17+'Otter Tail Co'!Q32 -> 3749202 | T49: ='Otter Tail Co'!R17+'Otter Tail Co'!R32 -> 4145100 | U49: ='Otter Tail Co'!S17+'Otter Tail Co'!S32 -> 4739022 | V49: ='Otter Tail Co'!T17+'Otter Tail Co'!T32 -> 5194900 | W49: ='Otter Tail Co'!U17+'Otter Tail Co'!U32 -> 5564668 | X49: ='Otter Tail Co'!V17+'Otter Tail Co'!V32 -> 5558274.64
A50: Pine Co | B50: 0.005 | C50: 2017 | D50: - | E50: - | F50: - | G50: - | H50: - | I50: - | J50: - | K50: - | L50: - | M50: - | N50: - | O50: - | P50: - | Q50: ='Pine Co'!O17+'Pine Co'!O32 -> 896740 | R50: ='Pine Co'!P17+'Pine Co'!P32 -> 1086440 | S50: ='Pine Co'!Q17+'Pine Co'!Q32 -> 1307289 | T50: ='Pine Co'!R17+'Pine Co'!R32 -> 1462905 | U50: ='Pine Co'!S17+'Pine Co'!S32 -> 1754696 | V50: ='Pine Co'!T17+'Pine Co'!T32 -> 1836543 | W50: ='Pine Co'!U17+'Pine Co'!U32 -> 1897209 | X50: ='Pine Co'!V17+'Pine Co'!V32 -> 1985102
A51: Polk Co | B51: 0.0025 | C51: 2018 | D51: - | E51: - | F51: - | G51: - | H51: - | I51: - | J51: - | K51: - | L51: - | M51: - | N51: - | O51: - | P51: - | Q51: - | R51: ='Polk Co'!P17+'Polk Co'!P32 -> 656264 | S51: ='Polk Co'!Q17+'Polk Co'!Q32 -> 847003 | T51: ='Polk Co'!R17+'Polk Co'!R32 -> 847815 | U51: ='Polk Co'!S17+'Polk Co'!S32 -> 1008635 | V51: ='Polk Co'!T17+'Polk Co'!T32 -> 1032438 | W51: ='Polk Co'!U17+'Polk Co'!U32 -> 1143582 | X51: ='Polk Co'!V17+'Polk Co'!V32 -> 1969918.34
A52: Ramsey Co | B52: 0.005 | C52: 2017 | D52: - | E52: - | F52: - | G52: - | H52: - | I52: - | J52: - | K52: - | L52: - | M52: - | N52: - | O52: - | P52: - | Q52: ='Ramsey Co'!O17+'Ramsey Co'!O32 -> 6412847 | R52: ='Ramsey Co'!P17+'Ramsey Co'!P32 -> 42227193 | S52: ='Ramsey Co'!Q17+'Ramsey Co'!Q32 -> 45484627 | T52: ='Ramsey Co'!R17+'Ramsey Co'!R32 -> 41377993 | U52: ='Ramsey Co'!S17+'Ramsey Co'!S32 -> 46236324 | V52: ='Ramsey Co'!T17+'Ramsey Co'!T32 -> 53908962 | W52: ='Ramsey Co'!U17+'Ramsey Co'!U32 -> 54068958 | X52: ='Ramsey Co'!V17+'Ramsey Co'!V32 -> 54263964.18
A53: Redwood Co | B53: 0.005 | C53: 2019 | J53: - | K53: - | L53: - | M53: - | N53: - | O53: - | P53: - | Q53: - | R53: - | S53: ='Redwood Co'!Q17+'Redwood Co'!Q32 -> 595052 | T53: ='Redwood Co'!R17+'Redwood Co'!R32 -> 916957 | U53: ='Redwood Co'!S17+'Redwood Co'!S32 -> 1071841 | V53: ='Redwood Co'!T17+'Redwood Co'!T32 -> 1203078 | W53: ='Redwood Co'!U17+'Redwood Co'!U32 -> 1258908 | X53: ='Redwood Co'!V17+'Redwood Co'!V32 -> 1273732
A54: Renville Co | B54: 0.005 | C54: 2023 | W54: ='Renville Co'!U17+'Renville Co'!U32 -> 755766 | X54: ='Renville Co'!V17+'Renville Co'!V32 -> 890526
A55: Rice Co | B55: 0.005 | C55: 2014 | D55: - | E55: - | F55: - | G55: - | H55: - | I55: - | J55: - | K55: - | L55: - | M55: - | N55: ='Rice Co'!L17+'Rice Co'!L32 -> 2603853 | O55: ='Rice Co'!M17+'Rice Co'!M32 -> 3054720 | P55: ='Rice Co'!N17+'Rice Co'!N32 -> 3248747 | Q55: ='Rice Co'!O17+'Rice Co'!O32 -> 3443765 | R55: ='Rice Co'!P17+'Rice Co'!P32 -> 3557433 | S55: ='Rice Co'!Q17+'Rice Co'!Q32 -> 3893281 | T55: ='Rice Co'!R17+'Rice Co'!R32 -> 4025170 | U55: ='Rice Co'!S17+'Rice Co'!S32 -> 4473022 | V55: ='Rice Co'!T17+'Rice Co'!T32 -> 4963750 | W55: ='Rice Co'!U17+'Rice Co'!U32 -> 4954239 | X55: ='Rice Co'!V17+'Rice Co'!V32 -> 4797877.23
A56: Roseau Co | B56: 0.005 | C56: 2022 | V56: ='Roseau Co'!T17+'Roseau Co'!T32 -> 1057790 | W56: ='Roseau Co'!U17+'Roseau Co'!U32 -> 1298906 | X56: ='Roseau Co'!V17+'Roseau Co'!V32 -> 1271157.27
A57: Scott Co | B57: 0.005 | C57: 2015 | D57: - | E57: - | F57: - | G57: - | H57: - | I57: - | J57: - | K57: - | L57: - | M57: - | N57: - | O57: ='Scott Co'!M17+'Scott Co'!M32 -> 1174792 | P57: ='Scott Co'!N17+'Scott Co'!N32 -> 8561335 | Q57: ='Scott Co'!O17+'Scott Co'!O32 -> 8696361 | R57: ='Scott Co'!P17+'Scott Co'!P32 -> 9538068 | S57: ='Scott Co'!Q17+'Scott Co'!Q32 -> 10925644 | T57: ='Scott Co'!R17+'Scott Co'!R32 -> 10930449 | U57: ='Scott Co'!S17+'Scott Co'!S32 -> 12636957 | V57: ='Scott Co'!T17+'Scott Co'!T32 -> 14256556 | W57: ='Scott Co'!U17+'Scott Co'!U32 -> 15166115 | X57: ='Scott Co'!V17+'Scott Co'!V32 -> 14556314.74
A58: Sherburne Co | B58: 0.005 | C58: 2019 | J58: - | K58: - | L58: - | M58: - | N58: - | O58: - | P58: - | Q58: - | R58: - | S58: ='Sherburne Co'!Q17+'Sherburne Co'!Q32 -> 4929930 | T58: ='Sherburne Co'!R17+'Sherburne Co'!R32 -> 6063602 | U58: ='Sherburne Co'!S17+'Sherburne Co'!S32 -> 7219976 | V58: ='Sherburne Co'!T17+'Sherburne Co'!T32 -> 8267432 | W58: ='Sherburne Co'!U17+'Sherburne Co'!U32 -> 8339999 | X58: ='Sherburne Co'!V17+'Sherburne Co'!V32 -> 7836182.82
A59: St. Louis Co | B59: 0.005 | C59: 2015 | D59: - | E59: - | F59: - | G59: - | H59: - | I59: - | J59: - | K59: - | L59: - | M59: - | N59: - | O59: ='St. Louis Co'!M17+'St. Louis Co'!M32 -> 10045950 | P59: ='St. Louis Co'!N17+'St. Louis Co'!N32 -> 14198464 | Q59: ='St. Louis Co'!O17+'St. Louis Co'!O32 -> 14461229 | R59: ='St. Louis Co'!P17+'St. Louis Co'!P32 -> 14916136 | S59: ='St. Louis Co'!Q17+'St. Louis Co'!Q32 -> 15935003 | T59: ='St. Louis Co'!R17+'St. Louis Co'!R32 -> 16104469 | U59: ='St. Louis Co'!S17+'St. Louis Co'!S32 -> 18561557 | V59: ='St. Louis Co'!T17+'St. Louis Co'!T32 -> 20152565 | W59: ='St. Louis Co'!U17+'St. Louis Co'!U32 -> 21296742 | X59: ='St. Louis Co'!V17+'St. Louis Co'!V32 -> 21324900.39
A60: Stearns Co | B60: 0.0025 | C60: 2018 | D60: - | E60: - | F60: - | G60: - | H60: - | I60: - | J60: - | K60: - | L60: - | M60: - | N60: - | O60: - | P60: - | Q60: - | R60: ='Stearns Co'!P17+'Stearns Co'!P32 -> 5545659 | S60: ='Stearns Co'!Q17+'Stearns Co'!Q32 -> 6504320 | T60: ='Stearns Co'!R17+'Stearns Co'!R32 -> 6578796 | U60: ='Stearns Co'!S17+'Stearns Co'!S32 -> 7530704 | V60: ='Stearns Co'!T17+'Stearns Co'!T32 -> 8535626 | W60: ='Stearns Co'!U17+'Stearns Co'!U32 -> 8768147 | X60: ='Stearns Co'!V17+'Stearns Co'!V32 -> 8933902.52
A61: Steele Co | B61: 0.005 | C61: 2015 | D61: - | E61: - | F61: - | G61: - | H61: - | I61: - | J61: - | K61: - | L61: - | M61: - | N61: - | O61: ='Steele Co'!M17+'Steele Co'!M32 -> 1574441 | P61: ='Steele Co'!N17+'Steele Co'!N32 -> 2535267 | Q61: ='Steele Co'!O17+'Steele Co'!O32 -> 2717876 | R61: ='Steele Co'!P17+'Steele Co'!P32 -> 2765488 | S61: ='Steele Co'!Q17+'Steele Co'!Q32 -> 3078129 | T61: ='Steele Co'!R17+'Steele Co'!R32 -> 3186940 | U61: ='Steele Co'!S17+'Steele Co'!S32 -> 3465220 | V61: ='Steele Co'!T17+'Steele Co'!T32 -> 3851446 | W61: ='Steele Co'!U17+'Steele Co'!U32 -> 3910417 | X61: ='Steele Co'!V17+'Steele Co'!V32 -> 3777959.86
A62: Todd Co | B62: 0.005 | C62: 2015 | D62: - | E62: - | F62: - | G62: - | H62: - | I62: - | J62: - | K62: - | L62: - | M62: - | N62: - | O62: ='Todd Co'!M17+'Todd Co'!M32 -> 601685 | P62: ='Todd Co'!N17+'Todd Co'!N32 -> 722674 | Q62: ='Todd Co'!O17+'Todd Co'!O32 -> 794335 | R62: ='Todd Co'!P17+'Todd Co'!P32 -> 844304 | S62: ='Todd Co'!Q17+'Todd Co'!Q32 -> 892553 | T62: ='Todd Co'!R17+'Todd Co'!R32 -> 1025108 | U62: ='Todd Co'!S17+'Todd Co'!S32 -> 1145612 | V62: ='Todd Co'!T17+'Todd Co'!T32 -> 1313216 | W62: ='Todd Co'!U17+'Todd Co'!U32 -> 1327709 | X62: ='Todd Co'!V17+'Todd Co'!V32 -> 1468155.6
A63: Wabasha Co | B63: 0.005 | C63: 2016 | D63: - | E63: - | F63: - | G63: - | H63: - | I63: - | J63: - | K63: - | L63: - | M63: - | N63: - | O63: - | P63: ='Wabasha Co'!N17+'Wabasha Co'!N32 -> 568215 | Q63: ='Wabasha Co'!O17+'Wabasha Co'!O32 -> 830490 | R63: ='Wabasha Co'!P17+'Wabasha Co'!P32 -> 929646 | S63: ='Wabasha Co'!Q17+'Wabasha Co'!Q32 -> 1029677 | T63: ='Wabasha Co'!R17+'Wabasha Co'!R32 -> 1092038 | U63: ='Wabasha Co'!S17+'Wabasha Co'!S32 -> 1272914 | V63: ='Wabasha Co'!T17+'Wabasha Co'!T32 -> 1435363 | W63: ='Wabasha Co'!U17+'Wabasha Co'!U32 -> 1478352 | X63: ='Wabasha Co'!V17+'Wabasha Co'!V32 -> 1362253.27
A64: Wadena Co | B64: 0.005 | C64: 2014 | D64: - | E64: - | F64: - | G64: - | H64: - | I64: - | J64: - | K64: - | L64: - | M64: - | N64: ='Wadena Co'!L17+'Wadena Co'!L32 -> 421140 | O64: ='Wadena Co'!M17+'Wadena Co'!M32 -> 667357 | P64: ='Wadena Co'!N17+'Wadena Co'!N32 -> 684352 | Q64: ='Wadena Co'!O17+'Wadena Co'!O32 -> 725655 | R64: ='Wadena Co'!P17+'Wadena Co'!P32 -> 750895 | S64: ='Wadena Co'!Q17+'Wadena Co'!Q32 -> 813918 | T64: ='Wadena Co'!R17+'Wadena Co'!R32 -> 868927 | U64: ='Wadena Co'!S17+'Wadena Co'!S32 -> 1016793 | V64: ='Wadena Co'!T17+'Wadena Co'!T32 -> 1054637 | W64: ='Wadena Co'!U17+'Wadena Co'!U32 -> 1072228 | X64: ='Wadena Co'!V17+'Wadena Co'!V32 -> 1090992.1
A65: Waseca Co | B65: 0.005 | C65: 2019 | J65: - | K65: - | L65: - | M65: - | N65: - | O65: - | P65: - | Q65: - | R65: - | S65: ='Waseca Co'!Q17+'Waseca Co'!Q32 -> 532391 | T65: ='Waseca Co'!R17+'Waseca Co'!R32 -> 874887 | U65: ='Waseca Co'!S17+'Waseca Co'!S32 -> 1048810 | V65: ='Waseca Co'!T17+'Waseca Co'!T32 -> 1084106 | W65: ='Waseca Co'!U17+'Waseca Co'!U32 -> 1065470 | X65: ='Waseca Co'!V17+'Waseca Co'!V32 -> 1037609.62
A66: Washington Co | B66: 0.0025 | C66: 2017 | D66: - | E66: - | F66: - | G66: - | H66: - | I66: - | J66: - | K66: - | L66: - | M66: - | N66: - | O66: - | P66: - | Q66: ='Washington Co'!O17+'Washington Co'!O32 -> 1487620 | R66: ='Washington Co'!P17+'Washington Co'!P32 -> 9810444 | S66: ='Washington Co'!Q17+'Washington Co'!Q32 -> 10356093 | T66: ='Washington Co'!R17+'Washington Co'!R32 -> 10669748 | U66: ='Washington Co'!S17+'Washington Co'!S32 -> 14323716 | V66: ='Washington Co'!T17+'Washington Co'!T32 -> 28375059 | W66: ='Washington Co'!U17+'Washington Co'!U32 -> 28406813 | X66: ='Washington Co'!V17+'Washington Co'!V32 -> 27473063.53
A67: Winona Co | B67: 0.005 | C67: 2017 | D67: - | E67: - | F67: - | G67: - | H67: - | I67: - | J67: - | K67: - | L67: - | M67: - | N67: - | O67: - | P67: - | Q67: ='Winona Co'!O17+'Winona Co'!O32 -> 2527345 | R67: ='Winona Co'!P17+'Winona Co'!P32 -> 2949038 | S67: ='Winona Co'!Q17+'Winona Co'!Q32 -> 3217165 | T67: ='Winona Co'!R17+'Winona Co'!R32 -> 3236602 | U67: ='Winona Co'!S17+'Winona Co'!S32 -> 3629501 | V67: ='Winona Co'!T17+'Winona Co'!T32 -> 4017467 | W67: ='Winona Co'!U17+'Winona Co'!U32 -> 4079325 | X67: ='Winona Co'!V17+'Winona Co'!V32 -> 3973355.09
A68: Wright Co | B68: 0.005 | C68: 2017 | D68: - | E68: - | F68: - | G68: - | H68: - | I68: - | J68: - | K68: - | L68: - | M68: - | N68: - | O68: - | P68: - | Q68: ='Wright Co'!O17+'Wright Co'!O32 -> 1003788 | R68: ='Wright Co'!P17+'Wright Co'!P32 -> 7331380 | S68: ='Wright Co'!Q17+'Wright Co'!Q32 -> 8534117 | T68: ='Wright Co'!R17+'Wright Co'!R32 -> 9414392 | U68: ='Wright Co'!S17+'Wright Co'!S32 -> 11165894 | V68: ='Wright Co'!T17+'Wright Co'!T32 -> 12475341 | W68: ='Wright Co'!U17+'Wright Co'!U32 -> 12665904 | X68: ='Wright Co'!V17+'Wright Co'!V32 -> 13072755.72
A69: County Total | D69: =SUM(D8:D68) -> 1002391.34 | E69: =SUM(E8:E68) -> 1074549.65 | F69: =SUM(F8:F68) -> 1079651.18 | G69: =SUM(G8:G68) -> 25755320.12 | H69: =SUM(H8:H68) -> 29525907.3 | I69: =SUM(I8:I68) -> 28031754.41 | J69: =SUM(J8:J68) -> 29632614.64 | K69: =SUM(K8:K68) -> 32208620 | L69: =SUM(L8:L68) -> 33603187 | M69: =SUM(M8:M68) -> 35693867 | N69: =SUM(N8:N68) -> 48028602 | O69: =SUM(O8:O68) -> 73314118 | P69: =SUM(P8:P68) -> 107216562 | Q69: =SUM(Q8:Q68) -> 158705429 | R69: =SUM(R8:R68) -> 374844374 | S69: =SUM(S8:S68) -> 415876699 | T69: =SUM(T8:T68) -> 405788191 | U69: =SUM(U8:U68) -> 467639097 | V69: =SUM(V8:V68) -> 541921711 | W69: =SUM(W7:W68) -> 564549742 | X69: =SUM(X6:X68) -> 568388910
A70: Metro Area Transportation | B70: 0.0075 | C70: 2023 | W70: ='Metro Area Transportation'!U17+'Metro Area Transportation'!U32 -> 79291339 | X70: ='Metro Area Transportation'!V17+'Metro Area Transportation'!V32 -> 507375305.4
A71: Metro Area Housing | B71: 0.0025 | C71: 2023 | W71: ='Metro Area Housing'!U17+'Metro Area Housing'!U32 -> 26497110 | X71: ='Metro Area Housing'!V17+'Metro Area Housing'!V32 -> 169726731.5
A72: Metro Area Transit Improvement | B72: 0.0025 | C72: 2008 | D72: - | E72: - | F72: - | G72: - | H72: ='Metro Area Transit Improvement'!F17+'Metro Area Transit Improvement'!F32 -> 34024648.79 | I72: ='Metro Area Transit Improvement'!G17+'Metro Area Transit Improvement'!G32 -> 86990821 | J72: ='Metro Area Transit Improvement'!H17+'Metro Area Transit Improvement'!H32 -> 90169253 | K72: ='Metro Area Transit Improvement'!I17+'Metro Area Transit Improvement'!I32 -> 96773584 | L72: ='Metro Area Transit Improvement'!J17+'Metro Area Transit Improvement'!J32 -> 101077456 | M72: ='Metro Area Transit Improvement'!K17+'Metro Area Transit Improvement'!K32 -> 108100932 | N72: ='Metro Area Transit Improvement'!L17+'Metro Area Transit Improvement'!L32 -> 111644146 | O72: ='Metro Area Transit Improvement'!M17+'Metro Area Transit Improvement'!M32 -> 116658872 | P72: ='Metro Area Transit Improvement'!N17+'Metro Area Transit Improvement'!N32 -> 117968786 | Q72: ='Metro Area Transit Improvement'!O17+'Metro Area Transit Improvement'!O32 -> 101958755 | R72: ='Metro Area Transit Improvement'!P17+'Metro Area Transit Improvement'!P32 -> 1183679 | S72: ='Metro Area Transit Improvement'!Q17+'Metro Area Transit Improvement'!Q32 -> 5349263 | T72: ='Metro Area Transit Improvement'!R17+'Metro Area Transit Improvement'!R32 -> 642431 | U72: ='Metro Area Transit Improvement'!S17+'Metro Area Transit Improvement'!S32 -> -742867 | V72: ='Metro Area Transit Improvement'!T17+'Metro Area Transit Improvement'!T32 -> -4705885 | W72: ='Metro Area Transit Improvement'!U17+'Metro Area Transit Improvement'!U32 -> -423536 | X72: ='Metro Area Transit Improvement'!V17+'Metro Area Transit Improvement'!V32 -> 56727.83
A73: County & Metro Area Total (excl. Refunds) | D73: =SUM(D69:D72) -> 1002391.34 | E73: =SUM(E69:E72) -> 1074549.65 | F73: =SUM(F69:F72) -> 1079651.18 | G73: =SUM(G69:G72) -> 25755320.12 | H73: =SUM(H69:H72) -> 63550556.09 | I73: =SUM(I69:I72) -> 115022575.4 | J73: =SUM(J69:J72) -> 119801867.6 | K73: =SUM(K69:K72) -> 128982204 | L73: =SUM(L69:L72) -> 134680643 | M73: =SUM(M69:M72) -> 143794799 | N73: =SUM(N69:N72) -> 159672748 | O73: =SUM(O69:O72) -> 189972990 | P73: =SUM(P69:P72) -> 225185348 | Q73: =SUM(Q69:Q72) -> 260664184 | R73: =SUM(R69:R72) -> 376028053 | S73: =SUM(S69:S72) -> 421225962 | T73: =SUM(T69:T72) -> 406430622 | U73: =SUM(U69:U72) -> 466896230 | V73: =SUM(V69:V72) -> 537215826 | W73: =SUM(W69:W72) -> 669914655 | X73: =SUM(X69:X72) -> 1245547675
A74: County & Metro Area Refunds | D74: N/A | E74: N/A | F74: N/A | G74: N/A | H74: N/A | I74: N/A | J74: ='Cook Cty'!H47+'Hennepin Cty'!H47+'Metro Area Transit Improvement'!H47 -> -2053429 | K74: ='Cook Cty'!I47+'Hennepin Cty'!I47+'Metro Area Transit Improvement'!I47 -> -4005467 | L74: ='Cook Cty'!J47+'Hennepin Cty'!J47+'Metro Area Transit Improvement'!J47 -> -3545461 | M74: ='Cook Cty'!K47+'Hennepin Cty'!K47+'Metro Area Transit Improvement'!K47 -> -3941240 | N74: ='Cook Cty'!L47+'Hennepin Cty'!L47+'Becker Co'!L47+'Beltrami Co (Transit)'!L47+'Douglas Co'!L47+'Olmsted Co'!L47+'Rice Co'!L47+'Wadena Co'!L47+'Metro Area Transit Improvement'!L47 -> -4356407 | O74: ='Cook Cty'!M47+'Hennepin Cty'!M47+'Becker Co'!M47+'Beltrami Co (Transit)'!M47+'Carlton Co'!M47+'Douglas Co'!M47+'Fillmore Co'!M47+'Hubbard Co'!M47+'Lyon Co'!M47+'Olmsted Co'!M47+'Rice Co'!M47+'Scott Co'!M47+'St. Louis Co'!M47+'Steele Co'!M47+'Todd Co'!M47+'Wadena Co'!M47+'Metro Area Transit Improvement'!M47 -> -6010309 | P74: ='Cook Cty'!N47+'Hennepin Cty'!N47+'Becker Co'!N47+'Beltrami Co (Transit)'!N47+'Blue Earth Co'!N47+'Brown Co'!N47+'Carlton Co'!N47+'Cass Co'!N47+'Chisago Co'!N47+'Crow Wing Co'!N47+'Douglas Co'!N47+'Fillmore Co'!N47+'Freeborn Co'!N47+'Hubbard Co'!N47+'Lyon Co'!N47+'Olmsted Co'!N47+'Otter Tail Co'!N47+'Rice Co'!N47+'Scott Co'!N47+'St. Louis Co'!N47+'Steele Co'!N47+'Todd Co'!N47+'Wabasha Co'!N47+'Wadena Co'!N47+'Metro Area Transit Improvement'!N47 -> -5273378 | Q74: ='Cook Cty'!O47+'Clay Cty'!O47+'Hennepin Cty'!O47+'Anoka Co'!O47+'Becker Co'!O47+'Beltrami Co (Transit)'!O47+'Blue Earth Co'!O47+'Brown Co'!O47+'Carlton Co'!O47+'Carver Co'!O47+'Cass Co'!O47+'Chisago Co'!O47+'Cook Co'!O47+'Crow Wing Co'!O47+'Dakota Co'!O47+'Douglas Co'!O47+'Fillmore Co'!O47+'Freeborn Co'!O47+'Hennepin Co'!O47+'Hubbard Co'!O47+'Lake Co'!O47+'Lyon Co'!O47+'Mille Lacs Co'!O47+'Olmsted Co'!O47+'Otter Tail Co'!O47+'Pine Co'!O47+'Ramsey Co'!O47+'Rice Co'!O47+'Scott Co'!O47+'St. Louis Co'!O47+'Steele Co'!O47+'Todd Co'!O47+'Wabasha Co'!O47+'Wadena Co'!O47+'Washington Co'!O47+'Winona Co'!O47+'Wright Co'!O47+'Metro Area Transit Improvement'!O47 -> -4917353 | R74: ='Cook Cty'!P47+'Clay Cty'!P47+'Hennepin Cty'!P47+'Anoka Co'!P47+'Becker Co'!P47+'Beltrami Co (Transit)'!P47+'Blue Earth Co'!P47+'Brown Co'!P47+'Carlton Co'!P47+'Carver Co'!P47+'Cass Co'!P47+'Chisago Co'!P47+'Cook Co'!P47+'Crow Wing Co'!P47+'Dakota Co'!P47+'Douglas Co'!P47+'Fillmore Co'!P47+'Freeborn Co'!P47+'Hennepin Co'!P47+'Hubbard Co'!P47+'Kandiyohi Co'!P47+'Lake Co'!P47+'Lyon Co'!P47+'Mille Lacs Co'!P47+'Morrison Co'!P47+'Mower Co'!P47+'Nicollet Co'!P47+'Olmsted Co'!P47+'Otter Tail Co'!P47+'Pine Co'!P47+'Polk Co'!P47+'Ramsey Co'!P47+'Rice Co'!P47+'Scott Co'!P47+'St. Louis Co'!P47+'Stearns Co'!P47+'Steele Co'!P47+'Todd Co'!P47+'Wabasha Co'!P47+'Wadena Co'!P47+'Washington Co'!P47+'Winona Co'!P47+'Wright Co'!P47+'Metro Area Transit Improvement'!P47 -> -5162997 | S74: ='Cook Cty'!Q47+'Clay Cty'!Q47+'Hennepin Cty'!Q47+'Anoka Co'!Q47+'Benton Co'!Q47+'Becker Co'!Q47+'Beltrami Co (Transit)'!Q47+'Blue Earth Co'!Q47+'Brown Co'!Q47+'Carlton Co'!Q47+'Carver Co'!Q47+'Cass Co'!Q47+'Chisago Co'!Q47+'Cook Co'!Q47+'Crow Wing Co'!Q47+'Dakota Co'!Q47+'Dodge Co'!Q47+'Douglas Co'!Q47+'Fillmore Co'!Q47+'Freeborn Co'!Q47+'Goodhue Co'!Q47+'Hennepin Co'!Q47+'Hubbard Co'!Q47+'Isanti Co'!Q47+'Kandiyohi Co'!Q47+'Lake Co'!Q47+'Lyon Co'!Q47+'Mille Lacs Co'!Q47+'Morrison Co'!Q47+'Mower Co'!Q47+'Nicollet Co'!Q47+'Olmsted Co'!Q47+'Otter Tail Co'!Q47+'Pine Co'!Q47+'Polk Co'!Q47+'Ramsey Co'!Q47+'Redwood Co'!Q47+'Rice Co'!Q47+'Scott Co'!Q47+'Sherburne Co'!Q47+'St. Louis Co'!Q47+'Stearns Co'!Q47+'Steele Co'!Q47+'Todd Co'!Q47+'Wabasha Co'!Q47+'Wadena Co'!Q47+'Waseca Co'!Q47+'Washington Co'!Q47+'Winona Co'!Q47+'Wright Co'!Q47+'Metro Area Transit Improvement'!Q47 -> -5864574 | T74: ='Cook Cty'!R47+'Clay Cty'!R47+'Hennepin Cty'!R47+'Anoka Co'!R47+'Benton Co'!R47+'Becker Co'!R47+'Beltrami Co (Transit)'!R47+'Blue Earth Co'!R47+'Brown Co'!R47+'Carlton Co'!R47+'Carver Co'!R47+'Cass Co'!R47+'Chisago Co'!R47+'Cook Co'!R47+'Crow Wing Co'!R47+'Dakota Co'!R47+'Dodge Co'!R47+'Douglas Co'!R47+'Fillmore Co'!R47+'Freeborn Co'!R47+'Goodhue Co'!R47+'Hennepin Co'!R47+'Hubbard Co'!R47+'Isanti Co'!R47+'Kandiyohi Co'!R47+'Lake Co'!R47+'Lyon Co'!R47+'Mille Lacs Co'!R47+'Morrison Co'!R47+'Mower Co'!R47+'Nicollet Co'!R47+'Olmsted Co'!R47+'Otter Tail Co'!R47+'Pine Co'!R47+'Polk Co'!R47+'Ramsey Co'!R47+'Redwood Co'!R47+'Rice Co'!R47+'Scott Co'!R47+'Sherburne Co'!R47+'St. Louis Co'!R47+'Stearns Co'!R47+'Steele Co'!R47+'Todd Co'!R47+'Wabasha Co'!R47+'Wadena Co'!R47+'Waseca Co'!R47+'Washington Co'!R47+'Winona Co'!R47+'Wright Co'!R47+'Metro Area Transit Improvement'!R47+'Kanabec Co'!R47+'McLeod Co'!R47 -> -8164679 | U74: ='Cook Cty'!S47+'Clay Cty'!S47+'Hennepin Cty'!S47+'Anoka Co'!S47+'Benton Co'!S47+'Becker Co'!S47+'Beltrami Co (Transit)'!S47+'Blue Earth Co'!S47+'Brown Co'!S47+'Carlton Co'!S47+'Carver Co'!S47+'Cass Co'!S47+'Chisago Co'!S47+'Cook Co'!S47+'Crow Wing Co'!S47+'Dakota Co'!S47+'Dodge Co'!S47+'Douglas Co'!S47+'Fillmore Co'!S47+'Freeborn Co'!S47+'Goodhue Co'!S47+'Hennepin Co'!S47+'Hubbard Co'!S47+'Isanti Co'!S47+'Kandiyohi Co'!S47+'Lake Co'!S47+'Lyon Co'!S47+'Mille Lacs Co'!S47+'Morrison Co'!S47+'Mower Co'!S47+'Nicollet Co'!S47+'Olmsted Co'!S47+'Otter Tail Co'!S47+'Pine Co'!S47+'Polk Co'!S47+'Ramsey Co'!S47+'Redwood Co'!S47+'Rice Co'!S47+'Scott Co'!S47+'Sherburne Co'!S47+'St. Louis Co'!S47+'Stearns Co'!S47+'Steele Co'!S47+'Todd Co'!S47+'Wabasha Co'!S47+'Wadena Co'!S47+'Waseca Co'!S47+'Washington Co'!S47+'Winona Co'!S47+'Wright Co'!S47+'Metro Area Transit Improvement'!S47+'Kanabec Co'!S47+'McLeod Co'!S47+'Le Sueur Co'!S47+'Nobles Co'!S47 -> -7038434 | V74: ='Cook Cty'!T47+'Clay Cty'!T47+'Hennepin Cty'!T47+'Anoka Co'!T47+'Benton Co'!T47+'Becker Co'!T47+'Beltrami Co (Transit)'!T47+'Blue Earth Co'!T47+'Brown Co'!T47+'Carlton Co'!T47+'Carver Co'!T47+'Cass Co'!T47+'Chisago Co'!T47+'Cook Co'!T47+'Crow Wing Co'!T47+'Dakota Co'!T47+'Dodge Co'!T47+'Douglas Co'!T47+'Fillmore Co'!T47+'Freeborn Co'!T47+'Goodhue Co'!T47+'Hennepin Co'!T47+'Hubbard Co'!T47+'Isanti Co'!T47+'Kandiyohi Co'!T47+'Lake Co'!T47+'Lyon Co'!T47+'Mille Lacs Co'!T47+'Morrison Co'!T47+'Mower Co'!T47+'Nicollet Co'!T47+'Olmsted Co'!T47+'Otter Tail Co'!T47+'Pine Co'!T47+'Polk Co'!T47+'Ramsey Co'!T47+'Redwood Co'!T47+'Rice Co'!T47+'Scott Co'!T47+'Sherburne Co'!T47+'St. Louis Co'!T47+'Stearns Co'!T47+'Steele Co'!T47+'Todd Co'!T47+'Wabasha Co'!T47+'Wadena Co'!T47+'Waseca Co'!T47+'Washington Co'!T47+'Winona Co'!T47+'Wright Co'!T47+'Metro Area Transit Improvement'!T47+'Kanabec Co'!T47+'McLeod Co'!T47+'Le Sueur Co'!T47+'Nobles Co'!T47 -> -6724517 | W74: ='Cook Cty'!U47+'Clay Cty'!U47+'Hennepin Cty'!U47+'Anoka Co'!U47+'Benton Co'!U47+'Becker Co'!U47+'Beltrami Co (Transit)'!U47+'Blue Earth Co'!U47+'Brown Co'!U47+'Carlton Co'!U47+'Carver Co'!U47+'Cass Co'!U47+'Chisago Co'!U47+'Cook Co'!U47+'Crow Wing Co'!U47+'Dakota Co'!U47+'Dodge Co'!U47+'Douglas Co'!U47+'Fillmore Co'!U47+'Freeborn Co'!U47+'Goodhue Co'!U47+'Hennepin Co'!U47+'Hubbard Co'!U47+'Isanti Co'!U47+'Kandiyohi Co'!U47+'Lake Co'!U47+'Lyon Co'!U47+'Mille Lacs Co'!U47+'Morrison Co'!U47+'Mower Co'!U47+'Nicollet Co'!U47+'Olmsted Co'!U47+'Otter Tail Co'!U47+'Pine Co'!U47+'Polk Co'!U47+'Ramsey Co'!U47+'Redwood Co'!U47+'Rice Co'!U47+'Scott Co'!U47+'Sherburne Co'!U47+'St. Louis Co'!U47+'Stearns Co'!U47+'Steele Co'!U47+'Todd Co'!U47+'Wabasha Co'!U47+'Wadena Co'!U47+'Waseca Co'!U47+'Washington Co'!U47+'Winona Co'!U47+'Wright Co'!U47+'Metro Area Transit Improvement'!U47+'Kanabec Co'!U47+'McLeod Co'!U47+'Le Sueur Co'!U47+'Nobles Co'!U47+'Itasca Cty'!U47+'Carlton Cty'!U47 -> -8709638 | X74: ='Cook Cty'!V47+'Clay Cty'!V47+'Hennepin Cty'!V47+'Anoka Co'!V47+'Benton Co'!V47+'Becker Co'!V47+'Beltrami Co (Transit)'!V47+'Blue Earth Co'!V47+'Brown Co'!V47+'Carlton Co'!V47+'Carver Co'!V47+'Cass Co'!V47+'Chisago Co'!V47+'Cook Co'!V47+'Crow Wing Co'!V47+'Dakota Co'!V47+'Dodge Co'!V47+'Douglas Co'!V47+'Fillmore Co'!V47+'Freeborn Co'!V47+'Goodhue Co'!V47+'Hennepin Co'!V47+'Hubbard Co'!V47+'Isanti Co'!V47+'Kandiyohi Co'!V47+'Lake Co'!V47+'Lyon Co'!V47+'Mille Lacs Co'!V47+'Morrison Co'!V47+'Mower Co'!V47+'Nicollet Co'!V47+'Olmsted Co'!V47+'Otter Tail Co'!V47+'Pine Co'!V47+'Polk Co'!V47+'Ramsey Co'!V47+'Redwood Co'!V47+'Rice Co'!V47+'Scott Co'!V47+'Sherburne Co'!V47+'St. Louis Co'!V47+'Stearns Co'!V47+'Steele Co'!V47+'Todd Co'!V47+'Wabasha Co'!V47+'Wadena Co'!V47+'Waseca Co'!V47+'Washington Co'!V47+'Winona Co'!V47+'Wright Co'!V47+'Metro Area Transit Improvement'!V47+'Kanabec Co'!V47+'McLeod Co'!V47+'Le Sueur Co'!V47+'Nobles Co'!V47+'Itasca Cty'!V47+'Carlton Cty'!V47+'Roseau Co'!V47+'Koochiching Co'!V47+'Norman Co'!V47+'Renville Co'!V47 -> -8869694.98
A75: Hidden columns D-I contain data for CY 2004-2009.
A76: *Also 1994-2008. Shaded cells show collections received net of refunds paid in months after the local tax in Cook County expired (3/31/08) & before it resumed (4/1/10).
A77: Note: Metro Area Transit Counties are Anoka, Dakota, Hennepin, Ramsey, & Washington.
A78: Source: Minnesota Department of Revenue, Tax Research Division, November 2025
A79: end of worksheet

Sheet Metro Area Transportation (hidden)
A1: Metro Area Transportation Monthly Detail for Minnesota Local Sales & Use Tax
A2: ='Local SUT'!A2 -> CY 2004-2024
A3: Metro Area Transportation Transit Sales Tax (0.75%)
A4: Month | B4: 2004 | C4: 2005 | D4: 2006 | E4: 2007 | F4: 2008 | G4: 2009 | H4: 2010 | I4: 2011 | J4: 2012 | K4: 2013 | L4: 2014 | M4: 2015 | N4: 2016 | O4: 2017 | P4: 2018 | Q4: 2019 | R4: 2020 | S4: 2021 | T4: 2022 | U4: 2023 | V4: 2024
A5: January | B5: - | C5: - | D5: - | E5: - | F5: - | G5: - | H5: - | I5: - | J5: - | K5: - | L5: - | M5: - | N5: - | O5: - | P5: - | Q5: - | R5: - | S5: - | T5: - | U5: - | V5: 42328741
A6: February | B6: - | C6: - | D6: - | E6: - | F6: - | G6: - | H6: - | I6: - | J6: - | K6: - | L6: - | M6: - | N6: - | O6: - | P6: - | Q6: - | R6: - | S6: - | T6: - | U6: - | V6: 34304686
A7: March | B7: - | C7: - | D7: - | E7: - | F7: - | G7: - | H7: - | I7: - | J7: - | K7: - | L7: - | M7: - | N7: - | O7: - | P7: - | Q7: - | R7: - | S7: - | T7: - | U7: - | V7: 32293276
A8: April | B8: - | C8: - | D8: - | E8: - | F8: - | G8: - | H8: - | I8: - | J8: - | K8: - | L8: - | M8: - | N8: - | O8: - | P8: - | Q8: - | R8: - | S8: - | T8: - | U8: - | V8: 38514734
A9: May | B9: - | C9: - | D9: - | E9: - | F9: - | G9: - | H9: - | I9: - | J9: - | K9: - | L9: - | M9: - | N9: - | O9: - | P9: - | Q9: - | R9: - | S9: - | T9: - | U9: - | V9: 38295406
A10: June | B10: - | C10: - | D10: - | E10: - | F10: - | G10: - | H10: - | I10: - | J10: - | K10: - | L10: - | M10: - | N10: - | O10: - | P10: - | Q10: - | R10: - | S10: - | T10: - | U10: - | V10: 42131908
A11: July | B11: - | C11: - | D11: - | E11: - | F11: - | G11: - | H11: - | I11: - | J11: - | K11: - | L11: - | M11: - | N11: - | O11: - | P11: - | Q11: - | R11: - | S11: - | T11: - | U11: - | V11: 43301018
A12: August | B12: - | C12: - | D12: - | E12: - | F12: - | G12: - | H12: - | I12: - | J12: - | K12: - | L12: - | M12: - | N12: - | O12: - | P12: - | Q12: - | R12: - | S12: - | T12: - | U12: - | V12: 41819019.47
A13: September | B13: - | C13: - | D13: - | E13: - | F13: - | G13: - | H13: - | I13: - | J13: - | K13: - | L13: - | M13: - | N13: - | O13: - | P13: - | Q13: - | R13: - | S13: - | T13: - | U13: - | V13: 42979671.35
A14: October | B14: - | C14: - | D14: - | E14: - | F14: - | G14: - | H14: - | I14: - | J14: - | K14: - | L14: - | M14: - | N14: - | O14: - | P14: - | Q14: - | R14: - | S14: - | T14: - | U14: 31522 | V14: 42341163.49
A15: November | B15: - | C15: - | D15: - | E15: - | F15: - | G15: - | H15: - | I15: - | J15: - | K15: - | L15: - | M15: - | N15: - | O15: - | P15: - | Q15: - | R15: - | S15: - | T15: - | U15: 36727255 | V15: 40917798.99
A16: December | B16: - | C16: - | D16: - | E16: - | F16: - | G16: - | H16: - | I16: - | J16: - | K16: - | L16: - | M16: - | N16: - | O16: - | P16: - | Q16: - | R16: - | S16: - | T16: - | U16: 38206217 | V16: 39150571.3
A17: Total | B17: - | C17: - | D17: - | E17: - | F17: - | G17: - | H17: - | I17: - | J17: - | K17: - | L17: - | M17: - | N17: - | O17: - | P17: - | Q17: - | R17: - | S17: =SUM(S5:S16) -> 0 | T17: 0 | U17: =SUM(U5:U16) -> 74964994 | V17: 478377993.6
A18: Metro Area Transportation Transit Use Tax (0.75%)
A19: Month | B19: 2004 | C19: 2005 | D19: 2006 | E19: 2007 | F19: 2008 | G19: 2009 | H19: 2010 | I19: 2011 | J19: 2012 | K19: 2013 | L19: 2014 | M19: 2015 | N19: 2016 | O19: 2017 | P19: 2018 | Q19: 2019 | R19: 2020 | S19: 2021 | T19: 2021 | U19: 2023 | V19: 2024
A20: January | B20: - | C20: - | D20: - | E20: - | F20: - | G20: - | H20: - | I20: - | J20: - | K20: - | L20: - | M20: - | N20: - | O20: - | P20: - | Q20: - | R20: - | S20: - | T20: - | U20: - | V20: 2738156
A21: February | B21: - | C21: - | D21: - | E21: - | F21: - | G21: - | H21: - | I21: - | J21: - | K21: - | L21: - | M21: - | N21: - | O21: - | P21: - | Q21: - | R21: - | S21: - | T21: - | U21: - | V21: 2370557
A22: March | B22: - | C22: - | D22: - | E22: - | F22: - | G22: - | H22: - | I22: - | J22: - | K22: - | L22: - | M22: - | N22: - | O22: - | P22: - | Q22: - | R22: - | S22: - | T22: - | U22: - | V22: 2152061
A23: April | B23: - | C23: - | D23: - | E23: - | F23: - | G23: - | H23: - | I23: - | J23: - | K23: - | L23: - | M23: - | N23: - | O23: - | P23: - | Q23: - | R23: - | S23: - | T23: - | U23: - | V23: 2491549
A24: May | B24: - | C24: - | D24: - | E24: - | F24: - | G24: - | H24: - | I24: - | J24: - | K24: - | L24: - | M24: - | N24: - | O24: - | P24: - | Q24: - | R24: - | S24: - | T24: - | U24: - | V24: 2306175
A25: June | B25: - | C25: - | D25: - | E25: - | F25: - | G25: - | H25: - | I25: - | J25: - | K25: - | L25: - | M25: - | N25: - | O25: - | P25: - | Q25: - | R25: - | S25: - | T25: - | U25: - | V25: 2545749
A26: July | B26: - | C26: - | D26: - | E26: - | F26: - | G26: - | H26: - | I26: - | J26: - | K26: - | L26: - | M26: - | N26: - | O26: - | P26: - | Q26: - | R26: - | S26: - | T26: - | U26: - | V26: 2434725
A27: August | B27: - | C27: - | D27: - | E27: - | F27: - | G27: - | H27: - | I27: - | J27: - | K27: - | L27: - | M27: - | N27: - | O27: - | P27: - | Q27: - | R27: - | S27: - | T27: - | U27: - | V27: 2490718.12
A28: September | B28: - | C28: - | D28: - | E28: - | F28: - | G28: - | H28: - | I28: - | J28: - | K28: - | L28: - | M28: - | N28: - | O28: - | P28: - | Q28: - | R28: - | S28: - | T28: - | U28: - | V28: 2158763.11
A29: October | B29: - | C29: - | D29: - | E29: - | F29: - | G29: - | H29: - | I29: - | J29: - | K29: - | L29: - | M29: - | N29: - | O29: - | P29: - | Q29: - | R29: - | S29: - | T29: - | U29: 1381 | V29: 2630582.21
A30: November | B30: - | C30: - | D30: - | E30: - | F30: - | G30: - | H30: - | I30: - | J30: - | K30: - | L30: - | M30: - | N30: - | O30: - | P30: - | Q30: - | R30: - | S30: - | T30: - | U30: 2282882 | V30: 2652130.98
A31: December | B31: - | C31: - | D31: - | E31: - | F31: - | G31: - | H31: - | I31: - | J31: - | K31: - | L31: - | M31: - | N31: - | O31: - | P31: - | Q31: - | R31: - | S31: - | T31: - | U31: 2042082 | V31: 2026145.38
A32: Total | B32: - | C32: - | D32: - | E32: - | F32: - | G32: - | H32: - | I32: - | J32: - | K32: - | L32: - | M32: - | N32: - | O32: - | P32: - | Q32: - | R32: - | S32: =SUM(S20:S31) -> 0 | T32: 0 | U32: 4326345 | V32: 28997311.8
A33: Metro Area Transportation Transit Refunds
A34: Month | B34: 2004 | C34: 2005 | D34: 2006 | E34: 2007 | F34: 2008 | G34: 2009 | H34: 2010 | I34: 2011 | J34: 2012 | K34: 2013 | L34: 2014 | M34: 2015 | N34: 2016 | O34: 2017 | P34: 2018 | Q34: 2019 | R34: 2020 | S34: 2021 | T34: 2021 | U34: 2023 | V34: 2024
A35: January | B35: - | C35: - | D35: - | E35: - | F35: - | G35: - | H35: - | I35: - | J35: - | K35: - | L35: - | M35: - | N35: - | O35: - | P35: - | Q35: - | R35: - | S35: - | T35: - | U35: - | V35: -2702
A36: February | B36: - | C36: - | D36: - | E36: - | F36: - | G36: - | H36: - | I36: - | J36: - | K36: - | L36: - | M36: - | N36: - | O36: - | P36: - | Q36: - | R36: - | S36: - | T36: - | U36: - | V36: -878
A37: March | B37: - | C37: - | D37: - | E37: - | F37: - | G37: - | H37: - | I37: - | J37: - | K37: - | L37: - | M37: - | N37: - | O37: - | P37: - | Q37: - | R37: - | S37: - | T37: - | U37: - | V37: -2191
A38: April | B38: - | C38: - | D38: - | E38: - | F38: - | G38: - | H38: - | I38: - | J38: - | K38: - | L38: - | M38: - | N38: - | O38: - | P38: - | Q38: - | R38: - | S38: - | T38: - | U38: - | V38: -8678
A39: May | B39: - | C39: - | D39: - | E39: - | F39: - | G39: - | H39: - | I39: - | J39: - | K39: - | L39: - | M39: - | N39: - | O39: - | P39: - | Q39: - | R39: - | S39: - | T39: - | U39: - | V39: -9512
A40: June | B40: - | C40: - | D40: - | E40: - | F40: - | G40: - | H40: - | I40: - | J40: - | K40: - | L40: - | M40: - | N40: - | O40: - | P40: - | Q40: - | R40: - | S40: - | T40: - | U40: - | V40: -5943
A41: July | B41: - | C41: - | D41: - | E41: - | F41: - | G41: - | H41: - | I41: - | J41: - | K41: - | L41: - | M41: - | N41: - | O41: - | P41: - | Q41: - | R41: - | S41: - | T41: - | U41: - | V41: -13911
A42: August | B42: - | C42: - | D42: - | E42: - | F42: - | G42: - | H42: - | I42: - | J42: - | K42: - | L42: - | M42: - | N42: - | O42: - | P42: - | Q42: - | R42: - | S42: - | T42: - | U42: - | V42: -11970.17
A43: September | B43: - | C43: - | D43: - | E43: - | F43: - | G43: - | H43: - | I43: - | J43: - | K43: - | L43: - | M43: - | N43: - | O43: - | P43: - | Q43: - | R43: - | S43: - | T43: - | U43: - | V43: -30057.86
A44: October | B44: - | C44: - | D44: - | E44: - | F44: - | G44: - | H44: - | I44: - | J44: - | K44: - | L44: - | M44: - | N44: - | O44: - | P44: - | Q44: - | R44: - | S44: - | T44: - | U44: 0 | V44: -238165.24
A45: November | B45: - | C45: - | D45: - | E45: - | F45: - | G45: - | H45: - | I45: - | J45: - | K45: - | L45: - | M45: - | N45: - | O45: - | P45: - | Q45: - | R45: - | S45: - | T45: - | U45: -1256 | V45: -50869.13
A46: December | B46: - | C46: - | D46: - | E46: - | F46: - | G46: - | H46: - | I46: - | J46: - | K46: - | L46: - | M46: - | N46: - | O46: - | P46: - | Q46: - | R46: - | S46: - | T46: - | U46: -138 | V46: -403608.26
A47: Total | B47: - | C47: - | D47: - | E47: - | F47: - | G47: - | H47: - | I47: - | J47: - | K47: - | L47: - | M47: - | N47: - | O47: - | P47: - | Q47: - | R47: - | S47: =SUM(S35:S46) -> 0 | T47: 0 | U47: -1394 | V47: -778485.66
A48: Hidden columns B-P do not contain any data for CY 2004-2018
A49: ='Local SUT'!A78 -> Source: Minnesota Department of Revenue, Tax Research Division, November 2025
A50: end of worksheet

Sheet Metro Area Housing (hidden)
A1: Metro Area Housing Monthly Detail for Minnesota Local Sales & Use Tax
A2: ='Local SUT'!A2 -> CY 2004-2024
A3: Metro Area Housing Transit Sales Tax (0.25%)
A4: Month | B4: 2004 | C4: 2005 | D4: 2006 | E4: 2007 | F4: 2008 | G4: 2009 | H4: 2010 | I4: 2011 | J4: 2012 | K4: 2013 | L4: 2014 | M4: 2015 | N4: 2016 | O4: 2017 | P4: 2018 | Q4: 2019 | R4: 2020 | S4: 2021 | T4: 2022 | U4: 2023 | V4: 2024
A5: January | B5: - | C5: - | D5: - | E5: - | F5: - | G5: - | H5: - | I5: - | J5: - | K5: - | L5: - | M5: - | N5: - | O5: - | P5: - | Q5: - | R5: - | S5: - | T5: - | V5: 14142326
A6: February | B6: - | C6: - | D6: - | E6: - | F6: - | G6: - | H6: - | I6: - | J6: - | K6: - | L6: - | M6: - | N6: - | O6: - | P6: - | Q6: - | R6: - | S6: - | T6: - | V6: 11473068
A7: March | B7: - | C7: - | D7: - | E7: - | F7: - | G7: - | H7: - | I7: - | J7: - | K7: - | L7: - | M7: - | N7: - | O7: - | P7: - | Q7: - | R7: - | S7: - | T7: - | V7: 10790779
A8: April | B8: - | C8: - | D8: - | E8: - | F8: - | G8: - | H8: - | I8: - | J8: - | K8: - | L8: - | M8: - | N8: - | O8: - | P8: - | Q8: - | R8: - | S8: - | T8: - | V8: 12882877
A9: May | B9: - | C9: - | D9: - | E9: - | F9: - | G9: - | H9: - | I9: - | J9: - | K9: - | L9: - | M9: - | N9: - | O9: - | P9: - | Q9: - | R9: - | S9: - | T9: - | V9: 12820795
A10: June | B10: - | C10: - | D10: - | E10: - | F10: - | G10: - | H10: - | I10: - | J10: - | K10: - | L10: - | M10: - | N10: - | O10: - | P10: - | Q10: - | R10: - | S10: - | T10: - | V10: 14052027
A11: July | B11: - | C11: - | D11: - | E11: - | F11: - | G11: - | H11: - | I11: - | J11: - | K11: - | L11: - | M11: - | N11: - | O11: - | P11: - | Q11: - | R11: - | S11: - | T11: - | V11: 14500220
A12: August | B12: - | C12: - | D12: - | E12: - | F12: - | G12: - | H12: - | I12: - | J12: - | K12: - | L12: - | M12: - | N12: - | O12: - | P12: - | Q12: - | R12: - | S12: - | T12: - | V12: 13991782.69
A13: September | B13: - | C13: - | D13: - | E13: - | F13: - | G13: - | H13: - | I13: - | J13: - | K13: - | L13: - | M13: - | N13: - | O13: - | P13: - | Q13: - | R13: - | S13: - | T13: - | V13: 14363464.52
A14: October | B14: - | C14: - | D14: - | E14: - | F14: - | G14: - | H14: - | I14: - | J14: - | K14: - | L14: - | M14: - | N14: - | O14: - | P14: - | Q14: - | R14: - | S14: - | T14: - | U14: 10463 | V14: 14169830.28
A15: November | B15: - | C15: - | D15: - | E15: - | F15: - | G15: - | H15: - | I15: - | J15: - | K15: - | L15: - | M15: - | N15: - | O15: - | P15: - | Q15: - | R15: - | S15: - | T15: - | U15: 12265812 | V15: 13677467.04
A16: December | B16: - | C16: - | D16: - | E16: - | F16: - | G16: - | H16: - | I16: - | J16: - | K16: - | L16: - | M16: - | N16: - | O16: - | P16: - | Q16: - | R16: - | S16: - | T16: - | U16: 12736141 | V16: 13097279.08
A17: Total | B17: - | C17: - | D17: - | E17: - | F17: - | G17: - | H17: - | I17: - | J17: - | K17: - | L17: - | M17: - | N17: - | O17: - | P17: - | Q17: - | R17: - | S17: =SUM(S5:S16) -> 0 | T17: 0 | U17: =SUM(U5:U16) -> 25012416 | V17: 159961915.6
A18: Metro Area Housing Transit Use Tax (0.25%)
A19: Month | B19: 2004 | C19: 2005 | D19: 2006 | E19: 2007 | F19: 2008 | G19: 2009 | H19: 2010 | I19: 2011 | J19: 2012 | K19: 2013 | L19: 2014 | M19: 2015 | N19: 2016 | O19: 2017 | P19: 2018 | Q19: 2019 | R19: 2020 | S19: 2021 | T19: 2021 | U19: 2023 | V19: 2024
A20: January | B20: - | C20: - | D20: - | E20: - | F20: - | G20: - | H20: - | I20: - | J20: - | K20: - | L20: - | M20: - | N20: - | O20: - | P20: - | Q20: - | R20: - | S20: - | T20: - | V20: 906172
A21: February | B21: - | C21: - | D21: - | E21: - | F21: - | G21: - | H21: - | I21: - | J21: - | K21: - | L21: - | M21: - | N21: - | O21: - | P21: - | Q21: - | R21: - | S21: - | T21: - | V21: 845886
A22: March | B22: - | C22: - | D22: - | E22: - | F22: - | G22: - | H22: - | I22: - | J22: - | K22: - | L22: - | M22: - | N22: - | O22: - | P22: - | Q22: - | R22: - | S22: - | T22: - | V22: 711101
A23: April | B23: - | C23: - | D23: - | E23: - | F23: - | G23: - | H23: - | I23: - | J23: - | K23: - | L23: - | M23: - | N23: - | O23: - | P23: - | Q23: - | R23: - | S23: - | T23: - | V23: 831413
A24: May | B24: - | C24: - | D24: - | E24: - | F24: - | G24: - | H24: - | I24: - | J24: - | K24: - | L24: - | M24: - | N24: - | O24: - | P24: - | Q24: - | R24: - | S24: - | T24: - | V24: 767884
A25: June | B25: - | C25: - | D25: - | E25: - | F25: - | G25: - | H25: - | I25: - | J25: - | K25: - | L25: - | M25: - | N25: - | O25: - | P25: - | Q25: - | R25: - | S25: - | T25: - | V25: 893966
A26: July | B26: - | C26: - | D26: - | E26: - | F26: - | G26: - | H26: - | I26: - | J26: - | K26: - | L26: - | M26: - | N26: - | O26: - | P26: - | Q26: - | R26: - | S26: - | T26: - | V26: 812366
A27: August | B27: - | C27: - | D27: - | E27: - | F27: - | G27: - | H27: - | I27: - | J27: - | K27: - | L27: - | M27: - | N27: - | O27: - | P27: - | Q27: - | R27: - | S27: - | T27: - | V27: 831603.45
A28: September | B28: - | C28: - | D28: - | E28: - | F28: - | G28: - | H28: - | I28: - | J28: - | K28: - | L28: - | M28: - | N28: - | O28: - | P28: - | Q28: - | R28: - | S28: - | T28: - | V28: 731012.48
A29: October | B29: - | C29: - | D29: - | E29: - | F29: - | G29: - | H29: - | I29: - | J29: - | K29: - | L29: - | M29: - | N29: - | O29: - | P29: - | Q29: - | R29: - | S29: - | T29: - | U29: 471 | V29: 872468.84
A30: November | B30: - | C30: - | D30: - | E30: - | F30: - | G30: - | H30: - | I30: - | J30: - | K30: - | L30: - | M30: - | N30: - | O30: - | P30: - | Q30: - | R30: - | S30: - | T30: - | U30: 788853 | V30: 887182.95
A31: December | B31: - | C31: - | D31: - | E31: - | F31: - | G31: - | H31: - | I31: - | J31: - | K31: - | L31: - | M31: - | N31: - | O31: - | P31: - | Q31: - | R31: - | S31: - | T31: - | U31: 695370 | V31: 673760.16
A32: Total | B32: - | C32: - | D32: - | E32: - | F32: - | G32: - | H32: - | I32: - | J32: - | K32: - | L32: - | M32: - | N32: - | O32: - | P32: - | Q32: - | R32: - | S32: =SUM(S20:S31) -> 0 | T32: 0 | U32: 1484694 | V32: 9764815.88
A33: Metro Area Housing Transit Refunds
A34: Month | B34: 2004 | C34: 2005 | D34: 2006 | E34: 2007 | F34: 2008 | G34: 2009 | H34: 2010 | I34: 2011 | J34: 2012 | K34: 2013 | L34: 2014 | M34: 2015 | N34: 2016 | O34: 2017 | P34: 2018 | Q34: 2019 | R34: 2020 | S34: 2021 | T34: 2021 | U34: 2023 | V34: 2024
A35: January | B35: - | C35: - | D35: - | E35: - | F35: - | G35: - | H35: - | I35: - | J35: - | K35: - | L35: - | M35: - | N35: - | O35: - | P35: - | Q35: - | R35: - | S35: - | T35: - | V35: -933
A36: February | B36: - | C36: - | D36: - | E36: - | F36: - | G36: - | H36: - | I36: - | J36: - | K36: - | L36: - | M36: - | N36: - | O36: - | P36: - | Q36: - | R36: - | S36: - | T36: - | V36: -293
A37: March | B37: - | C37: - | D37: - | E37: - | F37: - | G37: - | H37: - | I37: - | J37: - | K37: - | L37: - | M37: - | N37: - | O37: - | P37: - | Q37: - | R37: - | S37: - | T37: - | V37: -730
A38: April | B38: - | C38: - | D38: - | E38: - | F38: - | G38: - | H38: - | I38: - | J38: - | K38: - | L38: - | M38: - | N38: - | O38: - | P38: - | Q38: - | R38: - | S38: - | T38: - | V38: -2837
A39: May | B39: - | C39: - | D39: - | E39: - | F39: - | G39: - | H39: - | I39: - | J39: - | K39: - | L39: - | M39: - | N39: - | O39: - | P39: - | Q39: - | R39: - | S39: - | T39: - | V39: -2993
A40: June | B40: - | C40: - | D40: - | E40: - | F40: - | G40: - | H40: - | I40: - | J40: - | K40: - | L40: - | M40: - | N40: - | O40: - | P40: - | Q40: - | R40: - | S40: - | T40: - | V40: -2270
A41: July | B41: - | C41: - | D41: - | E41: - | F41: - | G41: - | H41: - | I41: - | J41: - | K41: - | L41: - | M41: - | N41: - | O41: - | P41: - | Q41: - | R41: - | S41: - | T41: - | V41: -4974
A42: August | B42: - | C42: - | D42: - | E42: - | F42: - | G42: - | H42: - | I42: - | J42: - | K42: - | L42: - | M42: - | N42: - | O42: - | P42: - | Q42: - | R42: - | S42: - | T42: - | V42: -4319.83
A43: September | B43: - | C43: - | D43: - | E43: - | F43: - | G43: - | H43: - | I43: - | J43: - | K43: - | L43: - | M43: - | N43: - | O43: - | P43: - | Q43: - | R43: - | S43: - | T43: - | V43: -10487.48
A44: October | B44: - | C44: - | D44: - | E44: - | F44: - | G44: - | H44: - | I44: - | J44: - | K44: - | L44: - | M44: - | N44: - | O44: - | P44: - | Q44: - | R44: - | S44: - | T44: - | U44: 0 | V44: -80239.81
A45: November | B45: - | C45: - | D45: - | E45: - | F45: - | G45: - | H45: - | I45: - | J45: - | K45: - | L45: - | M45: - | N45: - | O45: - | P45: - | Q45: - | R45: - | S45: - | T45: - | U45: -419 | V45: -14143.98
A46: December | B46: - | C46: - | D46: - | E46: - | F46: - | G46: - | H46: - | I46: - | J46: - | K46: - | L46: - | M46: - | N46: - | O46: - | P46: - | Q46: - | R46: - | S46: - | T46: - | U46: -46 | V46: -143430.64
A47: Total | B47: - | C47: - | D47: - | E47: - | F47: - | G47: - | H47: - | I47: - | J47: - | K47: - | L47: - | M47: - | N47: - | O47: - | P47: - | Q47: - | R47: - | S47: =SUM(S35:S46) -> 0 | T47: 0 | U47: -465 | V47: -267651.74
A48: Hidden columns B-P do not contain any data for CY 2004-2018
A49: ='Local SUT'!A78 -> Source: Minnesota Department of Revenue, Tax Research Division, November 2025
A50: end of worksheet

Sheet Roseau Co (hidden)
A1: Roseau County Monthly Detail for Minnesota Local Sales & Use Tax
A2: ='Local SUT'!A2 -> CY 2004-2024
A3: Roseau County Transit Sales Tax (0.5%)
A4: Month | B4: 2004 | C4: 2005 | D4: 2006 | E4: 2007 | F4: 2008 | G4: 2009 | H4: 2010 | I4: 2011 | J4: 2012 | K4: 2013 | L4: 2014 | M4: 2015 | N4: 2016 | O4: 2017 | P4: 2018 | Q4: 2019 | R4: 2020 | S4: 2021 | T4: 2022 | U4: 2023 | V4: 2024
A5: January | B5: - | C5: - | D5: - | E5: - | F5: - | G5: - | H5: - | I5: - | J5: - | K5: - | L5: - | M5: - | N5: - | O5: - | P5: - | Q5: - | R5: - | T5: 2 | U5: 111735 | V5: 112185
A6: February | B6: - | C6: - | D6: - | E6: - | F6: - | G6: - | H6: - | I6: - | J6: - | K6: - | L6: - | M6: - | N6: - | O6: - | P6: - | Q6: - | R6: - | T6: 73756 | U6: 85005 | V6: 91738
A7: March | B7: - | C7: - | D7: - | E7: - | F7: - | G7: - | H7: - | I7: - | J7: - | K7: - | L7: - | M7: - | N7: - | O7: - | P7: - | Q7: - | R7: - | T7: 70734 | U7: 76580 | V7: 83869
A8: April | B8: - | C8: - | D8: - | E8: - | F8: - | G8: - | H8: - | I8: - | J8: - | K8: - | L8: - | M8: - | N8: - | O8: - | P8: - | Q8: - | R8: - | T8: 80289 | U8: 86350 | V8: 89225
A9: May | B9: - | C9: - | D9: - | E9: - | F9: - | G9: - | H9: - | I9: - | J9: - | K9: - | L9: - | M9: - | N9: - | O9: - | P9: - | Q9: - | R9: - | T9: 87278 | U9: 88352 | V9: 111689
A10: June | B10: - | C10: - | D10: - | E10: - | F10: - | G10: - | H10: - | I10: - | J10: - | K10: - | L10: - | M10: - | N10: - | O10: - | P10: - | Q10: - | R10: - | T10: 94121 | U10: 109042 | V10: 110383
A11: July | B11: - | C11: - | D11: - | E11: - | F11: - | G11: - | H11: - | I11: - | J11: - | K11: - | L11: - | M11: - | N11: - | O11: - | P11: - | Q11: - | R11: - | T11: 100815 | U11: 119979 | V11: 119573
A12: August | B12: - | C12: - | D12: - | E12: - | F12: - | G12: - | H12: - | I12: - | J12: - | K12: - | L12: - | M12: - | N12: - | O12: - | P12: - | Q12: - | R12: - | T12: 95728 | U12: 115523 | V12: 103740.71
A13: September | B13: - | C13: - | D13: - | E13: - | F13: - | G13: - | H13: - | I13: - | J13: - | K13: - | L13: - | M13: - | N13: - | O13: - | P13: - | Q13: - | R13: - | T13: 105438 | U13: 121374 | V13: 104193.85
A14: October | B14: - | C14: - | D14: - | E14: - | F14: - | G14: - | H14: - | I14: - | J14: - | K14: - | L14: - | M14: - | N14: - | O14: - | P14: - | Q14: - | R14: - | T14: 114907 | U14: 126452 | V14: 112306.81
A15: November | B15: - | C15: - | D15: - | E15: - | F15: - | G15: - | H15: - | I15: - | J15: - | K15: - | L15: - | M15: - | N15: - | O15: - | P15: - | Q15: - | R15: - | T15: 95931 | U15: 115454 | V15: 96964.97
A16: December | B16: - | C16: - | D16: - | E16: - | F16: - | G16: - | H16: - | I16: - | J16: - | K16: - | L16: - | M16: - | N16: - | O16: - | P16: - | Q16: - | R16: - | T16: 105269 | U16: 97573 | V16: 91189.36
A17: Total | B17: - | C17: - | D17: - | E17: - | F17: - | G17: - | H17: - | I17: - | J17: - | K17: - | L17: - | M17: - | N17: - | O17: - | P17: - | Q17: - | R17: - | S17: =SUM(S5:S16) -> 0 | T17: 1024268 | U17: =SUM(U5:U16) -> 1253419 | V17: 1227057.7
A18: Roseau County Transit Use Tax (0.5%)
A19: Month | B19: 2004 | C19: 2005 | D19: 2006 | E19: 2007 | F19: 2008 | G19: 2009 | H19: 2010 | I19: 2011 | J19: 2012 | K19: 2013 | L19: 2014 | M19: 2015 | N19: 2016 | O19: 2017 | P19: 2018 | Q19: 2019 | R19: 2020 | S19: 2021 | T19: 2022 | U19: 2023 | V19: 2024
A20: January | B20: - | C20: - | D20: - | E20: - | F20: - | G20: - | H20: - | I20: - | J20: - | K20: - | L20: - | M20: - | N20: - | O20: - | P20: - | Q20: - | R20: - | T20: 0 | U20: 2476 | V20: 5291
A21: February | B21: - | C21: - | D21: - | E21: - | F21: - | G21: - | H21: - | I21: - | J21: - | K21: - | L21: - | M21: - | N21: - | O21: - | P21: - | Q21: - | R21: - | T21: 2572 | U21: 4490 | V21: 1832
A22: March | B22: - | C22: - | D22: - | E22: - | F22: - | G22: - | H22: - | I22: - | J22: - | K22: - | L22: - | M22: - | N22: - | O22: - | P22: - | Q22: - | R22: - | T22: 872 | U22: 1868 | V22: 2522
A23: April | B23: - | C23: - | D23: - | E23: - | F23: - | G23: - | H23: - | I23: - | J23: - | K23: - | L23: - | M23: - | N23: - | O23: - | P23: - | Q23: - | R23: - | T23: 3523 | U23: 4342 | V23: 3050
A24: May | B24: - | C24: - | D24: - | E24: - | F24: - | G24: - | H24: - | I24: - | J24: - | K24: - | L24: - | M24: - | N24: - | O24: - | P24: - | Q24: - | R24: - | T24: 1984 | U24: 3601 | V24: 2247
A25: June | B25: - | C25: - | D25: - | E25: - | F25: - | G25: - | H25: - | I25: - | J25: - | K25: - | L25: - | M25: - | N25: - | O25: - | P25: - | Q25: - | R25: - | T25: 4731 | U25: 7740 | V25: 8097
A26: July | B26: - | C26: - | D26: - | E26: - | F26: - | G26: - | H26: - | I26: - | J26: - | K26: - | L26: - | M26: - | N26: - | O26: - | P26: - | Q26: - | R26: - | T26: 5191 | U26: 5662 | V26: 4845
A27: August | B27: - | C27: - | D27: - | E27: - | F27: - | G27: - | H27: - | I27: - | J27: - | K27: - | L27: - | M27: - | N27: - | O27: - | P27: - | Q27: - | R27: - | T27: 2753 | U27: 4161 | V27: 3243.02
A28: September | B28: - | C28: - | D28: - | E28: - | F28: - | G28: - | H28: - | I28: - | J28: - | K28: - | L28: - | M28: - | N28: - | O28: - | P28: - | Q28: - | R28: - | T28: 2469 | U28: 2307 | V28: 2187.71
A29: October | B29: - | C29: - | D29: - | E29: - | F29: - | G29: - | H29: - | I29: - | J29: - | K29: - | L29: - | M29: - | N29: - | O29: - | P29: - | Q29: - | R29: - | T29: 3421 | U29: 4213 | V29: 3761
A30: November | B30: - | C30: - | D30: - | E30: - | F30: - | G30: - | H30: - | I30: - | J30: - | K30: - | L30: - | M30: - | N30: - | O30: - | P30: - | Q30: - | R30: - | T30: 3223 | U30: 2715 | V30: 3431.26
A31: December | B31: - | C31: - | D31: - | E31: - | F31: - | G31: - | H31: - | I31: - | J31: - | K31: - | L31: - | M31: - | N31: - | O31: - | P31: - | Q31: - | R31: - | T31: 2783 | U31: 1912 | V31: 3592.58
A32: Total | B32: - | C32: - | D32: - | E32: - | F32: - | G32: - | H32: - | I32: - | J32: - | K32: - | L32: - | M32: - | N32: - | O32: - | P32: - | Q32: - | R32: - | S32: =SUM(S20:S31) -> 0 | T32: 33522 | U32: 45487 | V32: 44099.57
A33: Roseau County Transit Refunds
A34: Month | B34: 2004 | C34: 2005 | D34: 2006 | E34: 2007 | F34: 2008 | G34: 2009 | H34: 2010 | I34: 2011 | J34: 2012 | K34: 2013 | L34: 2014 | M34: 2015 | N34: 2016 | O34: 2017 | P34: 2018 | Q34: 2019 | R34: 2020 | S34: 2021 | T34: 2022 | U34: 2023 | V34: 2024
A35: January | B35: - | C35: - | D35: - | E35: - | F35: - | G35: - | H35: - | I35: - | J35: - | K35: - | L35: - | M35: - | N35: - | O35: - | P35: - | Q35: - | R35: - | S35: - | T35: - | U35: - | V35: -
A36: February | B36: - | C36: - | D36: - | E36: - | F36: - | G36: - | H36: - | I36: - | J36: - | K36: - | L36: - | M36: - | N36: - | O36: - | P36: - | Q36: - | R36: - | S36: - | T36: - | U36: 0 | V36: 0
A37: March | B37: - | C37: - | D37: - | E37: - | F37: - | G37: - | H37: - | I37: - | J37: - | K37: - | L37: - | M37: - | N37: - | O37: - | P37: - | Q37: - | R37: - | S37: - | T37: - | U37: -272 | V37: 0
A38: April | B38: - | C38: - | D38: - | E38: - | F38: - | G38: - | H38: - | I38: - | J38: - | K38: - | L38: - | M38: - | N38: - | O38: - | P38: - | Q38: - | R38: - | S38: - | T38: - | U38: -804 | V38: 0
A39: May | B39: - | C39: - | D39: - | E39: - | F39: - | G39: - | H39: - | I39: - | J39: - | K39: - | L39: - | M39: - | N39: - | O39: - | P39: - | Q39: - | R39: - | S39: - | T39: - | U39: -232 | V39: -364
A40: June | B40: - | C40: - | D40: - | E40: - | F40: - | G40: - | H40: - | I40: - | J40: - | K40: - | L40: - | M40: - | N40: - | O40: - | P40: - | Q40: - | R40: - | S40: - | T40: - | U40: 0 | V40: 0
A41: July | B41: - | C41: - | D41: - | E41: - | F41: - | G41: - | H41: - | I41: - | J41: - | K41: - | L41: - | M41: - | N41: - | O41: - | P41: - | Q41: - | R41: - | S41: - | T41: - | U41: 0 | V41: 0
A42: August | B42: - | C42: - | D42: - | E42: - | F42: - | G42: - | H42: - | I42: - | J42: - | K42: - | L42: - | M42: - | N42: - | O42: - | P42: - | Q42: - | R42: - | S42: - | T42: - | U42: 0 | V42: -93.44
A43: September | B43: - | C43: - | D43: - | E43: - | F43: - | G43: - | H43: - | I43: - | J43: - | K43: - | L43: - | M43: - | N43: - | O43: - | P43: - | Q43: - | R43: - | S43: - | T43: -245 | U43: 0 | V43: 0
A44: October | B44: - | C44: - | D44: - | E44: - | F44: - | G44: - | H44: - | I44: - | J44: - | K44: - | L44: - | M44: - | N44: - | O44: - | P44: - | Q44: - | R44: - | S44: - | T44: - | U44: 0 | V44: 0
A45: November | B45: - | C45: - | D45: - | E45: - | F45: - | G45: - | H45: - | I45: - | J45: - | K45: - | L45: - | M45: - | N45: - | O45: - | P45: - | Q45: - | R45: - | S45: - | T45: - | U45: 0 | V45: 0
A46: December | B46: - | C46: - | D46: - | E46: - | F46: - | G46: - | H46: - | I46: - | J46: - | K46: - | L46: - | M46: - | N46: - | O46: - | P46: - | Q46: - | R46: - | S46: - | T46: - | U46: 0 | V46: 0
A47: Total | B47: - | C47: - | D47: - | E47: - | F47: - | G47: - | H47: - | I47: - | J47: - | K47: - | L47: - | M47: - | N47: - | O47: - | P47: - | Q47: - | R47: - | S47: =SUM(S35:S46) -> 0 | T47: -245 | U47: -1308 | V47: -457.44
A48: Hidden columns B-R do not contain any data for CY 2004-2020
A49: ='Local SUT'!A78 -> Source: Minnesota Department of Revenue, Tax Research Division, November 2025
A50: end of worksheet

Sheet Koochiching Co (hidden)
A1: Koochiching County Monthly Detail for Minnesota Local Sales & Use Tax
A2: ='Local SUT'!A2 -> CY 2004-2024
A3: Koochiching County Transit Sales Tax (0.5%)
A4: Month | B4: 2004 | C4: 2005 | D4: 2006 | E4: 2007 | F4: 2008 | G4: 2009 | H4: 2010 | I4: 2011 | J4: 2012 | K4: 2013 | L4: 2014 | M4: 2015 | N4: 2016 | O4: 2017 | P4: 2018 | Q4: 2019 | R4: 2020 | S4: 2021 | T4: 2022 | U4: 2023 | V4: 2024
A5: January | B5: - | C5: - | D5: - | E5: - | F5: - | G5: - | H5: - | I5: - | J5: - | K5: - | L5: - | M5: - | N5: - | O5: - | P5: - | Q5: - | R5: - | S5: - | T5: - | U5: 72247 | V5: 69081
A6: February | B6: - | C6: - | D6: - | E6: - | F6: - | G6: - | H6: - | I6: - | J6: - | K6: - | L6: - | M6: - | N6: - | O6: - | P6: - | Q6: - | R6: - | S6: - | T6: - | U6: 58428 | V6: 56780
A7: March | B7: - | C7: - | D7: - | E7: - | F7: - | G7: - | H7: - | I7: - | J7: - | K7: - | L7: - | M7: - | N7: - | O7: - | P7: - | Q7: - | R7: - | S7: - | T7: - | U7: 55658 | V7: 59070
A8: April | B8: - | C8: - | D8: - | E8: - | F8: - | G8: - | H8: - | I8: - | J8: - | K8: - | L8: - | M8: - | N8: - | O8: - | P8: - | Q8: - | R8: - | S8: - | T8: 110 | U8: 63627 | V8: 67157
A9: May | B9: - | C9: - | D9: - | E9: - | F9: - | G9: - | H9: - | I9: - | J9: - | K9: - | L9: - | M9: - | N9: - | O9: - | P9: - | Q9: - | R9: - | S9: - | T9: 52651 | U9: 60668 | V9: 65582
A10: June | B10: - | C10: - | D10: - | E10: - | F10: - | G10: - | H10: - | I10: - | J10: - | K10: - | L10: - | M10: - | N10: - | O10: - | P10: - | Q10: - | R10: - | S10: - | T10: 65219 | U10: 82966 | V10: 84324
A11: July | B11: - | C11: - | D11: - | E11: - | F11: - | G11: - | H11: - | I11: - | J11: - | K11: - | L11: - | M11: - | N11: - | O11: - | P11: - | Q11: - | R11: - | S11: - | T11: 75337 | U11: 99883 | V11: 97964
A12: August | B12: - | C12: - | D12: - | E12: - | F12: - | G12: - | H12: - | I12: - | J12: - | K12: - | L12: - | M12: - | N12: - | O12: - | P12: - | Q12: - | R12: - | S12: - | T12: 77002 | U12: 88802 | V12: 96896.16
A13: September | B13: - | C13: - | D13: - | E13: - | F13: - | G13: - | H13: - | I13: - | J13: - | K13: - | L13: - | M13: - | N13: - | O13: - | P13: - | Q13: - | R13: - | S13: - | T13: 95263 | U13: 97384 | V13: 97116.6
A14: October | B14: - | C14: - | D14: - | E14: - | F14: - | G14: - | H14: - | I14: - | J14: - | K14: - | L14: - | M14: - | N14: - | O14: - | P14: - | Q14: - | R14: - | S14: - | T14: 78876 | U14: 86615 | V14: 86111.23
A15: November | B15: - | C15: - | D15: - | E15: - | F15: - | G15: - | H15: - | I15: - | J15: - | K15: - | L15: - | M15: - | N15: - | O15: - | P15: - | Q15: - | R15: - | S15: - | T15: 66654 | U15: 60629 | V15: 76369.53
A16: December | B16: - | C16: - | D16: - | E16: - | F16: - | G16: - | H16: - | I16: - | J16: - | K16: - | L16: - | M16: - | N16: - | O16: - | P16: - | Q16: - | R16: - | S16: - | T16: 64224 | U16: 64095 | V16: 68874.43
A17: Total | B17: - | C17: - | D17: - | E17: - | F17: - | G17: - | H17: - | I17: - | J17: - | K17: - | L17: - | M17: - | N17: - | O17: - | P17: - | Q17: - | R17: - | S17: =SUM(S5:S16) -> 0 | T17: 575336 | U17: =SUM(U5:U16) -> 891002 | V17: 925325.95
A18: Koochiching County Transit Use Tax (0.5%)
A19: Month | B19: 2004 | C19: 2005 | D19: 2006 | E19: 2007 | F19: 2008 | G19: 2009 | H19: 2010 | I19: 2011 | J19: 2012 | K19: 2013 | L19: 2014 | M19: 2015 | N19: 2016 | O19: 2017 | P19: 2018 | Q19: 2019 | R19: 2020 | S19: 2021 | T19: 2022 | U19: 2023 | V19: 2024
A20: January | B20: - | C20: - | D20: - | E20: - | F20: - | G20: - | H20: - | I20: - | J20: - | K20: - | L20: - | M20: - | N20: - | O20: - | P20: - | Q20: - | R20: - | S20: - | T20: - | U20: 8323 | V20: 6888
A21: February | B21: - | C21: - | D21: - | E21: - | F21: - | G21: - | H21: - | I21: - | J21: - | K21: - | L21: - | M21: - | N21: - | O21: - | P21: - | Q21: - | R21: - | S21: - | T21: - | U21: 3446 | V21: 7171
A22: March | B22: - | C22: - | D22: - | E22: - | F22: - | G22: - | H22: - | I22: - | J22: - | K22: - | L22: - | M22: - | N22: - | O22: - | P22: - | Q22: - | R22: - | S22: - | T22: - | U22: 4285 | V22: 3071
A23: April | B23: - | C23: - | D23: - | E23: - | F23: - | G23: - | H23: - | I23: - | J23: - | K23: - | L23: - | M23: - | N23: - | O23: - | P23: - | Q23: - | R23: - | S23: - | T23: - | U23: 7567 | V23: 4148
A24: May | B24: - | C24: - | D24: - | E24: - | F24: - | G24: - | H24: - | I24: - | J24: - | K24: - | L24: - | M24: - | N24: - | O24: - | P24: - | Q24: - | R24: - | S24: - | T24: 9393 | U24: 4352 | V24: 5289
A25: June | B25: - | C25: - | D25: - | E25: - | F25: - | G25: - | H25: - | I25: - | J25: - | K25: - | L25: - | M25: - | N25: - | O25: - | P25: - | Q25: - | R25: - | S25: - | T25: 13749 | U25: 6208 | V25: 6162
A26: July | B26: - | C26: - | D26: - | E26: - | F26: - | G26: - | H26: - | I26: - | J26: - | K26: - | L26: - | M26: - | N26: - | O26: - | P26: - | Q26: - | R26: - | S26: - | T26: 7627 | U26: 5679 | V26: 6122
A27: August | B27: - | C27: - | D27: - | E27: - | F27: - | G27: - | H27: - | I27: - | J27: - | K27: - | L27: - | M27: - | N27: - | O27: - | P27: - | Q27: - | R27: - | S27: - | T27: 8938 | U27: 3932 | V27: 5021
A28: September | B28: - | C28: - | D28: - | E28: - | F28: - | G28: - | H28: - | I28: - | J28: - | K28: - | L28: - | M28: - | N28: - | O28: - | P28: - | Q28: - | R28: - | S28: - | T28: 9173 | U28: 4787 | V28: 4109
A29: October | B29: - | C29: - | D29: - | E29: - | F29: - | G29: - | H29: - | I29: - | J29: - | K29: - | L29: - | M29: - | N29: - | O29: - | P29: - | Q29: - | R29: - | S29: - | T29: 6788 | U29: 4968 | V29: 6475
A30: November | B30: - | C30: - | D30: - | E30: - | F30: - | G30: - | H30: - | I30: - | J30: - | K30: - | L30: - | M30: - | N30: - | O30: - | P30: - | Q30: - | R30: - | S30: - | T30: 5547 | U30: 4833 | V30: 4240
A31: December | B31: - | C31: - | D31: - | E31: - | F31: - | G31: - | H31: - | I31: - | J31: - | K31: - | L31: - | M31: - | N31: - | O31: - | P31: - | Q31: - | R31: - | S31: - | T31: 6988 | U31: 4564 | V31: 6164.86
A32: Total | B32: - | C32: - | D32: - | E32: - | F32: - | G32: - | H32: - | I32: - | J32: - | K32: - | L32: - | M32: - | N32: - | O32: - | P32: - | Q32: - | R32: - | S32: =SUM(S20:S31) -> 0 | T32: 68203 | U32: 62944 | V32: 64860.86
A33: Koochiching County Transit Refunds
A34: Month | B34: 2004 | C34: 2005 | D34: 2006 | E34: 2007 | F34: 2008 | G34: 2009 | H34: 2010 | I34: 2011 | J34: 2012 | K34: 2013 | L34: 2014 | M34: 2015 | N34: 2016 | O34: 2017 | P34: 2018 | Q34: 2019 | R34: 2020 | S34: 2021 | T34: 2022 | U34: 2023 | V34: 2024
A35: January | B35: - | C35: - | D35: - | E35: - | F35: - | G35: - | H35: - | I35: - | J35: - | K35: - | L35: - | M35: - | N35: - | O35: - | P35: - | Q35: - | R35: - | S35: - | T35: - | U35: - | V35: -2
A36: February | B36: - | C36: - | D36: - | E36: - | F36: - | G36: - | H36: - | I36: - | J36: - | K36: - | L36: - | M36: - | N36: - | O36: - | P36: - | Q36: - | R36: - | S36: - | T36: - | U36: 0 | V36: 0
A37: March | B37: - | C37: - | D37: - | E37: - | F37: - | G37: - | H37: - | I37: - | J37: - | K37: - | L37: - | M37: - | N37: - | O37: - | P37: - | Q37: - | R37: - | S37: - | T37: - | U37: 0 | V37: 0
A38: April | B38: - | C38: - | D38: - | E38: - | F38: - | G38: - | H38: - | I38: - | J38: - | K38: - | L38: - | M38: - | N38: - | O38: - | P38: - | Q38: - | R38: - | S38: - | T38: - | U38: 0 | V38: -3
A39: May | B39: - | C39: - | D39: - | E39: - | F39: - | G39: - | H39: - | I39: - | J39: - | K39: - | L39: - | M39: - | N39: - | O39: - | P39: - | Q39: - | R39: - | S39: - | T39: - | U39: 0 | V39: 0
A40: June | B40: - | C40: - | D40: - | E40: - | F40: - | G40: - | H40: - | I40: - | J40: - | K40: - | L40: - | M40: - | N40: - | O40: - | P40: - | Q40: - | R40: - | S40: - | T40: - | U40: 0 | V40: 0
A41: July | B41: - | C41: - | D41: - | E41: - | F41: - | G41: - | H41: - | I41: - | J41: - | K41: - | L41: - | M41: - | N41: - | O41: - | P41: - | Q41: - | R41: - | S41: - | T41: - | U41: 0 | V41: 0
A42: August | B42: - | C42: - | D42: - | E42: - | F42: - | G42: - | H42: - | I42: - | J42: - | K42: - | L42: - | M42: - | N42: - | O42: - | P42: - | Q42: - | R42: - | S42: - | T42: - | U42: 0 | V42: 0
A43: September | B43: - | C43: - | D43: - | E43: - | F43: - | G43: - | H43: - | I43: - | J43: - | K43: - | L43: - | M43: - | N43: - | O43: - | P43: - | Q43: - | R43: - | S43: - | T43: - | U43: 0 | V43: 0
A44: October | B44: - | C44: - | D44: - | E44: - | F44: - | G44: - | H44: - | I44: - | J44: - | K44: - | L44: - | M44: - | N44: - | O44: - | P44: - | Q44: - | R44: - | S44: - | T44: - | U44: 0 | V44: 0
A45: November | B45: - | C45: - | D45: - | E45: - | F45: - | G45: - | H45: - | I45: - | J45: - | K45: - | L45: - | M45: - | N45: - | O45: - | P45: - | Q45: - | R45: - | S45: - | T45: - | U45: -40 | V45: 0
A46: December | B46: - | C46: - | D46: - | E46: - | F46: - | G46: - | H46: - | I46: - | J46: - | K46: - | L46: - | M46: - | N46: - | O46: - | P46: - | Q46: - | R46: - | S46: - | T46: - | U46: 0 | V46: 0
A47: Total | B47: - | C47: - | D47: - | E47: - | F47: - | G47: - | H47: - | I47: - | J47: - | K47: - | L47: - | M47: - | N47: - | O47: - | P47: - | Q47: - | R47: - | S47: =SUM(S35:S46) -> 0 | T47: 0 | U47: -40 | V47: -5
A48: Hidden columns B-R do not contain any data for CY 2004-2020
A49: ='Local SUT'!A78 -> Source: Minnesota Department of Revenue, Tax Research Division, November 2025
A50: end of worksheet

Sheet Norman Co (hidden)
A1: Norman County Monthly Detail for Minnesota Local Sales & Use Tax
A2: ='Local SUT'!A2 -> CY 2004-2024
A3: Norman County Transit Sales Tax (0.5%)
A4: Month | B4: 2004 | C4: 2005 | D4: 2006 | E4: 2007 | F4: 2008 | G4: 2009 | H4: 2010 | I4: 2011 | J4: 2012 | K4: 2013 | L4: 2014 | M4: 2015 | N4: 2016 | O4: 2017 | P4: 2018 | Q4: 2019 | R4: 2020 | S4: 2021 | T4: 2022 | U4: 2023 | V4: 2024
A5: January | B5: - | C5: - | D5: - | E5: - | F5: - | G5: - | H5: - | I5: - | J5: - | K5: - | L5: - | M5: - | N5: - | O5: - | P5: - | Q5: - | R5: - | S5: - | T5: - | U5: 29495 | V5: 42775
A6: February | B6: - | C6: - | D6: - | E6: - | F6: - | G6: - | H6: - | I6: - | J6: - | K6: - | L6: - | M6: - | N6: - | O6: - | P6: - | Q6: - | R6: - | S6: - | T6: - | U6: 25472 | V6: 22744
A7: March | B7: - | C7: - | D7: - | E7: - | F7: - | G7: - | H7: - | I7: - | J7: - | K7: - | L7: - | M7: - | N7: - | O7: - | P7: - | Q7: - | R7: - | S7: - | T7: - | U7: 22310 | V7: 27118
A8: April | B8: - | C8: - | D8: - | E8: - | F8: - | G8: - | H8: - | I8: - | J8: - | K8: - | L8: - | M8: - | N8: - | O8: - | P8: - | Q8: - | R8: - | S8: - | T8: - | U8: 26116 | V8: 27897
A9: May | B9: - | C9: - | D9: - | E9: - | F9: - | G9: - | H9: - | I9: - | J9: - | K9: - | L9: - | M9: - | N9: - | O9: - | P9: - | Q9: - | R9: - | S9: - | T9: - | U9: 26146 | V9: 25784
A10: June | B10: - | C10: - | D10: - | E10: - | F10: - | G10: - | H10: - | I10: - | J10: - | K10: - | L10: - | M10: - | N10: - | O10: - | P10: - | Q10: - | R10: - | S10: - | T10: - | U10: 32035 | V10: 30698
A11: July | B11: - | C11: - | D11: - | E11: - | F11: - | G11: - | H11: - | I11: - | J11: - | K11: - | L11: - | M11: - | N11: - | O11: - | P11: - | Q11: - | R11: - | S11: - | T11: 12 | U11: 33655 | V11: 32088
A12: August | B12: - | C12: - | D12: - | E12: - | F12: - | G12: - | H12: - | I12: - | J12: - | K12: - | L12: - | M12: - | N12: - | O12: - | P12: - | Q12: - | R12: - | S12: - | T12: 28696 | U12: 28273 | V12: 31970.75
A13: September | B13: - | C13: - | D13: - | E13: - | F13: - | G13: - | H13: - | I13: - | J13: - | K13: - | L13: - | M13: - | N13: - | O13: - | P13: - | Q13: - | R13: - | S13: - | T13: 26585 | U13: 39583 | V13: 36643.86
A14: October | B14: - | C14: - | D14: - | E14: - | F14: - | G14: - | H14: - | I14: - | J14: - | K14: - | L14: - | M14: - | N14: - | O14: - | P14: - | Q14: - | R14: - | S14: - | T14: 25233 | U14: 38503 | V14: 35849.53
A15: November | B15: - | C15: - | D15: - | E15: - | F15: - | G15: - | H15: - | I15: - | J15: - | K15: - | L15: - | M15: - | N15: - | O15: - | P15: - | Q15: - | R15: - | S15: - | T15: 27533 | U15: 27918 | V15: 34892.96
A16: December | B16: - | C16: - | D16: - | E16: - | F16: - | G16: - | H16: - | I16: - | J16: - | K16: - | L16: - | M16: - | N16: - | O16: - | P16: - | Q16: - | R16: - | S16: - | T16: 27896 | U16: 29368 | V16: 32037.54
A17: Total | B17: - | C17: - | D17: - | E17: - | F17: - | G17: - | H17: - | I17: - | J17: - | K17: - | L17: - | M17: - | N17: - | O17: - | P17: - | Q17: - | R17: - | S17: =SUM(S5:S16) -> 0 | T17: 135955 | U17: =SUM(U5:U16) -> 358874 | V17: 380498.64
A18: Norman County Transit Use Tax (0.5%)
A19: Month | B19: 2004 | C19: 2005 | D19: 2006 | E19: 2007 | F19: 2008 | G19: 2009 | H19: 2010 | I19: 2011 | J19: 2012 | K19: 2013 | L19: 2014 | M19: 2015 | N19: 2016 | O19: 2017 | P19: 2018 | Q19: 2019 | R19: 2020 | S19: 2021 | T19: 2022 | U19: 2023 | V19: 2024
A20: January | B20: - | C20: - | D20: - | E20: - | F20: - | G20: - | H20: - | I20: - | J20: - | K20: - | L20: - | M20: - | N20: - | O20: - | P20: - | Q20: - | R20: - | S20: - | T20: - | U20: 8484 | V20: 3844
A21: February | B21: - | C21: - | D21: - | E21: - | F21: - | G21: - | H21: - | I21: - | J21: - | K21: - | L21: - | M21: - | N21: - | O21: - | P21: - | Q21: - | R21: - | S21: - | T21: - | U21: 1464 | V21: 866
A22: March | B22: - | C22: - | D22: - | E22: - | F22: - | G22: - | H22: - | I22: - | J22: - | K22: - | L22: - | M22: - | N22: - | O22: - | P22: - | Q22: - | R22: - | S22: - | T22: - | U22: 3393 | V22: 2774
A23: April | B23: - | C23: - | D23: - | E23: - | F23: - | G23: - | H23: - | I23: - | J23: - | K23: - | L23: - | M23: - | N23: - | O23: - | P23: - | Q23: - | R23: - | S23: - | T23: - | U23: 2382 | V23: 2214
A24: May | B24: - | C24: - | D24: - | E24: - | F24: - | G24: - | H24: - | I24: - | J24: - | K24: - | L24: - | M24: - | N24: - | O24: - | P24: - | Q24: - | R24: - | S24: - | T24: - | U24: 3728 | V24: 4176
A25: June | B25: - | C25: - | D25: - | E25: - | F25: - | G25: - | H25: - | I25: - | J25: - | K25: - | L25: - | M25: - | N25: - | O25: - | P25: - | Q25: - | R25: - | S25: - | T25: - | U25: 7441 | V25: 2192
A26: July | B26: - | C26: - | D26: - | E26: - | F26: - | G26: - | H26: - | I26: - | J26: - | K26: - | L26: - | M26: - | N26: - | O26: - | P26: - | Q26: - | R26: - | S26: - | T26: 12 | U26: 7660 | V26: 4396
A27: August | B27: - | C27: - | D27: - | E27: - | F27: - | G27: - | H27: - | I27: - | J27: - | K27: - | L27: - | M27: - | N27: - | O27: - | P27: - | Q27: - | R27: - | S27: - | T27: 1210 | U27: 1753 | V27: 2448
A28: September | B28: - | C28: - | D28: - | E28: - | F28: - | G28: - | H28: - | I28: - | J28: - | K28: - | L28: - | M28: - | N28: - | O28: - | P28: - | Q28: - | R28: - | S28: - | T28: 2879 | U28: 1644 | V28: 2843
A29: October | B29: - | C29: - | D29: - | E29: - | F29: - | G29: - | H29: - | I29: - | J29: - | K29: - | L29: - | M29: - | N29: - | O29: - | P29: - | Q29: - | R29: - | S29: - | T29: 3966 | U29: 4410 | V29: 1752
A30: November | B30: - | C30: - | D30: - | E30: - | F30: - | G30: - | H30: - | I30: - | J30: - | K30: - | L30: - | M30: - | N30: - | O30: - | P30: - | Q30: - | R30: - | S30: - | T30: 3490 | U30: 3365 | V30: 3121.03
A31: December | B31: - | C31: - | D31: - | E31: - | F31: - | G31: - | H31: - | I31: - | J31: - | K31: - | L31: - | M31: - | N31: - | O31: - | P31: - | Q31: - | R31: - | S31: - | T31: 18279 | U31: 1375 | V31: 2886
A32: Total | B32: - | C32: - | D32: - | E32: - | F32: - | G32: - | H32: - | I32: - | J32: - | K32: - | L32: - | M32: - | N32: - | O32: - | P32: - | Q32: - | R32: - | S32: =SUM(S20:S31) -> 0 | T32: 29836 | U32: 47099 | V32: 33512.03
A33: Norman County Transit Refunds
A34: Month | B34: 2004 | C34: 2005 | D34: 2006 | E34: 2007 | F34: 2008 | G34: 2009 | H34: 2010 | I34: 2011 | J34: 2012 | K34: 2013 | L34: 2014 | M34: 2015 | N34: 2016 | O34: 2017 | P34: 2018 | Q34: 2019 | R34: 2020 | S34: 2021 | T34: 2022 | U34: 2023 | V34: 2024
A35: January | B35: - | C35: - | D35: - | E35: - | F35: - | G35: - | H35: - | I35: - | J35: - | K35: - | L35: - | M35: - | N35: - | O35: - | P35: - | Q35: - | R35: - | S35: - | T35: - | U35: - | V35: -
A36: February | B36: - | C36: - | D36: - | E36: - | F36: - | G36: - | H36: - | I36: - | J36: - | K36: - | L36: - | M36: - | N36: - | O36: - | P36: - | Q36: - | R36: - | S36: - | T36: - | U36: - | V36: -
A37: March | B37: - | C37: - | D37: - | E37: - | F37: - | G37: - | H37: - | I37: - | J37: - | K37: - | L37: - | M37: - | N37: - | O37: - | P37: - | Q37: - | R37: - | S37: - | T37: - | U37: - | V37: -
A38: April | B38: - | C38: - | D38: - | E38: - | F38: - | G38: - | H38: - | I38: - | J38: - | K38: - | L38: - | M38: - | N38: - | O38: - | P38: - | Q38: - | R38: - | S38: - | T38: - | U38: - | V38: -
A39: May | B39: - | C39: - | D39: - | E39: - | F39: - | G39: - | H39: - | I39: - | J39: - | K39: - | L39: - | M39: - | N39: - | O39: - | P39: - | Q39: - | R39: - | S39: - | T39: - | U39: - | V39: -
A40: June | B40: - | C40: - | D40: - | E40: - | F40: - | G40: - | H40: - | I40: - | J40: - | K40: - | L40: - | M40: - | N40: - | O40: - | P40: - | Q40: - | R40: - | S40: - | T40: - | U40: - | V40: -
A41: July | B41: - | C41: - | D41: - | E41: - | F41: - | G41: - | H41: - | I41: - | J41: - | K41: - | L41: - | M41: - | N41: - | O41: - | P41: - | Q41: - | R41: - | S41: - | T41: - | U41: - | V41: -
A42: August | B42: - | C42: - | D42: - | E42: - | F42: - | G42: - | H42: - | I42: - | J42: - | K42: - | L42: - | M42: - | N42: - | O42: - | P42: - | Q42: - | R42: - | S42: - | T42: - | U42: - | V42: -
A43: September | B43: - | C43: - | D43: - | E43: - | F43: - | G43: - | H43: - | I43: - | J43: - | K43: - | L43: - | M43: - | N43: - | O43: - | P43: - | Q43: - | R43: - | S43: - | T43: - | U43: - | V43: -
A44: October | B44: - | C44: - | D44: - | E44: - | F44: - | G44: - | H44: - | I44: - | J44: - | K44: - | L44: - | M44: - | N44: - | O44: - | P44: - | Q44: - | R44: - | S44: - | T44: - | U44: - | V44: -
A45: November | B45: - | C45: - | D45: - | E45: - | F45: - | G45: - | H45: - | I45: - | J45: - | K45: - | L45: - | M45: - | N45: - | O45: - | P45: - | Q45: - | R45: - | S45: - | T45: - | U45: - | V45: -
A46: December | B46: - | C46: - | D46: - | E46: - | F46: - | G46: - | H46: - | I46: - | J46: - | K46: - | L46: - | M46: - | N46: - | O46: - | P46: - | Q46: - | R46: - | S46: - | T46: - | U46: - | V46: -
A47: Total | B47: - | C47: - | D47: - | E47: - | F47: - | G47: - | H47: - | I47: - | J47: - | K47: - | L47: - | M47: - | N47: - | O47: - | P47: - | Q47: - | R47: - | S47: =SUM(S35:S46) -> 0 | T47: 0 | U47: 0 | V47: 0
A48: Hidden columns B-R do not contain any data for CY 2004-2020
A49: ='Local SUT'!A78 -> Source: Minnesota Department of Revenue, Tax Research Division, November 2025
A50: end of worksheet

Sheet Renville Co (hidden)
A1: Renville County Monthly Detail for Minnesota Local Sales & Use Tax
A2: ='Local SUT'!A2 -> CY 2004-2024
A3: Renville County Transit Sales Tax (0.5%)
A4: Month | B4: 2004 | C4: 2005 | D4: 2006 | E4: 2007 | F4: 2008 | G4: 2009 | H4: 2010 | I4: 2011 | J4: 2012 | K4: 2013 | L4: 2014 | M4: 2015 | N4: 2016 | O4: 2017 | P4: 2018 | Q4: 2019 | R4: 2020 | S4: 2021 | T4: 2022 | U4: 2023 | V4: 2024
A5: January | B5: - | C5: - | D5: - | E5: - | F5: - | G5: - | H5: - | I5: - | J5: - | K5: - | L5: - | M5: - | N5: - | O5: - | P5: - | Q5: - | R5: - | S5: - | T5: - | U5: 10 | V5: 75827
A6: February | B6: - | C6: - | D6: - | E6: - | F6: - | G6: - | H6: - | I6: - | J6: - | K6: - | L6: - | M6: - | N6: - | O6: - | P6: - | Q6: - | R6: - | S6: - | T6: - | U6: 43482 | V6: 59897
A7: March | B7: - | C7: - | D7: - | E7: - | F7: - | G7: - | H7: - | I7: - | J7: - | K7: - | L7: - | M7: - | N7: - | O7: - | P7: - | Q7: - | R7: - | S7: - | T7: - | U7: 42233 | V7: 52812
A8: April | B8: - | C8: - | D8: - | E8: - | F8: - | G8: - | H8: - | I8: - | J8: - | K8: - | L8: - | M8: - | N8: - | O8: - | P8: - | Q8: - | R8: - | S8: - | T8: - | U8: 52274 | V8: 65732
A9: May | B9: - | C9: - | D9: - | E9: - | F9: - | G9: - | H9: - | I9: - | J9: - | K9: - | L9: - | M9: - | N9: - | O9: - | P9: - | Q9: - | R9: - | S9: - | T9: - | U9: 48624 | V9: 64940
A10: June | B10: - | C10: - | D10: - | E10: - | F10: - | G10: - | H10: - | I10: - | J10: - | K10: - | L10: - | M10: - | N10: - | O10: - | P10: - | Q10: - | R10: - | S10: - | T10: - | U10: 63866 | V10: 65356
A11: July | B11: - | C11: - | D11: - | E11: - | F11: - | G11: - | H11: - | I11: - | J11: - | K11: - | L11: - | M11: - | N11: - | O11: - | P11: - | Q11: - | R11: - | S11: - | T11: - | U11: 82023 | V11: 73696
A12: August | B12: - | C12: - | D12: - | E12: - | F12: - | G12: - | H12: - | I12: - | J12: - | K12: - | L12: - | M12: - | N12: - | O12: - | P12: - | Q12: - | R12: - | S12: - | T12: - | U12: 77798 | V12: 75276.65
A13: September | B13: - | C13: - | D13: - | E13: - | F13: - | G13: - | H13: - | I13: - | J13: - | K13: - | L13: - | M13: - | N13: - | O13: - | P13: - | Q13: - | R13: - | S13: - | T13: - | U13: 86780 | V13: 72988.52
A14: October | B14: - | C14: - | D14: - | E14: - | F14: - | G14: - | H14: - | I14: - | J14: - | K14: - | L14: - | M14: - | N14: - | O14: - | P14: - | Q14: - | R14: - | S14: - | T14: - | U14: 76829 | V14: 79227.35
A15: November | B15: - | C15: - | D15: - | E15: - | F15: - | G15: - | H15: - | I15: - | J15: - | K15: - | L15: - | M15: - | N15: - | O15: - | P15: - | Q15: - | R15: - | S15: - | T15: - | U15: 67422 | V15: 74530.83
A16: December | B16: - | C16: - | D16: - | E16: - | F16: - | G16: - | H16: - | I16: - | J16: - | K16: - | L16: - | M16: - | N16: - | O16: - | P16: - | Q16: - | R16: - | S16: - | T16: - | U16: 74964 | V16: 66455.48
A17: Total | B17: - | C17: - | D17: - | E17: - | F17: - | G17: - | H17: - | I17: - | J17: - | K17: - | L17: - | M17: - | N17: - | O17: - | P17: - | Q17: - | R17: - | S17: =SUM(S5:S16) -> 0 | T17: 0 | U17: =SUM(U5:U16) -> 716305 | V17: 826738.83
A18: Renville County Transit Use Tax (0.5%)
A19: Month | B19: 2004 | C19: 2005 | D19: 2006 | E19: 2007 | F19: 2008 | G19: 2009 | H19: 2010 | I19: 2011 | J19: 2012 | K19: 2013 | L19: 2014 | M19: 2015 | N19: 2016 | O19: 2017 | P19: 2018 | Q19: 2019 | R19: 2020 | S19: 2021 | T19: 2022 | U19: 2023 | V19: 2024
A20: January | B20: - | C20: - | D20: - | E20: - | F20: - | G20: - | H20: - | I20: - | J20: - | K20: - | L20: - | M20: - | N20: - | O20: - | P20: - | Q20: - | R20: - | S20: - | T20: - | U20: 0 | V20: 3280
A21: February | B21: - | C21: - | D21: - | E21: - | F21: - | G21: - | H21: - | I21: - | J21: - | K21: - | L21: - | M21: - | N21: - | O21: - | P21: - | Q21: - | R21: - | S21: - | T21: - | U21: 840 | V21: 3034
A22: March | B22: - | C22: - | D22: - | E22: - | F22: - | G22: - | H22: - | I22: - | J22: - | K22: - | L22: - | M22: - | N22: - | O22: - | P22: - | Q22: - | R22: - | S22: - | T22: - | U22: 5031 | V22: 2743
A23: April | B23: - | C23: - | D23: - | E23: - | F23: - | G23: - | H23: - | I23: - | J23: - | K23: - | L23: - | M23: - | N23: - | O23: - | P23: - | Q23: - | R23: - | S23: - | T23: - | U23: 2272 | V23: 5686
A24: May | B24: - | C24: - | D24: - | E24: - | F24: - | G24: - | H24: - | I24: - | J24: - | K24: - | L24: - | M24: - | N24: - | O24: - | P24: - | Q24: - | R24: - | S24: - | T24: - | U24: 3081 | V24: 4378
A25: June | B25: - | C25: - | D25: - | E25: - | F25: - | G25: - | H25: - | I25: - | J25: - | K25: - | L25: - | M25: - | N25: - | O25: - | P25: - | Q25: - | R25: - | S25: - | T25: - | U25: 1968 | V25: 4632
A26: July | B26: - | C26: - | D26: - | E26: - | F26: - | G26: - | H26: - | I26: - | J26: - | K26: - | L26: - | M26: - | N26: - | O26: - | P26: - | Q26: - | R26: - | S26: - | T26: - | U26: 6163 | V26: 4194
A27: August | B27: - | C27: - | D27: - | E27: - | F27: - | G27: - | H27: - | I27: - | J27: - | K27: - | L27: - | M27: - | N27: - | O27: - | P27: - | Q27: - | R27: - | S27: - | T27: - | U27: 4218 | V27: 7324.1
A28: September | B28: - | C28: - | D28: - | E28: - | F28: - | G28: - | H28: - | I28: - | J28: - | K28: - | L28: - | M28: - | N28: - | O28: - | P28: - | Q28: - | R28: - | S28: - | T28: - | U28: 4324 | V28: 10441.06
A29: October | B29: - | C29: - | D29: - | E29: - | F29: - | G29: - | H29: - | I29: - | J29: - | K29: - | L29: - | M29: - | N29: - | O29: - | P29: - | Q29: - | R29: - | S29: - | T29: - | U29: 4053 | V29: 7383.64
A30: November | B30: - | C30: - | D30: - | E30: - | F30: - | G30: - | H30: - | I30: - | J30: - | K30: - | L30: - | M30: - | N30: - | O30: - | P30: - | Q30: - | R30: - | S30: - | T30: - | U30: 3752 | V30: 5452.06
A31: December | B31: - | C31: - | D31: - | E31: - | F31: - | G31: - | H31: - | I31: - | J31: - | K31: - | L31: - | M31: - | N31: - | O31: - | P31: - | Q31: - | R31: - | S31: - | T31: - | U31: 3759 | V31: 5239.31
A32: Total | B32: - | C32: - | D32: - | E32: - | F32: - | G32: - | H32: - | I32: - | J32: - | K32: - | L32: - | M32: - | N32: - | O32: - | P32: - | Q32: - | R32: - | S32: =SUM(S20:S31) -> 0 | T32: 0 | U32: 39461 | V32: 63787.17
A33: Renville County Transit Refunds
A34: Month | B34: 2004 | C34: 2005 | D34: 2006 | E34: 2007 | F34: 2008 | G34: 2009 | H34: 2010 | I34: 2011 | J34: 2012 | K34: 2013 | L34: 2014 | M34: 2015 | N34: 2016 | O34: 2017 | P34: 2018 | Q34: 2019 | R34: 2020 | S34: 2021 | T34: 2022 | U34: 2023 | V34: 2024
A35: January | B35: - | C35: - | D35: - | E35: - | F35: - | G35: - | H35: - | I35: - | J35: - | K35: - | L35: - | M35: - | N35: - | O35: - | P35: - | Q35: - | R35: - | S35: - | T35: - | U35: - | V35: -
A36: February | B36: - | C36: - | D36: - | E36: - | F36: - | G36: - | H36: - | I36: - | J36: - | K36: - | L36: - | M36: - | N36: - | O36: - | P36: - | Q36: - | R36: - | S36: - | T36: - | U36: - | V36: -
A37: March | B37: - | C37: - | D37: - | E37: - | F37: - | G37: - | H37: - | I37: - | J37: - | K37: - | L37: - | M37: - | N37: - | O37: - | P37: - | Q37: - | R37: - | S37: - | T37: - | U37: - | V37: -
A38: April | B38: - | C38: - | D38: - | E38: - | F38: - | G38: - | H38: - | I38: - | J38: - | K38: - | L38: - | M38: - | N38: - | O38: - | P38: - | Q38: - | R38: - | S38: - | T38: - | U38: - | V38: -
A39: May | B39: - | C39: - | D39: - | E39: - | F39: - | G39: - | H39: - | I39: - | J39: - | K39: - | L39: - | M39: - | N39: - | O39: - | P39: - | Q39: - | R39: - | S39: - | T39: - | U39: - | V39: -
A40: June | B40: - | C40: - | D40: - | E40: - | F40: - | G40: - | H40: - | I40: - | J40: - | K40: - | L40: - | M40: - | N40: - | O40: - | P40: - | Q40: - | R40: - | S40: - | T40: - | U40: - | V40: -
A41: July | B41: - | C41: - | D41: - | E41: - | F41: - | G41: - | H41: - | I41: - | J41: - | K41: - | L41: - | M41: - | N41: - | O41: - | P41: - | Q41: - | R41: - | S41: - | T41: - | U41: - | V41: -
A42: August | B42: - | C42: - | D42: - | E42: - | F42: - | G42: - | H42: - | I42: - | J42: - | K42: - | L42: - | M42: - | N42: - | O42: - | P42: - | Q42: - | R42: - | S42: - | T42: - | U42: - | V42: -
A43: September | B43: - | C43: - | D43: - | E43: - | F43: - | G43: - | H43: - | I43: - | J43: - | K43: - | L43: - | M43: - | N43: - | O43: - | P43: - | Q43: - | R43: - | S43: - | T43: - | U43: - | V43: -
A44: October | B44: - | C44: - | D44: - | E44: - | F44: - | G44: - | H44: - | I44: - | J44: - | K44: - | L44: - | M44: - | N44: - | O44: - | P44: - | Q44: - | R44: - | S44: - | T44: - | U44: - | V44: -
A45: November | B45: - | C45: - | D45: - | E45: - | F45: - | G45: - | H45: - | I45: - | J45: - | K45: - | L45: - | M45: - | N45: - | O45: - | P45: - | Q45: - | R45: - | S45: - | T45: - | U45: - | V45: -
A46: December | B46: - | C46: - | D46: - | E46: - | F46: - | G46: - | H46: - | I46: - | J46: - | K46: - | L46: - | M46: - | N46: - | O46: - | P46: - | Q46: - | R46: - | S46: - | T46: - | U46: - | V46: -
A47: Total | B47: - | C47: - | D47: - | E47: - | F47: - | G47: - | H47: - | I47: - | J47: - | K47: - | L47: - | M47: - | N47: - | O47: - | P47: - | Q47: - | R47: - | S47: =SUM(S35:S46) -> 0 | T47: 0 | U47: 0 | V47: 0
A48: Hidden columns B-R do not contain any data for CY 2004-2020
A49: ='Local SUT'!A78 -> Source: Minnesota Department of Revenue, Tax Research Division, November 2025
A50: end of worksheet

Sheet Itasca Cty (hidden)
A1: Itasca County Monthly Detail for Minnesota Local Sales & Use Tax
A2: ='Local SUT'!A2 -> CY 2004-2024
A3: Itasca County Transit Sales Tax (1.0%)
A4: Month | B4: 2004 | C4: 2005 | D4: 2006 | E4: 2007 | F4: 2008 | G4: 2009 | H4: 2010 | I4: 2011 | J4: 2012 | K4: 2013 | L4: 2014 | M4: 2015 | N4: 2016 | O4: 2017 | P4: 2018 | Q4: 2019 | R4: 2020 | S4: 2021 | T4: 2022 | U4: 2023 | V4: 2024
A5: January | B5: - | C5: - | D5: - | E5: - | F5: - | G5: - | H5: - | I5: - | J5: - | K5: - | L5: - | M5: - | N5: - | O5: - | P5: - | Q5: 0 | R5: 0 | S5: 0 | T5: 0 | U5: 0 | V5: 671660
A6: February | B6: - | C6: - | D6: - | E6: - | F6: - | G6: - | H6: - | I6: - | J6: - | K6: - | L6: - | M6: - | N6: - | O6: - | P6: - | Q6: 0 | R6: 0 | S6: 0 | T6: 0 | U6: 0 | V6: 544248
A7: March | B7: - | C7: - | D7: - | E7: - | F7: - | G7: - | H7: - | I7: - | J7: - | K7: - | L7: - | M7: - | N7: - | O7: - | P7: - | Q7: 0 | R7: 0 | S7: 0 | T7: 0 | U7: 0 | V7: 513752
A8: April | B8: - | C8: - | D8: - | E8: - | F8: - | G8: - | H8: - | I8: - | J8: - | K8: - | L8: - | M8: - | N8: - | O8: - | P8: - | Q8: 0 | R8: 0 | S8: 0 | T8: 0 | U8: 77 | V8: 566560
A9: May | B9: - | C9: - | D9: - | E9: - | F9: - | G9: - | H9: - | I9: - | J9: - | K9: - | L9: - | M9: - | N9: - | O9: - | P9: - | Q9: 0 | R9: 0 | S9: 0 | T9: 0 | U9: 467740 | V9: 594887
A10: June | B10: - | C10: - | D10: - | E10: - | F10: - | G10: - | H10: - | I10: - | J10: - | K10: - | L10: - | M10: - | N10: - | O10: - | P10: - | Q10: 0 | R10: 0 | S10: 0 | T10: 0 | U10: 674722 | V10: 767830
A11: July | B11: - | C11: - | D11: - | E11: - | F11: - | G11: - | H11: - | I11: - | J11: - | K11: - | L11: - | M11: - | N11: - | O11: - | P11: - | Q11: 0 | R11: 0 | S11: 0 | T11: 0 | U11: 750065 | V11: 762268
A12: August | B12: - | C12: - | D12: - | E12: - | F12: - | G12: - | H12: - | I12: - | J12: - | K12: - | L12: - | M12: - | N12: - | O12: - | P12: - | Q12: 0 | R12: 0 | S12: 0 | T12: 0 | U12: 729487 | V12: 790253.49
A13: September | B13: - | C13: - | D13: - | E13: - | F13: - | G13: - | H13: - | I13: - | J13: - | K13: - | L13: - | M13: - | N13: - | O13: - | P13: - | Q13: 0 | R13: 0 | S13: 0 | T13: 0 | U13: 701359 | V13: 766934.45
A14: October | B14: - | C14: - | D14: - | E14: - | F14: - | G14: - | H14: - | I14: - | J14: - | K14: - | L14: - | M14: - | N14: - | O14: - | P14: - | Q14: 0 | R14: 0 | S14: 0 | T14: 0 | U14: 677090 | V14: 737412.45
A15: November | B15: - | C15: - | D15: - | E15: - | F15: - | G15: - | H15: - | I15: - | J15: - | K15: - | L15: - | M15: - | N15: - | O15: - | P15: - | Q15: 0 | R15: 0 | S15: 0 | T15: 0 | U15: 629581 | V15: 696462.25
A16: December | B16: - | C16: - | D16: - | E16: - | F16: - | G16: - | H16: - | I16: - | J16: - | K16: - | L16: - | M16: - | N16: - | O16: - | P16: - | Q16: 0 | R16: 0 | S16: 0 | T16: 0 | U16: 592586 | V16: 621109.32
A17: Total | B17: - | C17: - | D17: - | E17: - | F17: - | G17: - | H17: - | I17: - | J17: - | K17: - | L17: - | M17: - | N17: =SUM(N5:N16) -> 0 | O17: =SUM(O5:O16) -> 0 | P17: =SUM(P5:P16) -> 0 | Q17: =SUM(Q5:Q16) -> 0 | R17: =SUM(R5:R16) -> 0 | S17: 0 | T17: 0 | U17: 5222707 | V17: 8033376.96
A18: Itasca County Transit Use Tax (1.0%)
A19: Month | B19: 2004 | C19: 2005 | D19: 2006 | E19: 2007 | F19: 2008 | G19: 2009 | H19: 2010 | I19: 2011 | J19: 2012 | K19: 2013 | L19: 2014 | M19: 2015 | N19: 2016 | O19: 2017 | P19: 2018 | Q19: 2019 | R19: 2020 | S19: 2021 | T19: 2022 | U19: 2023 | V19: 2024
A20: January | B20: - | C20: - | D20: - | E20: - | F20: - | G20: - | H20: - | I20: - | J20: - | K20: - | L20: - | M20: - | N20: - | O20: - | P20: - | Q20: 0 | R20: 0 | S20: 0 | T20: 0 | U20: 0 | V20: 31715
A21: February | B21: - | C21: - | D21: - | E21: - | F21: - | G21: - | H21: - | I21: - | J21: - | K21: - | L21: - | M21: - | N21: - | O21: - | P21: - | Q21: 0 | R21: 0 | S21: 0 | T21: 0 | U21: 0 | V21: 34904
A22: March | B22: - | C22: - | D22: - | E22: - | F22: - | G22: - | H22: - | I22: - | J22: - | K22: - | L22: - | M22: - | N22: - | O22: - | P22: - | Q22: 0 | R22: 0 | S22: 0 | T22: 0 | U22: 0 | V22: 29520
A23: April | B23: - | C23: - | D23: - | E23: - | F23: - | G23: - | H23: - | I23: - | J23: - | K23: - | L23: - | M23: - | N23: - | O23: - | P23: - | Q23: 0 | R23: 0 | S23: 0 | T23: 0 | U23: 0 | V23: 31038
A24: May | B24: - | C24: - | D24: - | E24: - | F24: - | G24: - | H24: - | I24: - | J24: - | K24: - | L24: - | M24: - | N24: - | O24: - | P24: - | Q24: 0 | R24: 0 | S24: 0 | T24: 0 | U24: 15355 | V24: 21300
A25: June | B25: - | C25: - | D25: - | E25: - | F25: - | G25: - | H25: - | I25: - | J25: - | K25: - | L25: - | M25: - | N25: - | O25: - | P25: - | Q25: 0 | R25: 0 | S25: 0 | T25: 0 | U25: 30813 | V25: 28865
A26: July | B26: - | C26: - | D26: - | E26: - | F26: - | G26: - | H26: - | I26: - | J26: - | K26: - | L26: - | M26: - | N26: - | O26: - | P26: - | Q26: 0 | R26: 0 | S26: 0 | T26: 0 | U26: 30331 | V26: 30125
A27: August | B27: - | C27: - | D27: - | E27: - | F27: - | G27: - | H27: - | I27: - | J27: - | K27: - | L27: - | M27: - | N27: - | O27: - | P27: - | Q27: 0 | R27: 0 | S27: 0 | T27: 0 | U27: 22443 | V27: 29816.5
A28: September | B28: - | C28: - | D28: - | E28: - | F28: - | G28: - | H28: - | I28: - | J28: - | K28: - | L28: - | M28: - | N28: - | O28: - | P28: - | Q28: 0 | R28: 0 | S28: 0 | T28: 0 | U28: 29795 | V28: 98259.59
A29: October | B29: - | C29: - | D29: - | E29: - | F29: - | G29: - | H29: - | I29: - | J29: - | K29: - | L29: - | M29: - | N29: - | O29: - | P29: - | Q29: 0 | R29: 0 | S29: 0 | T29: 0 | U29: 28770 | V29: 32859.43
A30: November | B30: - | C30: - | D30: - | E30: - | F30: - | G30: - | H30: - | I30: - | J30: - | K30: - | L30: - | M30: - | N30: - | O30: - | P30: - | Q30: 0 | R30: 0 | S30: 0 | T30: 0 | U30: 30407 | V30: 33977.57
A31: December | B31: - | C31: - | D31: - | E31: - | F31: - | G31: - | H31: - | I31: - | J31: - | K31: - | L31: - | M31: - | N31: - | O31: - | P31: - | Q31: 0 | R31: 0 | S31: 0 | T31: 0 | U31: 21609 | V31: 80021.9
A32: Total | B32: - | C32: - | D32: - | E32: - | F32: - | G32: - | H32: - | I32: - | J32: - | K32: - | L32: - | M32: - | N32: =SUM(N20:N31) -> 0 | O32: =SUM(O20:O31) -> 0 | P32: =SUM(P20:P31) -> 0 | Q32: =SUM(Q20:Q31) -> 0 | R32: =SUM(R20:R31) -> 0 | S32: 0 | T32: 0 | U32: 209523 | V32: 482401.99
A33: Itasca County Transit Refunds
A34: Month | B34: 2004 | C34: 2005 | D34: 2006 | E34: 2007 | F34: 2008 | G34: 2009 | H34: 2010 | I34: 2011 | J34: 2012 | K34: 2013 | L34: 2014 | M34: 2015 | N34: 2016 | O34: 2017 | P34: 2018 | Q34: 2019 | R34: 2020 | S34: 2021 | T34: 2022 | U34: 2023 | V34: 2024
A35: January | B35: - | C35: - | D35: - | E35: - | F35: - | G35: - | H35: - | I35: - | J35: - | K35: - | L35: - | M35: - | N35: - | O35: - | P35: - | Q35: 0 | R35: 0 | S35: 0 | T35: 0 | U35: 0 | V35: -56
A36: February | B36: - | C36: - | D36: - | E36: - | F36: - | G36: - | H36: - | I36: - | J36: - | K36: - | L36: - | M36: - | N36: - | O36: - | P36: - | Q36: 0 | R36: 0 | S36: 0 | T36: 0 | U36: 0 | V36: -62
A37: March | B37: - | C37: - | D37: - | E37: - | F37: - | G37: - | H37: - | I37: - | J37: - | K37: - | L37: - | M37: - | N37: - | O37: - | P37: - | Q37: 0 | R37: 0 | S37: 0 | T37: 0 | U37: 0 | V37: 0
A38: April | B38: - | C38: - | D38: - | E38: - | F38: - | G38: - | H38: - | I38: - | J38: - | K38: - | L38: - | M38: - | N38: - | O38: - | P38: - | Q38: 0 | R38: 0 | S38: 0 | T38: 0 | U38: 0 | V38: -57
A39: May | B39: - | C39: - | D39: - | E39: - | F39: - | G39: - | H39: - | I39: - | J39: - | K39: - | L39: - | M39: - | N39: - | O39: - | P39: - | Q39: 0 | R39: 0 | S39: 0 | T39: 0 | U39: 0 | V39: 0
A40: June | B40: - | C40: - | D40: - | E40: - | F40: - | G40: - | H40: - | I40: - | J40: - | K40: - | L40: - | M40: - | N40: - | O40: - | P40: - | Q40: 0 | R40: 0 | S40: 0 | T40: 0 | U40: 0 | V40: -1057
A41: July | B41: - | C41: - | D41: - | E41: - | F41: - | G41: - | H41: - | I41: - | J41: - | K41: - | L41: - | M41: - | N41: - | O41: - | P41: - | Q41: 0 | R41: 0 | S41: 0 | T41: 0 | U41: 0 | V41: 0
A42: August | B42: - | C42: - | D42: - | E42: - | F42: - | G42: - | H42: - | I42: - | J42: - | K42: - | L42: - | M42: - | N42: - | O42: - | P42: - | Q42: 0 | R42: 0 | S42: 0 | T42: 0 | U42: -792 | V42: -3
A43: September | B43: - | C43: - | D43: - | E43: - | F43: - | G43: - | H43: - | I43: - | J43: - | K43: - | L43: - | M43: - | N43: - | O43: - | P43: - | Q43: 0 | R43: 0 | S43: 0 | T43: 0 | U43: 0 | V43: -61.13
A44: October | B44: - | C44: - | D44: - | E44: - | F44: - | G44: - | H44: - | I44: - | J44: - | K44: - | L44: - | M44: - | N44: - | O44: - | P44: - | Q44: 0 | R44: 0 | S44: 0 | T44: 0 | U44: 0 | V44: -159.58
A45: November | B45: - | C45: - | D45: - | E45: - | F45: - | G45: - | H45: - | I45: - | J45: - | K45: - | L45: - | M45: - | N45: - | O45: - | P45: - | Q45: 0 | R45: 0 | S45: 0 | T45: 0 | U45: 0 | V45: 0
A46: December | B46: - | C46: - | D46: - | E46: - | F46: - | G46: - | H46: - | I46: - | J46: - | K46: - | L46: - | M46: - | N46: - | O46: - | P46: - | Q46: 0 | R46: 0 | S46: 0 | T46: 0 | U46: -112 | V46: 0
A47: Total | B47: - | C47: - | D47: - | E47: - | F47: - | G47: - | H47: - | I47: - | J47: - | K47: - | L47: - | M47: - | N47: =SUM(N35:N46) -> 0 | O47: =SUM(O35:O46) -> 0 | P47: =SUM(P35:P46) -> 0 | Q47: =SUM(Q35:Q46) -> 0 | R47: =SUM(R35:R46) -> 0 | S47: 0 | T47: 0 | U47: -904 | V47: -1455.71
A48: Hidden columns B-P do not contain any data for CY 2004-2018
A49: ='Local SUT'!A78 -> Source: Minnesota Department of Revenue, Tax Research Division, November 2025
A50: end of worksheet

Sheet Nobles Co (hidden)
A1: Nobles County Monthly Detail for Minnesota Local Sales & Use Tax
A2: ='Local SUT'!A2 -> CY 2004-2024
A3: Nobles County Transit Sales Tax (0.5%)
A4: Month | B4: 2004 | C4: 2005 | D4: 2006 | E4: 2007 | F4: 2008 | G4: 2009 | H4: 2010 | I4: 2011 | J4: 2012 | K4: 2013 | L4: 2014 | M4: 2015 | N4: 2016 | O4: 2017 | P4: 2018 | Q4: 2019 | R4: 2020 | S4: 2021 | T4: 2022 | U4: 2023 | V4: 2024
A5: January | B5: - | C5: - | D5: - | E5: - | F5: - | G5: - | H5: - | I5: - | J5: - | K5: - | L5: - | M5: - | N5: - | O5: - | P5: - | Q5: - | R5: - | S5: 771 | T5: 137410 | U5: 141133 | V5: 139992
A6: February | B6: - | C6: - | D6: - | E6: - | F6: - | G6: - | H6: - | I6: - | J6: - | K6: - | L6: - | M6: - | N6: - | O6: - | P6: - | Q6: - | R6: - | S6: 83499 | T6: 106390 | U6: 107136 | V6: 117829
A7: March | B7: - | C7: - | D7: - | E7: - | F7: - | G7: - | H7: - | I7: - | J7: - | K7: - | L7: - | M7: - | N7: - | O7: - | P7: - | Q7: - | R7: - | S7: 79249 | T7: 109439 | U7: 113514 | V7: 109974
A8: April | B8: - | C8: - | D8: - | E8: - | F8: - | G8: - | H8: - | I8: - | J8: - | K8: - | L8: - | M8: - | N8: - | O8: - | P8: - | Q8: - | R8: - | S8: 108220 | T8: 124197 | U8: 118651 | V8: 123683
A9: May | B9: - | C9: - | D9: - | E9: - | F9: - | G9: - | H9: - | I9: - | J9: - | K9: - | L9: - | M9: - | N9: - | O9: - | P9: - | Q9: - | R9: - | S9: 108320 | T9: 111735 | U9: 127709 | V9: 119412
A10: June | B10: - | C10: - | D10: - | E10: - | F10: - | G10: - | H10: - | I10: - | J10: - | K10: - | L10: - | M10: - | N10: - | O10: - | P10: - | Q10: - | R10: - | S10: 111199 | T10: 130828 | U10: 147472 | V10: 137676
A11: July | B11: - | C11: - | D11: - | E11: - | F11: - | G11: - | H11: - | I11: - | J11: - | K11: - | L11: - | M11: - | N11: - | O11: - | P11: - | Q11: - | R11: - | S11: 128972 | T11: 149600 | U11: 155040 | V11: 122901
A12: August | B12: - | C12: - | D12: - | E12: - | F12: - | G12: - | H12: - | I12: - | J12: - | K12: - | L12: - | M12: - | N12: - | O12: - | P12: - | Q12: - | R12: - | S12: 133468 | T12: 129796 | U12: 126491 | V12: 140420.52
A13: September | B13: - | C13: - | D13: - | E13: - | F13: - | G13: - | H13: - | I13: - | J13: - | K13: - | L13: - | M13: - | N13: - | O13: - | P13: - | Q13: - | R13: - | S13: 112310 | T13: 154802 | U13: 144907 | V13: 119828.81
A14: October | B14: - | C14: - | D14: - | E14: - | F14: - | G14: - | H14: - | I14: - | J14: - | K14: - | L14: - | M14: - | N14: - | O14: - | P14: - | Q14: - | R14: - | S14: 129388 | T14: 157500 | U14: 147156 | V14: 129693.74
A15: November | B15: - | C15: - | D15: - | E15: - | F15: - | G15: - | H15: - | I15: - | J15: - | K15: - | L15: - | M15: - | N15: - | O15: - | P15: - | Q15: - | R15: - | S15: 121377 | T15: 129100 | U15: 131056 | V15: 126018.53
A16: December | B16: - | C16: - | D16: - | E16: - | F16: - | G16: - | H16: - | I16: - | J16: - | K16: - | L16: - | M16: - | N16: - | O16: - | P16: - | Q16: - | R16: - | S16: 121080 | T16: 135927 | U16: 130991 | V16: 126479.74
A17: Total | B17: - | C17: - | D17: - | E17: - | F17: - | G17: - | H17: - | I17: - | J17: - | K17: - | L17: - | M17: - | N17: - | O17: - | P17: - | Q17: - | R17: - | S17: =SUM(S5:S16) -> 1237853 | T17: 1576724 | U17: =SUM(U5:U16) -> 1591256 | V17: 1513908.34
A18: Nobles County Transit Use Tax (0.5%)
A19: Month | B19: 2004 | C19: 2005 | D19: 2006 | E19: 2007 | F19: 2008 | G19: 2009 | H19: 2010 | I19: 2011 | J19: 2012 | K19: 2013 | L19: 2014 | M19: 2015 | N19: 2016 | O19: 2017 | P19: 2018 | Q19: 2019 | R19: 2020 | S19: 2021 | T19: 2022 | U19: 2023 | V19: 2024
A20: January | B20: - | C20: - | D20: - | E20: - | F20: - | G20: - | H20: - | I20: - | J20: - | K20: - | L20: - | M20: - | N20: - | O20: - | P20: - | Q20: - | R20: - | S20: 0 | T20: 12740 | U20: 9278 | V20: 9402
A21: February | B21: - | C21: - | D21: - | E21: - | F21: - | G21: - | H21: - | I21: - | J21: - | K21: - | L21: - | M21: - | N21: - | O21: - | P21: - | Q21: - | R21: - | S21: 35604 | T21: 8012 | U21: 34941 | V21: 5817
A22: March | B22: - | C22: - | D22: - | E22: - | F22: - | G22: - | H22: - | I22: - | J22: - | K22: - | L22: - | M22: - | N22: - | O22: - | P22: - | Q22: - | R22: - | S22: 3932 | T22: 2670 | U22: 30387 | V22: 4515
A23: April | B23: - | C23: - | D23: - | E23: - | F23: - | G23: - | H23: - | I23: - | J23: - | K23: - | L23: - | M23: - | N23: - | O23: - | P23: - | Q23: - | R23: - | S23: 7734 | T23: 6747 | U23: 12070 | V23: 5859
A24: May | B24: - | C24: - | D24: - | E24: - | F24: - | G24: - | H24: - | I24: - | J24: - | K24: - | L24: - | M24: - | N24: - | O24: - | P24: - | Q24: - | R24: - | S24: 4606 | T24: 3376 | U24: 5404 | V24: 6365
A25: June | B25: - | C25: - | D25: - | E25: - | F25: - | G25: - | H25: - | I25: - | J25: - | K25: - | L25: - | M25: - | N25: - | O25: - | P25: - | Q25: - | R25: - | S25: 5742 | T25: 8208 | U25: 5424 | V25: 8770
A26: July | B26: - | C26: - | D26: - | E26: - | F26: - | G26: - | H26: - | I26: - | J26: - | K26: - | L26: - | M26: - | N26: - | O26: - | P26: - | Q26: - | R26: - | S26: 4932 | T26: 9080 | U26: 15526 | V26: 5829
A27: August | B27: - | C27: - | D27: - | E27: - | F27: - | G27: - | H27: - | I27: - | J27: - | K27: - | L27: - | M27: - | N27: - | O27: - | P27: - | Q27: - | R27: - | S27: 6072 | T27: 6253 | U27: 6053 | V27: 6863.05
A28: September | B28: - | C28: - | D28: - | E28: - | F28: - | G28: - | H28: - | I28: - | J28: - | K28: - | L28: - | M28: - | N28: - | O28: - | P28: - | Q28: - | R28: - | S28: 9602 | T28: 6050 | U28: 9156 | V28: 14532.02
A29: October | B29: - | C29: - | D29: - | E29: - | F29: - | G29: - | H29: - | I29: - | J29: - | K29: - | L29: - | M29: - | N29: - | O29: - | P29: - | Q29: - | R29: - | S29: 7188 | T29: 5529 | U29: 11022 | V29: 4699
A30: November | B30: - | C30: - | D30: - | E30: - | F30: - | G30: - | H30: - | I30: - | J30: - | K30: - | L30: - | M30: - | N30: - | O30: - | P30: - | Q30: - | R30: - | S30: 28616 | T30: 5769 | U30: 7670 | V30: 8042.03
A31: December | B31: - | C31: - | D31: - | E31: - | F31: - | G31: - | H31: - | I31: - | J31: - | K31: - | L31: - | M31: - | N31: - | O31: - | P31: - | Q31: - | R31: - | S31: 10164 | T31: 35140 | U31: 5660 | V31: 8435.36
A32: Total | B32: - | C32: - | D32: - | E32: - | F32: - | G32: - | H32: - | I32: - | J32: - | K32: - | L32: - | M32: - | N32: - | O32: - | P32: - | Q32: - | R32: - | S32: =SUM(S20:S31) -> 124192 | T32: 109574 | U32: =SUM(U20:U31) -> 152591 | V32: 89128.46
A33: Nobles County Transit Refunds
A34: Month | B34: 2004 | C34: 2005 | D34: 2006 | E34: 2007 | F34: 2008 | G34: 2009 | H34: 2010 | I34: 2011 | J34: 2012 | K34: 2013 | L34: 2014 | M34: 2015 | N34: 2016 | O34: 2017 | P34: 2018 | Q34: 2019 | R34: 2020 | S34: 2021 | T34: 2022 | U34: 2023 | V34: 2024
A35: January | B35: - | C35: - | D35: - | E35: - | F35: - | G35: - | H35: - | I35: - | J35: - | K35: - | L35: - | M35: - | N35: - | O35: - | P35: - | Q35: - | R35: - | S35: 0 | T35: -38 | U35: 0 | V35: 0
A36: February | B36: - | C36: - | D36: - | E36: - | F36: - | G36: - | H36: - | I36: - | J36: - | K36: - | L36: - | M36: - | N36: - | O36: - | P36: - | Q36: - | R36: - | S36: 0 | T36: 0 | U36: 0 | V36: 0
A37: March | B37: - | C37: - | D37: - | E37: - | F37: - | G37: - | H37: - | I37: - | J37: - | K37: - | L37: - | M37: - | N37: - | O37: - | P37: - | Q37: - | R37: - | S37: 0 | T37: 0 | U37: 0 | V37: 0
A38: April | B38: - | C38: - | D38: - | E38: - | F38: - | G38: - | H38: - | I38: - | J38: - | K38: - | L38: - | M38: - | N38: - | O38: - | P38: - | Q38: - | R38: - | S38: 0 | T38: 0 | U38: 0 | V38: 0
A39: May | B39: - | C39: - | D39: - | E39: - | F39: - | G39: - | H39: - | I39: - | J39: - | K39: - | L39: - | M39: - | N39: - | O39: - | P39: - | Q39: - | R39: - | S39: 0 | T39: 0 | U39: -10 | V39: 0
A40: June | B40: - | C40: - | D40: - | E40: - | F40: - | G40: - | H40: - | I40: - | J40: - | K40: - | L40: - | M40: - | N40: - | O40: - | P40: - | Q40: - | R40: - | S40: 0 | T40: 0 | U40: 0 | V40: 0
A41: July | B41: - | C41: - | D41: - | E41: - | F41: - | G41: - | H41: - | I41: - | J41: - | K41: - | L41: - | M41: - | N41: - | O41: - | P41: - | Q41: - | R41: - | S41: 0 | T41: 0 | U41: 0 | V41: -4
A42: August | B42: - | C42: - | D42: - | E42: - | F42: - | G42: - | H42: - | I42: - | J42: - | K42: - | L42: - | M42: - | N42: - | O42: - | P42: - | Q42: - | R42: - | S42: 0 | T42: 0 | U42: 0 | V42: 0
A43: September | B43: - | C43: - | D43: - | E43: - | F43: - | G43: - | H43: - | I43: - | J43: - | K43: - | L43: - | M43: - | N43: - | O43: - | P43: - | Q43: - | R43: - | S43: 0 | T43: 0 | U43: 0 | V43: 0
A44: October | B44: - | C44: - | D44: - | E44: - | F44: - | G44: - | H44: - | I44: - | J44: - | K44: - | L44: - | M44: - | N44: - | O44: - | P44: - | Q44: - | R44: - | S44: 0 | T44: 0 | U44: 0 | V44: 0
A45: November | B45: - | C45: - | D45: - | E45: - | F45: - | G45: - | H45: - | I45: - | J45: - | K45: - | L45: - | M45: - | N45: - | O45: - | P45: - | Q45: - | R45: - | S45: 0 | T45: 0 | U45: 0 | V45: 0
A46: December | B46: - | C46: - | D46: - | E46: - | F46: - | G46: - | H46: - | I46: - | J46: - | K46: - | L46: - | M46: - | N46: - | O46: - | P46: - | Q46: - | R46: - | S46: 0 | T46: 0 | U46: -1835 | V46: 0
A47: Total | B47: - | C47: - | D47: - | E47: - | F47: - | G47: - | H47: - | I47: - | J47: - | K47: - | L47: - | M47: - | N47: - | O47: - | P47: - | Q47: - | R47: - | S47: =SUM(S35:S46) -> 0 | T47: -38 | U47: =SUM(U35:U46) -> -1845 | V47: -4
A48: Hidden columns B-R do not contain any data for CY 2004-2020
A49: ='Local SUT'!A78 -> Source: Minnesota Department of Revenue, Tax Research Division, November 2025
A50: end of worksheet

Sheet Dodge Co (hidden)
A1: Dodge County Monthly Detail for Minnesota Local Sales & Use Tax
A2: ='Local SUT'!A2 -> CY 2004-2024
A3: Dodge County Transit Sales Tax (0.5%)
A4: Month | B4: 2004 | C4: 2005 | D4: 2006 | E4: 2007 | F4: 2008 | G4: 2009 | H4: 2010 | I4: 2011 | J4: 2012 | K4: 2013 | L4: 2014 | M4: 2015 | N4: 2016 | O4: 2017 | P4: 2018 | Q4: 2019 | R4: 2020 | S4: 2021 | T4: 2022 | U4: 2023 | V4: 2024
A5: January | B5: - | C5: - | D5: - | E5: - | F5: - | G5: - | H5: - | I5: - | J5: - | K5: - | L5: - | M5: - | N5: - | O5: - | P5: - | Q5: 0 | R5: 82075 | S5: 93388 | T5: 104183 | U5: 101843 | V5: 112161
A6: February | B6: - | C6: - | D6: - | E6: - | F6: - | G6: - | H6: - | I6: - | J6: - | K6: - | L6: - | M6: - | N6: - | O6: - | P6: - | Q6: 45005 | R6: 68911 | S6: 69161 | T6: 73959 | U6: 77198 | V6: 82049
A7: March | B7: - | C7: - | D7: - | E7: - | F7: - | G7: - | H7: - | I7: - | J7: - | K7: - | L7: - | M7: - | N7: - | O7: - | P7: - | Q7: 48508 | R7: 60021 | S7: 64764 | T7: 74593 | U7: 72991 | V7: 84093
A8: April | B8: - | C8: - | D8: - | E8: - | F8: - | G8: - | H8: - | I8: - | J8: - | K8: - | L8: - | M8: - | N8: - | O8: - | P8: - | Q8: 60209 | R8: 72532 | S8: 86534 | T8: 123694 | U8: 94214 | V8: 100836
A9: May | B9: - | C9: - | D9: - | E9: - | F9: - | G9: - | H9: - | I9: - | J9: - | K9: - | L9: - | M9: - | N9: - | O9: - | P9: - | Q9: 61958 | R9: 102119 | S9: 89668 | T9: 112491 | U9: 78858 | V9: 91387
A10: June | B10: - | C10: - | D10: - | E10: - | F10: - | G10: - | H10: - | I10: - | J10: - | K10: - | L10: - | M10: - | N10: - | O10: - | P10: - | Q10: 68935 | R10: 80232 | S10: 90093 | T10: 89626 | U10: 91087 | V10: 90673
A11: July | B11: - | C11: - | D11: - | E11: - | F11: - | G11: - | H11: - | I11: - | J11: - | K11: - | L11: - | M11: - | N11: - | O11: - | P11: - | Q11: 78491 | R11: 83253 | S11: 99768 | T11: 88455 | U11: 102717 | V11: 91820
A12: August | B12: - | C12: - | D12: - | E12: - | F12: - | G12: - | H12: - | I12: - | J12: - | K12: - | L12: - | M12: - | N12: - | O12: - | P12: - | Q12: 86680 | R12: 112679 | S12: 88217 | T12: 84686 | U12: 86388 | V12: 95409.46
A13: September | B13: - | C13: - | D13: - | E13: - | F13: - | G13: - | H13: - | I13: - | J13: - | K13: - | L13: - | M13: - | N13: - | O13: - | P13: - | Q13: 76985 | R13: 76588 | S13: 90602 | T13: 98904 | U13: 122098 | V13: 90563.22
A14: October | B14: - | C14: - | D14: - | E14: - | F14: - | G14: - | H14: - | I14: - | J14: - | K14: - | L14: - | M14: - | N14: - | O14: - | P14: - | Q14: 78659 | R14: 85032 | S14: 105491 | T14: 90357 | U14: 104379 | V14: 113256.55
A15: November | B15: - | C15: - | D15: - | E15: - | F15: - | G15: - | H15: - | I15: - | J15: - | K15: - | L15: - | M15: - | N15: - | O15: - | P15: - | Q15: 76399 | R15: 87677 | S15: 88339 | T15: 101784 | U15: 103745 | V15: 111665.98
A16: December | B16: - | C16: - | D16: - | E16: - | F16: - | G16: - | H16: - | I16: - | J16: - | K16: - | L16: - | M16: - | N16: - | O16: - | P16: - | Q16: 68586 | R16: 82421 | S16: 90469 | T16: 96459 | U16: 104821 | V16: 93642.01
A17: Total | B17: - | C17: - | D17: - | E17: - | F17: - | G17: - | H17: - | I17: - | J17: - | K17: - | L17: - | M17: - | N17: - | O17: - | P17: - | Q17: =SUM(Q5:Q16) -> 750415 | R17: =SUM(R5:R16) -> 993540 | S17: =SUM(S5:S16) -> 1056494 | T17: 1139191 | U17: =SUM(U5:U16) -> 1140339 | V17: 1157556.22
A18: Dodge County Transit Use Tax (0.5%)
A19: Month | B19: 2004 | C19: 2005 | D19: 2006 | E19: 2007 | F19: 2008 | G19: 2009 | H19: 2010 | I19: 2011 | J19: 2012 | K19: 2013 | L19: 2014 | M19: 2015 | N19: 2016 | O19: 2017 | P19: 2018 | Q19: 2019 | R19: 2020 | S19: 2021 | T19: 2022 | U19: 2023 | V19: 2024
A20: January | B20: - | C20: - | D20: - | E20: - | F20: - | G20: - | H20: - | I20: - | J20: - | K20: - | L20: - | M20: - | N20: - | O20: - | P20: - | Q20: 0 | R20: 6597 | S20: 14763 | T20: 5734 | U20: 5927 | V20: 7043
A21: February | B21: - | C21: - | D21: - | E21: - | F21: - | G21: - | H21: - | I21: - | J21: - | K21: - | L21: - | M21: - | N21: - | O21: - | P21: - | Q21: 1488 | R21: 3874 | S21: -6382 | T21: 3842 | U21: 6622 | V21: 4310
A22: March | B22: - | C22: - | D22: - | E22: - | F22: - | G22: - | H22: - | I22: - | J22: - | K22: - | L22: - | M22: - | N22: - | O22: - | P22: - | Q22: 928 | R22: 2082 | S22: 1669 | T22: 5594 | U22: 3730 | V22: 3028
A23: April | B23: - | C23: - | D23: - | E23: - | F23: - | G23: - | H23: - | I23: - | J23: - | K23: - | L23: - | M23: - | N23: - | O23: - | P23: - | Q23: 2440 | R23: 3677 | S23: 4280 | T23: 8003 | U23: 4970 | V23: 3983
A24: May | B24: - | C24: - | D24: - | E24: - | F24: - | G24: - | H24: - | I24: - | J24: - | K24: - | L24: - | M24: - | N24: - | O24: - | P24: - | Q24: 1741 | R24: 2681 | S24: 2944 | T24: 3935 | U24: 4663 | V24: 4030
A25: June | B25: - | C25: - | D25: - | E25: - | F25: - | G25: - | H25: - | I25: - | J25: - | K25: - | L25: - | M25: - | N25: - | O25: - | P25: - | Q25: 2428 | R25: 3340 | S25: 2309 | T25: 3693 | U25: 3871 | V25: 5475
A26: July | B26: - | C26: - | D26: - | E26: - | F26: - | G26: - | H26: - | I26: - | J26: - | K26: - | L26: - | M26: - | N26: - | O26: - | P26: - | Q26: 3619 | R26: 3282 | S26: 3019 | T26: 4097 | U26: 5872 | V26: 7839
A27: August | B27: - | C27: - | D27: - | E27: - | F27: - | G27: - | H27: - | I27: - | J27: - | K27: - | L27: - | M27: - | N27: - | O27: - | P27: - | Q27: 3523 | R27: 2269 | S27: 3096 | T27: 3851 | U27: 4327 | V27: 5756.16
A28: September | B28: - | C28: - | D28: - | E28: - | F28: - | G28: - | H28: - | I28: - | J28: - | K28: - | L28: - | M28: - | N28: - | O28: - | P28: - | Q28: 2645 | R28: 1669 | S28: 2477 | T28: 6167 | U28: 8891 | V28: 4267.09
A29: October | B29: - | C29: - | D29: - | E29: - | F29: - | G29: - | H29: - | I29: - | J29: - | K29: - | L29: - | M29: - | N29: - | O29: - | P29: - | Q29: 5235 | R29: 3676 | S29: 3778 | T29: 4467 | U29: 4873 | V29: 5282.77
A30: November | B30: - | C30: - | D30: - | E30: - | F30: - | G30: - | H30: - | I30: - | J30: - | K30: - | L30: - | M30: - | N30: - | O30: - | P30: - | Q30: 3517 | R30: 2710 | S30: 4487 | T30: 4451 | U30: 4616 | V30: 4591.24
A31: December | B31: - | C31: - | D31: - | E31: - | F31: - | G31: - | H31: - | I31: - | J31: - | K31: - | L31: - | M31: - | N31: - | O31: - | P31: - | Q31: 2863 | R31: 4832 | S31: 3567 | T31: 5245 | U31: 4247 | V31: 3534.78
A32: Total | B32: - | C32: - | D32: - | E32: - | F32: - | G32: - | H32: - | I32: - | J32: - | K32: - | L32: - | M32: - | N32: - | O32: - | P32: - | Q32: =SUM(Q20:Q31) -> 30427 | R32: =SUM(R20:R31) -> 40689 | S32: =SUM(S20:S31) -> 40007 | T32: 59079 | U32: =SUM(U20:U31) -> 62609 | V32: 59140.04
A33: Dodge County Transit Refunds
A34: Month | B34: 2004 | C34: 2005 | D34: 2006 | E34: 2007 | F34: 2008 | G34: 2009 | H34: 2010 | I34: 2011 | J34: 2012 | K34: 2013 | L34: 2014 | M34: 2015 | N34: 2016 | O34: 2017 | P34: 2018 | Q34: 2019 | R34: 2020 | S34: 2021 | T34: 2022 | U34: 2023 | V34: 2024
A35: January | B35: - | C35: - | D35: - | E35: - | F35: - | G35: - | H35: - | I35: - | J35: - | K35: - | L35: - | M35: - | N35: - | O35: - | P35: - | Q35: 0 | R35: 0 | S35: 0 | T35: -2766 | U35: 0 | V35: -19
A36: February | B36: - | C36: - | D36: - | E36: - | F36: - | G36: - | H36: - | I36: - | J36: - | K36: - | L36: - | M36: - | N36: - | O36: - | P36: - | Q36: 0 | R36: -4766 | S36: -8199 | T36: -49 | U36: 0 | V36: 0
A37: March | B37: - | C37: - | D37: - | E37: - | F37: - | G37: - | H37: - | I37: - | J37: - | K37: - | L37: - | M37: - | N37: - | O37: - | P37: - | Q37: 0 | R37: 0 | S37: 0 | T37: 0 | U37: -1593 | V37: -130
A38: April | B38: - | C38: - | D38: - | E38: - | F38: - | G38: - | H38: - | I38: - | J38: - | K38: - | L38: - | M38: - | N38: - | O38: - | P38: - | Q38: 0 | R38: 0 | S38: -497 | T38: 0 | U38: -13027 | V38: 0
A39: May | B39: - | C39: - | D39: - | E39: - | F39: - | G39: - | H39: - | I39: - | J39: - | K39: - | L39: - | M39: - | N39: - | O39: - | P39: - | Q39: 0 | R39: -7734 | S39: -1158 | T39: -14 | U39: -139 | V39: 0
A40: June | B40: - | C40: - | D40: - | E40: - | F40: - | G40: - | H40: - | I40: - | J40: - | K40: - | L40: - | M40: - | N40: - | O40: - | P40: - | Q40: 0 | R40: 0 | S40: 0 | T40: 0 | U40: 0 | V40: 0
A41: July | B41: - | C41: - | D41: - | E41: - | F41: - | G41: - | H41: - | I41: - | J41: - | K41: - | L41: - | M41: - | N41: - | O41: - | P41: - | Q41: 0 | R41: 0 | S41: 0 | T41: -278 | U41: 0 | V41: 0
A42: August | B42: - | C42: - | D42: - | E42: - | F42: - | G42: - | H42: - | I42: - | J42: - | K42: - | L42: - | M42: - | N42: - | O42: - | P42: - | Q42: 0 | R42: -3735 | S42: 0 | T42: 0 | U42: 0 | V42: -748.72
A43: September | B43: - | C43: - | D43: - | E43: - | F43: - | G43: - | H43: - | I43: - | J43: - | K43: - | L43: - | M43: - | N43: - | O43: - | P43: - | Q43: 0 | R43: 0 | S43: 0 | T43: 0 | U43: -5728 | V43: 0
A44: October | B44: - | C44: - | D44: - | E44: - | F44: - | G44: - | H44: - | I44: - | J44: - | K44: - | L44: - | M44: - | N44: - | O44: - | P44: - | Q44: 0 | R44: -29458 | S44: 0 | T44: 0 | U44: 0 | V44: -17407.96
A45: November | B45: - | C45: - | D45: - | E45: - | F45: - | G45: - | H45: - | I45: - | J45: - | K45: - | L45: - | M45: - | N45: - | O45: - | P45: - | Q45: -766 | R45: 0 | S45: 0 | T45: 0 | U45: 0 | V45: -120.18
A46: December | B46: - | C46: - | D46: - | E46: - | F46: - | G46: - | H46: - | I46: - | J46: - | K46: - | L46: - | M46: - | N46: - | O46: - | P46: - | Q46: 0 | R46: -162 | S46: 0 | T46: 0 | U46: 0 | V46: 0
A47: Total | B47: - | C47: - | D47: - | E47: - | F47: - | G47: - | H47: - | I47: - | J47: - | K47: - | L47: - | M47: - | N47: - | O47: - | P47: - | Q47: =SUM(Q35:Q46) -> -766 | R47: =SUM(R35:R46) -> -45855 | S47: =SUM(S35:S46) -> -9854 | T47: -3107 | U47: =SUM(U35:U46) -> -20487 | V47: -18425.86
A48: Hidden columns B-P do not contain any data for CY 2004-2018
A49: ='Local SUT'!A78 -> Source: Minnesota Department of Revenue, Tax Research Division, November 2025
A50: end of worksheet

Sheet Goodhue Co (hidden)
A1: Goodhue County Monthly Detail for Minnesota Local Sales & Use Tax
A2: ='Local SUT'!A2 -> CY 2004-2024
A3: Goodhue County Transit Sales Tax (0.5%)
A4: Month | B4: 2004 | C4: 2005 | D4: 2006 | E4: 2007 | F4: 2008 | G4: 2009 | H4: 2010 | I4: 2011 | J4: 2012 | K4: 2013 | L4: 2014 | M4: 2015 | N4: 2016 | O4: 2017 | P4: 2018 | Q4: 2019 | R4: 2020 | S4: 2021 | T4: 2022 | U4: 2023 | V4: 2024
A5: January | B5: - | C5: - | D5: - | E5: - | F5: - | G5: - | H5: - | I5: - | J5: - | K5: - | L5: - | M5: - | N5: - | O5: - | P5: - | Q5: 1 | R5: 277480 | S5: 310191 | T5: 341943 | U5: 363583 | V5: 381809
A6: February | B6: - | C6: - | D6: - | E6: - | F6: - | G6: - | H6: - | I6: - | J6: - | K6: - | L6: - | M6: - | N6: - | O6: - | P6: - | Q6: 198838 | R6: 222678 | S6: 244478 | T6: 267509 | U6: 274040 | V6: 275045
A7: March | B7: - | C7: - | D7: - | E7: - | F7: - | G7: - | H7: - | I7: - | J7: - | K7: - | L7: - | M7: - | N7: - | O7: - | P7: - | Q7: 181143 | R7: 199554 | S7: 234190 | T7: 248423 | U7: 263502 | V7: 265460
A8: April | B8: - | C8: - | D8: - | E8: - | F8: - | G8: - | H8: - | I8: - | J8: - | K8: - | L8: - | M8: - | N8: - | O8: - | P8: - | Q8: 228459 | R8: 232379 | S8: 315114 | T8: 313843 | U8: 326360 | V8: 308508
A9: May | B9: - | C9: - | D9: - | E9: - | F9: - | G9: - | H9: - | I9: - | J9: - | K9: - | L9: - | M9: - | N9: - | O9: - | P9: - | Q9: 245895 | R9: 243687 | S9: 291545 | T9: 290755 | U9: 328372 | V9: 319072
A10: June | B10: - | C10: - | D10: - | E10: - | F10: - | G10: - | H10: - | I10: - | J10: - | K10: - | L10: - | M10: - | N10: - | O10: - | P10: - | Q10: 292220 | R10: 283623 | S10: 312221 | T10: 394766 | U10: 378189 | V10: 355975
A11: July | B11: - | C11: - | D11: - | E11: - | F11: - | G11: - | H11: - | I11: - | J11: - | K11: - | L11: - | M11: - | N11: - | O11: - | P11: - | Q11: 272049 | R11: 276482 | S11: 327315 | T11: 368338 | U11: 403401 | V11: 349943
A12: August | B12: - | C12: - | D12: - | E12: - | F12: - | G12: - | H12: - | I12: - | J12: - | K12: - | L12: - | M12: - | N12: - | O12: - | P12: - | Q12: 296955 | R12: 318309 | S12: 319156 | T12: 349148 | U12: 346560 | V12: 339727.56
A13: September | B13: - | C13: - | D13: - | E13: - | F13: - | G13: - | H13: - | I13: - | J13: - | K13: - | L13: - | M13: - | N13: - | O13: - | P13: - | Q13: 283049 | R13: 274062 | S13: 332953 | T13: 368134 | U13: 363933 | V13: 342582.74
A14: October | B14: - | C14: - | D14: - | E14: - | F14: - | G14: - | H14: - | I14: - | J14: - | K14: - | L14: - | M14: - | N14: - | O14: - | P14: - | Q14: 272743 | R14: 283521 | S14: 335607 | T14: 351794 | U14: 362562 | V14: 357825.61
A15: November | B15: - | C15: - | D15: - | E15: - | F15: - | G15: - | H15: - | I15: - | J15: - | K15: - | L15: - | M15: - | N15: - | O15: - | P15: - | Q15: 252300 | R15: 262934 | S15: 296517 | T15: 337701 | U15: 331658 | V15: 334939
A16: December | B16: - | C16: - | D16: - | E16: - | F16: - | G16: - | H16: - | I16: - | J16: - | K16: - | L16: - | M16: - | N16: - | O16: - | P16: - | Q16: 237653 | R16: 263599 | S16: 315670 | T16: 358368 | U16: 335575 | V16: 324431.06
A17: Total | B17: - | C17: - | D17: - | E17: - | F17: - | G17: - | H17: - | I17: - | J17: - | K17: - | L17: - | M17: - | N17: - | O17: - | P17: - | Q17: =SUM(Q5:Q16) -> 2761305 | R17: =SUM(R5:R16) -> 3138308 | S17: =SUM(S5:S16) -> 3634957 | T17: 3990722 | U17: =SUM(U5:U16) -> 4077735 | V17: 3955317.97
A18: Goodhue County Transit Use Tax (0.5%)
A19: Month | B19: 2004 | C19: 2005 | D19: 2006 | E19: 2007 | F19: 2008 | G19: 2009 | H19: 2010 | I19: 2011 | J19: 2012 | K19: 2013 | L19: 2014 | M19: 2015 | N19: 2016 | O19: 2017 | P19: 2018 | Q19: 2019 | R19: 2020 | S19: 2021 | T19: 2022 | U19: 2023 | V19: 2024
A20: January | B20: - | C20: - | D20: - | E20: - | F20: - | G20: - | H20: - | I20: - | J20: - | K20: - | L20: - | M20: - | N20: - | O20: - | P20: - | Q20: 0 | R20: 33519 | S20: 28682 | T20: 36305 | U20: 42284 | V20: 42899
A21: February | B21: - | C21: - | D21: - | E21: - | F21: - | G21: - | H21: - | I21: - | J21: - | K21: - | L21: - | M21: - | N21: - | O21: - | P21: - | Q21: 20444 | R21: 19076 | S21: 12029 | T21: 30430 | U21: 27775 | V21: 38703
A22: March | B22: - | C22: - | D22: - | E22: - | F22: - | G22: - | H22: - | I22: - | J22: - | K22: - | L22: - | M22: - | N22: - | O22: - | P22: - | Q22: 25285 | R22: 14665 | S22: 16125 | T22: 19931 | U22: 24246 | V22: 48476
A23: April | B23: - | C23: - | D23: - | E23: - | F23: - | G23: - | H23: - | I23: - | J23: - | K23: - | L23: - | M23: - | N23: - | O23: - | P23: - | Q23: 25309 | R23: 35845 | S23: 18370 | T23: 24994 | U23: 27783 | V23: 49416
A24: May | B24: - | C24: - | D24: - | E24: - | F24: - | G24: - | H24: - | I24: - | J24: - | K24: - | L24: - | M24: - | N24: - | O24: - | P24: - | Q24: 28528 | R24: 14553 | S24: 54899 | T24: 20747 | U24: 29611 | V24: 44477
A25: June | B25: - | C25: - | D25: - | E25: - | F25: - | G25: - | H25: - | I25: - | J25: - | K25: - | L25: - | M25: - | N25: - | O25: - | P25: - | Q25: 22122 | R25: 32977 | S25: 17656 | T25: 24841 | U25: 29050 | V25: 43169
A26: July | B26: - | C26: - | D26: - | E26: - | F26: - | G26: - | H26: - | I26: - | J26: - | K26: - | L26: - | M26: - | N26: - | O26: - | P26: - | Q26: 11759 | R26: 13305 | S26: 22928 | T26: 46238 | U26: 37061 | V26: 36373
A27: August | B27: - | C27: - | D27: - | E27: - | F27: - | G27: - | H27: - | I27: - | J27: - | K27: - | L27: - | M27: - | N27: - | O27: - | P27: - | Q27: 23020 | R27: 19395 | S27: 30400 | T27: 27420 | U27: 32736 | V27: 33841.8
A28: September | B28: - | C28: - | D28: - | E28: - | F28: - | G28: - | H28: - | I28: - | J28: - | K28: - | L28: - | M28: - | N28: - | O28: - | P28: - | Q28: 19583 | R28: 23414 | S28: 18100 | T28: 25471 | U28: 33085 | V28: 36534.72
A29: October | B29: - | C29: - | D29: - | E29: - | F29: - | G29: - | H29: - | I29: - | J29: - | K29: - | L29: - | M29: - | N29: - | O29: - | P29: - | Q29: 25212 | R29: 20757 | S29: 31552 | T29: 26587 | U29: 43001 | V29: 41885.84
A30: November | B30: - | C30: - | D30: - | E30: - | F30: - | G30: - | H30: - | I30: - | J30: - | K30: - | L30: - | M30: - | N30: - | O30: - | P30: - | Q30: 22540 | R30: 22313 | S30: 49232 | T30: 24371 | U30: 36959 | V30: 52359.05
A31: December | B31: - | C31: - | D31: - | E31: - | F31: - | G31: - | H31: - | I31: - | J31: - | K31: - | L31: - | M31: - | N31: - | O31: - | P31: - | Q31: 45304 | R31: 28306 | S31: 35672 | T31: 40732 | U31: 43801 | V31: 27924.74
A32: Total | B32: - | C32: - | D32: - | E32: - | F32: - | G32: - | H32: - | I32: - | J32: - | K32: - | L32: - | M32: - | N32: - | O32: - | P32: - | Q32: =SUM(Q20:Q31) -> 269106 | R32: =SUM(R20:R31) -> 278125 | S32: =SUM(S20:S31) -> 335645 | T32: 348067 | U32: =SUM(U20:U31) -> 407392 | V32: 496059.15
A33: Goodhue County Transit Refunds
A34: Month | B34: 2004 | C34: 2005 | D34: 2006 | E34: 2007 | F34: 2008 | G34: 2009 | H34: 2010 | I34: 2011 | J34: 2012 | K34: 2013 | L34: 2014 | M34: 2015 | N34: 2016 | O34: 2017 | P34: 2018 | Q34: 2019 | R34: 2020 | S34: 2021 | T34: 2022 | U34: 2023 | V34: 2024
A35: January | B35: - | C35: - | D35: - | E35: - | F35: - | G35: - | H35: - | I35: - | J35: - | K35: - | L35: - | M35: - | N35: - | O35: - | P35: - | Q35: 0 | R35: 0 | S35: 0 | T35: -299 | U35: -850 | V35: -1
A36: February | B36: - | C36: - | D36: - | E36: - | F36: - | G36: - | H36: - | I36: - | J36: - | K36: - | L36: - | M36: - | N36: - | O36: - | P36: - | Q36: 0 | R36: -2 | S36: 0 | T36: 0 | U36: -8441 | V36: 0
A37: March | B37: - | C37: - | D37: - | E37: - | F37: - | G37: - | H37: - | I37: - | J37: - | K37: - | L37: - | M37: - | N37: - | O37: - | P37: - | Q37: 0 | R37: -44 | S37: -223 | T37: -271 | U37: 0 | V37: -1262
A38: April | B38: - | C38: - | D38: - | E38: - | F38: - | G38: - | H38: - | I38: - | J38: - | K38: - | L38: - | M38: - | N38: - | O38: - | P38: - | Q38: 0 | R38: -189 | S38: 0 | T38: -1049 | U38: 0 | V38: -7959
A39: May | B39: - | C39: - | D39: - | E39: - | F39: - | G39: - | H39: - | I39: - | J39: - | K39: - | L39: - | M39: - | N39: - | O39: - | P39: - | Q39: 0 | R39: -2 | S39: 0 | T39: -68 | U39: -397 | V39: 0
A40: June | B40: - | C40: - | D40: - | E40: - | F40: - | G40: - | H40: - | I40: - | J40: - | K40: - | L40: - | M40: - | N40: - | O40: - | P40: - | Q40: -212 | R40: -43 | S40: 0 | T40: 0 | U40: 0 | V40: 0
A41: July | B41: - | C41: - | D41: - | E41: - | F41: - | G41: - | H41: - | I41: - | J41: - | K41: - | L41: - | M41: - | N41: - | O41: - | P41: - | Q41: 0 | R41: 0 | S41: 0 | T41: -1192 | U41: 0 | V41: 0
A42: August | B42: - | C42: - | D42: - | E42: - | F42: - | G42: - | H42: - | I42: - | J42: - | K42: - | L42: - | M42: - | N42: - | O42: - | P42: - | Q42: 0 | R42: 0 | S42: -1587 | T42: -3 | U42: 0 | V42: -4599.08
A43: September | B43: - | C43: - | D43: - | E43: - | F43: - | G43: - | H43: - | I43: - | J43: - | K43: - | L43: - | M43: - | N43: - | O43: - | P43: - | Q43: 0 | R43: 0 | S43: 0 | T43: 0 | U43: -8 | V43: -50.41
A44: October | B44: - | C44: - | D44: - | E44: - | F44: - | G44: - | H44: - | I44: - | J44: - | K44: - | L44: - | M44: - | N44: - | O44: - | P44: - | Q44: 0 | R44: 0 | S44: 0 | T44: -2540 | U44: -258 | V44: -2696.28
A45: November | B45: - | C45: - | D45: - | E45: - | F45: - | G45: - | H45: - | I45: - | J45: - | K45: - | L45: - | M45: - | N45: - | O45: - | P45: - | Q45: 0 | R45: 0 | S45: -30 | T45: -1555 | U45: 0 | V45: 0
A46: December | B46: - | C46: - | D46: - | E46: - | F46: - | G46: - | H46: - | I46: - | J46: - | K46: - | L46: - | M46: - | N46: - | O46: - | P46: - | Q46: 0 | R46: 0 | S46: 0 | T46: 0 | U46: -42 | V46: 0
A47: Total | B47: - | C47: - | D47: - | E47: - | F47: - | G47: - | H47: - | I47: - | J47: - | K47: - | L47: - | M47: - | N47: - | O47: - | P47: - | Q47: =SUM(Q35:Q46) -> -212 | R47: =SUM(R35:R46) -> -280 | S47: =SUM(S35:S46) -> -1840 | T47: -6977 | U47: =SUM(U35:U46) -> -9996 | V47: -16567.77
A48: Hidden columns B-P do not contain any data for CY 2004-2018
A49: ='Local SUT'!A78 -> Source: Minnesota Department of Revenue, Tax Research Division, November 2025
A50: end of worksheet

Sheet Sherburne Co (hidden)
A1: Sherburne County Monthly Detail for Minnesota Local Sales & Use Tax
A2: ='Local SUT'!A2 -> CY 2004-2024
A3: Sherburne County Transit Sales Tax (0.5%)
A4: Month | B4: 2004 | C4: 2005 | D4: 2006 | E4: 2007 | F4: 2008 | G4: 2009 | H4: 2010 | I4: 2011 | J4: 2012 | K4: 2013 | L4: 2014 | M4: 2015 | N4: 2016 | O4: 2017 | P4: 2018 | Q4: 2019 | R4: 2020 | S4: 2021 | T4: 2022 | U4: 2023 | V4: 2024
A5: January | B5: - | C5: - | D5: - | E5: - | F5: - | G5: - | H5: - | I5: - | J5: - | K5: - | L5: - | M5: - | N5: - | O5: - | P5: - | Q5: 546 | R5: 515544 | S5: 576141 | T5: 700738 | U5: 643992 | V5: 688868
A6: February | B6: - | C6: - | D6: - | E6: - | F6: - | G6: - | H6: - | I6: - | J6: - | K6: - | L6: - | M6: - | N6: - | O6: - | P6: - | Q6: 287974 | R6: 405968 | S6: 449278 | T6: 491760 | U6: 540961 | V6: 502196
A7: March | B7: - | C7: - | D7: - | E7: - | F7: - | G7: - | H7: - | I7: - | J7: - | K7: - | L7: - | M7: - | N7: - | O7: - | P7: - | Q7: 345404 | R7: 363294 | S7: 435587 | T7: 453101 | U7: 518692 | V7: 555077
A8: April | B8: - | C8: - | D8: - | E8: - | F8: - | G8: - | H8: - | I8: - | J8: - | K8: - | L8: - | M8: - | N8: - | O8: - | P8: - | Q8: 383834 | R8: 398346 | S8: 534729 | T8: 590803 | U8: 588789 | V8: 562864
A9: May | B9: - | C9: - | D9: - | E9: - | F9: - | G9: - | H9: - | I9: - | J9: - | K9: - | L9: - | M9: - | N9: - | O9: - | P9: - | Q9: 385870 | R9: 462524 | S9: 539231 | T9: 573009 | U9: 562044 | V9: 592326
A10: June | B10: - | C10: - | D10: - | E10: - | F10: - | G10: - | H10: - | I10: - | J10: - | K10: - | L10: - | M10: - | N10: - | O10: - | P10: - | Q10: 459349 | R10: 516683 | S10: 589967 | T10: 726516 | U10: 778687 | V10: 725664
A11: July | B11: - | C11: - | D11: - | E11: - | F11: - | G11: - | H11: - | I11: - | J11: - | K11: - | L11: - | M11: - | N11: - | O11: - | P11: - | Q11: 414898 | R11: 473272 | S11: 585852 | T11: 794098 | U11: 797899 | V11: 707921
A12: August | B12: - | C12: - | D12: - | E12: - | F12: - | G12: - | H12: - | I12: - | J12: - | K12: - | L12: - | M12: - | N12: - | O12: - | P12: - | Q12: 515767 | R12: 671249 | S12: 646168 | T12: 692503 | U12: 674686 | V12: 664467.22
A13: September | B13: - | C13: - | D13: - | E13: - | F13: - | G13: - | H13: - | I13: - | J13: - | K13: - | L13: - | M13: - | N13: - | O13: - | P13: - | Q13: 483113 | R13: 487663 | S13: 658496 | T13: 733764 | U13: 730915 | V13: 684755.5
A14: October | B14: - | C14: - | D14: - | E14: - | F14: - | G14: - | H14: - | I14: - | J14: - | K14: - | L14: - | M14: - | N14: - | O14: - | P14: - | Q14: 477840 | R14: 500923 | S14: 600618 | T14: 726727 | U14: 770476 | V14: 611534.46
A15: November | B15: - | C15: - | D15: - | E15: - | F15: - | G15: - | H15: - | I15: - | J15: - | K15: - | L15: - | M15: - | N15: - | O15: - | P15: - | Q15: 448499 | R15: 482590 | S15: 687430 | T15: 752513 | U15: 650973 | V15: 662907.17
A16: December | B16: - | C16: - | D16: - | E16: - | F16: - | G16: - | H16: - | I16: - | J16: - | K16: - | L16: - | M16: - | N16: - | O16: - | P16: - | Q16: 430582 | R16: 486157 | S16: 540274 | T16: 672182 | U16: 626632 | V16: 617215.55
A17: Total | B17: - | C17: - | D17: - | E17: - | F17: - | G17: - | H17: - | I17: - | J17: - | K17: - | L17: - | M17: - | N17: - | O17: - | P17: - | Q17: =SUM(Q5:Q16) -> 4633676 | R17: =SUM(R5:R16) -> 5764213 | S17: =SUM(S5:S16) -> 6843771 | T17: 7907714 | U17: =SUM(U5:U16) -> 7884746 | V17: 7575795.9
A18: Sherburne County Transit Use Tax (0.5%)
A19: Month | B19: 2004 | C19: 2005 | D19: 2006 | E19: 2007 | F19: 2008 | G19: 2009 | H19: 2010 | I19: 2011 | J19: 2012 | K19: 2013 | L19: 2014 | M19: 2015 | N19: 2016 | O19: 2017 | P19: 2018 | Q19: 2019 | R19: 2020 | S19: 2021 | T19: 2022 | U19: 2023 | V19: 2024
A20: January | B20: - | C20: - | D20: - | E20: - | F20: - | G20: - | H20: - | I20: - | J20: - | K20: - | L20: - | M20: - | N20: - | O20: - | P20: - | Q20: 24 | R20: 29798 | S20: 29928 | T20: 41495 | U20: 32675 | V20: 68225
A21: February | B21: - | C21: - | D21: - | E21: - | F21: - | G21: - | H21: - | I21: - | J21: - | K21: - | L21: - | M21: - | N21: - | O21: - | P21: - | Q21: 15432 | R21: 19118 | S21: 41742 | T21: 26775 | U21: 93033 | V21: 21197
A22: March | B22: - | C22: - | D22: - | E22: - | F22: - | G22: - | H22: - | I22: - | J22: - | K22: - | L22: - | M22: - | N22: - | O22: - | P22: - | Q22: 20651 | R22: 21398 | S22: 19278 | T22: 19182 | U22: 25103 | V22: -57389
A23: April | B23: - | C23: - | D23: - | E23: - | F23: - | G23: - | H23: - | I23: - | J23: - | K23: - | L23: - | M23: - | N23: - | O23: - | P23: - | Q23: 21338 | R23: 31145 | S23: 23862 | T23: 47594 | U23: 38319 | V23: -8019
A24: May | B24: - | C24: - | D24: - | E24: - | F24: - | G24: - | H24: - | I24: - | J24: - | K24: - | L24: - | M24: - | N24: - | O24: - | P24: - | Q24: 41350 | R24: 20289 | S24: 30625 | T24: 33201 | U24: 34589 | V24: 27480
A25: June | B25: - | C25: - | D25: - | E25: - | F25: - | G25: - | H25: - | I25: - | J25: - | K25: - | L25: - | M25: - | N25: - | O25: - | P25: - | Q25: 21389 | R25: 20146 | S25: 28208 | T25: 27035 | U25: 40725 | V25: 34873
A26: July | B26: - | C26: - | D26: - | E26: - | F26: - | G26: - | H26: - | I26: - | J26: - | K26: - | L26: - | M26: - | N26: - | O26: - | P26: - | Q26: 46255 | R26: 21351 | S26: 39865 | T26: 31236 | U26: 47969 | V26: 44894
A27: August | B27: - | C27: - | D27: - | E27: - | F27: - | G27: - | H27: - | I27: - | J27: - | K27: - | L27: - | M27: - | N27: - | O27: - | P27: - | Q27: 25447 | R27: 24558 | S27: 27731 | T27: 41702 | U27: 32951 | V27: 30159.65
A28: September | B28: - | C28: - | D28: - | E28: - | F28: - | G28: - | H28: - | I28: - | J28: - | K28: - | L28: - | M28: - | N28: - | O28: - | P28: - | Q28: 21035 | R28: 35150 | S28: 31585 | T28: 8674 | U28: 32739 | V28: 25633.42
A29: October | B29: - | C29: - | D29: - | E29: - | F29: - | G29: - | H29: - | I29: - | J29: - | K29: - | L29: - | M29: - | N29: - | O29: - | P29: - | Q29: 25845 | R29: 25354 | S29: 39836 | T29: 20621 | U29: 20706 | V29: 26925.9
A30: November | B30: - | C30: - | D30: - | E30: - | F30: - | G30: - | H30: - | I30: - | J30: - | K30: - | L30: - | M30: - | N30: - | O30: - | P30: - | Q30: 28870 | R30: 29941 | S30: 30649 | T30: 28662 | U30: 25608 | V30: 20883.14
A31: December | B31: - | C31: - | D31: - | E31: - | F31: - | G31: - | H31: - | I31: - | J31: - | K31: - | L31: - | M31: - | N31: - | O31: - | P31: - | Q31: 28618 | R31: 21141 | S31: 32896 | T31: 33541 | U31: 30836 | V31: 25523.81
A32: Total | B32: - | C32: - | D32: - | E32: - | F32: - | G32: - | H32: - | I32: - | J32: - | K32: - | L32: - | M32: - | N32: - | O32: - | P32: - | Q32: =SUM(Q20:Q31) -> 296254 | R32: =SUM(R20:R31) -> 299389 | S32: =SUM(S20:S31) -> 376205 | T32: 359718 | U32: =SUM(U20:U31) -> 455253 | V32: 260386.92
A33: Sherburne County Transit Refunds
A34: Month | B34: 2004 | C34: 2005 | D34: 2006 | E34: 2007 | F34: 2008 | G34: 2009 | H34: 2010 | I34: 2011 | J34: 2012 | K34: 2013 | L34: 2014 | M34: 2015 | N34: 2016 | O34: 2017 | P34: 2018 | Q34: 2019 | R34: 2020 | S34: 2021 | T34: 2022 | U34: 2023 | V34: 2024
A35: January | B35: - | C35: - | D35: - | E35: - | F35: - | G35: - | H35: - | I35: - | J35: - | K35: - | L35: - | M35: - | N35: - | O35: - | P35: - | Q35: 0 | R35: -15 | S35: 0 | T35: -24021 | U35: -3864 | V35: -18093
A36: February | B36: - | C36: - | D36: - | E36: - | F36: - | G36: - | H36: - | I36: - | J36: - | K36: - | L36: - | M36: - | N36: - | O36: - | P36: - | Q36: 0 | R36: 0 | S36: -257 | T36: -54 | U36: -6 | V36: -10928
A37: March | B37: - | C37: - | D37: - | E37: - | F37: - | G37: - | H37: - | I37: - | J37: - | K37: - | L37: - | M37: - | N37: - | O37: - | P37: - | Q37: 0 | R37: -774 | S37: -5046 | T37: -19736 | U37: -288 | V37: -318415
A38: April | B38: - | C38: - | D38: - | E38: - | F38: - | G38: - | H38: - | I38: - | J38: - | K38: - | L38: - | M38: - | N38: - | O38: - | P38: - | Q38: 0 | R38: 0 | S38: 0 | T38: -106 | U38: -9150 | V38: -17449
A39: May | B39: - | C39: - | D39: - | E39: - | F39: - | G39: - | H39: - | I39: - | J39: - | K39: - | L39: - | M39: - | N39: - | O39: - | P39: - | Q39: 0 | R39: -3643 | S39: -164 | T39: -4969 | U39: -69 | V39: -152
A40: June | B40: - | C40: - | D40: - | E40: - | F40: - | G40: - | H40: - | I40: - | J40: - | K40: - | L40: - | M40: - | N40: - | O40: - | P40: - | Q40: -53 | R40: -492 | S40: -8 | T40: -7103 | U40: -1 | V40: -116391
A41: July | B41: - | C41: - | D41: - | E41: - | F41: - | G41: - | H41: - | I41: - | J41: - | K41: - | L41: - | M41: - | N41: - | O41: - | P41: - | Q41: -111 | R41: -607 | S41: 0 | T41: 0 | U41: -2609 | V41: -2473
A42: August | B42: - | C42: - | D42: - | E42: - | F42: - | G42: - | H42: - | I42: - | J42: - | K42: - | L42: - | M42: - | N42: - | O42: - | P42: - | Q42: 0 | R42: -3605 | S42: 0 | T42: -31 | U42: -1175 | V42: -326.63
A43: September | B43: - | C43: - | D43: - | E43: - | F43: - | G43: - | H43: - | I43: - | J43: - | K43: - | L43: - | M43: - | N43: - | O43: - | P43: - | Q43: 0 | R43: 0 | S43: 0 | T43: -477 | U43: -1118 | V43: -67.1
A44: October | B44: - | C44: - | D44: - | E44: - | F44: - | G44: - | H44: - | I44: - | J44: - | K44: - | L44: - | M44: - | N44: - | O44: - | P44: - | Q44: 0 | R44: -2701 | S44: -7268 | T44: -5 | U44: -12406 | V44: -4884.08
A45: November | B45: - | C45: - | D45: - | E45: - | F45: - | G45: - | H45: - | I45: - | J45: - | K45: - | L45: - | M45: - | N45: - | O45: - | P45: - | Q45: -323 | R45: 0 | S45: -527 | T45: -5303 | U45: -855 | V45: 0
A46: December | B46: - | C46: - | D46: - | E46: - | F46: - | G46: - | H46: - | I46: - | J46: - | K46: - | L46: - | M46: - | N46: - | O46: - | P46: - | Q46: 0 | R46: -189 | S46: -65 | T46: -1937 | U46: -79051 | V46: -36.95
A47: Total | B47: - | C47: - | D47: - | E47: - | F47: - | G47: - | H47: - | I47: - | J47: - | K47: - | L47: - | M47: - | N47: - | O47: - | P47: - | Q47: =SUM(Q35:Q46) -> -487 | R47: =SUM(R35:R46) -> -12026 | S47: =SUM(S35:S46) -> -13335 | T47: -63742 | U47: =SUM(U35:U46) -> -110592 | V47: -489215.76
A48: Hidden columns B-P do not contain any data for CY 2004-2018
A49: ='Local SUT'!A78 -> Source: Minnesota Department of Revenue, Tax Research Division, November 2025
A50: end of worksheet

Sheet Waseca Co (hidden)
A1: Waseca County Monthly Detail for Minnesota Local Sales & Use Tax
A2: ='Local SUT'!A2 -> CY 2004-2024
A3: Waseca County Transit Sales Tax (0.5%)
A4: Month | B4: 2004 | C4: 2005 | D4: 2006 | E4: 2007 | F4: 2008 | G4: 2009 | H4: 2010 | I4: 2011 | J4: 2012 | K4: 2013 | L4: 2014 | M4: 2015 | N4: 2016 | O4: 2017 | P4: 2018 | Q4: 2019 | R4: 2020 | S4: 2021 | T4: 2022 | U4: 2023 | V4: 2024
A5: January | B5: - | C5: - | D5: - | E5: - | F5: - | G5: - | H5: - | I5: - | J5: - | K5: - | L5: - | M5: - | N5: - | O5: - | P5: - | Q5: - | R5: 69318 | S5: 82502 | T5: 97153 | U5: 88595 | V5: 94860
A6: February | B6: - | C6: - | D6: - | E6: - | F6: - | G6: - | H6: - | I6: - | J6: - | K6: - | L6: - | M6: - | N6: - | O6: - | P6: - | Q6: - | R6: 60852 | S6: 67839 | T6: 73821 | U6: 73759 | V6: 70619
A7: March | B7: - | C7: - | D7: - | E7: - | F7: - | G7: - | H7: - | I7: - | J7: - | K7: - | L7: - | M7: - | N7: - | O7: - | P7: - | Q7: - | R7: 53427 | S7: 66667 | T7: 68225 | U7: 67701 | V7: 67925
A8: April | B8: - | C8: - | D8: - | E8: - | F8: - | G8: - | H8: - | I8: - | J8: - | K8: - | L8: - | M8: - | N8: - | O8: - | P8: - | Q8: 0 | R8: 58596 | S8: 84486 | T8: 79310 | U8: 81485 | V8: 81769
A9: May | B9: - | C9: - | D9: - | E9: - | F9: - | G9: - | H9: - | I9: - | J9: - | K9: - | L9: - | M9: - | N9: - | O9: - | P9: - | Q9: 50312 | R9: 66469 | S9: 77093 | T9: 75510 | U9: 78007 | V9: 79684
A10: June | B10: - | C10: - | D10: - | E10: - | F10: - | G10: - | H10: - | I10: - | J10: - | K10: - | L10: - | M10: - | N10: - | O10: - | P10: - | Q10: 57094 | R10: 72190 | S10: 87135 | T10: 92240 | U10: 90325 | V10: 85683
A11: July | B11: - | C11: - | D11: - | E11: - | F11: - | G11: - | H11: - | I11: - | J11: - | K11: - | L11: - | M11: - | N11: - | O11: - | P11: - | Q11: 64706 | R11: 79201 | S11: 90654 | T11: 91528 | U11: 95141 | V11: 88048
A12: August | B12: - | C12: - | D12: - | E12: - | F12: - | G12: - | H12: - | I12: - | J12: - | K12: - | L12: - | M12: - | N12: - | O12: - | P12: - | Q12: 69557 | R12: 78561 | S12: 82420 | T12: 86240 | U12: 88075 | V12: 87348.95
A13: September | B13: - | C13: - | D13: - | E13: - | F13: - | G13: - | H13: - | I13: - | J13: - | K13: - | L13: - | M13: - | N13: - | O13: - | P13: - | Q13: 64782 | R13: 77402 | S13: 83608 | T13: 89094 | U13: 88566 | V13: 85298.14
A14: October | B14: - | C14: - | D14: - | E14: - | F14: - | G14: - | H14: - | I14: - | J14: - | K14: - | L14: - | M14: - | N14: - | O14: - | P14: - | Q14: 70996 | R14: 71428 | S14: 87887 | T14: 88964 | U14: 88433 | V14: 84339.42
A15: November | B15: - | C15: - | D15: - | E15: - | F15: - | G15: - | H15: - | I15: - | J15: - | K15: - | L15: - | M15: - | N15: - | O15: - | P15: - | Q15: 61079 | R15: 69896 | S15: 82851 | T15: 81817 | U15: 80537 | V15: 85339.36
A16: December | B16: - | C16: - | D16: - | E16: - | F16: - | G16: - | H16: - | I16: - | J16: - | K16: - | L16: - | M16: - | N16: - | O16: - | P16: - | Q16: 66853 | R16: 81759 | S16: 86652 | T16: 86182 | U16: 87507 | V16: 82196.53
A17: Total | B17: - | C17: - | D17: - | E17: - | F17: - | G17: - | H17: - | I17: - | J17: - | K17: - | L17: - | M17: - | N17: - | O17: - | P17: - | Q17: =SUM(Q5:Q16) -> 505379 | R17: =SUM(R5:R16) -> 839099 | S17: =SUM(S5:S16) -> 979794 | T17: 1010084 | U17: =SUM(U5:U16) -> 1008131 | V17: 993110.4
A18: Waseca County Transit Use Tax (0.5%)
A19: Month | B19: 2004 | C19: 2005 | D19: 2006 | E19: 2007 | F19: 2008 | G19: 2009 | H19: 2010 | I19: 2011 | J19: 2012 | K19: 2013 | L19: 2014 | M19: 2015 | N19: 2016 | O19: 2017 | P19: 2018 | Q19: 2019 | R19: 2020 | S19: 2021 | T19: 2022 | U19: 2023 | V19: 2024
A20: January | B20: - | C20: - | D20: - | E20: - | F20: - | G20: - | H20: - | I20: - | J20: - | K20: - | L20: - | M20: - | N20: - | O20: - | P20: - | Q20: - | R20: 2409 | S20: 5365 | T20: 5794 | U20: 6003 | V20: 4712
A21: February | B21: - | C21: - | D21: - | E21: - | F21: - | G21: - | H21: - | I21: - | J21: - | K21: - | L21: - | M21: - | N21: - | O21: - | P21: - | Q21: - | R21: 3415 | S21: 2656 | T21: 3594 | U21: 4383 | V21: 5979
A22: March | B22: - | C22: - | D22: - | E22: - | F22: - | G22: - | H22: - | I22: - | J22: - | K22: - | L22: - | M22: - | N22: - | O22: - | P22: - | Q22: - | R22: 2103 | S22: 1736 | T22: 13224 | U22: 2088 | V22: -10300
A23: April | B23: - | C23: - | D23: - | E23: - | F23: - | G23: - | H23: - | I23: - | J23: - | K23: - | L23: - | M23: - | N23: - | O23: - | P23: - | Q23: 0 | R23: 2004 | S23: 4419 | T23: 4744 | U23: 4283 | V23: 5121
A24: May | B24: - | C24: - | D24: - | E24: - | F24: - | G24: - | H24: - | I24: - | J24: - | K24: - | L24: - | M24: - | N24: - | O24: - | P24: - | Q24: 1043 | R24: 1788 | S24: 5641 | T24: 4839 | U24: 5042 | V24: 1036
A25: June | B25: - | C25: - | D25: - | E25: - | F25: - | G25: - | H25: - | I25: - | J25: - | K25: - | L25: - | M25: - | N25: - | O25: - | P25: - | Q25: 2807 | R25: 3445 | S25: 5738 | T25: 6948 | U25: 6230 | V25: 9171
A26: July | B26: - | C26: - | D26: - | E26: - | F26: - | G26: - | H26: - | I26: - | J26: - | K26: - | L26: - | M26: - | N26: - | O26: - | P26: - | Q26: 7562 | R26: 5912 | S26: 7246 | T26: 5690 | U26: 6540 | V26: 5469
A27: August | B27: - | C27: - | D27: - | E27: - | F27: - | G27: - | H27: - | I27: - | J27: - | K27: - | L27: - | M27: - | N27: - | O27: - | P27: - | Q27: 1878 | R27: 2548 | S27: 7712 | T27: 8036 | U27: 5060 | V27: 4187.4
A28: September | B28: - | C28: - | D28: - | E28: - | F28: - | G28: - | H28: - | I28: - | J28: - | K28: - | L28: - | M28: - | N28: - | O28: - | P28: - | Q28: 4460 | R28: 3268 | S28: 7706 | T28: 5734 | U28: 4154 | V28: 4410.1
A29: October | B29: - | C29: - | D29: - | E29: - | F29: - | G29: - | H29: - | I29: - | J29: - | K29: - | L29: - | M29: - | N29: - | O29: - | P29: - | Q29: 4366 | R29: 3291 | S29: 7658 | T29: 5920 | U29: 4018 | V29: 4971
A30: November | B30: - | C30: - | D30: - | E30: - | F30: - | G30: - | H30: - | I30: - | J30: - | K30: - | L30: - | M30: - | N30: - | O30: - | P30: - | Q30: 2640 | R30: 1888 | S30: 6689 | T30: 5373 | U30: 5744 | V30: 6093.14
A31: December | B31: - | C31: - | D31: - | E31: - | F31: - | G31: - | H31: - | I31: - | J31: - | K31: - | L31: - | M31: - | N31: - | O31: - | P31: - | Q31: 2256 | R31: 3717 | S31: 6450 | T31: 4126 | U31: 3794 | V31: 3649.58
A32: Total | B32: - | C32: - | D32: - | E32: - | F32: - | G32: - | H32: - | I32: - | J32: - | K32: - | L32: - | M32: - | N32: - | O32: - | P32: - | Q32: =SUM(Q20:Q31) -> 27012 | R32: =SUM(R20:R31) -> 35788 | S32: =SUM(S20:S31) -> 69016 | T32: 74022 | U32: =SUM(U20:U31) -> 57339 | V32: 44499.22
A33: Waseca County Transit Refunds
A34: Month | B34: 2004 | C34: 2005 | D34: 2006 | E34: 2007 | F34: 2008 | G34: 2009 | H34: 2010 | I34: 2011 | J34: 2012 | K34: 2013 | L34: 2014 | M34: 2015 | N34: 2016 | O34: 2017 | P34: 2018 | Q34: 2019 | R34: 2020 | S34: 2021 | T34: 2022 | U34: 2023 | V34: 2024
A35: January | B35: - | C35: - | D35: - | E35: - | F35: - | G35: - | H35: - | I35: - | J35: - | K35: - | L35: - | M35: - | N35: - | O35: - | P35: - | Q35: - | R35: 0 | S35: 0 | T35: 0 | U35: 0 | V35: 0
A36: February | B36: - | C36: - | D36: - | E36: - | F36: - | G36: - | H36: - | I36: - | J36: - | K36: - | L36: - | M36: - | N36: - | O36: - | P36: - | Q36: - | R36: 0 | S36: -37 | T36: -144 | U36: 0 | V36: 0
A37: March | B37: - | C37: - | D37: - | E37: - | F37: - | G37: - | H37: - | I37: - | J37: - | K37: - | L37: - | M37: - | N37: - | O37: - | P37: - | Q37: - | R37: -72 | S37: -46 | T37: -246 | U37: -34 | V37: -10884
A38: April | B38: - | C38: - | D38: - | E38: - | F38: - | G38: - | H38: - | I38: - | J38: - | K38: - | L38: - | M38: - | N38: - | O38: - | P38: - | Q38: 0 | R38: -102 | S38: 0 | T38: 0 | U38: 0 | V38: -502
A39: May | B39: - | C39: - | D39: - | E39: - | F39: - | G39: - | H39: - | I39: - | J39: - | K39: - | L39: - | M39: - | N39: - | O39: - | P39: - | Q39: 0 | R39: 0 | S39: 0 | T39: -131 | U39: -199 | V39: 0
A40: June | B40: - | C40: - | D40: - | E40: - | F40: - | G40: - | H40: - | I40: - | J40: - | K40: - | L40: - | M40: - | N40: - | O40: - | P40: - | Q40: 0 | R40: -7 | S40: -66 | T40: 0 | U40: -95 | V40: -1165
A41: July | B41: - | C41: - | D41: - | E41: - | F41: - | G41: - | H41: - | I41: - | J41: - | K41: - | L41: - | M41: - | N41: - | O41: - | P41: - | Q41: 0 | R41: -72 | S41: 0 | T41: -12 | U41: 0 | V41: -707
A42: August | B42: - | C42: - | D42: - | E42: - | F42: - | G42: - | H42: - | I42: - | J42: - | K42: - | L42: - | M42: - | N42: - | O42: - | P42: - | Q42: -20 | R42: 0 | S42: 0 | T42: 0 | U42: 0 | V42: 0
A43: September | B43: - | C43: - | D43: - | E43: - | F43: - | G43: - | H43: - | I43: - | J43: - | K43: - | L43: - | M43: - | N43: - | O43: - | P43: - | Q43: 0 | R43: 0 | S43: 0 | T43: 0 | U43: -32 | V43: 0
A44: October | B44: - | C44: - | D44: - | E44: - | F44: - | G44: - | H44: - | I44: - | J44: - | K44: - | L44: - | M44: - | N44: - | O44: - | P44: - | Q44: 0 | R44: 0 | S44: 0 | T44: 0 | U44: 0 | V44: -7859.27
A45: November | B45: - | C45: - | D45: - | E45: - | F45: - | G45: - | H45: - | I45: - | J45: - | K45: - | L45: - | M45: - | N45: - | O45: - | P45: - | Q45: 0 | R45: 0 | S45: 0 | T45: 0 | U45: 0 | V45: 0
A46: December | B46: - | C46: - | D46: - | E46: - | F46: - | G46: - | H46: - | I46: - | J46: - | K46: - | L46: - | M46: - | N46: - | O46: - | P46: - | Q46: -102 | R46: -2 | S46: 0 | T46: 0 | U46: 0 | V46: 0
A47: Total | B47: - | C47: - | D47: - | E47: - | F47: - | G47: - | H47: - | I47: - | J47: - | K47: - | L47: - | M47: - | N47: - | O47: - | P47: - | Q47: =SUM(Q35:Q46) -> -122 | R47: =SUM(R35:R46) -> -255 | S47: =SUM(S35:S46) -> -149 | T47: -533 | U47: =SUM(U35:U46) -> -360 | V47: -21117.27
A48: Hidden columns B-P do not contain any data for CY 2004-2018
A49: ='Local SUT'!A78 -> Source: Minnesota Department of Revenue, Tax Research Division, November 2025
A50: end of worksheet

Sheet Redwood Co (hidden)
A1: Redwood County Monthly Detail for Minnesota Local Sales & Use Tax
A2: ='Local SUT'!A2 -> CY 2004-2024
A3: Redwood County Transit Sales Tax (0.5%)
A4: Month | B4: 2004 | C4: 2005 | D4: 2006 | E4: 2007 | F4: 2008 | G4: 2009 | H4: 2010 | I4: 2011 | J4: 2012 | K4: 2013 | L4: 2014 | M4: 2015 | N4: 2016 | O4: 2017 | P4: 2018 | Q4: 2019 | R4: 2020 | S4: 2021 | T4: 2022 | U4: 2023 | V4: 2024
A5: January | B5: - | C5: - | D5: - | E5: - | F5: - | G5: - | H5: - | I5: - | J5: - | K5: - | L5: - | M5: - | N5: - | O5: - | P5: - | Q5: - | R5: 82612 | S5: 81092 | T5: 106676 | U5: 99972 | V5: 106593
A6: February | B6: - | C6: - | D6: - | E6: - | F6: - | G6: - | H6: - | I6: - | J6: - | K6: - | L6: - | M6: - | N6: - | O6: - | P6: - | Q6: - | R6: 60741 | S6: 68495 | T6: 73980 | U6: 82093 | V6: 90604
A7: March | B7: - | C7: - | D7: - | E7: - | F7: - | G7: - | H7: - | I7: - | J7: - | K7: - | L7: - | M7: - | N7: - | O7: - | P7: - | Q7: - | R7: 57072 | S7: 61621 | T7: 71879 | U7: 75556 | V7: 81789
A8: April | B8: - | C8: - | D8: - | E8: - | F8: - | G8: - | H8: - | I8: - | J8: - | K8: - | L8: - | M8: - | N8: - | O8: - | P8: - | Q8: 35 | R8: 65693 | S8: 84423 | T8: 88135 | U8: 93951 | V8: 91153
A9: May | B9: - | C9: - | D9: - | E9: - | F9: - | G9: - | H9: - | I9: - | J9: - | K9: - | L9: - | M9: - | N9: - | O9: - | P9: - | Q9: 55805 | R9: 65897 | S9: 79018 | T9: 80221 | U9: 95830 | V9: 97033
A10: June | B10: - | C10: - | D10: - | E10: - | F10: - | G10: - | H10: - | I10: - | J10: - | K10: - | L10: - | M10: - | N10: - | O10: - | P10: - | Q10: 65799 | R10: 81855 | S10: 84498 | T10: 93148 | U10: 106866 | V10: 104153
A11: July | B11: - | C11: - | D11: - | E11: - | F11: - | G11: - | H11: - | I11: - | J11: - | K11: - | L11: - | M11: - | N11: - | O11: - | P11: - | Q11: 70527 | R11: 75435 | S11: 94911 | T11: 120859 | U11: 128126 | V11: 116958
A12: August | B12: - | C12: - | D12: - | E12: - | F12: - | G12: - | H12: - | I12: - | J12: - | K12: - | L12: - | M12: - | N12: - | O12: - | P12: - | Q12: 78095 | R12: 87044 | S12: 97256 | T12: 110716 | U12: 106177 | V12: 97242.9
A13: September | B13: - | C13: - | D13: - | E13: - | F13: - | G13: - | H13: - | I13: - | J13: - | K13: - | L13: - | M13: - | N13: - | O13: - | P13: - | Q13: 82309 | R13: 80737 | S13: 99418 | T13: 108145 | U13: 116782 | V13: 109465.83
A14: October | B14: - | C14: - | D14: - | E14: - | F14: - | G14: - | H14: - | I14: - | J14: - | K14: - | L14: - | M14: - | N14: - | O14: - | P14: - | Q14: 75070 | R14: 84096 | S14: 98519 | T14: 107868 | U14: 111747 | V14: 124674.8
A15: November | B15: - | C15: - | D15: - | E15: - | F15: - | G15: - | H15: - | I15: - | J15: - | K15: - | L15: - | M15: - | N15: - | O15: - | P15: - | Q15: 78692 | R15: 74057 | S15: 95036 | T15: 98806 | U15: 100356 | V15: 113167.59
A16: December | B16: - | C16: - | D16: - | E16: - | F16: - | G16: - | H16: - | I16: - | J16: - | K16: - | L16: - | M16: - | N16: - | O16: - | P16: - | Q16: 70836 | R16: 73810 | S16: 87345 | T16: 96980 | U16: 98144 | V16: 99295.06
A17: Total | B17: - | C17: - | D17: - | E17: - | F17: - | G17: - | H17: - | I17: - | J17: - | K17: - | L17: - | M17: - | N17: - | O17: - | P17: - | Q17: =SUM(Q5:Q16) -> 577168 | R17: =SUM(R5:R16) -> 889049 | S17: =SUM(S5:S16) -> 1031632 | T17: 1157413 | U17: =SUM(U5:U16) -> 1215600 | V17: 1232129.18
A18: Redwood County Transit Use Tax (0.5%)
A19: Month | B19: 2004 | C19: 2005 | D19: 2006 | E19: 2007 | F19: 2008 | G19: 2009 | H19: 2010 | I19: 2011 | J19: 2012 | K19: 2013 | L19: 2014 | M19: 2015 | N19: 2016 | O19: 2017 | P19: 2018 | Q19: 2019 | R19: 2020 | S19: 2021 | T19: 2022 | U19: 2023 | V19: 2024
A20: January | B20: - | C20: - | D20: - | E20: - | F20: - | G20: - | H20: - | I20: - | J20: - | K20: - | L20: - | M20: - | N20: - | O20: - | P20: - | Q20: - | R20: 2262 | S20: 5945 | T20: 2142 | U20: 3760 | V20: 3419
A21: February | B21: - | C21: - | D21: - | E21: - | F21: - | G21: - | H21: - | I21: - | J21: - | K21: - | L21: - | M21: - | N21: - | O21: - | P21: - | Q21: - | R21: 1826 | S21: 1553 | T21: 2435 | U21: 2195 | V21: 1676
A22: March | B22: - | C22: - | D22: - | E22: - | F22: - | G22: - | H22: - | I22: - | J22: - | K22: - | L22: - | M22: - | N22: - | O22: - | P22: - | Q22: - | R22: 1335 | S22: 1853 | T22: 1682 | U22: 2483 | V22: 2945
A23: April | B23: - | C23: - | D23: - | E23: - | F23: - | G23: - | H23: - | I23: - | J23: - | K23: - | L23: - | M23: - | N23: - | O23: - | P23: - | Q23: 0 | R23: 2005 | S23: 2592 | T23: 2698 | U23: 3935 | V23: 2650
A24: May | B24: - | C24: - | D24: - | E24: - | F24: - | G24: - | H24: - | I24: - | J24: - | K24: - | L24: - | M24: - | N24: - | O24: - | P24: - | Q24: 1224 | R24: 1294 | S24: 6142 | T24: 3202 | U24: 3434 | V24: 1833
A25: June | B25: - | C25: - | D25: - | E25: - | F25: - | G25: - | H25: - | I25: - | J25: - | K25: - | L25: - | M25: - | N25: - | O25: - | P25: - | Q25: 1274 | R25: 1293 | S25: 2570 | T25: 2467 | U25: 3394 | V25: 4339
A26: July | B26: - | C26: - | D26: - | E26: - | F26: - | G26: - | H26: - | I26: - | J26: - | K26: - | L26: - | M26: - | N26: - | O26: - | P26: - | Q26: 2371 | R26: 1808 | S26: 4373 | T26: 3228 | U26: 3702 | V26: 7934
A27: August | B27: - | C27: - | D27: - | E27: - | F27: - | G27: - | H27: - | I27: - | J27: - | K27: - | L27: - | M27: - | N27: - | O27: - | P27: - | Q27: 2665 | R27: 2792 | S27: 3697 | T27: 8476 | U27: 3863 | V27: 3459.12
A28: September | B28: - | C28: - | D28: - | E28: - | F28: - | G28: - | H28: - | I28: - | J28: - | K28: - | L28: - | M28: - | N28: - | O28: - | P28: - | Q28: 3475 | R28: 3239 | S28: 3115 | T28: 5272 | U28: 3378 | V28: 2619
A29: October | B29: - | C29: - | D29: - | E29: - | F29: - | G29: - | H29: - | I29: - | J29: - | K29: - | L29: - | M29: - | N29: - | O29: - | P29: - | Q29: 4544 | R29: 2396 | S29: 3821 | T29: 3830 | U29: 6612 | V29: 4082
A30: November | B30: - | C30: - | D30: - | E30: - | F30: - | G30: - | H30: - | I30: - | J30: - | K30: - | L30: - | M30: - | N30: - | O30: - | P30: - | Q30: 1207 | R30: 5900 | S30: 2572 | T30: 5123 | U30: 2709 | V30: 3761.03
A31: December | B31: - | C31: - | D31: - | E31: - | F31: - | G31: - | H31: - | I31: - | J31: - | K31: - | L31: - | M31: - | N31: - | O31: - | P31: - | Q31: 1124 | R31: 1758 | S31: 1976 | T31: 5110 | U31: 3843 | V31: 2885.67
A32: Total | B32: - | C32: - | D32: - | E32: - | F32: - | G32: - | H32: - | I32: - | J32: - | K32: - | L32: - | M32: - | N32: - | O32: - | P32: - | Q32: =SUM(Q20:Q31) -> 17884 | R32: =SUM(R20:R31) -> 27908 | S32: =SUM(S20:S31) -> 40209 | T32: 45665 | U32: =SUM(U20:U31) -> 43308 | V32: 41602.82
A33: Redwood County Transit Refunds
A34: Month | B34: 2004 | C34: 2005 | D34: 2006 | E34: 2007 | F34: 2008 | G34: 2009 | H34: 2010 | I34: 2011 | J34: 2012 | K34: 2013 | L34: 2014 | M34: 2015 | N34: 2016 | O34: 2017 | P34: 2018 | Q34: 2019 | R34: 2020 | S34: 2021 | T34: 2022 | U34: 2023 | V34: 2024
A35: January | B35: - | C35: - | D35: - | E35: - | F35: - | G35: - | H35: - | I35: - | J35: - | K35: - | L35: - | M35: - | N35: - | O35: - | P35: - | Q35: - | R35: 0 | S35: 0 | T35: 0 | U35: 0 | V35: 0
A36: February | B36: - | C36: - | D36: - | E36: - | F36: - | G36: - | H36: - | I36: - | J36: - | K36: - | L36: - | M36: - | N36: - | O36: - | P36: - | Q36: - | R36: 0 | S36: -394 | T36: 0 | U36: 0 | V36: 0
A37: March | B37: - | C37: - | D37: - | E37: - | F37: - | G37: - | H37: - | I37: - | J37: - | K37: - | L37: - | M37: - | N37: - | O37: - | P37: - | Q37: - | R37: -2 | S37: 0 | T37: 0 | U37: 0 | V37: 0
A38: April | B38: - | C38: - | D38: - | E38: - | F38: - | G38: - | H38: - | I38: - | J38: - | K38: - | L38: - | M38: - | N38: - | O38: - | P38: - | Q38: 0 | R38: 0 | S38: -41 | T38: 0 | U38: 0 | V38: -48
A39: May | B39: - | C39: - | D39: - | E39: - | F39: - | G39: - | H39: - | I39: - | J39: - | K39: - | L39: - | M39: - | N39: - | O39: - | P39: - | Q39: 0 | R39: 0 | S39: 0 | T39: -1 | U39: -4 | V39: 0
A40: June | B40: - | C40: - | D40: - | E40: - | F40: - | G40: - | H40: - | I40: - | J40: - | K40: - | L40: - | M40: - | N40: - | O40: - | P40: - | Q40: 0 | R40: -2 | S40: -12 | T40: 0 | U40: 0 | V40: 0
A41: July | B41: - | C41: - | D41: - | E41: - | F41: - | G41: - | H41: - | I41: - | J41: - | K41: - | L41: - | M41: - | N41: - | O41: - | P41: - | Q41: 0 | R41: 0 | S41: 0 | T41: -24 | U41: -2055 | V41: 0
A42: August | B42: - | C42: - | D42: - | E42: - | F42: - | G42: - | H42: - | I42: - | J42: - | K42: - | L42: - | M42: - | N42: - | O42: - | P42: - | Q42: 0 | R42: 0 | S42: 0 | T42: 0 | U42: 0 | V42: 0
A43: September | B43: - | C43: - | D43: - | E43: - | F43: - | G43: - | H43: - | I43: - | J43: - | K43: - | L43: - | M43: - | N43: - | O43: - | P43: - | Q43: 0 | R43: 0 | S43: 0 | T43: -6432 | U43: 0 | V43: 0
A44: October | B44: - | C44: - | D44: - | E44: - | F44: - | G44: - | H44: - | I44: - | J44: - | K44: - | L44: - | M44: - | N44: - | O44: - | P44: - | Q44: 0 | R44: 0 | S44: 0 | T44: 0 | U44: 0 | V44: -8671.47
A45: November | B45: - | C45: - | D45: - | E45: - | F45: - | G45: - | H45: - | I45: - | J45: - | K45: - | L45: - | M45: - | N45: - | O45: - | P45: - | Q45: 0 | R45: 0 | S45: -3053 | T45: 0 | U45: -132 | V45: 0
A46: December | B46: - | C46: - | D46: - | E46: - | F46: - | G46: - | H46: - | I46: - | J46: - | K46: - | L46: - | M46: - | N46: - | O46: - | P46: - | Q46: 0 | R46: -1906 | S46: 0 | T46: 0 | U46: 0 | V46: 0
A47: Total | B47: - | C47: - | D47: - | E47: - | F47: - | G47: - | H47: - | I47: - | J47: - | K47: - | L47: - | M47: - | N47: - | O47: - | P47: - | Q47: =SUM(Q35:Q46) -> 0 | R47: =SUM(R35:R46) -> -1910 | S47: =SUM(S35:S46) -> -3500 | T47: -6457 | U47: =SUM(U35:U46) -> -2191 | V47: -8719.47
A48: Hidden columns B-P do not contain any data for CY 2004-2018
A49: ='Local SUT'!A78 -> Source: Minnesota Department of Revenue, Tax Research Division, November 2025
A50: end of worksheet

Sheet Winona Co (hidden)
A1: Winona County Monthly Detail for Minnesota Local Sales & Use Tax
A2: ='Local SUT'!A2 -> CY 2004-2024
A3: Winona County Transit Sales Tax (0.5%)
A4: Month | B4: 2004 | C4: 2005 | D4: 2006 | E4: 2007 | F4: 2008 | G4: 2009 | H4: 2010 | I4: 2011 | J4: 2012 | K4: 2013 | L4: 2014 | M4: 2015 | N4: 2016 | O4: 2017 | P4: 2018 | Q4: 2019 | R4: 2020 | S4: 2021 | T4: 2022 | U4: 2023 | V4: 2024
A5: January | B5: - | C5: - | D5: - | E5: - | F5: - | G5: - | H5: - | I5: - | J5: - | K5: - | L5: - | M5: - | N5: - | O5: 0 | P5: 236044 | Q5: 270705 | R5: 294485 | S5: 297037 | T5: 378680 | U5: 365025 | V5: 329391
A6: February | B6: - | C6: - | D6: - | E6: - | F6: - | G6: - | H6: - | I6: - | J6: - | K6: - | L6: - | M6: - | N6: - | O6: 146065 | P6: 200393 | Q6: 207447 | R6: 230662 | S6: 235457 | T6: 270564 | U6: 273398 | V6: 252445
A7: March | B7: - | C7: - | D7: - | E7: - | F7: - | G7: - | H7: - | I7: - | J7: - | K7: - | L7: - | M7: - | N7: - | O7: 166411 | P7: 172740 | Q7: 207493 | R7: 202626 | S7: 229219 | T7: 262051 | U7: 263154 | V7: 258989
A8: April | B8: - | C8: - | D8: - | E8: - | F8: - | G8: - | H8: - | I8: - | J8: - | K8: - | L8: - | M8: - | N8: - | O8: 196559 | P8: 209371 | Q8: 223053 | R8: 217017 | S8: 300848 | T8: 298942 | U8: 314303 | V8: 284075
A9: May | B9: - | C9: - | D9: - | E9: - | F9: - | G9: - | H9: - | I9: - | J9: - | K9: - | L9: - | M9: - | N9: - | O9: 199685 | P9: 197653 | Q9: 227737 | R9: 209631 | S9: 270749 | T9: 330700 | U9: 405251 | V9: 287756
A10: June | B10: - | C10: - | D10: - | E10: - | F10: - | G10: - | H10: - | I10: - | J10: - | K10: - | L10: - | M10: - | N10: - | O10: 238977 | P10: 236427 | Q10: 255436 | R10: 252046 | S10: 287868 | T10: 332129 | U10: 336103 | V10: 349088
A11: July | B11: - | C11: - | D11: - | E11: - | F11: - | G11: - | H11: - | I11: - | J11: - | K11: - | L11: - | M11: - | N11: - | O11: 191635 | P11: 205593 | Q11: 242974 | R11: 228126 | S11: 308541 | T11: 320976 | U11: 343738 | V11: 314500
A12: August | B12: - | C12: - | D12: - | E12: - | F12: - | G12: - | H12: - | I12: - | J12: - | K12: - | L12: - | M12: - | N12: - | O12: 254950 | P12: 273910 | Q12: 282716 | R12: 307512 | S12: 303548 | T12: 309219 | U12: 302056 | V12: 314560.83
A13: September | B13: - | C13: - | D13: - | E13: - | F13: - | G13: - | H13: - | I13: - | J13: - | K13: - | L13: - | M13: - | N13: - | O13: 241983 | P13: 269109 | Q13: 289486 | R13: 290329 | S13: 298146 | T13: 342493 | U13: 347980 | V13: 333812.55
A14: October | B14: - | C14: - | D14: - | E14: - | F14: - | G14: - | H14: - | I14: - | J14: - | K14: - | L14: - | M14: - | N14: - | O14: 225865 | P14: 233619 | Q14: 253936 | R14: 272462 | S14: 308719 | T14: 266342 | U14: 308129 | V14: 299788.03
A15: November | B15: - | C15: - | D15: - | E15: - | F15: - | G15: - | H15: - | I15: - | J15: - | K15: - | L15: - | M15: - | N15: - | O15: 218681 | P15: 246276 | Q15: 260037 | R15: 263395 | S15: 315642 | T15: 325418 | U15: 293790 | V15: 323761.07
A16: December | B16: - | C16: - | D16: - | E16: - | F16: - | G16: - | H16: - | I16: - | J16: - | K16: - | L16: - | M16: - | N16: - | O16: 208793 | P16: 248267 | Q16: 240340 | R16: 268298 | S16: 290247 | T16: 363635 | U16: 293122 | V16: 359624.15
A17: Total | B17: - | C17: - | D17: - | E17: - | F17: - | G17: - | H17: - | I17: - | J17: - | K17: - | L17: - | M17: - | N17: - | O17: =SUM(O5:O16) -> 2289604 | P17: =SUM(P5:P16) -> 2729402 | Q17: =SUM(Q5:Q16) -> 2961360 | R17: =SUM(R5:R16) -> 3036589 | S17: =SUM(S5:S16) -> 3446021 | T17: 3801149 | U17: =SUM(U5:U16) -> 3846049 | V17: 3707790.63
A18: Winona County Transit Use Tax (0.5%)
A19: Month | B19: 2004 | C19: 2005 | D19: 2006 | E19: 2007 | F19: 2008 | G19: 2009 | H19: 2010 | I19: 2011 | J19: 2012 | K19: 2013 | L19: 2014 | M19: 2015 | N19: 2016 | O19: 2017 | P19: 2018 | Q19: 2019 | R19: 2020 | S19: 2021 | T19: 2022 | U19: 2023 | V19: 2024
A20: January | B20: - | C20: - | D20: - | E20: - | F20: - | G20: - | H20: - | I20: - | J20: - | K20: - | L20: - | M20: - | N20: - | O20: 0 | P20: 10204 | Q20: 26040 | R20: 32225 | S20: 17533 | T20: 23624 | U20: 24049 | V20: 21184
A21: February | B21: - | C21: - | D21: - | E21: - | F21: - | G21: - | H21: - | I21: - | J21: - | K21: - | L21: - | M21: - | N21: - | O21: 10856 | P21: 14880 | Q21: 19685 | R21: 22626 | S21: 13850 | T21: 25131 | U21: 17746 | V21: 16180
A22: March | B22: - | C22: - | D22: - | E22: - | F22: - | G22: - | H22: - | I22: - | J22: - | K22: - | L22: - | M22: - | N22: - | O22: 7948 | P22: 16345 | Q22: 20292 | R22: 9161 | S22: 14459 | T22: 10750 | U22: 17567 | V22: 13946
A23: April | B23: - | C23: - | D23: - | E23: - | F23: - | G23: - | H23: - | I23: - | J23: - | K23: - | L23: - | M23: - | N23: - | O23: 37638 | P23: 31580 | Q23: 14584 | R23: 19783 | S23: 12846 | T23: 10086 | U23: 18909 | V23: 17652
A24: May | B24: - | C24: - | D24: - | E24: - | F24: - | G24: - | H24: - | I24: - | J24: - | K24: - | L24: - | M24: - | N24: - | O24: 12575 | P24: 13836 | Q24: 13615 | R24: 10077 | S24: 27733 | T24: 13667 | U24: 15113 | V24: 16022
A25: June | B25: - | C25: - | D25: - | E25: - | F25: - | G25: - | H25: - | I25: - | J25: - | K25: - | L25: - | M25: - | N25: - | O25: 17980 | P25: 35306 | Q25: 35710 | R25: 12532 | S25: 12324 | T25: 2705 | U25: 21078 | V25: 17353
A26: July | B26: - | C26: - | D26: - | E26: - | F26: - | G26: - | H26: - | I26: - | J26: - | K26: - | L26: - | M26: - | N26: - | O26: 40248 | P26: 17978 | Q26: 18840 | R26: 13532 | S26: 13558 | T26: 12472 | U26: 23441 | V26: 19073
A27: August | B27: - | C27: - | D27: - | E27: - | F27: - | G27: - | H27: - | I27: - | J27: - | K27: - | L27: - | M27: - | N27: - | O27: 13308 | P27: 15487 | Q27: 19353 | R27: 12920 | S27: 12572 | T27: 12236 | U27: 11549 | V27: 20226.23
A28: September | B28: - | C28: - | D28: - | E28: - | F28: - | G28: - | H28: - | I28: - | J28: - | K28: - | L28: - | M28: - | N28: - | O28: 28283 | P28: 17140 | Q28: 34911 | R28: 15887 | S28: 14313 | T28: 15765 | U28: 17550 | V28: 50029.13
A29: October | B29: - | C29: - | D29: - | E29: - | F29: - | G29: - | H29: - | I29: - | J29: - | K29: - | L29: - | M29: - | N29: - | O29: 33276 | P29: 13760 | Q29: 31878 | R29: 13897 | S29: 20433 | T29: 23222 | U29: 29725 | V29: 30290.79
A30: November | B30: - | C30: - | D30: - | E30: - | F30: - | G30: - | H30: - | I30: - | J30: - | K30: - | L30: - | M30: - | N30: - | O30: 18466 | P30: 14261 | Q30: 2350 | R30: 13933 | S30: 7712 | T30: 16251 | U30: 18451 | V30: 19813.47
A31: December | B31: - | C31: - | D31: - | E31: - | F31: - | G31: - | H31: - | I31: - | J31: - | K31: - | L31: - | M31: - | N31: - | O31: 17163 | P31: 18859 | Q31: 18547 | R31: 23440 | S31: 16147 | T31: 50409 | U31: 18098 | V31: 23794.84
A32: Total | B32: - | C32: - | D32: - | E32: - | F32: - | G32: - | H32: - | I32: - | J32: - | K32: - | L32: - | M32: - | N32: - | O32: =SUM(O20:O31) -> 237741 | P32: =SUM(P20:P31) -> 219636 | Q32: =SUM(Q20:Q31) -> 255805 | R32: =SUM(R20:R31) -> 200013 | S32: =SUM(S20:S31) -> 183480 | T32: 216318 | U32: =SUM(U20:U31) -> 233276 | V32: 265564.46
A33: Winona County Transit Refunds
A34: Month | B34: 2004 | C34: 2005 | D34: 2006 | E34: 2007 | F34: 2008 | G34: 2009 | H34: 2010 | I34: 2011 | J34: 2012 | K34: 2013 | L34: 2014 | M34: 2015 | N34: 2016 | O34: 2017 | P34: 2018 | Q34: 2019 | R34: 2020 | S34: 2021 | T34: 2022 | U34: 2023 | V34: 2024
A35: January | B35: - | C35: - | D35: - | E35: - | F35: - | G35: - | H35: - | I35: - | J35: - | K35: - | L35: - | M35: - | N35: - | O35: 0 | P35: -4 | Q35: -412 | R35: -587 | S35: -368 | T35: -6 | U35: -62869 | V35: -47
A36: February | B36: - | C36: - | D36: - | E36: - | F36: - | G36: - | H36: - | I36: - | J36: - | K36: - | L36: - | M36: - | N36: - | O36: 0 | P36: 0 | Q36: 0 | R36: -4726 | S36: -919 | T36: 0 | U36: -7 | V36: -36
A37: March | B37: - | C37: - | D37: - | E37: - | F37: - | G37: - | H37: - | I37: - | J37: - | K37: - | L37: - | M37: - | N37: - | O37: 0 | P37: -573 | Q37: 0 | R37: -6 | S37: -3117 | T37: 0 | U37: 0 | V37: -507
A38: April | B38: - | C38: - | D38: - | E38: - | F38: - | G38: - | H38: - | I38: - | J38: - | K38: - | L38: - | M38: - | N38: - | O38: 0 | P38: -4 | Q38: -1046 | R38: -527 | S38: -477 | T38: 0 | U38: 0 | V38: -674
A39: May | B39: - | C39: - | D39: - | E39: - | F39: - | G39: - | H39: - | I39: - | J39: - | K39: - | L39: - | M39: - | N39: - | O39: 0 | P39: 0 | Q39: 0 | R39: 0 | S39: -155 | T39: 0 | U39: -9 | V39: 0
A40: June | B40: - | C40: - | D40: - | E40: - | F40: - | G40: - | H40: - | I40: - | J40: - | K40: - | L40: - | M40: - | N40: - | O40: 0 | P40: -1 | Q40: 0 | R40: -905 | S40: -36217 | T40: 0 | U40: -140 | V40: 0
A41: July | B41: - | C41: - | D41: - | E41: - | F41: - | G41: - | H41: - | I41: - | J41: - | K41: - | L41: - | M41: - | N41: - | O41: 0 | P41: -3 | Q41: -3135 | R41: -8 | S41: -195 | T41: -2961 | U41: -108698 | V41: -6
A42: August | B42: - | C42: - | D42: - | E42: - | F42: - | G42: - | H42: - | I42: - | J42: - | K42: - | L42: - | M42: - | N42: - | O42: 0 | P42: 0 | Q42: -250 | R42: 0 | S42: -385 | T42: -663 | U42: 0 | V42: 0
A43: September | B43: - | C43: - | D43: - | E43: - | F43: - | G43: - | H43: - | I43: - | J43: - | K43: - | L43: - | M43: - | N43: - | O43: 0 | P43: 0 | Q43: 0 | R43: 0 | S43: 0 | T43: -6610 | U43: -15 | V43: 0
A44: October | B44: - | C44: - | D44: - | E44: - | F44: - | G44: - | H44: - | I44: - | J44: - | K44: - | L44: - | M44: - | N44: - | O44: 0 | P44: 0 | Q44: -3174 | R44: -191 | S44: 0 | T44: -1617 | U44: -1276 | V44: -67.02
A45: November | B45: - | C45: - | D45: - | E45: - | F45: - | G45: - | H45: - | I45: - | J45: - | K45: - | L45: - | M45: - | N45: - | O45: 0 | P45: -707 | Q45: -5 | R45: -2 | S45: -79720 | T45: -163 | U45: 0 | V45: 0
A46: December | B46: - | C46: - | D46: - | E46: - | F46: - | G46: - | H46: - | I46: - | J46: - | K46: - | L46: - | M46: - | N46: - | O46: -82 | P46: -39 | Q46: 0 | R46: 0 | S46: 0 | T46: -10 | U46: -1295 | V46: 0
A47: Total | B47: - | C47: - | D47: - | E47: - | F47: - | G47: - | H47: - | I47: - | J47: - | K47: - | L47: - | M47: - | N47: - | O47: =SUM(O35:O46) -> -82 | P47: =SUM(P35:P46) -> -1331 | Q47: =SUM(Q35:Q46) -> -8022 | R47: =SUM(R35:R46) -> -6952 | S47: =SUM(S35:S46) -> -121553 | T47: -12030 | U47: =SUM(U35:U46) -> -174309 | V47: -1337.02
A48: Hidden columns B-N do not contain any data for CY 2004-2016
A49: ='Local SUT'!A78 -> Source: Minnesota Department of Revenue, Tax Research Division, November 2025
A50: end of worksheet

Sheet Pine Co (hidden)
A1: Pine County Monthly Detail for Minnesota Local Sales & Use Tax
A2: ='Local SUT'!A2 -> CY 2004-2024
A3: Pine County Transit Sales Tax (0.5%)
A4: Month | B4: 2004 | C4: 2005 | D4: 2006 | E4: 2007 | F4: 2008 | G4: 2009 | H4: 2010 | I4: 2011 | J4: 2012 | K4: 2013 | L4: 2014 | M4: 2015 | N4: 2016 | O4: 2017 | P4: 2018 | Q4: 2019 | R4: 2020 | S4: 2021 | T4: 2022 | U4: 2023 | V4: 2024
A5: January | B5: - | C5: - | D5: - | E5: - | F5: - | G5: - | H5: - | I5: - | J5: - | K5: - | L5: - | M5: - | N5: - | O5: 0 | P5: 79047 | Q5: 90202 | R5: 114367 | S5: 120486 | T5: 152691 | U5: 152704 | V5: 163243
A6: February | B6: - | C6: - | D6: - | E6: - | F6: - | G6: - | H6: - | I6: - | J6: - | K6: - | L6: - | M6: - | N6: - | O6: 64002 | P6: 65723 | Q6: 85141 | R6: 93256 | S6: 143120 | T6: 112442 | U6: 120242 | V6: 123474
A7: March | B7: - | C7: - | D7: - | E7: - | F7: - | G7: - | H7: - | I7: - | J7: - | K7: - | L7: - | M7: - | N7: - | O7: 60096 | P7: 59685 | Q7: 79835 | R7: 86945 | S7: 98006 | T7: 110025 | U7: 115822 | V7: 123192
A8: April | B8: - | C8: - | D8: - | E8: - | F8: - | G8: - | H8: - | I8: - | J8: - | K8: - | L8: - | M8: - | N8: - | O8: 68767 | P8: 69045 | Q8: 91934 | R8: 93291 | S8: 131140 | T8: 127886 | U8: 131609 | V8: 136849
A9: May | B9: - | C9: - | D9: - | E9: - | F9: - | G9: - | H9: - | I9: - | J9: - | K9: - | L9: - | M9: - | N9: - | O9: 68484 | P9: 67000 | Q9: 92549 | R9: 102633 | S9: 130775 | T9: 126000 | U9: 134307 | V9: 144994
A10: June | B10: - | C10: - | D10: - | E10: - | F10: - | G10: - | H10: - | I10: - | J10: - | K10: - | L10: - | M10: - | N10: - | O10: 83093 | P10: 88500 | Q10: 111043 | R10: 142248 | S10: 186450 | T10: 154773 | U10: 166148 | V10: 173172
A11: July | B11: - | C11: - | D11: - | E11: - | F11: - | G11: - | H11: - | I11: - | J11: - | K11: - | L11: - | M11: - | N11: - | O11: 80871 | P11: 97936 | Q11: 116217 | R11: 128095 | S11: 152052 | T11: 173000 | U11: 182993 | V11: 177777
A12: August | B12: - | C12: - | D12: - | E12: - | F12: - | G12: - | H12: - | I12: - | J12: - | K12: - | L12: - | M12: - | N12: - | O12: 102927 | P12: 123273 | Q12: 130960 | R12: 145038 | S12: 165084 | T12: 168647 | U12: 170838 | V12: 184073.24
A13: September | B13: - | C13: - | D13: - | E13: - | F13: - | G13: - | H13: - | I13: - | J13: - | K13: - | L13: - | M13: - | N13: - | O13: 92968 | P13: 103520 | Q13: 126040 | R13: 129825 | S13: 156039 | T13: 166904 | U13: 175441 | V13: 181278.7
A14: October | B14: - | C14: - | D14: - | E14: - | F14: - | G14: - | H14: - | I14: - | J14: - | K14: - | L14: - | M14: - | N14: - | O14: 89860 | P14: 94951 | Q14: 123355 | R14: 132807 | S14: 152010 | T14: 172290 | U14: 173455 | V14: 173452.57
A15: November | B15: - | C15: - | D15: - | E15: - | F15: - | G15: - | H15: - | I15: - | J15: - | K15: - | L15: - | M15: - | N15: - | O15: 78129 | P15: 93644 | Q15: 108020 | R15: 124693 | S15: 143120 | T15: 156842 | U15: 155005 | V15: 172999.41
A16: December | B16: - | C16: - | D16: - | E16: - | F16: - | G16: - | H16: - | I16: - | J16: - | K16: - | L16: - | M16: - | N16: - | O16: 73600 | P16: 84061 | Q16: 104267 | R16: 121351 | S16: 137751 | T16: 147417 | U16: 149746 | V16: 157311.85
A17: Total | B17: - | C17: - | D17: - | E17: - | F17: - | G17: - | H17: - | I17: - | J17: - | K17: - | L17: - | M17: - | N17: - | O17: =SUM(O5:O16) -> 862797 | P17: =SUM(P5:P16) -> 1026385 | Q17: =SUM(Q5:Q16) -> 1259563 | R17: =SUM(R5:R16) -> 1414549 | S17: =SUM(S5:S16) -> 1716033 | T17: 1768917 | U17: =SUM(U5:U16) -> 1828310 | V17: 1911816.77
A18: Pine County Transit Use Tax (0.5%)
A19: Month | B19: 2004 | C19: 2005 | D19: 2006 | E19: 2007 | F19: 2008 | G19: 2009 | H19: 2010 | I19: 2011 | J19: 2012 | K19: 2013 | L19: 2014 | M19: 2015 | N19: 2016 | O19: 2017 | P19: 2018 | Q19: 2019 | R19: 2020 | S19: 2021 | T19: 2022 | U19: 2023 | V19: 2024
A20: January | B20: - | C20: - | D20: - | E20: - | F20: - | G20: - | H20: - | I20: - | J20: - | K20: - | L20: - | M20: - | N20: - | O20: 0 | P20: 2964 | Q20: 7659 | R20: 4634 | S20: 4306 | T20: 7743 | U20: 7485 | V20: 8788
A21: February | B21: - | C21: - | D21: - | E21: - | F21: - | G21: - | H21: - | I21: - | J21: - | K21: - | L21: - | M21: - | N21: - | O21: 1250 | P21: 3692 | Q21: 3692 | R21: 4929 | S21: 4440 | T21: 4950 | U21: 4327 | V21: 4494
A22: March | B22: - | C22: - | D22: - | E22: - | F22: - | G22: - | H22: - | I22: - | J22: - | K22: - | L22: - | M22: - | N22: - | O22: 2030 | P22: 2382 | Q22: 3536 | R22: 2605 | S22: 3795 | T22: 2802 | U22: 4274 | V22: 3423
A23: April | B23: - | C23: - | D23: - | E23: - | F23: - | G23: - | H23: - | I23: - | J23: - | K23: - | L23: - | M23: - | N23: - | O23: 2104 | P23: 2841 | Q23: 2434 | R23: 3175 | S23: 3640 | T23: 9634 | U23: 6090 | V23: 4051
A24: May | B24: - | C24: - | D24: - | E24: - | F24: - | G24: - | H24: - | I24: - | J24: - | K24: - | L24: - | M24: - | N24: - | O24: 2462 | P24: 3969 | Q24: 2732 | R24: 2410 | S24: 4244 | T24: 2212 | U24: 7205 | V24: 3383
A25: June | B25: - | C25: - | D25: - | E25: - | F25: - | G25: - | H25: - | I25: - | J25: - | K25: - | L25: - | M25: - | N25: - | O25: 2444 | P25: 4705 | Q25: 2562 | R25: 5888 | S25: 5067 | T25: 4127 | U25: 6806 | V25: 4480
A26: July | B26: - | C26: - | D26: - | E26: - | F26: - | G26: - | H26: - | I26: - | J26: - | K26: - | L26: - | M26: - | N26: - | O26: 7794 | P26: 4357 | Q26: 4369 | R26: 5214 | S26: 5044 | T26: 10973 | U26: 5994 | V26: 7354
A27: August | B27: - | C27: - | D27: - | E27: - | F27: - | G27: - | H27: - | I27: - | J27: - | K27: - | L27: - | M27: - | N27: - | O27: 4068 | P27: 4105 | Q27: 4373 | R27: 3971 | S27: 3528 | T27: 4230 | U27: 3926 | V27: 6169.44
A28: September | B28: - | C28: - | D28: - | E28: - | F28: - | G28: - | H28: - | I28: - | J28: - | K28: - | L28: - | M28: - | N28: - | O28: 3366 | P28: 6211 | Q28: 4019 | R28: 3250 | S28: 6347 | T28: 5003 | U28: 4905 | V28: 6775.54
A29: October | B29: - | C29: - | D29: - | E29: - | F29: - | G29: - | H29: - | I29: - | J29: - | K29: - | L29: - | M29: - | N29: - | O29: 3209 | P29: 7263 | Q29: 3508 | R29: 4287 | S29: 6657 | T29: 6907 | U29: 7247 | V29: 9096.69
A30: November | B30: - | C30: - | D30: - | E30: - | F30: - | G30: - | H30: - | I30: - | J30: - | K30: - | L30: - | M30: - | N30: - | O30: 2427 | P30: 6676 | Q30: 5874 | R30: 4648 | S30: -13612 | T30: 5181 | U30: 4507 | V30: 9268.42
A31: December | B31: - | C31: - | D31: - | E31: - | F31: - | G31: - | H31: - | I31: - | J31: - | K31: - | L31: - | M31: - | N31: - | O31: 2789 | P31: 10890 | Q31: 2968 | R31: 3345 | S31: 5207 | T31: 3864 | U31: 6133 | V31: 6002.14
A32: Total | B32: - | C32: - | D32: - | E32: - | F32: - | G32: - | H32: - | I32: - | J32: - | K32: - | L32: - | M32: - | N32: - | O32: =SUM(O20:O31) -> 33943 | P32: =SUM(P20:P31) -> 60055 | Q32: =SUM(Q20:Q31) -> 47726 | R32: =SUM(R20:R31) -> 48356 | S32: =SUM(S20:S31) -> 38663 | T32: 67626 | U32: =SUM(U20:U31) -> 68899 | V32: 73285.23
A33: Pine County Transit Refunds
A34: Month | B34: 2004 | C34: 2005 | D34: 2006 | E34: 2007 | F34: 2008 | G34: 2009 | H34: 2010 | I34: 2011 | J34: 2012 | K34: 2013 | L34: 2014 | M34: 2015 | N34: 2016 | O34: 2017 | P34: 2018 | Q34: 2019 | R34: 2020 | S34: 2021 | T34: 2022 | U34: 2023 | V34: 2024
A35: January | B35: - | C35: - | D35: - | E35: - | F35: - | G35: - | H35: - | I35: - | J35: - | K35: - | L35: - | M35: - | N35: - | O35: 0 | P35: -2 | Q35: 0 | R35: 0 | S35: 0 | T35: 0 | U35: 0 | V35: -48
A36: February | B36: - | C36: - | D36: - | E36: - | F36: - | G36: - | H36: - | I36: - | J36: - | K36: - | L36: - | M36: - | N36: - | O36: 0 | P36: 0 | Q36: 0 | R36: -503 | S36: 0 | T36: 0 | U36: -1 | V36: -66
A37: March | B37: - | C37: - | D37: - | E37: - | F37: - | G37: - | H37: - | I37: - | J37: - | K37: - | L37: - | M37: - | N37: - | O37: 0 | P37: 0 | Q37: -1 | R37: 0 | S37: -134 | T37: -25 | U37: 0 | V37: 0
A38: April | B38: - | C38: - | D38: - | E38: - | F38: - | G38: - | H38: - | I38: - | J38: - | K38: - | L38: - | M38: - | N38: - | O38: 0 | P38: 0 | Q38: 0 | R38: 0 | S38: -368 | T38: 0 | U38: 0 | V38: 0
A39: May | B39: - | C39: - | D39: - | E39: - | F39: - | G39: - | H39: - | I39: - | J39: - | K39: - | L39: - | M39: - | N39: - | O39: 0 | P39: -1 | Q39: 0 | R39: 0 | S39: 0 | T39: -36 | U39: 0 | V39: 0
A40: June | B40: - | C40: - | D40: - | E40: - | F40: - | G40: - | H40: - | I40: - | J40: - | K40: - | L40: - | M40: - | N40: - | O40: 0 | P40: -2 | Q40: 0 | R40: -503 | S40: 0 | T40: 0 | U40: 0 | V40: 0
A41: July | B41: - | C41: - | D41: - | E41: - | F41: - | G41: - | H41: - | I41: - | J41: - | K41: - | L41: - | M41: - | N41: - | O41: 0 | P41: -946 | Q41: 0 | R41: 0 | S41: 0 | T41: -123 | U41: 0 | V41: -4
A42: August | B42: - | C42: - | D42: - | E42: - | F42: - | G42: - | H42: - | I42: - | J42: - | K42: - | L42: - | M42: - | N42: - | O42: 0 | P42: 0 | Q42: 0 | R42: 0 | S42: -19 | T42: 0 | U42: 0 | V42: -31.94
A43: September | B43: - | C43: - | D43: - | E43: - | F43: - | G43: - | H43: - | I43: - | J43: - | K43: - | L43: - | M43: - | N43: - | O43: 0 | P43: 0 | Q43: 0 | R43: 0 | S43: 0 | T43: 0 | U43: 0 | V43: -13.81
A44: October | B44: - | C44: - | D44: - | E44: - | F44: - | G44: - | H44: - | I44: - | J44: - | K44: - | L44: - | M44: - | N44: - | O44: 0 | P44: 0 | Q44: 0 | R44: -1 | S44: 0 | T44: 0 | U44: -11 | V44: -1.48
A45: November | B45: - | C45: - | D45: - | E45: - | F45: - | G45: - | H45: - | I45: - | J45: - | K45: - | L45: - | M45: - | N45: - | O45: 0 | P45: 0 | Q45: 0 | R45: 0 | S45: -37 | T45: -123 | U45: 0 | V45: -2421.72
A46: December | B46: - | C46: - | D46: - | E46: - | F46: - | G46: - | H46: - | I46: - | J46: - | K46: - | L46: - | M46: - | N46: - | O46: 0 | P46: 0 | Q46: 0 | R46: -211 | S46: 0 | T46: -1 | U46: -791 | V46: 0
A47: Total | B47: - | C47: - | D47: - | E47: - | F47: - | G47: - | H47: - | I47: - | J47: - | K47: - | L47: - | M47: - | N47: - | O47: =SUM(O35:O46) -> 0 | P47: 0 | Q47: 0 | R47: =SUM(R35:R46) -> -1218 | S47: =SUM(S35:S46) -> -558 | T47: -308 | U47: =SUM(U35:U46) -> -803 | V47: -2586.95
A48: Hidden columns B-N do not contain any data for CY 2004-2016
A49: ='Local SUT'!A78 -> Source: Minnesota Department of Revenue, Tax Research Division, November 2025
A50: end of worksheet

Sheet Polk Co (hidden)
A1: Polk County Monthly Detail for Minnesota Local Sales & Use Tax
A2: ='Local SUT'!A2 -> CY 2004-2024
A3: Polk County Transit Sales Tax (0.5%)
A4: Month | B4: 2004 | C4: 2005 | D4: 2006 | E4: 2007 | F4: 2008 | G4: 2009 | H4: 2010 | I4: 2011 | J4: 2012 | K4: 2013 | L4: 2014 | M4: 2015 | N4: 2016 | O4: 2017 | P4: 2018 | Q4: 2019 | R4: 2020 | S4: 2021 | T4: 2022 | U4: 2023 | V4: 2024
A5: January | B5: - | C5: - | D5: - | E5: - | F5: - | G5: - | H5: - | I5: - | J5: - | K5: - | L5: - | M5: - | N5: - | O5: - | P5: 203 | Q5: 63369 | R5: 69931 | S5: 75894 | T5: 85786 | U5: 82057 | V5: 92664
A6: February | B6: - | C6: - | D6: - | E6: - | F6: - | G6: - | H6: - | I6: - | J6: - | K6: - | L6: - | M6: - | N6: - | O6: - | P6: 36195 | Q6: 57733 | R6: 55115 | S6: 60004 | T6: 65079 | U6: 71354 | V6: 73213
A7: March | B7: - | C7: - | D7: - | E7: - | F7: - | G7: - | H7: - | I7: - | J7: - | K7: - | L7: - | M7: - | N7: - | O7: - | P7: 40009 | Q7: 49563 | R7: 51147 | S7: 70645 | T7: 63869 | U7: 69650 | V7: 71103
A8: April | B8: - | C8: - | D8: - | E8: - | F8: - | G8: - | H8: - | I8: - | J8: - | K8: - | L8: - | M8: - | N8: - | O8: - | P8: 49415 | Q8: 58022 | R8: 63541 | S8: 79130 | T8: 80269 | U8: 83131 | V8: 86718
A9: May | B9: - | C9: - | D9: - | E9: - | F9: - | G9: - | H9: - | I9: - | J9: - | K9: - | L9: - | M9: - | N9: - | O9: - | P9: 50309 | Q9: 58696 | R9: 57763 | S9: 70741 | T9: 70864 | U9: 82005 | V9: 172013
A10: June | B10: - | C10: - | D10: - | E10: - | F10: - | G10: - | H10: - | I10: - | J10: - | K10: - | L10: - | M10: - | N10: - | O10: - | P10: 56897 | Q10: 69237 | R10: 68471 | S10: 78885 | T10: 84562 | U10: 98387 | V10: 197071
A11: July | B11: - | C11: - | D11: - | E11: - | F11: - | G11: - | H11: - | I11: - | J11: - | K11: - | L11: - | M11: - | N11: - | O11: - | P11: 58595 | Q11: 69744 | R11: 75652 | S11: 93382 | T11: 94659 | U11: 109356 | V11: 207854
A12: August | B12: - | C12: - | D12: - | E12: - | F12: - | G12: - | H12: - | I12: - | J12: - | K12: - | L12: - | M12: - | N12: - | O12: - | P12: 64928 | Q12: 78316 | R12: 76442 | S12: 101044 | T12: 88841 | U12: 102095 | V12: 214940.04
A13: September | B13: - | C13: - | D13: - | E13: - | F13: - | G13: - | H13: - | I13: - | J13: - | K13: - | L13: - | M13: - | N13: - | O13: - | P13: 64758 | Q13: 68744 | R13: 74265 | S13: 88295 | T13: 89247 | U13: 100546 | V13: 200437.28
A14: October | B14: - | C14: - | D14: - | E14: - | F14: - | G14: - | H14: - | I14: - | J14: - | K14: - | L14: - | M14: - | N14: - | O14: - | P14: 66052 | Q14: 66555 | R14: 72637 | S14: 92516 | T14: 93279 | U14: 96579 | V14: 198699.2
A15: November | B15: - | C15: - | D15: - | E15: - | F15: - | G15: - | H15: - | I15: - | J15: - | K15: - | L15: - | M15: - | N15: - | O15: - | P15: 58974 | Q15: 63725 | R15: 72596 | S15: 79585 | T15: 81350 | U15: 97643 | V15: 180143.58
A16: December | B16: - | C16: - | D16: - | E16: - | F16: - | G16: - | H16: - | I16: - | J16: - | K16: - | L16: - | M16: - | N16: - | O16: - | P16: 58205 | Q16: 64726 | R16: 67680 | S16: 73479 | T16: 88893 | U16: 86240 | V16: 166148.56
A17: Total | B17: - | C17: - | D17: - | E17: - | F17: - | G17: - | H17: - | I17: - | J17: - | K17: - | L17: - | M17: - | N17: - | O17: - | P17: =SUM(P5:P16) -> 604540 | Q17: =SUM(Q5:Q16) -> 768430 | R17: =SUM(R5:R16) -> 805240 | S17: =SUM(S5:S16) -> 963600 | T17: 986698 | U17: =SUM(U5:U16) -> 1079043 | V17: 1861004.66
A18: Polk County Transit Use Tax (0.5%)
A19: Month | B19: 2004 | C19: 2005 | D19: 2006 | E19: 2007 | F19: 2008 | G19: 2009 | H19: 2010 | I19: 2011 | J19: 2012 | K19: 2013 | L19: 2014 | M19: 2015 | N19: 2016 | O19: 2017 | P19: 2018 | Q19: 2019 | R19: 2020 | S19: 2021 | T19: 2022 | U19: 2023 | V19: 2024
A20: January | B20: - | C20: - | D20: - | E20: - | F20: - | G20: - | H20: - | I20: - | J20: - | K20: - | L20: - | M20: - | N20: - | O20: - | P20: 0 | Q20: 5557 | R20: 4987 | S20: -839 | T20: 4432 | U20: 7495 | V20: 7290
A21: February | B21: - | C21: - | D21: - | E21: - | F21: - | G21: - | H21: - | I21: - | J21: - | K21: - | L21: - | M21: - | N21: - | O21: - | P21: 2272 | Q21: 3252 | R21: 4028 | S21: 2087 | T21: -5231 | U21: 4218 | V21: 2358
A22: March | B22: - | C22: - | D22: - | E22: - | F22: - | G22: - | H22: - | I22: - | J22: - | K22: - | L22: - | M22: - | N22: - | O22: - | P22: 5979 | Q22: 5072 | R22: 3778 | S22: 4330 | T22: 2210 | U22: 3874 | V22: 4212
A23: April | B23: - | C23: - | D23: - | E23: - | F23: - | G23: - | H23: - | I23: - | J23: - | K23: - | L23: - | M23: - | N23: - | O23: - | P23: 4589 | Q23: 7979 | R23: 5881 | S23: 6737 | T23: 4897 | U23: 4369 | V23: 4255
A24: May | B24: - | C24: - | D24: - | E24: - | F24: - | G24: - | H24: - | I24: - | J24: - | K24: - | L24: - | M24: - | N24: - | O24: - | P24: 3361 | Q24: 5902 | R24: -3462 | S24: 4279 | T24: 3586 | U24: 2709 | V24: 6248
A25: June | B25: - | C25: - | D25: - | E25: - | F25: - | G25: - | H25: - | I25: - | J25: - | K25: - | L25: - | M25: - | N25: - | O25: - | P25: 3329 | Q25: 5693 | R25: 4817 | S25: 3350 | T25: 5729 | U25: 7158 | V25: 10329
A26: July | B26: - | C26: - | D26: - | E26: - | F26: - | G26: - | H26: - | I26: - | J26: - | K26: - | L26: - | M26: - | N26: - | O26: - | P26: 3781 | Q26: 11008 | R26: 6381 | S26: 4981 | T26: 6340 | U26: 9677 | V26: 11478
A27: August | B27: - | C27: - | D27: - | E27: - | F27: - | G27: - | H27: - | I27: - | J27: - | K27: - | L27: - | M27: - | N27: - | O27: - | P27: 6111 | Q27: 8582 | R27: 369 | S27: 3539 | T27: -4459 | U27: 1247 | V27: 11675
A28: September | B28: - | C28: - | D28: - | E28: - | F28: - | G28: - | H28: - | I28: - | J28: - | K28: - | L28: - | M28: - | N28: - | O28: - | P28: 5202 | Q28: 7301 | R28: 5686 | S28: 2773 | T28: 7160 | U28: 8103 | V28: 14681.72
A29: October | B29: - | C29: - | D29: - | E29: - | F29: - | G29: - | H29: - | I29: - | J29: - | K29: - | L29: - | M29: - | N29: - | O29: - | P29: 7056 | Q29: 6420 | R29: 4042 | S29: 5929 | T29: 10618 | U29: 3328 | V29: 10953.01
A30: November | B30: - | C30: - | D30: - | E30: - | F30: - | G30: - | H30: - | I30: - | J30: - | K30: - | L30: - | M30: - | N30: - | O30: - | P30: 5061 | Q30: 8076 | R30: 2917 | S30: 4662 | T30: 7041 | U30: 6046 | V30: 17242.37
A31: December | B31: - | C31: - | D31: - | E31: - | F31: - | G31: - | H31: - | I31: - | J31: - | K31: - | L31: - | M31: - | N31: - | O31: - | P31: 4983 | Q31: 3731 | R31: 3151 | S31: 3207 | T31: 3417 | U31: 6315 | V31: 8191.58
A32: Total | B32: - | C32: - | D32: - | E32: - | F32: - | G32: - | H32: - | I32: - | J32: - | K32: - | L32: - | M32: - | N32: - | O32: - | P32: =SUM(P20:P31) -> 51724 | Q32: =SUM(Q20:Q31) -> 78573 | R32: =SUM(R20:R31) -> 42575 | S32: =SUM(S20:S31) -> 45035 | T32: 45740 | U32: =SUM(U20:U31) -> 64539 | V32: 108913.68
A33: Polk County Transit Refunds
A34: Month | B34: 2004 | C34: 2005 | D34: 2006 | E34: 2007 | F34: 2008 | G34: 2009 | H34: 2010 | I34: 2011 | J34: 2012 | K34: 2013 | L34: 2014 | M34: 2015 | N34: 2016 | O34: 2017 | P34: 2018 | Q34: 2019 | R34: 2020 | S34: 2021 | T34: 2022 | U34: 2023 | V34: 2024
A35: January | B35: - | C35: - | D35: - | E35: - | F35: - | G35: - | H35: - | I35: - | J35: - | K35: - | L35: - | M35: - | N35: - | O35: - | P35: 0 | Q35: 0 | R35: 0 | S35: -8 | T35: -508 | U35: -610 | V35: -9946
A36: February | B36: - | C36: - | D36: - | E36: - | F36: - | G36: - | H36: - | I36: - | J36: - | K36: - | L36: - | M36: - | N36: - | O36: - | P36: 0 | Q36: 0 | R36: 0 | S36: 0 | T36: -17021 | U36: 0 | V36: 0
A37: March | B37: - | C37: - | D37: - | E37: - | F37: - | G37: - | H37: - | I37: - | J37: - | K37: - | L37: - | M37: - | N37: - | O37: - | P37: 0 | Q37: -4988 | R37: -1180 | S37: -188 | T37: -3 | U37: 0 | V37: 0
A38: April | B38: - | C38: - | D38: - | E38: - | F38: - | G38: - | H38: - | I38: - | J38: - | K38: - | L38: - | M38: - | N38: - | O38: - | P38: -2 | Q38: 0 | R38: 0 | S38: -28 | T38: -402 | U38: 0 | V38: 0
A39: May | B39: - | C39: - | D39: - | E39: - | F39: - | G39: - | H39: - | I39: - | J39: - | K39: - | L39: - | M39: - | N39: - | O39: - | P39: 0 | Q39: 0 | R39: -819 | S39: 0 | T39: -6 | U39: -1180 | V39: -45
A40: June | B40: - | C40: - | D40: - | E40: - | F40: - | G40: - | H40: - | I40: - | J40: - | K40: - | L40: - | M40: - | N40: - | O40: - | P40: 0 | Q40: -3561 | R40: -4266 | S40: -1131 | T40: 0 | U40: 0 | V40: -3807
A41: July | B41: - | C41: - | D41: - | E41: - | F41: - | G41: - | H41: - | I41: - | J41: - | K41: - | L41: - | M41: - | N41: - | O41: - | P41: 0 | Q41: 0 | R41: -1180 | S41: -5782 | T41: -412 | U41: -71 | V41: -2
A42: August | B42: - | C42: - | D42: - | E42: - | F42: - | G42: - | H42: - | I42: - | J42: - | K42: - | L42: - | M42: - | N42: - | O42: - | P42: 0 | Q42: -10 | R42: -789 | S42: 0 | T42: 0 | U42: 0 | V42: -295.85
A43: September | B43: - | C43: - | D43: - | E43: - | F43: - | G43: - | H43: - | I43: - | J43: - | K43: - | L43: - | M43: - | N43: - | O43: - | P43: 0 | Q43: 0 | R43: 0 | S43: 0 | T43: -17467 | U43: -6973 | V43: -604.28
A44: October | B44: - | C44: - | D44: - | E44: - | F44: - | G44: - | H44: - | I44: - | J44: - | K44: - | L44: - | M44: - | N44: - | O44: - | P44: -109 | Q44: 0 | R44: -209 | S44: -36 | T44: 0 | U44: -3457 | V44: 0
A45: November | B45: - | C45: - | D45: - | E45: - | F45: - | G45: - | H45: - | I45: - | J45: - | K45: - | L45: - | M45: - | N45: - | O45: - | P45: 0 | Q45: 0 | R45: -9289 | S45: -404 | T45: 0 | U45: 0 | V45: 0
A46: December | B46: - | C46: - | D46: - | E46: - | F46: - | G46: - | H46: - | I46: - | J46: - | K46: - | L46: - | M46: - | N46: - | O46: - | P46: 0 | Q46: 0 | R46: 0 | S46: 0 | T46: 0 | U46: 0 | V46: -11262.72
A47: Total | B47: - | C47: - | D47: - | E47: - | F47: - | G47: - | H47: - | I47: - | J47: - | K47: - | L47: - | M47: - | N47: - | O47: - | P47: =SUM(P35:P46) -> -111 | Q47: =SUM(Q35:Q46) -> -8559 | R47: =SUM(R35:R46) -> -17732 | S47: =SUM(S35:S46) -> -7577 | T47: -35819 | U47: =SUM(U35:U46) -> -12291 | V47: -25962.85
A48: Hidden columns B-O do not contain any data for CY 2004-2017
A49: ='Local SUT'!A78 -> Source: Minnesota Department of Revenue, Tax Research Division, November 2025
A50: Sales and Use Tax rate increased in 2024 to 0.5%.
A51: end of worksheet

Sheet Mille Lacs Co (hidden)
A1: Mille Lacs County Monthly Detail for Minnesota Local Sales & Use Tax
A2: ='Local SUT'!A2 -> CY 2004-2024
A3: Mille Lacs County Transit Sales Tax (0.5%)
A4: Month | B4: 2004 | C4: 2005 | D4: 2006 | E4: 2007 | F4: 2008 | G4: 2009 | H4: 2010 | I4: 2011 | J4: 2012 | K4: 2013 | L4: 2014 | M4: 2015 | N4: 2016 | O4: 2017 | P4: 2018 | Q4: 2019 | R4: 2020 | S4: 2021 | T4: 2022 | U4: 2023 | V4: 2024
A5: January | B5: - | C5: - | D5: - | E5: - | F5: - | G5: - | H5: - | I5: - | J5: - | K5: - | L5: - | M5: - | N5: - | O5: 0 | P5: 85144 | Q5: 101480 | R5: 125788 | S5: 138128 | T5: 151253 | U5: 156611 | V5: 169655
A6: February | B6: - | C6: - | D6: - | E6: - | F6: - | G6: - | H6: - | I6: - | J6: - | K6: - | L6: - | M6: - | N6: - | O6: 64242 | P6: 81297 | Q6: 95384 | R6: 104831 | S6: 128612 | T6: 131114 | U6: 133737 | V6: 134565
A7: March | B7: - | C7: - | D7: - | E7: - | F7: - | G7: - | H7: - | I7: - | J7: - | K7: - | L7: - | M7: - | N7: - | O7: 64691 | P7: 68392 | Q7: 84457 | R7: 100190 | S7: 137572 | T7: 121553 | U7: 120359 | V7: 129912
A8: April | B8: - | C8: - | D8: - | E8: - | F8: - | G8: - | H8: - | I8: - | J8: - | K8: - | L8: - | M8: - | N8: - | O8: 75415 | P8: 79678 | Q8: 102499 | R8: 105542 | S8: 143165 | T8: 143421 | U8: 137956 | V8: 153091
A9: May | B9: - | C9: - | D9: - | E9: - | F9: - | G9: - | H9: - | I9: - | J9: - | K9: - | L9: - | M9: - | N9: - | O9: 71437 | P9: 76045 | Q9: 98368 | R9: 111043 | S9: 150265 | T9: 137820 | U9: 139935 | V9: 145024
A10: June | B10: - | C10: - | D10: - | E10: - | F10: - | G10: - | H10: - | I10: - | J10: - | K10: - | L10: - | M10: - | N10: - | O10: 92305 | P10: 102239 | Q10: 123690 | R10: 149444 | S10: 158336 | T10: 171353 | U10: 176243 | V10: 168158
A11: July | B11: - | C11: - | D11: - | E11: - | F11: - | G11: - | H11: - | I11: - | J11: - | K11: - | L11: - | M11: - | N11: - | O11: 85352 | P11: 99021 | Q11: 120421 | R11: 131333 | S11: 153723 | T11: 213309 | U11: 195187 | V11: 188841
A12: August | B12: - | C12: - | D12: - | E12: - | F12: - | G12: - | H12: - | I12: - | J12: - | K12: - | L12: - | M12: - | N12: - | O12: 112929 | P12: 120455 | Q12: 149979 | R12: 169921 | S12: 178613 | T12: 154547 | U12: 174281 | V12: 178972.95
A13: September | B13: - | C13: - | D13: - | E13: - | F13: - | G13: - | H13: - | I13: - | J13: - | K13: - | L13: - | M13: - | N13: - | O13: 94473 | P13: 103491 | Q13: 134602 | R13: 143040 | S13: 154210 | T13: 175408 | U13: 172271 | V13: 208053.87
A14: October | B14: - | C14: - | D14: - | E14: - | F14: - | G14: - | H14: - | I14: - | J14: - | K14: - | L14: - | M14: - | N14: - | O14: 94682 | P14: 109077 | Q14: 125689 | R14: 146446 | S14: 154717 | T14: 161771 | U14: 189240 | V14: 175988.87
A15: November | B15: - | C15: - | D15: - | E15: - | F15: - | G15: - | H15: - | I15: - | J15: - | K15: - | L15: - | M15: - | N15: - | O15: 80603 | P15: 96749 | Q15: 118382 | R15: 129549 | S15: 147003 | T15: 159180 | U15: 162340 | V15: 168807.3
A16: December | B16: - | C16: - | D16: - | E16: - | F16: - | G16: - | H16: - | I16: - | J16: - | K16: - | L16: - | M16: - | N16: - | O16: 77678 | P16: 90576 | Q16: 107914 | R16: 131065 | S16: 140150 | T16: 145201 | U16: 155752 | V16: 155097.38
A17: Total | B17: - | C17: - | D17: - | E17: - | F17: - | G17: - | H17: - | I17: - | J17: - | K17: - | L17: - | M17: - | N17: - | O17: =SUM(O5:O16) -> 913807 | P17: =SUM(P5:P16) -> 1112164 | Q17: =SUM(Q5:Q16) -> 1362865 | R17: =SUM(R5:R16) -> 1548192 | S17: =SUM(S5:S16) -> 1784494 | T17: 1865930 | U17: =SUM(U5:U16) -> 1913912 | V17: 1976166.37
A18: Mille Lacs County Transit Use (0.5%)
A19: Month | B19: 2004 | C19: 2005 | D19: 2006 | E19: 2007 | F19: 2008 | G19: 2009 | H19: 2010 | I19: 2011 | J19: 2012 | K19: 2013 | L19: 2014 | M19: 2015 | N19: 2016 | O19: 2017 | P19: 2018 | Q19: 2019 | R19: 2020 | S19: 2021 | T19: 2022 | U19: 2023 | V19: 2024
A20: January | B20: - | C20: - | D20: - | E20: - | F20: - | G20: - | H20: - | I20: - | J20: - | K20: - | L20: - | M20: - | N20: - | O20: 0 | P20: 6748 | Q20: 5480 | R20: 9118 | S20: 7797 | T20: 8270 | U20: 9637 | V20: 8130
A21: February | B21: - | C21: - | D21: - | E21: - | F21: - | G21: - | H21: - | I21: - | J21: - | K21: - | L21: - | M21: - | N21: - | O21: 2112 | P21: 4254 | Q21: 4701 | R21: 13176 | S21: 4831 | T21: 6177 | U21: 3777 | V21: 4388
A22: March | B22: - | C22: - | D22: - | E22: - | F22: - | G22: - | H22: - | I22: - | J22: - | K22: - | L22: - | M22: - | N22: - | O22: 3293 | P22: 3120 | Q22: 3396 | R22: 3825 | S22: 4621 | T22: 4274 | U22: 4932 | V22: 2235
A23: April | B23: - | C23: - | D23: - | E23: - | F23: - | G23: - | H23: - | I23: - | J23: - | K23: - | L23: - | M23: - | N23: - | O23: 4549 | P23: 3752 | Q23: 6135 | R23: 3060 | S23: 4369 | T23: 14362 | U23: 4507 | V23: 4954
A24: May | B24: - | C24: - | D24: - | E24: - | F24: - | G24: - | H24: - | I24: - | J24: - | K24: - | L24: - | M24: - | N24: - | O24: 4269 | P24: 2578 | Q24: 4724 | R24: 8233 | S24: 4453 | T24: 2385 | U24: 3310 | V24: 4792
A25: June | B25: - | C25: - | D25: - | E25: - | F25: - | G25: - | H25: - | I25: - | J25: - | K25: - | L25: - | M25: - | N25: - | O25: 4656 | P25: 5306 | Q25: 6829 | R25: 3453 | S25: 5027 | T25: 2408 | U25: 4192 | V25: 5427
A26: July | B26: - | C26: - | D26: - | E26: - | F26: - | G26: - | H26: - | I26: - | J26: - | K26: - | L26: - | M26: - | N26: - | O26: 6784 | P26: 4270 | Q26: 6621 | R26: 5723 | S26: 8714 | T26: 8101 | U26: 4628 | V26: 5197
A27: August | B27: - | C27: - | D27: - | E27: - | F27: - | G27: - | H27: - | I27: - | J27: - | K27: - | L27: - | M27: - | N27: - | O27: 7563 | P27: 8288 | Q27: 8603 | R27: 6570 | S27: 5448 | T27: 6715 | U27: 4355 | V27: 5701.94
A28: September | B28: - | C28: - | D28: - | E28: - | F28: - | G28: - | H28: - | I28: - | J28: - | K28: - | L28: - | M28: - | N28: - | O28: 6915 | P28: 4815 | Q28: -1240 | R28: 5825 | S28: 3588 | T28: 8080 | U28: 6544 | V28: 9248.39
A29: October | B29: - | C29: - | D29: - | E29: - | F29: - | G29: - | H29: - | I29: - | J29: - | K29: - | L29: - | M29: - | N29: - | O29: 6561 | P29: 4600 | Q29: 10308 | R29: 4419 | S29: 5400 | T29: 8138 | U29: 6375 | V29: 10568.32
A30: November | B30: - | C30: - | D30: - | E30: - | F30: - | G30: - | H30: - | I30: - | J30: - | K30: - | L30: - | M30: - | N30: - | O30: 4490 | P30: 5508 | Q30: 5455 | R30: 4636 | S30: 4271 | T30: 11467 | U30: 5523 | V30: 5559.13
A31: December | B31: - | C31: - | D31: - | E31: - | F31: - | G31: - | H31: - | I31: - | J31: - | K31: - | L31: - | M31: - | N31: - | O31: 4169 | P31: 4035 | Q31: 2812 | R31: 4552 | S31: 5647 | T31: 4760 | U31: 4488 | V31: 5639.43
A32: Total | B32: - | C32: - | D32: - | E32: - | F32: - | G32: - | H32: - | I32: - | J32: - | K32: - | L32: - | M32: - | N32: - | O32: =SUM(O20:O31) -> 55361 | P32: =SUM(P20:P31) -> 57274 | Q32: =SUM(Q20:Q31) -> 63824 | R32: =SUM(R20:R31) -> 72590 | S32: =SUM(S20:S31) -> 64166 | T32: 85137 | U32: =SUM(U20:U31) -> 62268 | V32: 71840.21
A33: Mille Lacs County Transit Refunds
A34: Month | B34: 2004 | C34: 2005 | D34: 2006 | E34: 2007 | F34: 2008 | G34: 2009 | H34: 2010 | I34: 2011 | J34: 2012 | K34: 2013 | L34: 2014 | M34: 2015 | N34: 2016 | O34: 2017 | P34: 2018 | Q34: 2019 | R34: 2020 | S34: 2021 | T34: 2022 | U34: 2023 | V34: 2024
A35: January | B35: - | C35: - | D35: - | E35: - | F35: - | G35: - | H35: - | I35: - | J35: - | K35: - | L35: - | M35: - | N35: - | O35: 0 | P35: -9 | Q35: -148 | R35: 0 | S35: 0 | T35: 0 | U35: 0 | V35: 0
A36: February | B36: - | C36: - | D36: - | E36: - | F36: - | G36: - | H36: - | I36: - | J36: - | K36: - | L36: - | M36: - | N36: - | O36: 0 | P36: 0 | Q36: -2 | R36: -270 | S36: 0 | T36: -6 | U36: -1 | V36: -4
A37: March | B37: - | C37: - | D37: - | E37: - | F37: - | G37: - | H37: - | I37: - | J37: - | K37: - | L37: - | M37: - | N37: - | O37: 0 | P37: -78 | Q37: -131 | R37: -239 | S37: -4298 | T37: 0 | U37: 0 | V37: 0
A38: April | B38: - | C38: - | D38: - | E38: - | F38: - | G38: - | H38: - | I38: - | J38: - | K38: - | L38: - | M38: - | N38: - | O38: 0 | P38: -11 | Q38: 0 | R38: 0 | S38: 0 | T38: -161 | U38: -1082 | V38: 0
A39: May | B39: - | C39: - | D39: - | E39: - | F39: - | G39: - | H39: - | I39: - | J39: - | K39: - | L39: - | M39: - | N39: - | O39: 0 | P39: 0 | Q39: 0 | R39: 0 | S39: 0 | T39: -47 | U39: 0 | V39: -2314
A40: June | B40: - | C40: - | D40: - | E40: - | F40: - | G40: - | H40: - | I40: - | J40: - | K40: - | L40: - | M40: - | N40: - | O40: 0 | P40: 0 | Q40: 0 | R40: -198 | S40: -1 | T40: -87 | U40: 0 | V40: 0
A41: July | B41: - | C41: - | D41: - | E41: - | F41: - | G41: - | H41: - | I41: - | J41: - | K41: - | L41: - | M41: - | N41: - | O41: 0 | P41: 0 | Q41: 0 | R41: -45 | S41: 0 | T41: 0 | U41: 0 | V41: -1
A42: August | B42: - | C42: - | D42: - | E42: - | F42: - | G42: - | H42: - | I42: - | J42: - | K42: - | L42: - | M42: - | N42: - | O42: 0 | P42: -58 | Q42: 0 | R42: -286 | S42: -12 | T42: -270 | U42: 0 | V42: -14.31
A43: September | B43: - | C43: - | D43: - | E43: - | F43: - | G43: - | H43: - | I43: - | J43: - | K43: - | L43: - | M43: - | N43: - | O43: 0 | P43: 0 | Q43: 0 | R43: 0 | S43: 0 | T43: 0 | U43: -426 | V43: -2.22
A44: October | B44: - | C44: - | D44: - | E44: - | F44: - | G44: - | H44: - | I44: - | J44: - | K44: - | L44: - | M44: - | N44: - | O44: -6 | P44: 0 | Q44: 0 | R44: -37 | S44: 0 | T44: -583 | U44: -5 | V44: -11.07
A45: November | B45: - | C45: - | D45: - | E45: - | F45: - | G45: - | H45: - | I45: - | J45: - | K45: - | L45: - | M45: - | N45: - | O45: 0 | P45: 0 | Q45: -270 | R45: -7 | S45: -1 | T45: 0 | U45: 0 | V45: 0
A46: December | B46: - | C46: - | D46: - | E46: - | F46: - | G46: - | H46: - | I46: - | J46: - | K46: - | L46: - | M46: - | N46: - | O46: -62 | P46: 0 | Q46: 0 | R46: -832 | S46: 0 | T46: -6 | U46: 0 | V46: 0
A47: Total | B47: - | C47: - | D47: - | E47: - | F47: - | G47: - | H47: - | I47: - | J47: - | K47: - | L47: - | M47: - | N47: - | O47: =SUM(O35:O46) -> -68 | P47: =SUM(P35:P46) -> -156 | Q47: =SUM(Q35:Q46) -> -551 | R47: =SUM(R35:R46) -> -1914 | S47: =SUM(S35:S46) -> -4312 | T47: -1160 | U47: =SUM(U35:U46) -> -1514 | V47: -2346.6
A48: Hidden columns B-N do not contatin any data for CY 2004-2016
A49: ='Local SUT'!A78 -> Source: Minnesota Department of Revenue, Tax Research Division, November 2025
A50: end of worksheet

Sheet Lake Co (hidden)
A1: Lake County Monthly Detail for Minnesota Local Sales & Use Tax
A2: ='Local SUT'!A2 -> CY 2004-2024
A3: Lake County Transit Sales Tax (0.5%)
A4: Month | B4: 2004 | C4: 2005 | D4: 2006 | E4: 2007 | F4: 2008 | G4: 2009 | H4: 2010 | I4: 2011 | J4: 2012 | K4: 2013 | L4: 2014 | M4: 2015 | N4: 2016 | O4: 2017 | P4: 2018 | Q4: 2019 | R4: 2020 | S4: 2021 | T4: 2022 | U4: 2023 | V4: 2024
A5: January | B5: - | C5: - | D5: - | E5: - | F5: - | G5: - | H5: - | I5: - | J5: - | K5: - | L5: - | M5: - | N5: - | O5: - | P5: 55111 | Q5: 63297 | R5: 65515 | S5: 78419 | T5: 80320 | U5: 88728 | V5: 104935
A6: February | B6: - | C6: - | D6: - | E6: - | F6: - | G6: - | H6: - | I6: - | J6: - | K6: - | L6: - | M6: - | N6: - | O6: - | P6: 41170 | Q6: 52411 | R6: 51387 | S6: 61320 | T6: 62528 | U6: 67899 | V6: 67521
A7: March | B7: - | C7: - | D7: - | E7: - | F7: - | G7: - | H7: - | I7: - | J7: - | K7: - | L7: - | M7: - | N7: - | O7: - | P7: 38918 | Q7: 52788 | R7: 52824 | S7: 61452 | T7: 62392 | U7: 71804 | V7: 65297
A8: April | B8: - | C8: - | D8: - | E8: - | F8: - | G8: - | H8: - | I8: - | J8: - | K8: - | L8: - | M8: - | N8: - | O8: 0 | P8: 44056 | Q8: 54590 | R8: 59249 | S8: 83701 | T8: 73796 | U8: 74981 | V8: 75030
A9: May | B9: - | C9: - | D9: - | E9: - | F9: - | G9: - | H9: - | I9: - | J9: - | K9: - | L9: - | M9: - | N9: - | O9: 31927 | P9: 38560 | Q9: 52053 | R9: 48521 | S9: 74060 | T9: 61504 | U9: 61219 | V9: 71529
A10: June | B10: - | C10: - | D10: - | E10: - | F10: - | G10: - | H10: - | I10: - | J10: - | K10: - | L10: - | M10: - | N10: - | O10: 48905 | P10: 53828 | Q10: 61307 | R10: 59569 | S10: 86257 | T10: 83610 | U10: 88515 | V10: 93856
A11: July | B11: - | C11: - | D11: - | E11: - | F11: - | G11: - | H11: - | I11: - | J11: - | K11: - | L11: - | M11: - | N11: - | O11: 60172 | P11: 66480 | Q11: 83197 | R11: 91756 | S11: 103969 | T11: 109514 | U11: 116096 | V11: 119628
A12: August | B12: - | C12: - | D12: - | E12: - | F12: - | G12: - | H12: - | I12: - | J12: - | K12: - | L12: - | M12: - | N12: - | O12: 73576 | P12: 92773 | Q12: 92803 | R12: 102955 | S12: 120947 | T12: 119522 | U12: 129131 | V12: 119991.25
A13: September | B13: - | C13: - | D13: - | E13: - | F13: - | G13: - | H13: - | I13: - | J13: - | K13: - | L13: - | M13: - | N13: - | O13: 74571 | P13: 87422 | Q13: 93066 | R13: 107235 | S13: 106208 | T13: 124029 | U13: 125638 | V13: 129311.43
A14: October | B14: - | C14: - | D14: - | E14: - | F14: - | G14: - | H14: - | I14: - | J14: - | K14: - | L14: - | M14: - | N14: - | O14: 73075 | P14: 82695 | Q14: 84580 | R14: 105235 | S14: 106780 | T14: 118208 | U14: 122368 | V14: 118096.8
A15: November | B15: - | C15: - | D15: - | E15: - | F15: - | G15: - | H15: - | I15: - | J15: - | K15: - | L15: - | M15: - | N15: - | O15: 59049 | P15: 74787 | Q15: 68470 | R15: 88079 | S15: 86596 | T15: 99885 | U15: 98665 | V15: 104611.64
A16: December | B16: - | C16: - | D16: - | E16: - | F16: - | G16: - | H16: - | I16: - | J16: - | K16: - | L16: - | M16: - | N16: - | O16: 53532 | P16: 54814 | Q16: 58662 | R16: 67292 | S16: 67901 | T16: 71933 | U16: 75729 | V16: 74997.04
A17: Total | B17: - | C17: - | D17: - | E17: - | F17: - | G17: - | H17: - | I17: - | J17: - | K17: - | L17: - | M17: - | N17: - | O17: =SUM(O5:O16) -> 474807 | P17: =SUM(P5:P16) -> 730614 | Q17: =SUM(Q5:Q16) -> 817224 | R17: =SUM(R5:R16) -> 899617 | S17: =SUM(S5:S16) -> 1037610 | T17: 1067241 | U17: =SUM(U5:U16) -> 1120773 | V17: 1144804.16
A18: Lake County Transit Use Tax (0.5%)
A19: Month | B19: 2004 | C19: 2005 | D19: 2006 | E19: 2007 | F19: 2008 | G19: 2009 | H19: 2010 | I19: 2011 | J19: 2012 | K19: 2013 | L19: 2014 | M19: 2015 | N19: 2016 | O19: 2017 | P19: 2018 | Q19: 2019 | R19: 2020 | S19: 2021 | T19: 2022 | U19: 2023 | V19: 2024
A20: January | B20: - | C20: - | D20: - | E20: - | F20: - | G20: - | H20: - | I20: - | J20: - | K20: - | L20: - | M20: - | N20: - | O20: - | P20: 7921 | Q20: 25713 | R20: 19549 | S20: 44695 | T20: 16443 | U20: 12923 | V20: 10196
A21: February | B21: - | C21: - | D21: - | E21: - | F21: - | G21: - | H21: - | I21: - | J21: - | K21: - | L21: - | M21: - | N21: - | O21: - | P21: 7974 | Q21: 21329 | R21: 10084 | S21: 8099 | T21: 14915 | U21: 8596 | V21: 12418
A22: March | B22: - | C22: - | D22: - | E22: - | F22: - | G22: - | H22: - | I22: - | J22: - | K22: - | L22: - | M22: - | N22: - | O22: - | P22: 7697 | Q22: 12586 | R22: 7809 | S22: 13837 | T22: 12522 | U22: 11698 | V22: 9777
A23: April | B23: - | C23: - | D23: - | E23: - | F23: - | G23: - | H23: - | I23: - | J23: - | K23: - | L23: - | M23: - | N23: - | O23: 0 | P23: 9537 | Q23: 20897 | R23: 10007 | S23: 13893 | T23: 14242 | U23: 12643 | V23: 10933
A24: May | B24: - | C24: - | D24: - | E24: - | F24: - | G24: - | H24: - | I24: - | J24: - | K24: - | L24: - | M24: - | N24: - | O24: 6448 | P24: 21397 | Q24: 15299 | R24: 5639 | S24: 12967 | T24: 9447 | U24: 9313 | V24: 10123
A25: June | B25: - | C25: - | D25: - | E25: - | F25: - | G25: - | H25: - | I25: - | J25: - | K25: - | L25: - | M25: - | N25: - | O25: 10602 | P25: 8264 | Q25: 8206 | R25: 3366 | S25: 11782 | T25: 17707 | U25: 10143 | V25: 37055
A26: July | B26: - | C26: - | D26: - | E26: - | F26: - | G26: - | H26: - | I26: - | J26: - | K26: - | L26: - | M26: - | N26: - | O26: 6644 | P26: 8952 | Q26: 9358 | R26: 9915 | S26: 17192 | T26: 11403 | U26: 11898 | V26: 17333
A27: August | B27: - | C27: - | D27: - | E27: - | F27: - | G27: - | H27: - | I27: - | J27: - | K27: - | L27: - | M27: - | N27: - | O27: 4356 | P27: 32846 | Q27: 12370 | R27: 5034 | S27: 19720 | T27: 7112 | U27: 17427 | V27: 15987.77
A28: September | B28: - | C28: - | D28: - | E28: - | F28: - | G28: - | H28: - | I28: - | J28: - | K28: - | L28: - | M28: - | N28: - | O28: 9719 | P28: 10530 | Q28: 8097 | R28: 6375 | S28: 16271 | T28: 10013 | U28: 12538 | V28: 17601
A29: October | B29: - | C29: - | D29: - | E29: - | F29: - | G29: - | H29: - | I29: - | J29: - | K29: - | L29: - | M29: - | N29: - | O29: 7713 | P29: 24632 | Q29: 7688 | R29: 15887 | S29: 8050 | T29: 8846 | U29: 13881 | V29: 15049.93
A30: November | B30: - | C30: - | D30: - | E30: - | F30: - | G30: - | H30: - | I30: - | J30: - | K30: - | L30: - | M30: - | N30: - | O30: 7907 | P30: 34852 | Q30: 7505 | R30: 11668 | S30: 12381 | T30: 5850 | U30: 13321 | V30: 16182.03
A31: December | B31: - | C31: - | D31: - | E31: - | F31: - | G31: - | H31: - | I31: - | J31: - | K31: - | L31: - | M31: - | N31: - | O31: 6120 | P31: 13572 | Q31: 6712 | R31: 14003 | S31: 11797 | T31: 7509 | U31: 10690 | V31: 14911.73
A32: Total | B32: - | C32: - | D32: - | E32: - | F32: - | G32: - | H32: - | I32: - | J32: - | K32: - | L32: - | M32: - | N32: - | O32: =SUM(O20:O31) -> 59509 | P32: =SUM(P20:P31) -> 188174 | Q32: =SUM(Q20:Q31) -> 155760 | R32: =SUM(R20:R31) -> 119336 | S32: =SUM(S20:S31) -> 190684 | T32: 136009 | U32: =SUM(U20:U31) -> 145071 | V32: 187567.46
A33: Lake County Transit Refunds
A34: Month | B34: 2004 | C34: 2005 | D34: 2006 | E34: 2007 | F34: 2008 | G34: 2009 | H34: 2010 | I34: 2011 | J34: 2012 | K34: 2013 | L34: 2014 | M34: 2015 | N34: 2016 | O34: 2017 | P34: 2018 | Q34: 2019 | R34: 2020 | S34: 2021 | T34: 2022 | U34: 2023 | V34: 2024
A35: January | B35: - | C35: - | D35: - | E35: - | F35: - | G35: - | H35: - | I35: - | J35: - | K35: - | L35: - | M35: - | N35: - | O35: - | P35: 0 | Q35: 0 | R35: 0 | S35: -7660 | T35: 0 | U35: 0 | V35: 0
A36: February | B36: - | C36: - | D36: - | E36: - | F36: - | G36: - | H36: - | I36: - | J36: - | K36: - | L36: - | M36: - | N36: - | O36: - | P36: 0 | Q36: 0 | R36: 0 | S36: 0 | T36: -1917 | U36: -345 | V36: 0
A37: March | B37: - | C37: - | D37: - | E37: - | F37: - | G37: - | H37: - | I37: - | J37: - | K37: - | L37: - | M37: - | N37: - | O37: - | P37: 0 | Q37: 0 | R37: -8 | S37: 0 | T37: -8 | U37: -632 | V37: 0
A38: April | B38: - | C38: - | D38: - | E38: - | F38: - | G38: - | H38: - | I38: - | J38: - | K38: - | L38: - | M38: - | N38: - | O38: 0 | P38: 0 | Q38: 0 | R38: -167355 | S38: 0 | T38: 0 | U38: 0 | V38: 0
A39: May | B39: - | C39: - | D39: - | E39: - | F39: - | G39: - | H39: - | I39: - | J39: - | K39: - | L39: - | M39: - | N39: - | O39: 0 | P39: 0 | Q39: 0 | R39: -1075 | S39: 0 | T39: -20 | U39: 0 | V39: 0
A40: June | B40: - | C40: - | D40: - | E40: - | F40: - | G40: - | H40: - | I40: - | J40: - | K40: - | L40: - | M40: - | N40: - | O40: 0 | P40: 0 | Q40: 0 | R40: -8 | S40: 0 | T40: -350 | U40: 0 | V40: -1628
A41: July | B41: - | C41: - | D41: - | E41: - | F41: - | G41: - | H41: - | I41: - | J41: - | K41: - | L41: - | M41: - | N41: - | O41: 0 | P41: 0 | Q41: 0 | R41: 0 | S41: 0 | T41: 0 | U41: 0 | V41: -503
A42: August | B42: - | C42: - | D42: - | E42: - | F42: - | G42: - | H42: - | I42: - | J42: - | K42: - | L42: - | M42: - | N42: - | O42: 0 | P42: 0 | Q42: 0 | R42: -168430 | S42: -15 | T42: 0 | U42: 0 | V42: 0
A43: September | B43: - | C43: - | D43: - | E43: - | F43: - | G43: - | H43: - | I43: - | J43: - | K43: - | L43: - | M43: - | N43: - | O43: 0 | P43: 0 | Q43: 0 | R43: 0 | S43: 0 | T43: -19 | U43: -18 | V43: 0
A44: October | B44: - | C44: - | D44: - | E44: - | F44: - | G44: - | H44: - | I44: - | J44: - | K44: - | L44: - | M44: - | N44: - | O44: 0 | P44: 0 | Q44: 0 | R44: 0 | S44: 0 | T44: 0 | U44: -18 | V44: 0
A45: November | B45: - | C45: - | D45: - | E45: - | F45: - | G45: - | H45: - | I45: - | J45: - | K45: - | L45: - | M45: - | N45: - | O45: 0 | P45: 0 | Q45: 0 | R45: 0 | S45: 0 | T45: -2112 | U45: 0 | V45: -30.35
A46: December | B46: - | C46: - | D46: - | E46: - | F46: - | G46: - | H46: - | I46: - | J46: - | K46: - | L46: - | M46: - | N46: - | O46: 0 | P46: 0 | Q46: 0 | R46: -37 | S46: -2653 | T46: -3 | U46: -7427 | V46: 0
A47: Total | B47: - | C47: - | D47: - | E47: - | F47: - | G47: - | H47: - | I47: - | J47: - | K47: - | L47: - | M47: - | N47: - | O47: =SUM(O35:O46) -> 0 | P47: =SUM(P35:P46) -> 0 | Q47: =SUM(Q35:Q46) -> 0 | R47: =SUM(R35:R46) -> -336913 | S47: =SUM(S35:S46) -> -10328 | T47: -4429 | U47: =SUM(U35:U46) -> -8440 | V47: -2161.35
A48: Hidden columns B-N do not contain any data for CY 2004-2016
A49: ='Local SUT'!A78 -> Source: Minnesota Department of Revenue, Tax Research Division, November 2025
A50: end of worksheet

Sheet Anoka Co (hidden)
A1: Anoka County Monthly Detail for Minnesota Local Sales & Use Tax
A2: ='Local SUT'!A2 -> CY 2004-2024
A3: Anoka County Transit Sales Tax (0.25%)
A4: Month | B4: 2004 | C4: 2005 | D4: 2006 | E4: 2007 | F4: 2008 | G4: 2009 | H4: 2010 | I4: 2011 | J4: 2012 | K4: 2013 | L4: 2014 | M4: 2015 | N4: 2016 | O4: 2017 | P4: 2018 | Q4: 2019 | R4: 2020 | S4: 2021 | T4: 2022 | U4: 2023 | V4: 2024
A5: January | B5: - | C5: - | D5: - | E5: - | F5: - | G5: - | H5: - | I5: - | J5: - | K5: - | L5: - | M5: - | N5: - | O5: - | P5: 912390 | Q5: 1001604 | R5: 1077717 | S5: 1203651 | T5: 1197456 | U5: 1323984 | V5: 1313110
A6: February | B6: - | C6: - | D6: - | E6: - | F6: - | G6: - | H6: - | I6: - | J6: - | K6: - | L6: - | M6: - | N6: - | O6: - | P6: 749197 | Q6: 780360 | R6: 846438 | S6: 932758 | T6: 1028947 | U6: 1060175 | V6: 1077646
A7: March | B7: - | C7: - | D7: - | E7: - | F7: - | G7: - | H7: - | I7: - | J7: - | K7: - | L7: - | M7: - | N7: - | O7: - | P7: 685732 | Q7: 723522 | R7: 796512 | S7: 903115 | T7: 992493 | U7: 1002778 | V7: 1029884
A8: April | B8: - | C8: - | D8: - | E8: - | F8: - | G8: - | H8: - | I8: - | J8: - | K8: - | L8: - | M8: - | N8: - | O8: - | P8: 826900 | Q8: 871289 | R8: 881440 | S8: 1171795 | T8: 1267832 | U8: 1233285 | V8: 1192194
A9: May | B9: - | C9: - | D9: - | E9: - | F9: - | G9: - | H9: - | I9: - | J9: - | K9: - | L9: - | M9: - | N9: - | O9: - | P9: 795716 | Q9: 896742 | R9: 865232 | S9: 1093360 | T9: 1108499 | U9: 1154354 | V9: 1194335
A10: June | B10: - | C10: - | D10: - | E10: - | F10: - | G10: - | H10: - | I10: - | J10: - | K10: - | L10: - | M10: - | N10: - | O10: - | P10: 958110 | Q10: 996328 | R10: 1033117 | S10: 1153971 | T10: 1502934 | U10: 1477204 | V10: 1292848
A11: July | B11: - | C11: - | D11: - | E11: - | F11: - | G11: - | H11: - | I11: - | J11: - | K11: - | L11: - | M11: - | N11: - | O11: 0 | P11: 826085 | Q11: 925038 | R11: 1006110 | S11: 1159428 | T11: 1295702 | U11: 1439329 | V11: 1332155
A12: August | B12: - | C12: - | D12: - | E12: - | F12: - | G12: - | H12: - | I12: - | J12: - | K12: - | L12: - | M12: - | N12: - | O12: 0 | P12: 1066250 | Q12: 1090077 | R12: 1180618 | S12: 1288163 | T12: 1240126 | U12: 1257124 | V12: 1282138.72
A13: September | B13: - | C13: - | D13: - | E13: - | F13: - | G13: - | H13: - | I13: - | J13: - | K13: - | L13: - | M13: - | N13: - | O13: 14 | P13: 937821 | Q13: 1016436 | R13: 1043765 | S13: 1117165 | T13: 1291104 | U13: 1292275 | V13: 1292105.81
A14: October | B14: - | C14: - | D14: - | E14: - | F14: - | G14: - | H14: - | I14: - | J14: - | K14: - | L14: - | M14: - | N14: - | O14: 352 | P14: 898433 | Q14: 988481 | R14: 1071318 | S14: 1204362 | T14: 1264468 | U14: 1293287 | V14: 1251106.45
A15: November | B15: - | C15: - | D15: - | E15: - | F15: - | G15: - | H15: - | I15: - | J15: - | K15: - | L15: - | M15: - | N15: - | O15: 781505 | P15: 923714 | Q15: 975579 | R15: 998879 | S15: 1113090 | T15: 1182561 | U15: 1189484 | V15: 1289575.29
A16: December | B16: - | C16: - | D16: - | E16: - | F16: - | G16: - | H16: - | I16: - | J16: - | K16: - | L16: - | M16: - | N16: - | O16: 834628 | P16: 923252 | Q16: 947268 | R16: 1042756 | S16: 1131113 | T16: 1408473 | U16: 1205799 | V16: 1218347.13
A17: Total | B17: - | C17: - | D17: - | E17: - | F17: - | G17: - | H17: - | I17: - | J17: - | K17: - | L17: - | M17: - | N17: - | O17: =SUM(O5:O16) -> 1616499 | P17: =SUM(P5:P16) -> 10503600 | Q17: =SUM(Q5:Q16) -> 11212724 | R17: =SUM(R5:R16) -> 11843902 | S17: =SUM(S5:S16) -> 13471971 | T17: 14780595 | U17: =SUM(U5:U16) -> 14929078 | V17: 14765445.4
A18: Anoka County Transit Use Tax (0.25%)
A19: Month | B19: 2004 | C19: 2005 | D19: 2006 | E19: 2007 | F19: 2008 | G19: 2009 | H19: 2010 | I19: 2011 | J19: 2012 | K19: 2013 | L19: 2014 | M19: 2015 | N19: 2016 | O19: 2017 | P19: 2018 | Q19: 2019 | R19: 2020 | S19: 2021 | T19: 2022 | U19: 2023 | V19: 2024
A20: January | B20: - | C20: - | D20: - | E20: - | F20: - | G20: - | H20: - | I20: - | J20: - | K20: - | L20: - | M20: - | N20: - | O20: - | P20: 56108 | Q20: 59777 | R20: 63089 | S20: 53781 | T20: 55652 | U20: 66668 | V20: 67235
A21: February | B21: - | C21: - | D21: - | E21: - | F21: - | G21: - | H21: - | I21: - | J21: - | K21: - | L21: - | M21: - | N21: - | O21: - | P21: 48938 | Q21: 43945 | R21: 45082 | S21: 45309 | T21: 42600 | U21: 49839 | V21: 66026
A22: March | B22: - | C22: - | D22: - | E22: - | F22: - | G22: - | H22: - | I22: - | J22: - | K22: - | L22: - | M22: - | N22: - | O22: - | P22: 35128 | Q22: 30461 | R22: 36784 | S22: 36404 | T22: 38309 | U22: 59823 | V22: 41099
A23: April | B23: - | C23: - | D23: - | E23: - | F23: - | G23: - | H23: - | I23: - | J23: - | K23: - | L23: - | M23: - | N23: - | O23: - | P23: 41890 | Q23: 45954 | R23: 56222 | S23: 53042 | T23: 19026 | U23: 55167 | V23: 18179
A24: May | B24: - | C24: - | D24: - | E24: - | F24: - | G24: - | H24: - | I24: - | J24: - | K24: - | L24: - | M24: - | N24: - | O24: - | P24: 38920 | Q24: 50311 | R24: 46181 | S24: 56748 | T24: 96286 | U24: 43605 | V24: 54591
A25: June | B25: - | C25: - | D25: - | E25: - | F25: - | G25: - | H25: - | I25: - | J25: - | K25: - | L25: - | M25: - | N25: - | O25: - | P25: 51455 | Q25: 46457 | R25: 39301 | S25: 43391 | T25: 80158 | U25: 54158 | V25: 66021
A26: July | B26: - | C26: - | D26: - | E26: - | F26: - | G26: - | H26: - | I26: - | J26: - | K26: - | L26: - | M26: - | N26: - | O26: 802 | P26: 50810 | Q26: 48198 | R26: 43937 | S26: 49532 | T26: 56238 | U26: 67236 | V26: 74544
A27: August | B27: - | C27: - | D27: - | E27: - | F27: - | G27: - | H27: - | I27: - | J27: - | K27: - | L27: - | M27: - | N27: - | O27: 0 | P27: 46315 | Q27: 69014 | R27: 51920 | S27: 60519 | T27: 67228 | U27: 57528 | V27: 61623.32
A28: September | B28: - | C28: - | D28: - | E28: - | F28: - | G28: - | H28: - | I28: - | J28: - | K28: - | L28: - | M28: - | N28: - | O28: 0 | P28: 43322 | Q28: 56178 | R28: 48255 | S28: 46550 | T28: 62331 | U28: 59476 | V28: 23528.27
A29: October | B29: - | C29: - | D29: - | E29: - | F29: - | G29: - | H29: - | I29: - | J29: - | K29: - | L29: - | M29: - | N29: - | O29: 487 | P29: 53109 | Q29: 53249 | R29: 49191 | S29: 61188 | T29: 73069 | U29: 61059 | V29: 75725.4
A30: November | B30: - | C30: - | D30: - | E30: - | F30: - | G30: - | H30: - | I30: - | J30: - | K30: - | L30: - | M30: - | N30: - | O30: 36695 | P30: 46787 | Q30: 50116 | R30: 40745 | S30: 82557 | T30: 33571 | U30: 62555 | V30: 88397.97
A31: December | B31: - | C31: - | D31: - | E31: - | F31: - | G31: - | H31: - | I31: - | J31: - | K31: - | L31: - | M31: - | N31: - | O31: 36878 | P31: 43103 | Q31: 45182 | R31: 45520 | S31: 50980 | T31: 69165 | U31: 55970 | V31: 53593.82
A32: Total | B32: - | C32: - | D32: - | E32: - | F32: - | G32: - | H32: - | I32: - | J32: - | K32: - | L32: - | M32: - | N32: - | O32: =SUM(O20:O31) -> 74862 | P32: =SUM(P20:P31) -> 555885 | Q32: =SUM(Q20:Q31) -> 598842 | R32: =SUM(R20:R31) -> 566227 | S32: =SUM(S20:S31) -> 640001 | T32: 693633 | U32: =SUM(U20:U31) -> 693084 | V32: 690563.78
A33: Anoka County Transit Refunds
A34: Month | B34: 2004 | C34: 2005 | D34: 2006 | E34: 2007 | F34: 2008 | G34: 2009 | H34: 2010 | I34: 2011 | J34: 2012 | K34: 2013 | L34: 2014 | M34: 2015 | N34: 2016 | O34: 2017 | P34: 2018 | Q34: 2019 | R34: 2020 | S34: 2021 | T34: 2022 | U34: 2023 | V34: 2024
A35: January | B35: - | C35: - | D35: - | E35: - | F35: - | G35: - | H35: - | I35: - | J35: - | K35: - | L35: - | M35: - | N35: - | O35: - | P35: -231 | Q35: -245 | R35: -951 | S35: -81 | T35: -5119 | U35: -210 | V35: -2549
A36: February | B36: - | C36: - | D36: - | E36: - | F36: - | G36: - | H36: - | I36: - | J36: - | K36: - | L36: - | M36: - | N36: - | O36: - | P36: 0 | Q36: -4185 | R36: -3966 | S36: -8179 | T36: -8677 | U36: -5909 | V36: -888
A37: March | B37: - | C37: - | D37: - | E37: - | F37: - | G37: - | H37: - | I37: - | J37: - | K37: - | L37: - | M37: - | N37: - | O37: - | P37: -10 | Q37: -479 | R37: -15843 | S37: -1466 | T37: -5116 | U37: -660 | V37: -6978
A38: April | B38: - | C38: - | D38: - | E38: - | F38: - | G38: - | H38: - | I38: - | J38: - | K38: - | L38: - | M38: - | N38: - | O38: - | P38: -95 | Q38: -4748 | R38: -1105 | S38: -105 | T38: -81 | U38: -474 | V38: -5061
A39: May | B39: - | C39: - | D39: - | E39: - | F39: - | G39: - | H39: - | I39: - | J39: - | K39: - | L39: - | M39: - | N39: - | O39: - | P39: -251 | Q39: -1176 | R39: -7267 | S39: -1479 | T39: -1077 | U39: -808 | V39: -2184
A40: June | B40: - | C40: - | D40: - | E40: - | F40: - | G40: - | H40: - | I40: - | J40: - | K40: - | L40: - | M40: - | N40: - | O40: - | P40: -31 | Q40: -90 | R40: -9340 | S40: -2209 | T40: -4514 | U40: -287 | V40: -2490
A41: July | B41: - | C41: - | D41: - | E41: - | F41: - | G41: - | H41: - | I41: - | J41: - | K41: - | L41: - | M41: - | N41: - | O41: 0 | P41: -719 | Q41: -531 | R41: -3952 | S41: -2566 | T41: -1544 | U41: -2752 | V41: -24394
A42: August | B42: - | C42: - | D42: - | E42: - | F42: - | G42: - | H42: - | I42: - | J42: - | K42: - | L42: - | M42: - | N42: - | O42: 0 | P42: -227 | Q42: -943 | R42: -3429 | S42: -342 | T42: -910 | U42: -2144 | V42: -17009.81
A43: September | B43: - | C43: - | D43: - | E43: - | F43: - | G43: - | H43: - | I43: - | J43: - | K43: - | L43: - | M43: - | N43: - | O43: 0 | P43: -712 | Q43: -176 | R43: -601 | S43: -805 | T43: -2 | U43: -1577 | V43: -4209.31
A44: October | B44: - | C44: - | D44: - | E44: - | F44: - | G44: - | H44: - | I44: - | J44: - | K44: - | L44: - | M44: - | N44: - | O44: 0 | P44: -107 | Q44: -1222 | R44: -4417 | S44: -341 | T44: -11338 | U44: -11727 | V44: -40.56
A45: November | B45: - | C45: - | D45: - | E45: - | F45: - | G45: - | H45: - | I45: - | J45: - | K45: - | L45: - | M45: - | N45: - | O45: -99 | P45: -21 | Q45: -3031 | R45: -2680 | S45: -1134 | T45: -2293 | U45: -50866 | V45: -851.76
A46: December | B46: - | C46: - | D46: - | E46: - | F46: - | G46: - | H46: - | I46: - | J46: - | K46: - | L46: - | M46: - | N46: - | O46: -1 | P46: -8660 | Q46: -750 | R46: -2140 | S46: -248 | T46: -1748 | U46: -9700 | V46: -2309.25
A47: Total | B47: - | C47: - | D47: - | E47: - | F47: - | G47: - | H47: - | I47: - | J47: - | K47: - | L47: - | M47: - | N47: - | O47: =SUM(O35:O46) -> -100 | P47: =SUM(P35:P46) -> -11064 | Q47: =SUM(Q35:Q46) -> -17576 | R47: =SUM(R35:R46) -> -55691 | S47: =SUM(S35:S46) -> -18955 | T47: -42419 | U47: =SUM(U35:U46) -> -87114 | V47: -68964.69
A48: Hidden columns B-N do not contain any data for CY 2004-2016
A49: ='Local SUT'!A78 -> Source: Minnesota Department of Revenue, Tax Research Division, November 2025
A50: end of worksheet

Sheet Becker Co (hidden)
A1: Becker County Monthly Detail for Minnesota Local Sales & Use Tax
A2: ='Local SUT'!A2 -> CY 2004-2024
A3: Becker County Transit Sales Tax (0.5%)
A4: Month | B4: 2004 | C4: 2005 | D4: 2006 | E4: 2007 | F4: 2008 | G4: 2009 | H4: 2010 | I4: 2011 | J4: 2012 | K4: 2013 | L4: 2014 | M4: 2015 | N4: 2016 | O4: 2017 | P4: 2018 | Q4: 2019 | R4: 2020 | S4: 2021 | T4: 2022 | U4: 2023 | V4: 2024
A5: January | B5: - | C5: - | D5: - | E5: - | F5: - | G5: - | H5: - | I5: - | J5: - | K5: - | L5: - | M5: 159340 | N5: 179816 | O5: 180937 | P5: 176175 | Q5: 203332 | R5: 203709 | S5: 232846 | T5: 257357 | U5: 261663 | V5: 294438
A6: February | B6: - | C6: - | D6: - | E6: - | F6: - | G6: - | H6: - | I6: - | J6: - | K6: - | L6: - | M6: 127198 | N6: 121226 | O6: 139194 | P6: 147484 | Q6: 152367 | R6: 178871 | S6: 194661 | T6: 211787 | U6: 239287 | V6: 227709
A7: March | B7: - | C7: - | D7: - | E7: - | F7: - | G7: - | H7: - | I7: - | J7: - | K7: - | L7: - | M7: 132717 | N7: 120286 | O7: 136501 | P7: 119616 | Q7: 147717 | R7: 185015 | S7: 199681 | T7: 251657 | U7: 213272 | V7: 225475
A8: April | B8: - | C8: - | D8: - | E8: - | F8: - | G8: - | H8: - | I8: - | J8: - | K8: - | L8: - | M8: 149302 | N8: 146615 | O8: 159923 | P8: 163213 | Q8: 180745 | R8: 174928 | S8: 251907 | T8: 266405 | U8: 252834 | V8: 259704
A9: May | B9: - | C9: - | D9: - | E9: - | F9: - | G9: - | H9: - | I9: - | J9: - | K9: - | L9: - | M9: 157083 | N9: 160947 | O9: 188513 | P9: 164730 | Q9: 188651 | R9: 198083 | S9: 272164 | T9: 250572 | U9: 256757 | V9: 271125
A10: June | B10: - | C10: - | D10: - | E10: - | F10: - | G10: - | H10: - | I10: - | J10: - | K10: - | L10: - | M10: 182924 | N10: 192464 | O10: 215357 | P10: 248228 | Q10: 241235 | R10: 268456 | S10: 322759 | T10: 375778 | U10: 367813 | V10: 363977
A11: July | B11: - | C11: - | D11: - | E11: - | F11: - | G11: - | H11: - | I11: - | J11: - | K11: - | L11: 125 | M11: 169827 | N11: 175124 | O11: 197779 | P11: 204029 | Q11: 258852 | R11: 246500 | S11: 316228 | T11: 388371 | U11: 416459 | V11: 380099
A12: August | B12: - | C12: - | D12: - | E12: - | F12: - | G12: - | H12: - | I12: - | J12: - | K12: - | L12: 165479 | M12: 245966 | N12: 275360 | O12: 292885 | P12: 452260 | Q12: 287662 | R12: 353411 | S12: 360392 | T12: 376438 | U12: 367939 | V12: 379068.73
A13: September | B13: - | C13: - | D13: - | E13: - | F13: - | G13: - | H13: - | I13: - | J13: - | K13: - | L13: 194749 | M13: 190904 | N13: 212174 | O13: 223944 | P13: 247904 | Q13: 265030 | R13: 266234 | S13: 324613 | T13: 365609 | U13: 388122 | V13: 362940.57
A14: October | B14: - | C14: - | D14: - | E14: - | F14: - | G14: - | H14: - | I14: - | J14: - | K14: - | L14: 166407 | M14: 185436 | N14: 194615 | O14: 202783 | P14: 213514 | Q14: 229811 | R14: 246335 | S14: 283609 | T14: 324698 | U14: 324805 | V14: 325313.43
A15: November | B15: - | C15: - | D15: - | E15: - | F15: - | G15: - | H15: - | I15: - | J15: - | K15: - | L15: 176918 | M15: 161583 | N15: 162216 | O15: 186443 | P15: 202920 | Q15: 212412 | R15: 218710 | S15: 262291 | T15: 289863 | U15: 272478 | V15: 288839.92
A16: December | B16: - | C16: - | D16: - | E16: - | F16: - | G16: - | H16: - | I16: - | J16: - | K16: - | L16: 141400 | M16: 143660 | N16: 156367 | O16: 158392 | P16: 180405 | Q16: 197008 | R16: 203471 | S16: 216302 | T16: 258373 | U16: 275507 | V16: 264249.5
A17: Total | B17: - | C17: - | D17: - | E17: - | F17: - | G17: - | H17: - | I17: - | J17: - | K17: - | L17: =SUM(L5:L16) -> 845078 | M17: 2005940 | N17: 2097210 | O17: 2282651 | P17: 2520478 | Q17: 2564822 | R17: =SUM(R5:R16) -> 2743723 | S17: =SUM(S5:S16) -> 3237453 | T17: 3616908 | U17: =SUM(U5:U16) -> 3636936 | V17: 3642939.15
A18: Becker County Transit Use Tax (0.5%)
A19: Month | B19: 2004 | C19: 2005 | D19: 2006 | E19: 2007 | F19: 2008 | G19: 2009 | H19: 2010 | I19: 2011 | J19: 2012 | K19: 2013 | L19: 2014 | M19: 2015 | N19: 2016 | O19: 2017 | P19: 2018 | Q19: 2019 | R19: 2020 | S19: 2021 | T19: 2022 | U19: 2023 | V19: 2024
A20: January | B20: - | C20: - | D20: - | E20: - | F20: - | G20: - | H20: - | I20: - | J20: - | K20: - | L20: - | M20: 11841 | N20: 9688 | O20: 8955 | P20: 17171 | Q20: 15104 | R20: 13270 | S20: 16579 | T20: 19073 | U20: 13590 | V20: 12144
A21: February | B21: - | C21: - | D21: - | E21: - | F21: - | G21: - | H21: - | I21: - | J21: - | K21: - | L21: - | M21: 7770 | N21: 7583 | O21: 9122 | P21: 28753 | Q21: 9043 | R21: 12279 | S21: 7620 | T21: 8605 | U21: 9696 | V21: 12374
A22: March | B22: - | C22: - | D22: - | E22: - | F22: - | G22: - | H22: - | I22: - | J22: - | K22: - | L22: - | M22: 10194 | N22: 5019 | O22: 4443 | P22: 6854 | Q22: 9497 | R22: 7100 | S22: 7219 | T22: 7133 | U22: 9584 | V22: 8131
A23: April | B23: - | C23: - | D23: - | E23: - | F23: - | G23: - | H23: - | I23: - | J23: - | K23: - | L23: - | M23: 13724 | N23: 5619 | O23: 6292 | P23: 7199 | Q23: 8062 | R23: 8198 | S23: 11117 | T23: 11079 | U23: 11185 | V23: 9519
A24: May | B24: - | C24: - | D24: - | E24: - | F24: - | G24: - | H24: - | I24: - | J24: - | K24: - | L24: - | M24: 10353 | N24: 6372 | O24: 5241 | P24: 6846 | Q24: 7787 | R24: 7085 | S24: 10518 | T24: 7905 | U24: 8952 | V24: 9794
A25: June | B25: - | C25: - | D25: - | E25: - | F25: - | G25: - | H25: - | I25: - | J25: - | K25: - | L25: - | M25: 20818 | N25: 9418 | O25: 12805 | P25: 9514 | Q25: 9473 | R25: 10780 | S25: 13743 | T25: 10440 | U25: 13342 | V25: 17665
A26: July | B26: - | C26: - | D26: - | E26: - | F26: - | G26: - | H26: - | I26: - | J26: - | K26: - | L26: 0 | M26: 11778 | N26: 9387 | O26: 12645 | P26: 11276 | Q26: 12062 | R26: 14025 | S26: 14999 | T26: 13704 | U26: 29425 | V26: 19877
A27: August | B27: - | C27: - | D27: - | E27: - | F27: - | G27: - | H27: - | I27: - | J27: - | K27: - | L27: 9291 | M27: 11077 | N27: 11144 | O27: 13898 | P27: 14802 | Q27: 19172 | R27: 14945 | S27: 10236 | T27: 10037 | U27: 13674 | V27: 17885.1
A28: September | B28: - | C28: - | D28: - | E28: - | F28: - | G28: - | H28: - | I28: - | J28: - | K28: - | L28: 6793 | M28: 7544 | N28: 7023 | O28: 10741 | P28: 9501 | Q28: 10892 | R28: 11614 | S28: 7283 | T28: 14591 | U28: 18927 | V28: 19486.37
A29: October | B29: - | C29: - | D29: - | E29: - | F29: - | G29: - | H29: - | I29: - | J29: - | K29: - | L29: 14467 | M29: 8340 | N29: 6934 | O29: 10523 | P29: 9783 | Q29: 11515 | R29: 11488 | S29: 10384 | T29: 15317 | U29: 20070 | V29: 12873.53
A30: November | B30: - | C30: - | D30: - | E30: - | F30: - | G30: - | H30: - | I30: - | J30: - | K30: - | L30: 7579 | M30: 8764 | N30: 5525 | O30: 8010 | P30: 13256 | Q30: 12844 | R30: 10846 | S30: 3031 | T30: 13167 | U30: 13587 | V30: 12153.17
A31: December | B31: - | C31: - | D31: - | E31: - | F31: - | G31: - | H31: - | I31: - | J31: - | K31: - | L31: 8413 | M31: 4758 | N31: 5896 | O31: 14348 | P31: 12654 | Q31: 7463 | R31: 9097 | S31: 12467 | T31: 10658 | U31: 15667 | V31: 11997.9
A32: Total | B32: - | C32: - | D32: - | E32: - | F32: - | G32: - | H32: - | I32: - | J32: - | K32: - | L32: =SUM(L20:L31) -> 46543 | M32: 126961 | N32: 89608 | O32: 117023 | P32: 147609 | Q32: 132914 | R32: =SUM(R20:R31) -> 130727 | S32: =SUM(S20:S31) -> 125196 | T32: 141709 | U32: =SUM(U20:U31) -> 177699 | V32: 163900.07
A33: Becker County Transit Refunds
A34: Month | B34: 2004 | C34: 2005 | D34: 2006 | E34: 2007 | F34: 2008 | G34: 2009 | H34: 2010 | I34: 2011 | J34: 2012 | K34: 2013 | L34: 2014 | M34: 2015 | N34: 2016 | O34: 2017 | P34: 2018 | Q34: 2019 | R34: 2020 | S34: 2021 | T34: 2022 | U34: 2023 | V34: 2024
A35: January | B35: - | C35: - | D35: - | E35: - | F35: - | G35: - | H35: - | I35: - | J35: - | K35: - | L35: - | M35: 0 | N35: -79 | O35: -8 | P35: -4 | Q35: 0 | R35: 0 | S35: 0 | T35: 0 | U35: 0 | V35: -4823
A36: February | B36: - | C36: - | D36: - | E36: - | F36: - | G36: - | H36: - | I36: - | J36: - | K36: - | L36: - | M36: -2205 | N36: -3899 | O36: -68 | P36: 0 | Q36: -11 | R36: -588 | S36: -126 | T36: -133 | U36: 0 | V36: -9
A37: March | B37: - | C37: - | D37: - | E37: - | F37: - | G37: - | H37: - | I37: - | J37: - | K37: - | L37: - | M37: 0 | N37: -389 | O37: 0 | P37: 0 | Q37: 0 | R37: -39 | S37: 0 | T37: 0 | U37: 0 | V37: 0
A38: April | B38: - | C38: - | D38: - | E38: - | F38: - | G38: - | H38: - | I38: - | J38: - | K38: - | L38: - | M38: -9 | N38: -15340 | O38: 0 | P38: -40 | Q38: -3278 | R38: 0 | S38: -427 | T38: -215 | U38: -239 | V38: -1722
A39: May | B39: - | C39: - | D39: - | E39: - | F39: - | G39: - | H39: - | I39: - | J39: - | K39: - | L39: - | M39: 0 | N39: 0 | O39: 0 | P39: -123 | Q39: 0 | R39: -55 | S39: 0 | T39: -61 | U39: 0 | V39: -819
A40: June | B40: - | C40: - | D40: - | E40: - | F40: - | G40: - | H40: - | I40: - | J40: - | K40: - | L40: - | M40: -11 | N40: -333 | O40: -561 | P40: -372 | Q40: 0 | R40: 0 | S40: 0 | T40: -182 | U40: 0 | V40: -1097
A41: July | B41: - | C41: - | D41: - | E41: - | F41: - | G41: - | H41: - | I41: - | J41: - | K41: - | L41: 0 | M41: -3037 | N41: -498 | O41: 0 | P41: -249 | Q41: 0 | R41: -341 | S41: 0 | T41: -4 | U41: -121 | V41: -1899
A42: August | B42: - | C42: - | D42: - | E42: - | F42: - | G42: - | H42: - | I42: - | J42: - | K42: - | L42: 0 | M42: -1042 | N42: 0 | O42: -152 | P42: 0 | Q42: 0 | R42: -236 | S42: -5534 | T42: -3 | U42: -4088 | V42: -0.65
A43: September | B43: - | C43: - | D43: - | E43: - | F43: - | G43: - | H43: - | I43: - | J43: - | K43: - | L43: 0 | M43: -1 | N43: -5397 | O43: 0 | P43: 0 | Q43: 0 | R43: 0 | S43: 0 | T43: 0 | U43: -3941 | V43: -4415.39
A44: October | B44: - | C44: - | D44: - | E44: - | F44: - | G44: - | H44: - | I44: - | J44: - | K44: - | L44: 0 | M44: 0 | N44: 0 | O44: 0 | P44: 0 | Q44: 0 | R44: -505 | S44: -979 | T44: 0 | U44: -10141 | V44: -346.78
A45: November | B45: - | C45: - | D45: - | E45: - | F45: - | G45: - | H45: - | I45: - | J45: - | K45: - | L45: 0 | M45: 0 | N45: 0 | O45: -740 | P45: 0 | Q45: -588 | R45: -8 | S45: 0 | T45: -2039 | U45: 0 | V45: -354.58
A46: December | B46: - | C46: - | D46: - | E46: - | F46: - | G46: - | H46: - | I46: - | J46: - | K46: - | L46: -2941 | M46: 0 | N46: -53 | O46: -61 | P46: -12 | Q46: -39 | R46: 0 | S46: -1001 | T46: -8 | U46: -115 | V46: 386.9
A47: Total | B47: - | C47: - | D47: - | E47: - | F47: - | G47: - | H47: - | I47: - | J47: - | K47: - | L47: =SUM(L35:L46) -> -2941 | M47: -6305 | N47: -25988 | O47: -1590 | P47: -800 | Q47: -3916 | R47: =SUM(R35:R46) -> -1772 | S47: =SUM(S35:S46) -> -8067 | T47: -2645 | U47: =SUM(U35:U46) -> -18645 | V47: -15099.5
A48: Hidden columns B-K do not contain any data for CY 2004-2013
A49: ='Local SUT'!A78 -> Source: Minnesota Department of Revenue, Tax Research Division, November 2025
A50: end of worksheet

Sheet Beltrami Co (Transit) (hidden)
A1: Beltrami County Monthly Detail for Minnesota Local Sales & Use Tax
A2: ='Local SUT'!A2 -> CY 2004-2024
A3: Beltrami County Transit Sales Tax (0.5%)
A4: Month | B4: 2004 | C4: 2005 | D4: 2006 | E4: 2007 | F4: 2008 | G4: 2009 | H4: 2010 | I4: 2011 | J4: 2012 | K4: 2013 | L4: 2014 | M4: 2015 | N4: 2016 | O4: 2017 | P4: 2018 | Q4: 2019 | R4: 2020 | S4: 2021 | T4: 2022 | U4: 2023 | V4: 2024
A5: January | B5: - | C5: - | D5: - | E5: - | F5: - | G5: - | H5: - | I5: - | J5: - | K5: - | L5: - | M5: 255003 | N5: 277762 | O5: 278259 | P5: 271869 | Q5: 306104 | R5: 315370 | S5: 359541 | T5: 346366 | U5: 385398 | V5: 399224
A6: February | B6: - | C6: - | D6: - | E6: - | F6: - | G6: - | H6: - | I6: - | J6: - | K6: - | L6: - | M6: 206003 | N6: 207425 | O6: 209164 | P6: 213817 | Q6: 236072 | R6: 237216 | S6: 302560 | T6: 293675 | U6: 312800 | V6: 304182
A7: March | B7: - | C7: - | D7: - | E7: - | F7: - | G7: - | H7: - | I7: - | J7: - | K7: - | L7: - | M7: 220091 | N7: 204900 | O7: 204569 | P7: 202314 | Q7: 220589 | R7: 236686 | S7: 289896 | T7: 290327 | U7: 288790 | V7: 304957
A8: April | B8: - | C8: - | D8: - | E8: - | F8: - | G8: - | H8: - | I8: - | J8: - | K8: - | L8: - | M8: 219466 | N8: 237455 | O8: 234070 | P8: 264245 | Q8: 264117 | R8: 245540 | S8: 365071 | T8: 341434 | U8: 337716 | V8: 323925
A9: May | B9: - | C9: - | D9: - | E9: - | F9: - | G9: - | H9: - | I9: - | J9: - | K9: - | L9: 170028 | M9: 222213 | N9: 228718 | O9: 236548 | P9: 242478 | Q9: 262542 | R9: 259089 | S9: 333845 | T9: 316623 | U9: 320652 | V9: 338507
A10: June | B10: - | C10: - | D10: - | E10: - | F10: - | G10: - | H10: - | I10: - | J10: - | K10: - | L10: 243203 | M10: 261085 | N10: 261493 | O10: 271459 | P10: 303750 | Q10: 316287 | R10: 331902 | S10: 373458 | T10: 445684 | U10: 405057 | V10: 398795
A11: July | B11: - | C11: - | D11: - | E11: - | F11: - | G11: - | H11: - | I11: - | J11: - | K11: - | L11: 230301 | M11: 235717 | N11: 248048 | O11: 254255 | P11: 264870 | Q11: 314021 | R11: 320943 | S11: 392633 | T11: 420118 | U11: 449092 | V11: 413095
A12: August | B12: - | C12: - | D12: - | E12: - | F12: - | G12: - | H12: - | I12: - | J12: - | K12: - | L12: 285126 | M12: 332290 | N12: 312714 | O12: 328176 | P12: 360354 | Q12: 357376 | R12: 393490 | S12: 435678 | T12: 423152 | U12: 428201 | V12: 395290.35
A13: September | B13: - | C13: - | D13: - | E13: - | F13: - | G13: - | H13: - | I13: - | J13: - | K13: - | L13: 252907 | M13: 274125 | N13: 273145 | O13: 287655 | P13: 304481 | Q13: 325557 | R13: 335009 | S13: 373824 | T13: 393680 | U13: 412890 | V13: 401191.83
A14: October | B14: - | C14: - | D14: - | E14: - | F14: - | G14: - | H14: - | I14: - | J14: - | K14: - | L14: 252324 | M14: 263421 | N14: 271404 | O14: 269817 | P14: 284915 | Q14: 311551 | R14: 343665 | S14: 404458 | T14: 389789 | U14: 394535 | V14: 371037.2
A15: November | B15: - | C15: - | D15: - | E15: - | F15: - | G15: - | H15: - | I15: - | J15: - | K15: - | L15: 236177 | M15: 249186 | N15: 253745 | O15: 253605 | P15: 278586 | Q15: 287829 | R15: 311988 | S15: 348364 | T15: 374318 | U15: 371079 | V15: 363403.01
A16: December | B16: - | C16: - | D16: - | E16: - | F16: - | G16: - | H16: - | I16: - | J16: - | K16: - | L16: 225613 | M16: 220934 | N16: 237455 | O16: 245306 | P16: 266524 | Q16: 265060 | R16: 292833 | S16: 324534 | T16: 410976 | U16: 343258 | V16: 342649.64
A17: Total | B17: - | C17: - | D17: - | E17: - | F17: - | G17: - | H17: - | I17: - | J17: - | K17: - | L17: =SUM(L5:L16) -> 1895679 | M17: 2959534 | N17: 3014264 | O17: 3072883 | P17: 3258203 | Q17: 3467105 | R17: =SUM(R5:R16) -> 3623731 | S17: =SUM(S5:S16) -> 4303862 | T17: 4446142 | U17: =SUM(U5:U16) -> 4449468 | V17: 4356257.03
A18: Beltrami County Transit Use Tax (0.5%)
A19: Month | B19: 2004 | C19: 2005 | D19: 2006 | E19: 2007 | F19: 2008 | G19: 2009 | H19: 2010 | I19: 2011 | J19: 2012 | K19: 2013 | L19: 2014 | M19: 2015 | N19: 2016 | O19: 2017 | P19: 2018 | Q19: 2019 | R19: 2020 | S19: 2021 | T19: 2022 | U19: 2023 | V19: 2024
A20: January | B20: - | C20: - | D20: - | E20: - | F20: - | G20: - | H20: - | I20: - | J20: - | K20: - | L20: - | M20: 31539 | N20: 138189 | O20: 14699 | P20: 10072 | Q20: 25727 | R20: 17350 | S20: 20392 | T20: 17569 | U20: 12075 | V20: 16863
A21: February | B21: - | C21: - | D21: - | E21: - | F21: - | G21: - | H21: - | I21: - | J21: - | K21: - | L21: - | M21: 181035 | N21: 19076 | O21: 11757 | P21: 8541 | Q21: 11982 | R21: 17099 | S21: 19263 | T21: 15145 | U21: 15524 | V21: 19517
A22: March | B22: - | C22: - | D22: - | E22: - | F22: - | G22: - | H22: - | I22: - | J22: - | K22: - | L22: - | M22: 9310 | N22: 50353 | O22: 6802 | P22: 7605 | Q22: 13653 | R22: 6963 | S22: 29603 | T22: 13379 | U22: 8526 | V22: 10434
A23: April | B23: - | C23: - | D23: - | E23: - | F23: - | G23: - | H23: - | I23: - | J23: - | K23: - | L23: - | M23: 12159 | N23: 296187 | O23: 207476 | P23: 11274 | Q23: 8772 | R23: 7554 | S23: 27855 | T23: 12328 | U23: 23548 | V23: 9427
A24: May | B24: - | C24: - | D24: - | E24: - | F24: - | G24: - | H24: - | I24: - | J24: - | K24: - | L24: 6463 | M24: 94917 | N24: 38493 | O24: 9661 | P24: 15076 | Q24: 8886 | R24: 6356 | S24: 18896 | T24: 14563 | U24: 9107 | V24: 12632
A25: June | B25: - | C25: - | D25: - | E25: - | F25: - | G25: - | H25: - | I25: - | J25: - | K25: - | L25: 10156 | M25: 15463 | N25: 18761 | O25: 23255 | P25: 11573 | Q25: 8669 | R25: 7387 | S25: 16688 | T25: 20999 | U25: 14798 | V25: 14954
A26: July | B26: - | C26: - | D26: - | E26: - | F26: - | G26: - | H26: - | I26: - | J26: - | K26: - | L26: 12385 | M26: 16842 | N26: 21866 | O26: 12946 | P26: 11257 | Q26: 25427 | R26: 10362 | S26: 414072 | T26: 19787 | U26: 20650 | V26: 11650
A27: August | B27: - | C27: - | D27: - | E27: - | F27: - | G27: - | H27: - | I27: - | J27: - | K27: - | L27: 22159 | M27: 15710 | N27: 13659 | O27: 13036 | P27: 15749 | Q27: 14047 | R27: 12188 | S27: 27595 | T27: 19236 | U27: 16419 | V27: 24228.58
A28: September | B28: - | C28: - | D28: - | E28: - | F28: - | G28: - | H28: - | I28: - | J28: - | K28: - | L28: 19874 | M28: 10368 | N28: 14009 | O28: 53827 | P28: 9338 | Q28: 18098 | R28: 12521 | S28: 29399 | T28: 10127 | U28: 20833 | V28: 18082.63
A29: October | B29: - | C29: - | D29: - | E29: - | F29: - | G29: - | H29: - | I29: - | J29: - | K29: - | L29: 23451 | M29: 15945 | N29: 15824 | O29: 13078 | P29: 17209 | Q29: 28596 | R29: 17133 | S29: 35491 | T29: 14120 | U29: 17811 | V29: 18766
A30: November | B30: - | C30: - | D30: - | E30: - | F30: - | G30: - | H30: - | I30: - | J30: - | K30: - | L30: 15477 | M30: 35302 | N30: 9308 | O30: 14842 | P30: 19421 | Q30: 25767 | R30: 11767 | S30: 8727 | T30: 14102 | U30: 17275 | V30: 14258.04
A31: December | B31: - | C31: - | D31: - | E31: - | F31: - | G31: - | H31: - | I31: - | J31: - | K31: - | L31: 14050 | M31: 24553 | N31: 8657 | O31: 10888 | P31: 13320 | Q31: 16497 | R31: 12270 | S31: 12824 | T31: 12912 | U31: 15011 | V31: 8037.47
A32: Total | B32: - | C32: - | D32: - | E32: - | F32: - | G32: - | H32: - | I32: - | J32: - | K32: - | L32: =SUM(L20:L31) -> 124015 | M32: 463143 | N32: 644382 | O32: 392267 | P32: 150435 | Q32: 206121 | R32: =SUM(R20:R31) -> 138950 | S32: =SUM(S20:S31) -> 660805 | T32: 184267 | U32: =SUM(U20:U31) -> 191577 | V32: 178849.72
A33: Beltrami County Transit Refunds
A34: Month | B34: 2004 | C34: 2005 | D34: 2006 | E34: 2007 | F34: 2008 | G34: 2009 | H34: 2010 | I34: 2011 | J34: 2012 | K34: 2013 | L34: 2014 | M34: 2015 | N34: 2016 | O34: 2017 | P34: 2018 | Q34: 2019 | R34: 2020 | S34: 2021 | T34: 2022 | U34: 2023 | V34: 2024
A35: January | B35: - | C35: - | D35: - | E35: - | F35: - | G35: - | H35: - | I35: - | J35: - | K35: - | L35: - | M35: 0 | N35: -22 | O35: -8 | P35: -89 | Q35: -6 | R35: -15 | S35: 0 | T35: 0 | U35: 0 | V35: -158
A36: February | B36: - | C36: - | D36: - | E36: - | F36: - | G36: - | H36: - | I36: - | J36: - | K36: - | L36: - | M36: 0 | N36: -439 | O36: -153 | P36: 0 | Q36: -258 | R36: 0 | S36: 0 | T36: 0 | U36: -4 | V36: 0
A37: March | B37: - | C37: - | D37: - | E37: - | F37: - | G37: - | H37: - | I37: - | J37: - | K37: - | L37: - | M37: -510 | N37: -397 | O37: -2719 | P37: -9409 | Q37: 0 | R37: -77 | S37: -14 | T37: -2278 | U37: 0 | V37: -653
A38: April | B38: - | C38: - | D38: - | E38: - | F38: - | G38: - | H38: - | I38: - | J38: - | K38: - | L38: - | M38: 0 | N38: -146 | O38: -6444 | P38: -149 | Q38: -63 | R38: -15 | S38: 0 | T38: 0 | U38: 0 | V38: -390
A39: May | B39: - | C39: - | D39: - | E39: - | F39: - | G39: - | H39: - | I39: - | J39: - | K39: - | L39: 0 | M39: -15 | N39: 0 | O39: -13720 | P39: -449 | Q39: 0 | R39: -77 | S39: 0 | T39: -1369 | U39: 0 | V39: 0
A40: June | B40: - | C40: - | D40: - | E40: - | F40: - | G40: - | H40: - | I40: - | J40: - | K40: - | L40: 0 | M40: -90 | N40: -2826 | O40: -4974 | P40: -64 | Q40: -1 | R40: -264 | S40: -496 | T40: -9943 | U40: -66 | V40: 0
A41: July | B41: - | C41: - | D41: - | E41: - | F41: - | G41: - | H41: - | I41: - | J41: - | K41: - | L41: 0 | M41: 0 | N41: 0 | O41: -51 | P41: 0 | Q41: -1041 | R41: -27 | S41: 0 | T41: -9 | U41: -410 | V41: -786
A42: August | B42: - | C42: - | D42: - | E42: - | F42: - | G42: - | H42: - | I42: - | J42: - | K42: - | L42: 0 | M42: -35 | N42: -1083 | O42: -70 | P42: 0 | Q42: -405 | R42: -77 | S42: 0 | T42: 0 | U42: 0 | V42: -0.02
A43: September | B43: - | C43: - | D43: - | E43: - | F43: - | G43: - | H43: - | I43: - | J43: - | K43: - | L43: 0 | M43: -1 | N43: -806 | O43: -2821 | P43: 0 | Q43: -1 | R43: 0 | S43: 0 | T43: 0 | U43: 0 | V43: -3.09
A44: October | B44: - | C44: - | D44: - | E44: - | F44: - | G44: - | H44: - | I44: - | J44: - | K44: - | L44: -1260 | M44: -1695 | N44: -60 | O44: -197 | P44: -90 | Q44: 0 | R44: 0 | S44: -54 | T44: 0 | U44: -1486 | V44: -4.45
A45: November | B45: - | C45: - | D45: - | E45: - | F45: - | G45: - | H45: - | I45: - | J45: - | K45: - | L45: 0 | M45: 0 | N45: 0 | O45: -39 | P45: 0 | Q45: 0 | R45: -291 | S45: -9 | T45: 0 | U45: -11059 | V45: 0
A46: December | B46: - | C46: - | D46: - | E46: - | F46: - | G46: - | H46: - | I46: - | J46: - | K46: - | L46: -11488 | M46: -5635 | N46: 0 | O46: -1498 | P46: 0 | Q46: 0 | R46: 0 | S46: 0 | T46: -14 | U46: 0 | V46: -4203.67
A47: Total | B47: - | C47: - | D47: - | E47: - | F47: - | G47: - | H47: - | I47: - | J47: - | K47: - | L47: =SUM(L35:L46) -> -12748 | M47: -7981 | N47: -5779 | O47: -32694 | P47: -10250 | Q47: -1775 | R47: =SUM(R35:R46) -> -843 | S47: =SUM(S35:S46) -> -573 | T47: -13613 | U47: =SUM(U35:U46) -> -13025 | V47: -6198.23
A48: Hidden columns B-K do not contain any data for CY 2004-2013
A49: ='Local SUT'!A78 -> Source: Minnesota Department of Revenue, Tax Research Division, November 2025
A50: end of worksheet

Sheet Beltrami Cty (hidden)
A1: Beltrami County Monthly Detail for Minnesota Local Sales & Use Tax
A2: ='Local SUT'!A2 -> CY 2004-2024
A3: Beltrami County Transit Sales Tax (0.5%)
A4: Month | B4: 2004 | C4: 2005 | D4: 2006 | E4: 2007 | F4: 2008 | G4: 2009 | H4: 2010 | I4: 2011 | J4: 2012 | K4: 2013 | L4: 2014 | M4: 2015 | N4: 2016 | O4: 2017 | P4: 2018 | Q4: 2019 | R4: 2020 | S4: 2021 | T4: 2022 | U4: 2023 | V4: 2024
A5: January | B5: - | C5: - | D5: - | E5: - | F5: - | G5: - | H5: - | I5: - | J5: - | K5: - | L5: - | M5: - | N5: - | O5: - | P5: - | Q5: - | R5: - | S5: - | T5: - | U5: - | V5: -
A6: February | B6: - | C6: - | D6: - | E6: - | F6: - | G6: - | H6: - | I6: - | J6: - | K6: - | L6: - | M6: - | N6: - | O6: - | P6: - | Q6: - | R6: - | S6: - | T6: - | U6: - | V6: -
A7: March | B7: - | C7: - | D7: - | E7: - | F7: - | G7: - | H7: - | I7: - | J7: - | K7: - | L7: - | M7: - | N7: - | O7: - | P7: - | Q7: - | R7: - | S7: - | T7: - | U7: - | V7: -
A8: April | B8: - | C8: - | D8: - | E8: - | F8: - | G8: - | H8: - | I8: - | J8: - | K8: - | L8: - | M8: - | N8: - | O8: - | P8: - | Q8: - | R8: - | S8: - | T8: - | U8: - | V8: -
A9: May | B9: - | C9: - | D9: - | E9: - | F9: - | G9: - | H9: - | I9: - | J9: - | K9: - | L9: - | M9: - | N9: - | O9: - | P9: - | Q9: - | R9: - | S9: - | T9: - | U9: - | V9: -
A10: June | B10: - | C10: - | D10: - | E10: - | F10: - | G10: - | H10: - | I10: - | J10: - | K10: - | L10: - | M10: - | N10: - | O10: - | P10: - | Q10: - | R10: - | S10: - | T10: - | U10: - | V10: -
A11: July | B11: - | C11: - | D11: - | E11: - | F11: - | G11: - | H11: - | I11: - | J11: - | K11: - | L11: - | M11: - | N11: - | O11: - | P11: - | Q11: - | R11: - | S11: - | T11: - | U11: - | V11: 212
A12: August | B12: - | C12: - | D12: - | E12: - | F12: - | G12: - | H12: - | I12: - | J12: - | K12: - | L12: - | M12: - | N12: - | O12: - | P12: - | Q12: - | R12: - | S12: - | T12: - | U12: - | V12: 446406
A13: September | B13: - | C13: - | D13: - | E13: - | F13: - | G13: - | H13: - | I13: - | J13: - | K13: - | L13: - | M13: - | N13: - | O13: - | P13: - | Q13: - | R13: - | S13: - | T13: - | U13: - | V13: 464770
A14: October | B14: - | C14: - | D14: - | E14: - | F14: - | G14: - | H14: - | I14: - | J14: - | K14: - | L14: - | M14: - | N14: - | O14: - | P14: - | Q14: - | R14: - | S14: - | T14: - | U14: - | V14: 441782
A15: November | B15: - | C15: - | D15: - | E15: - | F15: - | G15: - | H15: - | I15: - | J15: - | K15: - | L15: - | M15: - | N15: - | O15: - | P15: - | Q15: - | R15: - | S15: - | T15: - | U15: - | V15: 425603
A16: December | B16: - | C16: - | D16: - | E16: - | F16: - | G16: - | H16: - | I16: - | J16: - | K16: - | L16: - | M16: - | N16: - | O16: - | P16: - | Q16: - | R16: - | S16: - | T16: - | U16: - | V16: 411168
A17: Total | B17: - | C17: - | D17: - | E17: - | F17: - | G17: - | H17: - | I17: - | J17: - | K17: - | L17: =SUM(L5:L16) -> 0 | M17: 0 | N17: 0 | O17: 0 | P17: 0 | Q17: 0 | R17: 0 | S17: 0 | T17: 0 | U17: 0 | V17: 2189941
A18: Beltrami County Transit Use Tax (0.5%)
A19: Month | B19: 2004 | C19: 2005 | D19: 2006 | E19: 2007 | F19: 2008 | G19: 2009 | H19: 2010 | I19: 2011 | J19: 2012 | K19: 2013 | L19: 2014 | M19: 2015 | N19: 2016 | O19: 2017 | P19: 2018 | Q19: 2019 | R19: 2020 | S19: 2021 | T19: 2022 | U19: 2023 | V19: 2024
A20: January | B20: - | C20: - | D20: - | E20: - | F20: - | G20: - | H20: - | I20: - | J20: - | K20: - | L20: - | M20: - | N20: - | O20: - | P20: - | Q20: - | R20: - | S20: - | T20: - | U20: - | V20: -
A21: February | B21: - | C21: - | D21: - | E21: - | F21: - | G21: - | H21: - | I21: - | J21: - | K21: - | L21: - | M21: - | N21: - | O21: - | P21: - | Q21: - | R21: - | S21: - | T21: - | U21: - | V21: -
A22: March | B22: - | C22: - | D22: - | E22: - | F22: - | G22: - | H22: - | I22: - | J22: - | K22: - | L22: - | M22: - | N22: - | O22: - | P22: - | Q22: - | R22: - | S22: - | T22: - | U22: - | V22: -
A23: April | B23: - | C23: - | D23: - | E23: - | F23: - | G23: - | H23: - | I23: - | J23: - | K23: - | L23: - | M23: - | N23: - | O23: - | P23: - | Q23: - | R23: - | S23: - | T23: - | U23: - | V23: -
A24: May | B24: - | C24: - | D24: - | E24: - | F24: - | G24: - | H24: - | I24: - | J24: - | K24: - | L24: - | M24: - | N24: - | O24: - | P24: - | Q24: - | R24: - | S24: - | T24: - | U24: - | V24: -
A25: June | B25: - | C25: - | D25: - | E25: - | F25: - | G25: - | H25: - | I25: - | J25: - | K25: - | L25: - | M25: - | N25: - | O25: - | P25: - | Q25: - | R25: - | S25: - | T25: - | U25: - | V25: -
A26: July | B26: - | C26: - | D26: - | E26: - | F26: - | G26: - | H26: - | I26: - | J26: - | K26: - | L26: - | M26: - | N26: - | O26: - | P26: - | Q26: - | R26: - | S26: - | T26: - | U26: - | V26: 0
A27: August | B27: - | C27: - | D27: - | E27: - | F27: - | G27: - | H27: - | I27: - | J27: - | K27: - | L27: - | M27: - | N27: - | O27: - | P27: - | Q27: - | R27: - | S27: - | T27: - | U27: - | V27: 13513
A28: September | B28: - | C28: - | D28: - | E28: - | F28: - | G28: - | H28: - | I28: - | J28: - | K28: - | L28: - | M28: - | N28: - | O28: - | P28: - | Q28: - | R28: - | S28: - | T28: - | U28: - | V28: 15244
A29: October | B29: - | C29: - | D29: - | E29: - | F29: - | G29: - | H29: - | I29: - | J29: - | K29: - | L29: - | M29: - | N29: - | O29: - | P29: - | Q29: - | R29: - | S29: - | T29: - | U29: - | V29: 16550
A30: November | B30: - | C30: - | D30: - | E30: - | F30: - | G30: - | H30: - | I30: - | J30: - | K30: - | L30: - | M30: - | N30: - | O30: - | P30: - | Q30: - | R30: - | S30: - | T30: - | U30: - | V30: 10127
A31: December | B31: - | C31: - | D31: - | E31: - | F31: - | G31: - | H31: - | I31: - | J31: - | K31: - | L31: - | M31: - | N31: - | O31: - | P31: - | Q31: - | R31: - | S31: - | T31: - | U31: - | V31: 6996
A32: Total | B32: - | C32: - | D32: - | E32: - | F32: - | G32: - | H32: - | I32: - | J32: - | K32: - | L32: =SUM(L20:L31) -> 0 | M32: 0 | N32: 0 | O32: 0 | P32: 0 | Q32: 0 | R32: 0 | S32: 0 | T32: 0 | U32: 0 | V32: 62430
A33: Beltrami County Transit Refunds
A34: Month | B34: 2004 | C34: 2005 | D34: 2006 | E34: 2007 | F34: 2008 | G34: 2009 | H34: 2010 | I34: 2011 | J34: 2012 | K34: 2013 | L34: 2014 | M34: 2015 | N34: 2016 | O34: 2017 | P34: 2018 | Q34: 2019 | R34: 2020 | S34: 2021 | T34: 2022 | U34: 2023 | V34: 2024
A35: January | B35: - | C35: - | D35: - | E35: - | F35: - | G35: - | H35: - | I35: - | J35: - | K35: - | L35: - | M35: - | N35: - | O35: - | P35: - | Q35: - | R35: - | S35: - | T35: - | U35: - | V35: -
A36: February | B36: - | C36: - | D36: - | E36: - | F36: - | G36: - | H36: - | I36: - | J36: - | K36: - | L36: - | M36: - | N36: - | O36: - | P36: - | Q36: - | R36: - | S36: - | T36: - | U36: - | V36: -
A37: March | B37: - | C37: - | D37: - | E37: - | F37: - | G37: - | H37: - | I37: - | J37: - | K37: - | L37: - | M37: - | N37: - | O37: - | P37: - | Q37: - | R37: - | S37: - | T37: - | U37: - | V37: -
A38: April | B38: - | C38: - | D38: - | E38: - | F38: - | G38: - | H38: - | I38: - | J38: - | K38: - | L38: - | M38: - | N38: - | O38: - | P38: - | Q38: - | R38: - | S38: - | T38: - | U38: - | V38: -
A39: May | B39: - | C39: - | D39: - | E39: - | F39: - | G39: - | H39: - | I39: - | J39: - | K39: - | L39: - | M39: - | N39: - | O39: - | P39: - | Q39: - | R39: - | S39: - | T39: - | U39: - | V39: -
A40: June | B40: - | C40: - | D40: - | E40: - | F40: - | G40: - | H40: - | I40: - | J40: - | K40: - | L40: - | M40: - | N40: - | O40: - | P40: - | Q40: - | R40: - | S40: - | T40: - | U40: - | V40: -
A41: July | B41: - | C41: - | D41: - | E41: - | F41: - | G41: - | H41: - | I41: - | J41: - | K41: - | L41: - | M41: - | N41: - | O41: - | P41: - | Q41: - | R41: - | S41: - | T41: - | U41: - | V41: -
A42: August | B42: - | C42: - | D42: - | E42: - | F42: - | G42: - | H42: - | I42: - | J42: - | K42: - | L42: - | M42: - | N42: - | O42: - | P42: - | Q42: - | R42: - | S42: - | T42: - | U42: - | V42: -
A43: September | B43: - | C43: - | D43: - | E43: - | F43: - | G43: - | H43: - | I43: - | J43: - | K43: - | L43: - | M43: - | N43: - | O43: - | P43: - | Q43: - | R43: - | S43: - | T43: - | U43: - | V43: -
A44: October | B44: - | C44: - | D44: - | E44: - | F44: - | G44: - | H44: - | I44: - | J44: - | K44: - | L44: - | M44: - | N44: - | O44: - | P44: - | Q44: - | R44: - | S44: - | T44: - | U44: - | V44: -
A45: November | B45: - | C45: - | D45: - | E45: - | F45: - | G45: - | H45: - | I45: - | J45: - | K45: - | L45: - | M45: - | N45: - | O45: - | P45: - | Q45: - | R45: - | S45: - | T45: - | U45: - | V45: -
A46: December | B46: - | C46: - | D46: - | E46: - | F46: - | G46: - | H46: - | I46: - | J46: - | K46: - | L46: - | M46: - | N46: - | O46: - | P46: - | Q46: - | R46: - | S46: - | T46: - | U46: - | V46: -
A47: Total | B47: - | C47: - | D47: - | E47: - | F47: - | G47: - | H47: - | I47: - | J47: - | K47: - | L47: =SUM(L35:L46) -> 0 | M47: 0 | N47: 0 | O47: 0 | P47: 0 | Q47: 0 | R47: 0 | S47: 0 | T47: 0 | U47: 0 | V47: 0
A48: Hidden columns B-K do not contain any data for CY 2004-2013
A49: ='Local SUT'!A78 -> Source: Minnesota Department of Revenue, Tax Research Division, November 2025
A50: end of worksheet

Sheet Carlton Co (hidden)
A1: Carlton County Transit Monthly Detail for Minnesota Local Sales & Use Tax
A2: ='Local SUT'!A2 -> CY 2004-2024
A3: Carlton County Transit Sales Tax (0.5%)
A4: Month | B4: 2004 | C4: 2005 | D4: 2006 | E4: 2007 | F4: 2008 | G4: 2009 | H4: 2010 | I4: 2011 | J4: 2012 | K4: 2013 | L4: 2014 | M4: 2015 | N4: 2016 | O4: 2017 | P4: 2018 | Q4: 2019 | R4: 2020 | S4: 2021 | T4: 2022 | U4: 2023 | V4: 2024
A5: January | B5: - | C5: - | D5: - | E5: - | F5: - | G5: - | H5: - | I5: - | J5: - | K5: - | L5: - | M5: - | N5: 137209 | O5: 148276 | P5: 143142 | Q5: 149544 | R5: 176267 | S5: 200162 | T5: 196136 | U5: 217149 | V5: 219019
A6: February | B6: - | C6: - | D6: - | E6: - | F6: - | G6: - | H6: - | I6: - | J6: - | K6: - | L6: - | M6: - | N6: 109839 | O6: 111975 | P6: 107318 | Q6: 124761 | R6: 130136 | S6: 166345 | T6: 166965 | U6: 167978 | V6: 179357
A7: March | B7: - | C7: - | D7: - | E7: - | F7: - | G7: - | H7: - | I7: - | J7: - | K7: - | L7: - | M7: - | N7: 105126 | O7: 100880 | P7: 98738 | Q7: 113832 | R7: 117400 | S7: 154421 | T7: 151311 | U7: 156476 | V7: 202975
A8: April | B8: - | C8: - | D8: - | E8: - | F8: - | G8: - | H8: - | I8: - | J8: - | K8: - | L8: - | M8: 20 | N8: 118932 | O8: 117962 | P8: 125946 | Q8: 129078 | R8: 142537 | S8: 212875 | T8: 176509 | U8: 178967 | V8: 207436
A9: May | B9: - | C9: - | D9: - | E9: - | F9: - | G9: - | H9: - | I9: - | J9: - | K9: - | L9: - | M9: 89191 | N9: 114819 | O9: 114579 | P9: 111947 | Q9: 127781 | R9: 136351 | S9: 188076 | T9: 169077 | U9: 165774 | V9: 183997
A10: June | B10: - | C10: - | D10: - | E10: - | F10: - | G10: - | H10: - | I10: - | J10: - | K10: - | L10: - | M10: 117427 | N10: 131430 | O10: 134829 | P10: 149757 | Q10: 157285 | R10: 181078 | S10: 201756 | T10: 208680 | U10: 211162 | V10: 215342
A11: July | B11: - | C11: - | D11: - | E11: - | F11: - | G11: - | H11: - | I11: - | J11: - | K11: - | L11: - | M11: 116923 | N11: 132300 | O11: 147750 | P11: 142475 | Q11: 157464 | R11: 176202 | S11: 208902 | T11: 222262 | U11: 229158 | V11: 235639
A12: August | B12: - | C12: - | D12: - | E12: - | F12: - | G12: - | H12: - | I12: - | J12: - | K12: - | L12: - | M12: 131805 | N12: 146105 | O12: 147496 | P12: 156554 | Q12: 164732 | R12: 190155 | S12: 211601 | T12: 214588 | U12: 207687 | V12: 233488.2
A13: September | B13: - | C13: - | D13: - | E13: - | F13: - | G13: - | H13: - | I13: - | J13: - | K13: - | L13: - | M13: 123123 | N13: 134871 | O13: 141742 | P13: 144815 | Q13: 157219 | R13: 176724 | S13: 204264 | T13: 224443 | U13: 211731 | V13: 218451.45
A14: October | B14: - | C14: - | D14: - | E14: - | F14: - | G14: - | H14: - | I14: - | J14: - | K14: - | L14: - | M14: 130075 | N14: 136313 | O14: 152505 | P14: 145877 | Q14: 149984 | R14: 173987 | S14: 217801 | T14: 204647 | U14: 223330 | V14: 208847.42
A15: November | B15: - | C15: - | D15: - | E15: - | F15: - | G15: - | H15: - | I15: - | J15: - | K15: - | L15: - | M15: 127257 | N15: 131088 | O15: 128102 | P15: 153428 | Q15: 144400 | R15: 166812 | S15: 191595 | T15: 197743 | U15: 214117 | V15: 200625.92
A16: December | B16: - | C16: - | D16: - | E16: - | F16: - | G16: - | H16: - | I16: - | J16: - | K16: - | L16: - | M16: 112479 | N16: 129006 | O16: 122169 | P16: 134814 | Q16: 144564 | R16: 167649 | S16: 187078 | T16: 187736 | U16: 212138 | V16: 187402.16
A17: Total | B17: - | C17: - | D17: - | E17: - | F17: - | G17: - | H17: - | I17: - | J17: - | K17: - | L17: - | M17: =SUM(M5:M16) -> 948300 | N17: =SUM(N5:N16) -> 1527038 | O17: =SUM(O5:O16) -> 1568265 | P17: =SUM(P5:P16) -> 1614811 | Q17: =SUM(Q5:Q16) -> 1720644 | R17: =SUM(R5:R16) -> 1935298 | S17: =SUM(S5:S16) -> 2344876 | T17: 2320097 | U17: =SUM(U5:U16) -> 2395667 | V17: 2492580.15
A18: Carlton County Transit Use Tax (0.5%)
A19: Month | B19: 2004 | C19: 2005 | D19: 2006 | E19: 2007 | F19: 2008 | G19: 2009 | H19: 2010 | I19: 2011 | J19: 2012 | K19: 2013 | L19: 2014 | M19: 2015 | N19: 2016 | O19: 2017 | P19: 2018 | Q19: 2019 | R19: 2020 | S19: 2021 | T19: 2022 | U19: 2023 | V19: 2024
A20: January | B20: - | C20: - | D20: - | E20: - | F20: - | G20: - | H20: - | I20: - | J20: - | K20: - | L20: - | M20: - | N20: 40427 | O20: 13951 | P20: 16286 | Q20: 15849 | R20: 14024 | S20: 30457 | T20: 19616 | U20: 28063 | V20: 16254
A21: February | B21: - | C21: - | D21: - | E21: - | F21: - | G21: - | H21: - | I21: - | J21: - | K21: - | L21: - | M21: - | N21: 10342 | O21: 13191 | P21: 43911 | Q21: 15225 | R21: 7861 | S21: 18698 | T21: 19285 | U21: 19835 | V21: 19359
A22: March | B22: - | C22: - | D22: - | E22: - | F22: - | G22: - | H22: - | I22: - | J22: - | K22: - | L22: - | M22: - | N22: 21037 | O22: 9874 | P22: 16365 | Q22: 33264 | R22: 11027 | S22: 27591 | T22: 15170 | U22: 18415 | V22: 15637
A23: April | B23: - | C23: - | D23: - | E23: - | F23: - | G23: - | H23: - | I23: - | J23: - | K23: - | L23: - | M23: 0 | N23: 26465 | O23: 12765 | P23: 22859 | Q23: 14631 | R23: 10086 | S23: 22934 | T23: 13212 | U23: 18509 | V23: 11921
A24: May | B24: - | C24: - | D24: - | E24: - | F24: - | G24: - | H24: - | I24: - | J24: - | K24: - | L24: - | M24: 20944 | N24: 10891 | O24: 12828 | P24: 11625 | Q24: 10220 | R24: 7817 | S24: 19542 | T24: 16864 | U24: 15023 | V24: 11567
A25: June | B25: - | C25: - | D25: - | E25: - | F25: - | G25: - | H25: - | I25: - | J25: - | K25: - | L25: - | M25: 21717 | N25: 9518 | O25: 16292 | P25: 14426 | Q25: 13344 | R25: 21898 | S25: 21774 | T25: 14055 | U25: 22693 | V25: 14310
A26: July | B26: - | C26: - | D26: - | E26: - | F26: - | G26: - | H26: - | I26: - | J26: - | K26: - | L26: - | M26: 36033 | N26: 10653 | O26: 16678 | P26: 15282 | Q26: 10172 | R26: 17700 | S26: 661400 | T26: 20749 | U26: -17371 | V26: 22287
A27: August | B27: - | C27: - | D27: - | E27: - | F27: - | G27: - | H27: - | I27: - | J27: - | K27: - | L27: - | M27: 33456 | N27: 15345 | O27: 98241 | P27: 18125 | Q27: 28553 | R27: 10564 | S27: 30758 | T27: 25434 | U27: 18783 | V27: 34604.96
A28: September | B28: - | C28: - | D28: - | E28: - | F28: - | G28: - | H28: - | I28: - | J28: - | K28: - | L28: - | M28: 10052 | N28: 11313 | O28: 77804 | P28: 10886 | Q28: 13629 | R28: 20054 | S28: 32546 | T28: 23709 | U28: 20082 | V28: 29406.56
A29: October | B29: - | C29: - | D29: - | E29: - | F29: - | G29: - | H29: - | I29: - | J29: - | K29: - | L29: - | M29: 12059 | N29: 16247 | O29: 34115 | P29: 14119 | Q29: 25540 | R29: 19382 | S29: 28125 | T29: 21523 | U29: 26734 | V29: 22340.89
A30: November | B30: - | C30: - | D30: - | E30: - | F30: - | G30: - | H30: - | I30: - | J30: - | K30: - | L30: - | M30: 9875 | N30: 13755 | O30: 79036 | P30: 13087 | Q30: 13605 | R30: 12799 | S30: 22707 | T30: 19662 | U30: 21501 | V30: 24577.21
A31: December | B31: - | C31: - | D31: - | E31: - | F31: - | G31: - | H31: - | I31: - | J31: - | K31: - | L31: - | M31: 10322 | N31: 14771 | O31: 11620 | P31: 12096 | Q31: 10815 | R31: 12222 | S31: 21784 | T31: 21400 | U31: 18598 | V31: 17800.14
A32: Total | B32: - | C32: - | D32: - | E32: - | F32: - | G32: - | H32: - | I32: - | J32: - | K32: - | L32: - | M32: =SUM(M20:M31) -> 154458 | N32: =SUM(N20:N31) -> 200764 | O32: =SUM(O20:O31) -> 396395 | P32: =SUM(P20:P31) -> 209067 | Q32: =SUM(Q20:Q31) -> 204847 | R32: =SUM(R20:R31) -> 165434 | S32: =SUM(S20:S31) -> 938316 | T32: 230679 | U32: =SUM(U20:U31) -> 210865 | V32: 240064.76
A33: Carlton County Transit Refunds
A34: Month | B34: 2004 | C34: 2005 | D34: 2006 | E34: 2007 | F34: 2008 | G34: 2009 | H34: 2010 | I34: 2011 | J34: 2012 | K34: 2013 | L34: 2014 | M34: 2015 | N34: 2016 | O34: 2017 | P34: 2018 | Q34: 2019 | R34: 2020 | S34: 2021 | T34: 2022 | U34: 2023 | V34: 2024
A35: January | B35: - | C35: - | D35: - | E35: - | F35: - | G35: - | H35: - | I35: - | J35: - | K35: - | L35: - | M35: - | N35: -39 | O35: 0 | P35: -1 | Q35: 0 | R35: -5520 | S35: -15 | T35: 0 | U35: 0 | V35: 0
A36: February | B36: - | C36: - | D36: - | E36: - | F36: - | G36: - | H36: - | I36: - | J36: - | K36: - | L36: - | M36: - | N36: -24495 | O36: 0 | P36: 0 | Q36: -35 | R36: 0 | S36: 0 | T36: 0 | U36: 0 | V36: 0
A37: March | B37: - | C37: - | D37: - | E37: - | F37: - | G37: - | H37: - | I37: - | J37: - | K37: - | L37: - | M37: - | N37: -52 | O37: 0 | P37: 0 | Q37: 0 | R37: 0 | S37: -6 | T37: 0 | U37: 0 | V37: 0
A38: April | B38: - | C38: - | D38: - | E38: - | F38: - | G38: - | H38: - | I38: - | J38: - | K38: - | L38: - | M38: 0 | N38: -4 | O38: -10 | P38: -915 | Q38: -1993 | R38: -611 | S38: 0 | T38: 0 | U38: 0 | V38: 0
A39: May | B39: - | C39: - | D39: - | E39: - | F39: - | G39: - | H39: - | I39: - | J39: - | K39: - | L39: - | M39: 0 | N39: 0 | O39: 7 | P39: 0 | Q39: 0 | R39: -11359 | S39: 0 | T39: -16 | U39: 0 | V39: 0
A40: June | B40: - | C40: - | D40: - | E40: - | F40: - | G40: - | H40: - | I40: - | J40: - | K40: - | L40: - | M40: 0 | N40: -6655 | O40: 0 | P40: -37 | Q40: -149 | R40: 0 | S40: -39 | T40: 0 | U40: 0 | V40: 0
A41: July | B41: - | C41: - | D41: - | E41: - | F41: - | G41: - | H41: - | I41: - | J41: - | K41: - | L41: - | M41: 0 | N41: -1633 | O41: -49 | P41: 0 | Q41: 0 | R41: -611 | S41: -269 | T41: -115 | U41: -9 | V41: -4217
A42: August | B42: - | C42: - | D42: - | E42: - | F42: - | G42: - | H42: - | I42: - | J42: - | K42: - | L42: - | M42: 0 | N42: -76 | O42: -34 | P42: 0 | Q42: -133 | R42: 0 | S42: -30 | T42: 0 | U42: -8678 | V42: -79.43
A43: September | B43: - | C43: - | D43: - | E43: - | F43: - | G43: - | H43: - | I43: - | J43: - | K43: - | L43: - | M43: 0 | N43: 0 | O43: 0 | P43: 0 | Q43: -549 | R43: 0 | S43: 0 | T43: 0 | U43: 0 | V43: -5.95
A44: October | B44: - | C44: - | D44: - | E44: - | F44: - | G44: - | H44: - | I44: - | J44: - | K44: - | L44: - | M44: 0 | N44: 0 | O44: -895 | P44: 0 | Q44: 0 | R44: 0 | S44: -42 | T44: 0 | U44: -11 | V44: 0
A45: November | B45: - | C45: - | D45: - | E45: - | F45: - | G45: - | H45: - | I45: - | J45: - | K45: - | L45: - | M45: -33 | N45: 0 | O45: 0 | P45: 0 | Q45: 0 | R45: -2600 | S45: 0 | T45: 0 | U45: 0 | V45: 0
A46: December | B46: - | C46: - | D46: - | E46: - | F46: - | G46: - | H46: - | I46: - | J46: - | K46: - | L46: - | M46: 0 | N46: 0 | O46: 0 | P46: -2 | Q46: 0 | R46: -27 | S46: 0 | T46: 0 | U46: -238 | V46: 0
A47: Total | B47: - | C47: - | D47: - | E47: - | F47: - | G47: - | H47: - | I47: - | J47: - | K47: - | L47: - | M47: =SUM(M35:M46) -> -33 | N47: =SUM(N35:N46) -> -32954 | O47: =SUM(O35:O46) -> -981 | P47: =SUM(P35:P46) -> -955 | Q47: =SUM(Q35:Q46) -> -2859 | R47: =SUM(R35:R46) -> -20728 | S47: =SUM(S35:S46) -> -401 | T47: -131 | U47: =SUM(U35:U46) -> -8936 | V47: -4302.38
A48: Hidden columns B-L do not contain any data for CY 2004-2014
A49: ='Local SUT'!A78 -> Source: Minnesota Department of Revenue, Tax Research Division, November 2025
A50: end of worksheet

Sheet Carver Co (hidden)
A1: Carver County Monthly Detail for Minnesota Local Sales & Use Tax
A2: ='Local SUT'!A2 -> CY 2004-2024
A3: Carver County Transit Sales Tax (0.5%)
A4: Month | B4: 2004 | C4: 2005 | D4: 2006 | E4: 2007 | F4: 2008 | G4: 2009 | H4: 2010 | I4: 2011 | J4: 2012 | K4: 2013 | L4: 2014 | M4: 2015 | N4: 2016 | O4: 2017 | P4: 2018 | Q4: 2019 | R4: 2020 | S4: 2021 | T4: 2022 | U4: 2023 | V4: 2024
A5: January | B5: - | C5: - | D5: - | E5: - | F5: - | G5: - | H5: - | I5: - | J5: - | K5: - | L5: - | M5: - | N5: - | O5: - | P5: 623312 | Q5: 779640 | R5: 1009665 | S5: 811084 | T5: 968459 | U5: 914988 | V5: 941926
A6: February | B6: - | C6: - | D6: - | E6: - | F6: - | G6: - | H6: - | I6: - | J6: - | K6: - | L6: - | M6: - | N6: - | O6: - | P6: 441698 | Q6: 522180 | R6: 689074 | S6: 665618 | T6: 840924 | U6: 680350 | V6: 821997
A7: March | B7: - | C7: - | D7: - | E7: - | F7: - | G7: - | H7: - | I7: - | J7: - | K7: - | L7: - | M7: - | N7: - | O7: - | P7: 529116 | Q7: 533525 | R7: 554218 | S7: 834016 | T7: 864889 | U7: 685128 | V7: 652101
A8: April | B8: - | C8: - | D8: - | E8: - | F8: - | G8: - | H8: - | I8: - | J8: - | K8: - | L8: - | M8: - | N8: - | O8: - | P8: 522520 | Q8: 547674 | R8: 645195 | S8: 807051 | T8: 965656 | U8: 823241 | V8: 728185
A9: May | B9: - | C9: - | D9: - | E9: - | F9: - | G9: - | H9: - | I9: - | J9: - | K9: - | L9: - | M9: - | N9: - | O9: - | P9: 445481 | Q9: 587767 | R9: 574624 | S9: 676899 | T9: 1054154 | U9: 720562 | V9: 834757
A10: June | B10: - | C10: - | D10: - | E10: - | F10: - | G10: - | H10: - | I10: - | J10: - | K10: - | L10: - | M10: - | N10: - | O10: - | P10: 545926 | Q10: 754345 | R10: 625914 | S10: 764086 | T10: 1048127 | U10: 899954 | V10: 901245
A11: July | B11: - | C11: - | D11: - | E11: - | F11: - | G11: - | H11: - | I11: - | J11: - | K11: - | L11: - | M11: - | N11: - | O11: - | P11: 490062 | Q11: 672105 | R11: 637990 | S11: 767649 | T11: 919899 | U11: 1022618 | V11: 914745
A12: August | B12: - | C12: - | D12: - | E12: - | F12: - | G12: - | H12: - | I12: - | J12: - | K12: - | L12: - | M12: - | N12: - | O12: - | P12: 633221 | Q12: 719859 | R12: 785964 | S12: 839538 | T12: 873390 | U12: 862558 | V12: 857102.98
A13: September | B13: - | C13: - | D13: - | E13: - | F13: - | G13: - | H13: - | I13: - | J13: - | K13: - | L13: - | M13: - | N13: - | O13: - | P13: 598993 | Q13: 675203 | R13: 689276 | S13: 777078 | T13: 931673 | U13: 868915 | V13: 941399.68
A14: October | B14: - | C14: - | D14: - | E14: - | F14: - | G14: - | H14: - | I14: - | J14: - | K14: - | L14: - | M14: - | N14: - | O14: 169 | P14: 560477 | Q14: 685939 | R14: 687917 | S14: 838896 | T14: 865897 | U14: 935607 | V14: 861628.38
A15: November | B15: - | C15: - | D15: - | E15: - | F15: - | G15: - | H15: - | I15: - | J15: - | K15: - | L15: - | M15: - | N15: - | O15: 411541 | P15: 573040 | Q15: 705539 | R15: 610057 | S15: 718273 | T15: 887488 | U15: 794300 | V15: 863342.48
A16: December | B16: - | C16: - | D16: - | E16: - | F16: - | G16: - | H16: - | I16: - | J16: - | K16: - | L16: - | M16: - | N16: - | O16: 451170 | P16: 611284 | Q16: 656676 | R16: 625476 | S16: 932981 | T16: 1065319 | U16: 824264 | V16: 820486.19
A17: Total | B17: - | C17: - | D17: - | E17: - | F17: - | G17: - | H17: - | I17: - | J17: - | K17: - | L17: - | M17: - | N17: - | O17: =SUM(O5:O16) -> 862880 | P17: =SUM(P5:P16) -> 6575130 | Q17: =SUM(Q5:Q16) -> 7840452 | R17: =SUM(R5:R16) -> 8135370 | S17: =SUM(S5:S16) -> 9433169 | T17: 11285875 | U17: =SUM(U5:U16) -> 10032485 | V17: 10138915.71
A18: Carver County Transit Use (0.5%)
A19: Month | B19: 2004 | C19: 2005 | D19: 2006 | E19: 2007 | F19: 2008 | G19: 2009 | H19: 2010 | I19: 2011 | J19: 2012 | K19: 2013 | L19: 2014 | M19: 2015 | N19: 2016 | O19: 2017 | P19: 2018 | Q19: 2019 | R19: 2020 | S19: 2021 | T19: 2022 | U19: 2023 | V19: 2024
A20: January | B20: - | C20: - | D20: - | E20: - | F20: - | G20: - | H20: - | I20: - | J20: - | K20: - | L20: - | M20: - | N20: - | O20: - | P20: 100166 | Q20: 49454 | R20: 62860 | S20: 56523 | T20: 75902 | U20: 53719 | V20: 80208
A21: February | B21: - | C21: - | D21: - | E21: - | F21: - | G21: - | H21: - | I21: - | J21: - | K21: - | L21: - | M21: - | N21: - | O21: - | P21: 45810 | Q21: 98351 | R21: 63311 | S21: 4039 | T21: 72936 | U21: 55773 | V21: 36167
A22: March | B22: - | C22: - | D22: - | E22: - | F22: - | G22: - | H22: - | I22: - | J22: - | K22: - | L22: - | M22: - | N22: - | O22: - | P22: 35696 | Q22: 47365 | R22: 59543 | S22: 138302 | T22: 71159 | U22: 44903 | V22: 56532
A23: April | B23: - | C23: - | D23: - | E23: - | F23: - | G23: - | H23: - | I23: - | J23: - | K23: - | L23: - | M23: - | N23: - | O23: - | P23: 26660 | Q23: 87624 | R23: 52436 | S23: 45821 | T23: 101098 | U23: 56786 | V23: 53238
A24: May | B24: - | C24: - | D24: - | E24: - | F24: - | G24: - | H24: - | I24: - | J24: - | K24: - | L24: - | M24: - | N24: - | O24: - | P24: 14376 | Q24: 67013 | R24: 45698 | S24: 51780 | T24: 155016 | U24: 39626 | V24: 23484
A25: June | B25: - | C25: - | D25: - | E25: - | F25: - | G25: - | H25: - | I25: - | J25: - | K25: - | L25: - | M25: - | N25: - | O25: - | P25: 49514 | Q25: 134751 | R25: -8136 | S25: 27431 | T25: 159914 | U25: 41181 | V25: 44977
A26: July | B26: - | C26: - | D26: - | E26: - | F26: - | G26: - | H26: - | I26: - | J26: - | K26: - | L26: - | M26: - | N26: - | O26: - | P26: 26844 | Q26: 47121 | R26: 37699 | S26: 29810 | T26: 91259 | U26: 61447 | V26: 54544
A27: August | B27: - | C27: - | D27: - | E27: - | F27: - | G27: - | H27: - | I27: - | J27: - | K27: - | L27: - | M27: - | N27: - | O27: - | P27: 154834 | Q27: 90645 | R27: 73248 | S27: 46636 | T27: 81908 | U27: 41674 | V27: 58981.88
A28: September | B28: - | C28: - | D28: - | E28: - | F28: - | G28: - | H28: - | I28: - | J28: - | K28: - | L28: - | M28: - | N28: - | O28: - | P28: 37995 | Q28: 130292 | R28: 104619 | S28: 11726 | T28: 74835 | U28: 36298 | V28: 58518.87
A29: October | B29: - | C29: - | D29: - | E29: - | F29: - | G29: - | H29: - | I29: - | J29: - | K29: - | L29: - | M29: - | N29: - | O29: 5 | P29: 34460 | Q29: 97197 | R29: 52738 | S29: 65710 | T29: 72747 | U29: 37494 | V29: 114065.07
A30: November | B30: - | C30: - | D30: - | E30: - | F30: - | G30: - | H30: - | I30: - | J30: - | K30: - | L30: - | M30: - | N30: - | O30: 15793 | P30: 63002 | Q30: 104301 | R30: 48418 | S30: 2627 | T30: 69951 | U30: 73817 | V30: 90361.97
A31: December | B31: - | C31: - | D31: - | E31: - | F31: - | G31: - | H31: - | I31: - | J31: - | K31: - | L31: - | M31: - | N31: - | O31: 13664 | P31: 52313 | Q31: 39862 | R31: -12766 | S31: 166570 | T31: 98780 | U31: 64793 | V31: 49220.38
A32: Total | B32: - | C32: - | D32: - | E32: - | F32: - | G32: - | H32: - | I32: - | J32: - | K32: - | L32: - | M32: - | N32: - | O32: =SUM(O20:O31) -> 29462 | P32: =SUM(P20:P31) -> 641670 | Q32: =SUM(Q20:Q31) -> 993976 | R32: =SUM(R20:R31) -> 579668 | S32: =SUM(S20:S31) -> 646975 | T32: 1125505 | U32: =SUM(U20:U31) -> 607511 | V32: 720298.17
A33: Carver County Transit Refunds
